Workbook

Sheet Instruções de Operação
A1: Instruções de Operação
B3: 1 - As abas em verde são as que devem ser manipuladas para a utilização do simulador e viabilização de cenários para a estrutura tarifária;
B4: 2 - As abas em laranja contém os dados que alimentam o simulador. Portanto não devem ser alteradas e servem apenas como fonte de consulta e transparência;
B5: 3 - Apenas as células destacadas em verde devem ser manipuladas;
B6: 4 - A aba "Inputs - Simulador" é a que recebe as entradas de preço e progressividade das faixas das categorias. Além disso, é possível alterar a proporção da cobrança do serviço de esgotamento e da majoração no litoral. Além disso, nessa aba é possível acionar a cobrança da TBD. Quando não acionada, a coluna da TBD serve de cobrança para a primeira faixa (0 a 5 m3) e a primeira faixa deve ter preço zero. Finalmente, nessa aba há os botões que ajustam o simulador para configurações pré-estabelecidas;
B7: 5 - A aba "Outputs - Simulador" fornece os resultados causados pela manipulação da aba de inputs. Nessa aba ainda há uma parte em que se pode comparar a aplicação da estrutura tarifária antiga com a nova proposição;
B8: 6 - A aba "Painel Síntese" que traz uma amostra de consumidores de forma a se prover uma perspectiva mais ampla das alterações realizadas.
B9: 7 - Ressalta-se que para qualquer alteração na planilha, seja na aba de inputs, outputs, visualização de gráfico de outra categoria, há a necessidade de se clicar novamente no botão "Calcular" da aba "Inputs - Simulador". Esta ação é necessária para evitar lentidão na planilha devido à grande quantidade de cálculos envolvidos no simulador.
B11: Obs.: Para testar os cenários da Nota Técnica, é necessário clicar no botão do cenário desejado, na Aba "Inputs - Simulador" e depois no botão "Calcular" na mesma aba. Os resultados resumidos podem ser identificados na aba "Painel Síntese" e com maior detalhe na aba "Outputs - Simulador".

Sheet Log de Operações (hidden)
D2: Log de Operações
C6: Mudança | E6: RR | F6: Impacto RR | G6: P0 (R$/m3) | H6: Impacto P0
C7: Cenário Atual | E7: 2.367943064e+10 | F7: - | G7: 6.2052 | H7: -
C8: Inclusão de Tarifa Básica de Disponibilidade (TBD)1 | E8: 2.367943064e+10 | F8: =(E8-E7)/ABS(E7) -> 0 | G8: 6.506373403 | H8: =(G8-G7)/ABS(G7) -> 0.04853564807
C9: Adição de cobrança na primeira faixa2 | E9: 2.558926739e+10 | F9: 0.08065382884 | G9: 7.03113733 | H9: 0.08065382884
C10: Alteração na progressividade de faixas e na precificação na categoria Industrial3 | E10: 2.558327778e+10 | F10: -0.000234067298 | G10: 7.029491571 | H10: -0.000234067298
C11: Alteração na progressividade de faixas na categoria Comercial4 | E11: 2.558652333e+10 | F11: 0.0001268623647 | G11: 7.030383349 | H11: 0.0001268623647
C12: Alteração na progressividade de faixas na categoria Poder Público5 | E12: 2.559348179e+10 | F12: 0.0002719580534 | G12: 7.032295318 | H12: 0.0002719580534
C13: Alteração na progressividade de faixas nas categorias Utilidade Pública e Entidade Filantrópica6 | E13: 2.559435213e+10 | F13: 3.400602266e-05 | G13: 7.032534459 | H13: 3.400602266e-05
C14: Criação de uma nova faixa para a categoria Residencial7 | E14: 2.562513637e+10 | F14: 0.001202774677 | G14: 7.040993013 | H14: 0.001202774677
C15: Redução das Tarifas Básicas das categorias Residencial, Comercial, MPC e Social8 | E15: 2.367943064e+10 | F15: =(E15-E14)/ABS(E14) -> -0.07592957536 | G15: 6.506373403 | H15: =(G15-G14)/ABS(G14) -> -0.07592957536
C17: Acumulado | E17: =E15-E7 -> 0 | F17: =(E15-E7)/ABS(E7) -> -1.610975079e-16 | G17: =G15-G7 -> 0.3011734034 | H17: =(G15-G7)/ABS(G7) -> 0.04853564807
C19: Observações
C20: 1. A tarifa básica foi incluída por meio da adequação da mudança da escolha de variáveis no cálculo do P0. Sem a TBD, a cobrança se dava por meio da multiplicação do valor da primeira faixa pelo número de economias/ligações. Com a mudança, a cobrança por economias e ligações permanece, contudo se passa a faturar a primeira faixa pelo preço do metro cúbico, definido por ora em zero reais. Por isso, não há mudança na Receita Requerida mas há mudança no P0. | E20: 5. Nesse cenário, a progressividade ficou assim definida: Faixa 1 de 0 a 5 m3; Faixa 2 de 6 a 10 m3; Faixa 3 de 11 a 15 m3; Faixa 4 de 16 a 20 m3; Faixa 5 de 21 a 30 m3; faixa 6 de 31 a 200 m3; faixa 7 de 201 a 1000 m3; e faixa 8 de 1001 m3 para cima A progressão do preço foi de 1% em relação à última faixa para a faixa 7 e de 1% para a faixa 8.
C21: 2. A precificação para a primeira faixa foi estabelecida calculando-se a razão entre 30% da Receita Requerida e o Volume Total Faturado. | E21: 6. Nesse cenário, a progressividade ficou assim definida: Faixa 1 de 0 a 5 m3; Faixa 2 de 6 a 10 m3; Faixa 3 de 11 a 15 m3; Faixa 4 de 16 a 20 m3; Faixa 5 de 21 a 30 m3; faixa 6 de 31 a 100 m3; faixa 7 de 101 a 500 m3; e faixa 8 de 501 m3 para cima A progressão do preço foi de 1% em relação à última faixa para a faixa 7 e de 1% para a faixa 8. A mesma lógica foi aplicada à categoria Entidade Filantrópica por força de Resolução.
C22: 3. Nesse cenário, a progressividade ficou assim definida: Faixa 1 de 0 a 5 m3; Faixa 2 de 6 a 10 m3; Faixa 3 de 11 a 15 m3; Faixa 4 de 16 a 20 m3; Faixa 5 de 21 a 30 m3; faixa 6 de 31 a 200 m3; faixa 7 de 201 a 1000 m3; e faixa 8 de 1001 m3 para cima. A progressão do preço foi de 0,4% em relação à última faixa para a faixa 7 e de 0,4% para a faixa 8. O preço das faixas 3 e 4 foram reajustados para R$ 9,35 e R$ 9,50, respectivamente. | E22: 7. Criação de uma sétima faixa para a categoria Residencial. Assim a sexta faixa compreende os consumos entre 31 e 50 m3 e a sétima abarca aqueles que consumiram acima de 50m3. A progressão no preço é da ordem de 10%.
C23: 4. Nesse cenário, a progressividade ficou assim definida: Faixa 1 de 0 a 5 m3; Faixa 2 de 6 a 10 m3; Faixa 3 de 11 a 20 m3; Faixa 4 de 21 a 30 m3; Faixa 5 de 31 a 50 m3; faixa 6 de 51 a 100 m3; faixa 7 de 101 a 500 m3; e faixa 8 de 501 m3 para cima. A progressão do preço foi de 1% em relação à última faixa para a faixa 7 e de 1% para a faixa 8. | E23: 8. Os sucessivos aumentos de Receita Requerida foram ajustados para conceder às categorias Residencial, MPC e Tarifa Social um reajuste negativo. Com essa mudança, será cobrado um valor de R$ 36,70 pela taxa básica de distribuição das primeiras e R$ 8,00 da última. Já a categoria Comercial passa a ter uma TBD de R$ 75,95

Sheet Inputs - Simulador
C2: Se "flag", inclui TBD
D3: TBD | F3: Faixa 1 | J3: Faixa 2 | O3: Faixa 3 | T3: Faixa 4 | Y3: Faixa 5 | AD3: Faixa 6 | AI3: Faixa 7 | AN3: Faixa 8
D4: R$ Fixo/mês | E4: R$/m3 | F4: Início | G4: a | H4: Fim | I4: R$/m3 | J4: Progr. % | K4: Início | L4: a | M4: Fim | N4: R$/m3 | O4: Progr. % | P4: Início | Q4: a | R4: Fim | S4: R$/m3 | T4: Progr. % | U4: Início | V4: a | W4: Fim | X4: R$/m3 | Y4: Progr. % | Z4: Início | AA4: a | AB4: Fim | AC4: R$/m3 | AD4: Progr. % | AE4: Início | AF4: a | AG4: Fim | AH4: R$/m3 | AI4: Progr. % | AJ4: Início | AK4: a | AL4: Fim | AM4: R$/m3 | AN4: Progr. % | AO4: Início | AP4: a | AQ4: Fim
C5: COMERCIAL | D5: 74.12915658 | E5: 1.95 | F5: 0 | G5: a | H5: 5 | I5: 1.99 | J5: - | K5: =H5+1 -> 6 | L5: a | M5: 10 | N5: =I5*(1+O5) -> 9.89 | O5: 3.969849246 | P5: =M5+1 -> 11 | Q5: a | R5: 20 | S5: =N5*(1+T5) -> 9.96 | T5: 0.007077856421 | U5: =R5+1 -> 21 | V5: a | W5: 30 | X5: =S5*(1+Y5) -> 10.02 | Y5: 0.006024096386 | Z5: =W5+1 -> 31 | AA5: a | AB5: 50 | AC5: =X5*(1+AD5) -> 10.1 | AD5: 0.007984031936 | AE5: =AB5+1 -> 51 | AF5: a | AG5: 100 | AH5: =AC5*(1+AI5) -> 10.201 | AI5: 0.01 | AJ5: =AG5+1 -> 101 | AK5: a | AL5: 500 | AM5: =AH5*(1+AN5) -> 10.30301 | AN5: 0.01 | AO5: =AL5+1 -> 501 | AP5: a | AQ5: 1000003
C6: INATIVO + SANEPAR | D6: 0 | E6: 0 | F6: 0 | G6: a | H6: 5 | I6: 0 | J6: - | K6: =H6+1 -> 6 | L6: a | M6: 10 | N6: =I6*(1+O6) -> 0 | O6: 0 | P6: =M6+1 -> 11 | Q6: a | R6: 15 | S6: =N6*(1+T6) -> 0 | T6: 0 | U6: =R6+1 -> 16 | V6: a | W6: 20 | X6: =S6*(1+Y6) -> 0 | Y6: 0 | Z6: =W6+1 -> 21 | AA6: a | AB6: 30 | AC6: =X6*(1+AD6) -> 0 | AD6: 0 | AE6: =AB6+1 -> 31 | AF6: a | AG6: 999999 | AH6: =AC6*(1+AI6) -> 0 | AI6: 0.1 | AJ6: =AG6+1 -> 1000000 | AK6: a | AL6: 1000001 | AM6: =AH6*(1+AN6) -> 0 | AN6: 0.1 | AO6: =AL6+1 -> 1000002 | AP6: a | AQ6: 1000003
C7: INDUSTRIAL | D7: 77.6 | E7: 1.95 | F7: 0 | G7: a | H7: 5 | I7: 1.99 | J7: - | K7: 6 | L7: a | M7: 10 | N7: 9.350015 | O7: 3.6985 | P7: 11 | Q7: a | R7: 15 | S7: 9.497745237 | T7: 0.0158 | U7: 16 | V7: a | W7: 20 | X7: 9.527210838 | Y7: 0.00310237849 | Z7: 21 | AA7: a | AB7: 30 | AC7: 9.566498305 | AD7: 0.00412371134 | AE7: 31 | AF7: a | AG7: 200 | AH7: 9.604764298 | AI7: 0.004 | AJ7: =AG7+1 -> 201 | AK7: a | AL7: 1000 | AM7: 9.643183355 | AN7: 0.004 | AO7: 1001 | AP7: a | AQ7: 1000003
C8: MPC | D8: 36.7 | E8: 1.3 | F8: 0 | G8: a | H8: 5 | I8: 1.33 | J8: - | K8: 6 | L8: a | M8: 10 | N8: 9.89 | O8: 6.436090226 | P8: 11 | Q8: a | R8: 15 | S8: 9.96 | T8: 0.007077856421 | U8: 16 | V8: a | W8: 20 | X8: 10.02 | Y8: 0.006024096386 | Z8: 21 | AA8: a | AB8: 30 | AC8: 10.1 | AD8: 0.007984031936 | AE8: 31 | AF8: a | AG8: 999999 | AH8: 11.11 | AI8: 0.1 | AJ8: 1000000 | AK8: a | AL8: 1000001 | AM8: 12.221 | AN8: 0.1 | AO8: 1000002 | AP8: a | AQ8: 1000003
C9: PODER PUBLICO | D9: 77.6 | E9: 1.95 | F9: 0 | G9: a | H9: 5 | I9: 1.99 | J9: - | K9: 6 | L9: a | M9: 10 | N9: 9.89 | O9: 3.969849246 | P9: 11 | Q9: a | R9: 15 | S9: 9.96 | T9: 0.007077856421 | U9: 16 | V9: a | W9: 20 | X9: 10.02 | Y9: 0.006024096386 | Z9: 21 | AA9: a | AB9: 30 | AC9: 10.1 | AD9: 0.007984031936 | AE9: 31 | AF9: a | AG9: 200 | AH9: 10.201 | AI9: 0.01 | AJ9: 201 | AK9: a | AL9: 1000 | AM9: 10.30301 | AN9: 0.01 | AO9: 1001 | AP9: a | AQ9: 1000003
C10: RESIDENCIAL | D10: 36.7 | E10: 1.3 | F10: 0 | G10: a | H10: 5 | I10: 1.33 | J10: - | K10: 6 | L10: a | M10: 10 | N10: 7.43 | O10: 4.586466165 | P10: 11 | Q10: a | R10: 15 | S10: 7.47 | T10: 0.005383580081 | U10: 16 | V10: a | W10: 20 | X10: 7.53 | Y10: 0.008032128514 | Z10: 21 | AA10: a | AB10: 30 | AC10: 12.74 | AD10: 0.6918990704 | AE10: 31 | AF10: a | AG10: 50 | AH10: 14.014 | AI10: 0.1 | AJ10: 51 | AK10: a | AL10: 1000001 | AM10: 15.4154 | AN10: 0.1 | AO10: 1000002 | AP10: a | AQ10: 1000003
C11: TARIFA SOCIAL | D11: 8 | E11: 0.34 | F11: 0 | G11: a | H11: 5 | I11: 0.35 | J11: - | K11: 6 | L11: a | M11: 10 | N11: 1.33 | O11: 2.8 | P11: 11 | Q11: a | R11: 999999 | S11: 1.33 | T11: 0 | U11: 1000000 | V11: a | W11: 1000001 | X11: 1.33 | Y11: 0 | Z11: 1000002 | AA11: a | AB11: 1000003 | AC11: 1.33 | AD11: 0 | AE11: 1000004 | AF11: a | AG11: 1000005 | AH11: 1.463 | AI11: 0.1 | AJ11: 1000006 | AK11: a | AL11: 1000007 | AM11: 1.6093 | AN11: 0.1 | AO11: 1000008 | AP11: a | AQ11: 1000009
C12: UTILIDADE PUBLICA | D12: 77.6 | E12: 1.95 | F12: 0 | G12: a | H12: 5 | I12: 1.99 | J12: - | K12: 6 | L12: a | M12: 10 | N12: 9.89 | O12: 3.969849246 | P12: 11 | Q12: a | R12: 15 | S12: 9.96 | T12: 0.007077856421 | U12: 16 | V12: a | W12: 20 | X12: 10.02 | Y12: 0.006024096386 | Z12: 21 | AA12: a | AB12: 30 | AC12: 10.1 | AD12: 0.007984031936 | AE12: 31 | AF12: a | AG12: 100 | AH12: 10.201 | AI12: 0.01 | AJ12: =AG12+1 -> 101 | AK12: a | AL12: 500 | AM12: 10.30301 | AN12: 0.01 | AO12: 501 | AP12: a | AQ12: 1000003
C13: ENTIDADE FILANTROPICA | D13: 77.6 | E13: 0.975 | F13: 0 | G13: a | H13: 5 | I13: 0.995 | J13: - | K13: 6 | L13: a | M13: 10 | N13: =N12/2 -> 4.945 | O13: 3.969849246 | P13: 11 | Q13: a | R13: 15 | S13: =S12/2 -> 4.98 | T13: 0.007077856421 | U13: 16 | V13: a | W13: 20 | X13: =X12/2 -> 5.01 | Y13: 0.006024096386 | Z13: 21 | AA13: a | AB13: 30 | AC13: =AC12/2 -> 5.05 | AD13: 0.007984031936 | AE13: 31 | AF13: a | AG13: 100 | AH13: =AH12/2 -> 5.1005 | AI13: - | AJ13: 101 | AK13: a | AL13: 500 | AM13: =AM12/2 -> 5.151505 | AN13: - | AO13: =AL13+1 -> 501 | AP13: a | AQ13: 1000003
C15: Tarifa de Esgotamento | D15: Proporção da | F15: Tabela Tarifária Ref. * | H15: Faixa 1 | I15: Progressão | J15: Faixa 2 | K15: Progressão | L15: Faixa 3 | M15: Progressão | N15: Faixa 4 | O15: Progressão | P15: Faixa 5 | Q15: Progressão | R15: Faixa 6
D16: Tarifa de Água | F16: COMERCIAL | H16: 77.6 | I16: - | J16: 1.99 | K16: =(L16/J16)-1 -> 3.969849246 | L16: 9.89 | M16: =(N16/L16)-1 -> 0.007077856421 | N16: 9.96 | O16: =(P16/N16)-1 -> 0.006024096386 | P16: 10.02 | Q16: =(R16/P16)-1 -> 0.007984031936 | R16: 10.1
C17: Curitiba | D17: 0.85 | F17: INATIVO + SANEPAR | H17: 0 | I17: - | J17: 0 | K17: 0 | L17: 0 | M17: 0 | N17: 0 | O17: 0 | P17: 0 | Q17: 0 | R17: 0
C18: Litoral | D18: 0.8 | F18: INDUSTRIAL | H18: 77.6 | I18: - | J18: 1.99 | K18: =(L18/J18)-1 -> 3.783919598 | L18: 9.52 | M18: =(N18/L18)-1 -> 0.01575630252 | N18: 9.67 | O18: =(P18/N18)-1 -> 0.00310237849 | P18: 9.7 | Q18: =(R18/P18)-1 -> 0.00412371134 | R18: 9.74
C19: Demais Localidades | D19: 0.8 | F19: MPC | H19: 43.11 | I19: - | J19: 1.33 | K19: =(L19/J19)-1 -> 6.436090226 | L19: 9.89 | M19: 0.007077856421 | N19: 9.96 | O19: 0.006024096386 | P19: 10.02 | Q19: 0.007984031936 | R19: 10.1
C20: Tarifa Social | D20: 0.5 | F20: PODER PUBLICO | H20: 77.6 | I20: - | J20: 1.99 | K20: 3.969849246 | L20: 9.89 | M20: 0.007077856421 | N20: 9.96 | O20: 0.006024096386 | P20: 10.02 | Q20: 0.007984031936 | R20: 10.1
F21: RESIDENCIAL | H21: 43.11 | I21: - | J21: 1.33 | K21: 4.586466165 | L21: 7.43 | M21: 0.005383580081 | N21: 7.47 | O21: 0.008032128514 | P21: 7.53 | Q21: 0.6918990704 | R21: 12.74
C22: Majoração da Tarifa do Litoral | D22: Proporção da | F22: TARIFA SOCIAL | H22: 11.53 | I22: - | J22: 0.35 | K22: 2.8 | L22: 1.33 | M22: 0 | N22: 1.33 | O22: 0 | P22: 1.33 | Q22: 0 | R22: 1.33
C23: de dezembro a março | D23: Tarifa de Água | F23: UTILIDADE PUBLICA | H23: 77.6 | I23: - | J23: 1.99 | K23: 3.969849246 | L23: 9.89 | M23: 0.007077856421 | N23: 9.96 | O23: 0.006024096386 | P23: 10.02 | Q23: 0.007984031936 | R23: 10.1
C24: *A primeira faixa das categorias não sofre majoração | D24: 1.2 | F24: ENTIDADE FILANTROPICA | H24: 77.6 | I24: - | J24: =J23/2 -> 0.995 | K24: 3.969849246 | L24: =L23/2 -> 4.945 | M24: 0.007077856421 | N24: =N23/2 -> 4.98 | O24: 0.006024096386 | P24: =P23/2 -> 5.01 | Q24: 0.007984031936 | R24: =R23/2 -> 5.05
P25: * Tabela Tarifária para o ano de 2021. | S25: Obs.1 : Após clicar em um dos cenários, é necessário clicar no botão "Calcular" desta planilha (célula A3).
S26: Obs. 2: O 2º Cenário da Nota Técnica é de perfil intermediário para a elaborações dos demais, portanto, não consta parametrizado no simulador.

Sheet Outputs -Simulador
B2: OUTPUTS
C5: RECEITA REQUERIDA (R$) | F5: =F28 -> 2.367943064e+10 | K5: Comparativo Tarifário
C6: VOLUME (m3) | F6: =SUM(F7:F8) -> 3639420792 | H6: Categoria | I6: Consumo | J6: Faixa | K6: Valor Água | L6: Preço por m3 | M6: Valor Conta* | O6: Variação
C7: Volume Água | F7: =SUM('Volumes Agregados'!D3:G74,'Volumes Agregados'!L3:O74,'Volumes Agregados'!T3:W74,'Volumes Agregados'!AB3:AE74) -> 2089846521 | H7: =H9 -> COMERCIAL | I7: =I9 -> 12 | J7: =IF(I9<6,1,IF(I9<11,2,IF(I9<16,3,IF(I9<21,4,IF(I9<31,5,6))))) -> 3 | K7: =IF($H9="COMERCIAL",VLOOKUP($I9,'Tabela Tarifária Antiga'!$O$4:$Q$689,2,0),IF($H9="INATIVO + SANEPAR",VLOOKUP($I9,'Tabela Tarifária Antiga'!$T$4:$V$689,2,0),IF($H9="INDUSTRIAL",VLOOKUP($I9,'Tabela Tarifária Antiga'!$Y$4:$AA$689,2,0),IF($H9="MPC",VLOOKUP($I9,'Tabela Tarifária Antiga'!$AD$4:$AF$689,2,0),IF($H9="PODER PUBLICO",VLOOKUP($I9,'Tabela Tarifária Antiga'!$AI$4:$AK$689,2,0),IF($H9="RESIDENCIAL",VLOOKUP($I9,'Tabela Tarifária Antiga'!$AN$4:$AP$689,2,0),IF($H9="TARIFA SOCIAL",VLOOKUP($I9,'Tabela Tarifária Antiga'!$AS$4:$AU$689,2,0),IF($H9="UTILIDADE PUBLICA",VLOOKUP($I9,'Tabela Tarifária Antiga'!$AX$4:$AZ$689,2,0),IF($H9="ENTIDADE FILANTROPICA",VLOOKUP($I9,'Tabela Tarifária Antiga'!$BC$4:$BE$689,2,0),0))))))))) -> 107.33 | L7: =IF($H9="COMERCIAL",VLOOKUP($I9,'Tabela Tarifária Antiga'!$O$4:$Q$689,3,0),IF($H9="INATIVO + SANEPAR",VLOOKUP($I9,'Tabela Tarifária Antiga'!$T$4:$V$689,3,0),IF($H9="INDUSTRIAL",VLOOKUP($I9,'Tabela Tarifária Antiga'!$Y$4:$AA$689,3,0),IF($H9="MPC",VLOOKUP($I9,'Tabela Tarifária Antiga'!$AD$4:$AF$689,3,0),IF($H9="PODER PUBLICO",VLOOKUP($I9,'Tabela Tarifária Antiga'!$AI$4:$AK$689,3,0),IF($H9="RESIDENCIAL",VLOOKUP($I9,'Tabela Tarifária Antiga'!$AN$4:$AP$689,3,0),IF($H9="TARIFA SOCIAL",VLOOKUP($I9,'Tabela Tarifária Antiga'!$AS$4:$AU$689,3,0),IF($H9="UTLIDADE PUBLICA",VLOOKUP($I9,'Tabela Tarifária Antiga'!$AX$4:$AZ$689,3,0),IF($H9="TARIFA SOCIAL",VLOOKUP($I9,'Tabela Tarifária Antiga'!$AS$4:$AU$689,3,0),IF($H9="ENTIDADE FILANTROPICA",VLOOKUP($I9,'Tabela Tarifária Antiga'!$BC$4:$BE$689,3,0),0)))))))))) -> 8.944166667 | M7: =K7+(K7*0.8) -> 193.194 | P7: Antes
C8: Volume Esgoto | F8: =SUM('Volumes Agregados'!H3:K74,'Volumes Agregados'!P3:S74,'Volumes Agregados'!X3:AA74,'Volumes Agregados'!AF3:AI74) -> 1549574271 | O8: =(M9-M7)/ABS(M7) -> 0.05850327573
C9: P0 (R$/m3) | F9: =F5/F6 -> 6.506373403 | H9: COMERCIAL | I9: 12 | J9: =IF($H9="COMERCIAL",VLOOKUP($I9,CHOOSE({1,2},'Tabela Tarifária Simulada'!$O$4:$O$689,'Tabela Tarifária Simulada'!$N$4:$N$689),2,0),IF($H9="INATIVO + SANEPAR",VLOOKUP($I9,CHOOSE({1,2},'Tabela Tarifária Simulada'!$T$4:$T$689,'Tabela Tarifária Simulada'!$S$4:$S$689),2,0),IF($H9="INDUSTRIAL",VLOOKUP($I9,CHOOSE({1,2},'Tabela Tarifária Simulada'!$Y$4:$Y$689,'Tabela Tarifária Simulada'!$X$4:$X$689),2,0),IF($H9="MPC",VLOOKUP($I9,CHOOSE({1,2},'Tabela Tarifária Simulada'!$AD$4:$AD$689,'Tabela Tarifária Simulada'!$AC$4:$AC$689),2,0),IF($H9="PODER PUBLICO",VLOOKUP($I9,CHOOSE({1,2},'Tabela Tarifária Simulada'!$AI$4:$AI$689,'Tabela Tarifária Simulada'!$AH$4:$AH$689),2,0),IF($H9="RESIDENCIAL",VLOOKUP($I9,CHOOSE({1,2},'Tabela Tarifária Simulada'!$AN$4:$AN$689,'Tabela Tarifária Simulada'!$AM$4:$AM$689),2,0),IF($H9="TARIFA SOCIAL",VLOOKUP($I9,CHOOSE({1,2},'Tabela Tarifária Simulada'!$AS$4:$AS$689,'Tabela Tarifária Simulada'!$AR$4:$AR$689),2,0),IF($H9="UTILIDADE PUBLICA",VLOOKUP($I9,CHOOSE({1,2},'Tabela Tarifária Simulada'!$AX$4:$AX$689,'Tabela Tarifária Simulada'!$AW$4:$AW$689),2,0),IF($H9="ENTIDADE FILANTROPICA",VLOOKUP($I9,CHOOSE({1,2},'Tabela Tarifária Simulada'!$BC$4:$BC$689,'Tabela Tarifária Simulada'!$BB$4:$BB$689),2,0),0))))))))) -> 3 | K9: =IF($H9="COMERCIAL",VLOOKUP($I9,'Tabela Tarifária Simulada'!$O$4:$Q$689,2,0),IF($H9="INATIVO + SANEPAR",VLOOKUP($I9,'Tabela Tarifária Simulada'!$T$4:$V$689,2,0),IF($H9="INDUSTRIAL",VLOOKUP($I9,'Tabela Tarifária Simulada'!$Y$4:$AA$689,2,0),IF($H9="MPC",VLOOKUP($I9,'Tabela Tarifária Simulada'!$AD$4:$AF$689,2,0),IF($H9="PODER PUBLICO",VLOOKUP($I9,'Tabela Tarifária Simulada'!$AI$4:$AK$689,2,0),IF($H9="RESIDENCIAL",VLOOKUP($I9,'Tabela Tarifária Simulada'!$AN$4:$AP$689,2,0),IF($H9="TARIFA SOCIAL",VLOOKUP($I9,'Tabela Tarifária Simulada'!$AS$4:$AU$689,2,0),IF($H9="UTILIDADE PUBLICA",VLOOKUP($I9,'Tabela Tarifária Simulada'!$AX$4:$AZ$689,2,0),IF($H9="ENTIDADE FILANTROPICA",VLOOKUP($I9,'Tabela Tarifária Simulada'!$BC$4:$BE$689,2,0),0))))))))) -> 113.6091566 | L9: =IF($H9="COMERCIAL",VLOOKUP($I9,'Tabela Tarifária Simulada'!$O$4:$Q$689,3,0),IF($H9="INATIVO + SANEPAR",VLOOKUP($I9,'Tabela Tarifária Simulada'!$T$4:$V$689,3,0),IF($H9="INDUSTRIAL",VLOOKUP($I9,'Tabela Tarifária Simulada'!$Y$4:$AA$689,3,0),IF($H9="MPC",VLOOKUP($I9,'Tabela Tarifária Simulada'!$AD$4:$AF$689,3,0),IF($H9="PODER PUBLICO",VLOOKUP($I9,'Tabela Tarifária Simulada'!$AI$4:$AK$689,3,0),IF($H9="RESIDENCIAL",VLOOKUP($I9,'Tabela Tarifária Simulada'!$AN$4:$AP$689,3,0),IF($H9="TARIFA SOCIAL",VLOOKUP($I9,'Tabela Tarifária Simulada'!$AS$4:$AU$689,3,0),IF($H9="UTLIDADE PUBLICA",VLOOKUP($I9,'Tabela Tarifária Simulada'!$AX$4:$AZ$689,3,0),IF($H9="TARIFA SOCIAL",VLOOKUP($I9,'Tabela Tarifária Simulada'!$AS$4:$AU$689,3,0),IF($H9="ENTIDADE FILANTROPICA",VLOOKUP($I9,'Tabela Tarifária Simulada'!$BC$4:$BE$689,3,0),0)))))))))) -> 9.467429715 | M9: =K9+(K9*0.8) -> 204.4964819 | P9: Depois
M10: *Tarifa Normal e sem majoração de temporada
C11: RECEITA POR CATEGORIA | D11: TBD | E11: Parcela Variável | F11: Total
C12: COMERCIAL | D12: =SUMIF('Ligações Agregadas'!$B$153:$B$224,'Outputs -Simulador'!$C12,'Ligações Agregadas'!$AK$153:$AK$224) -> 1683984821 | E12: =SUMIF('Volumes Agregados L'!$B$153:$B$224,'Outputs -Simulador'!$C12,'Volumes Agregados L'!$AK$153:$AK$224) -> 2018828552 | F12: =SUM(D12:E12) -> 3702813373
C13: INATIVO + SANEPAR | D13: =SUMIF('Economias Agregadas'!$B$153:$B$224,'Outputs -Simulador'!$C13,'Economias Agregadas'!$AK$153:$AK$224) -> 0 | E13: =SUMIF('Volumes Agregados'!$B$153:$B$224,'Outputs -Simulador'!$C13,'Volumes Agregados'!$AK$153:$AK$224) -> 0 | F13: =SUM(D13:E13) -> 0
C14: INDUSTRIAL | D14: =SUMIF('Economias Agregadas'!$B$153:$B$224,'Outputs -Simulador'!$C14,'Economias Agregadas'!$AK$153:$AK$224) -> 78881212.06 | E14: =SUMIF('Volumes Agregados'!$B$153:$B$224,'Outputs -Simulador'!$C14,'Volumes Agregados'!$AK$153:$AK$224) -> 445903559.3 | F14: 524784771.3
C15: MPC | D15: =SUMIF('Ligações Agregadas'!$B$153:$B$224,'Outputs -Simulador'!$C15,'Ligações Agregadas'!$AK$153:$AK$224) -> 27250423.91 | E15: =SUMIF('Volumes Agregados L'!$B$153:$B$224,'Outputs -Simulador'!$C15,'Volumes Agregados L'!$AK$153:$AK$224) -> 5584912.836 | F15: 32835336.75
C16: PODER PUBLICO | D16: =SUMIF('Economias Agregadas'!$B$153:$B$224,'Outputs -Simulador'!$C16,'Economias Agregadas'!$AK$153:$AK$224)*(1-0.1467) -> 133495274.3 | E16: =SUMIF('Volumes Agregados'!$B$153:$B$224,'Outputs -Simulador'!$C16,'Volumes Agregados'!$AK$153:$AK$224)*(1-0.1467) -> 1044217396 | F16: 1177712670
C17: RESIDENCIAL | D17: =SUMIF('Economias Agregadas'!$B$153:$B$224,'Outputs -Simulador'!$C17,'Economias Agregadas'!$AK$153:$AK$224) -> 1.038648302e+10 | E17: =SUMIF('Volumes Agregados'!$B$153:$B$224,'Outputs -Simulador'!$C17,'Volumes Agregados'!$AK$153:$AK$224) -> 7368771948 | F17: 1.775525497e+10
C18: TARIFA SOCIAL | D18: =SUMIF('Economias Agregadas'!$B$153:$B$224,'Outputs -Simulador'!$C18,'Economias Agregadas'!$AK$153:$AK$224) -> 108827744.7 | E18: =SUMIF('Volumes Agregados'!$B$153:$B$224,'Outputs -Simulador'!$C18,'Volumes Agregados'!$AK$153:$AK$224) -> 36666395.19 | F18: 145494139.9
C19: UTILIDADE PUBLICA | D19: =SUMIF('Economias Agregadas'!$B$153:$B$224,'Outputs -Simulador'!$C19,'Economias Agregadas'!$AK$153:$AK$224) -> 154624374.3 | E19: =SUMIF('Volumes Agregados'!$B$153:$B$224,'Outputs -Simulador'!$C19,'Volumes Agregados'!$AK$153:$AK$224) -> 149091165.2 | F19: 303715539.6
C20: ENTIDADE FILANTROPICA | D20: =SUMIF('Economias Agregadas'!$B$153:$B$224,'Outputs -Simulador'!$C20,'Economias Agregadas'!$AK$153:$AK$224) -> 4667355.248 | E20: =SUMIF('Volumes Agregados'!$B$153:$B$224,'Outputs -Simulador'!$C20,'Volumes Agregados'!$AK$153:$AK$224) -> 32152489.75 | F20: 36819845
C21: Total | D21: =SUM(D12:D20) -> 1.257821423e+10 | E21: =SUM(E12:E20) -> 1.110121642e+10 | F21: 2.367943064e+10
C23: RECEITA POR PERÍODO | D23: TBD | E23: Parcela Variável | F23: Total
C24: 2021 | D24: =SUM('Ligações Agregadas'!D$153:D$160,'Ligações Agregadas'!H$153:H$160,'Ligações Agregadas'!L$153:L$160,'Ligações Agregadas'!P$153:P$160,'Ligações Agregadas'!T$153:T$160,'Ligações Agregadas'!X$153:X$160,'Ligações Agregadas'!AB$153:AB$160,'Ligações Agregadas'!AF$153:AF$160,'Ligações Agregadas'!D$177:D$184,'Ligações Agregadas'!H$177:H$184,'Ligações Agregadas'!L$177:L$184,'Ligações Agregadas'!P$177:P$184,'Ligações Agregadas'!T$177:T$184,'Ligações Agregadas'!X$177:X$184,'Ligações Agregadas'!AB$177:AB$184,'Ligações Agregadas'!AF$177:AF$184,)+(SUM('Economias Agregadas'!D$185:D$192,'Economias Agregadas'!H$185:H$192,'Economias Agregadas'!L$185:L$192,'Economias Agregadas'!P$185:P$192,'Economias Agregadas'!T$185:T$192,'Economias Agregadas'!X$185:X$192,'Economias Agregadas'!AB$185:AB$192,'Economias Agregadas'!AF$185:AF$192,)*(1-0.1467))+SUM('Economias Agregadas'!D$161:D$176,'Economias Agregadas'!D$193:D$224,'Economias Agregadas'!H$161:H$176,'Economias Agregadas'!H$193:H$224,'Economias Agregadas'!L$161:L$176,'Economias Agregadas'!L$193:L$224,'Economias Agregadas'!P$161:P$176,'Economias Agregadas'!P$193:P$224,'Economias Agregadas'!T$161:T$176,'Economias Agregadas'!T$193:T$224,'Economias Agregadas'!X$161:X$176,'Economias Agregadas'!X$193:X$224,'Economias Agregadas'!AB$161:AB$176,'Economias Agregadas'!AB$193:AB$224,'Economias Agregadas'!AF$161:AF$176,'Economias Agregadas'!AF$193:AF$224) -> 2976156284 | E24: =SUM('Volumes Agregados L'!D$153:D$160,'Volumes Agregados L'!H$153:H$160,'Volumes Agregados L'!L$153:L$160,'Volumes Agregados L'!P$153:P$160,'Volumes Agregados L'!T$153:T$160,'Volumes Agregados L'!X$153:X$160,'Volumes Agregados L'!AB$153:AB$160,'Volumes Agregados L'!AF$153:AF$160,'Volumes Agregados L'!D$177:D$184,'Volumes Agregados L'!H$177:H$184,'Volumes Agregados L'!L$177:L$184,'Volumes Agregados L'!P$177:P$184,'Volumes Agregados L'!T$177:T$184,'Volumes Agregados L'!X$177:X$184,'Volumes Agregados L'!AB$177:AB$184,'Volumes Agregados L'!AF$177:AF$184,)+(SUM('Volumes Agregados'!D$185:D$192,'Volumes Agregados'!H$185:H$192,'Volumes Agregados'!L$185:L$192,'Volumes Agregados'!P$185:P$192,'Volumes Agregados'!T$185:T$192,'Volumes Agregados'!X$185:X$192,'Volumes Agregados'!AB$185:AB$192,'Volumes Agregados'!AF$185:AF$192,)*(1-0.1467))+SUM('Volumes Agregados'!D$161:D$176,'Volumes Agregados'!D$193:D$224,'Volumes Agregados'!H$161:H$176,'Volumes Agregados'!H$193:H$224,'Volumes Agregados'!L$161:L$176,'Volumes Agregados'!L$193:L$224,'Volumes Agregados'!P$161:P$176,'Volumes Agregados'!P$193:P$224,'Volumes Agregados'!T$161:T$176,'Volumes Agregados'!T$193:T$224,'Volumes Agregados'!X$161:X$176,'Volumes Agregados'!X$193:X$224,'Volumes Agregados'!AB$161:AB$176,'Volumes Agregados'!AB$193:AB$224,'Volumes Agregados'!AF$161:AF$176,'Volumes Agregados'!AF$193:AF$224) -> 2684351857 | F24: =SUM(D24:E24) -> 5660508140
C25: 2022 | D25: =SUM('Ligações Agregadas'!E$153:E$160,'Ligações Agregadas'!I$153:I$160,'Ligações Agregadas'!M$153:M$160,'Ligações Agregadas'!Q$153:Q$160,'Ligações Agregadas'!U$153:U$160,'Ligações Agregadas'!Y$153:Y$160,'Ligações Agregadas'!AC$153:AC$160,'Ligações Agregadas'!AG$153:AG$160,'Ligações Agregadas'!E$177:E$184,'Ligações Agregadas'!I$177:I$184,'Ligações Agregadas'!M$177:M$184,'Ligações Agregadas'!Q$177:Q$184,'Ligações Agregadas'!U$177:U$184,'Ligações Agregadas'!Y$177:Y$184,'Ligações Agregadas'!AC$177:AC$184,'Ligações Agregadas'!AG$177:AG$184,)+(SUM('Economias Agregadas'!E$185:E$192,'Economias Agregadas'!I$185:I$192,'Economias Agregadas'!M$185:M$192,'Economias Agregadas'!Q$185:Q$192,'Economias Agregadas'!U$185:U$192,'Economias Agregadas'!Y$185:Y$192,'Economias Agregadas'!AC$185:AC$192,'Economias Agregadas'!AG$185:AG$192,)*(1-0.1467))+SUM('Economias Agregadas'!E$161:E$176,'Economias Agregadas'!E$193:E$224,'Economias Agregadas'!I$161:I$176,'Economias Agregadas'!I$193:I$224,'Economias Agregadas'!M$161:M$176,'Economias Agregadas'!M$193:M$224,'Economias Agregadas'!Q$161:Q$176,'Economias Agregadas'!Q$193:Q$224,'Economias Agregadas'!U$161:U$176,'Economias Agregadas'!U$193:U$224,'Economias Agregadas'!Y$161:Y$176,'Economias Agregadas'!Y$193:Y$224,'Economias Agregadas'!AC$161:AC$176,'Economias Agregadas'!AC$193:AC$224,'Economias Agregadas'!AG$161:AG$176,'Economias Agregadas'!AG$193:AG$224) -> 3116569029 | E25: =SUM('Volumes Agregados L'!E$153:E$160,'Volumes Agregados L'!I$153:I$160,'Volumes Agregados L'!M$153:M$160,'Volumes Agregados L'!Q$153:Q$160,'Volumes Agregados L'!U$153:U$160,'Volumes Agregados L'!Y$153:Y$160,'Volumes Agregados L'!AC$153:AC$160,'Volumes Agregados L'!AG$153:AG$160,'Volumes Agregados L'!E$177:E$184,'Volumes Agregados L'!I$177:I$184,'Volumes Agregados L'!M$177:M$184,'Volumes Agregados L'!Q$177:Q$184,'Volumes Agregados L'!U$177:U$184,'Volumes Agregados L'!Y$177:Y$184,'Volumes Agregados L'!AC$177:AC$184,'Volumes Agregados L'!AG$177:AG$184,)+(SUM('Volumes Agregados'!E$185:E$192,'Volumes Agregados'!I$185:I$192,'Volumes Agregados'!M$185:M$192,'Volumes Agregados'!Q$185:Q$192,'Volumes Agregados'!U$185:U$192,'Volumes Agregados'!Y$185:Y$192,'Volumes Agregados'!AC$185:AC$192,'Volumes Agregados'!AG$185:AG$192,)*(1-0.1467))+SUM('Volumes Agregados'!E$161:E$176,'Volumes Agregados'!E$193:E$224,'Volumes Agregados'!I$161:I$176,'Volumes Agregados'!I$193:I$224,'Volumes Agregados'!M$161:M$176,'Volumes Agregados'!M$193:M$224,'Volumes Agregados'!Q$161:Q$176,'Volumes Agregados'!Q$193:Q$224,'Volumes Agregados'!U$161:U$176,'Volumes Agregados'!U$193:U$224,'Volumes Agregados'!Y$161:Y$176,'Volumes Agregados'!Y$193:Y$224,'Volumes Agregados'!AC$161:AC$176,'Volumes Agregados'!AC$193:AC$224,'Volumes Agregados'!AG$161:AG$176,'Volumes Agregados'!AG$193:AG$224) -> 2749551499 | F25: =SUM(D25:E25) -> 5866120528
C26: 2023 | D26: =SUM('Ligações Agregadas'!F$153:F$160,'Ligações Agregadas'!J$153:J$160,'Ligações Agregadas'!N$153:N$160,'Ligações Agregadas'!R$153:R$160,'Ligações Agregadas'!V$153:V$160,'Ligações Agregadas'!Z$153:Z$160,'Ligações Agregadas'!AD$153:AD$160,'Ligações Agregadas'!AH$153:AH$160,'Ligações Agregadas'!F$177:F$184,'Ligações Agregadas'!J$177:J$184,'Ligações Agregadas'!N$177:N$184,'Ligações Agregadas'!R$177:R$184,'Ligações Agregadas'!V$177:V$184,'Ligações Agregadas'!Z$177:Z$184,'Ligações Agregadas'!AD$177:AD$184,'Ligações Agregadas'!AH$177:AH$184,)+(SUM('Economias Agregadas'!F$185:F$192,'Economias Agregadas'!J$185:J$192,'Economias Agregadas'!N$185:N$192,'Economias Agregadas'!R$185:R$192,'Economias Agregadas'!V$185:V$192,'Economias Agregadas'!Z$185:Z$192,'Economias Agregadas'!AD$185:AD$192,'Economias Agregadas'!AH$185:AH$192,)*(1-0.1467))+SUM('Economias Agregadas'!F$161:F$176,'Economias Agregadas'!F$193:F$224,'Economias Agregadas'!J$161:J$176,'Economias Agregadas'!J$193:J$224,'Economias Agregadas'!N$161:N$176,'Economias Agregadas'!N$193:N$224,'Economias Agregadas'!R$161:R$176,'Economias Agregadas'!R$193:R$224,'Economias Agregadas'!V$161:V$176,'Economias Agregadas'!V$193:V$224,'Economias Agregadas'!Z$161:Z$176,'Economias Agregadas'!Z$193:Z$224,'Economias Agregadas'!AD$161:AD$176,'Economias Agregadas'!AD$193:AD$224,'Economias Agregadas'!AH$161:AH$176,'Economias Agregadas'!AH$193:AH$224) -> 3200685981 | E26: =SUM('Volumes Agregados L'!F$153:F$160,'Volumes Agregados L'!J$153:J$160,'Volumes Agregados L'!N$153:N$160,'Volumes Agregados L'!R$153:R$160,'Volumes Agregados L'!V$153:V$160,'Volumes Agregados L'!Z$153:Z$160,'Volumes Agregados L'!AD$153:AD$160,'Volumes Agregados L'!AH$153:AH$160,'Volumes Agregados L'!F$177:F$184,'Volumes Agregados L'!J$177:J$184,'Volumes Agregados L'!N$177:N$184,'Volumes Agregados L'!R$177:R$184,'Volumes Agregados L'!V$177:V$184,'Volumes Agregados L'!Z$177:Z$184,'Volumes Agregados L'!AD$177:AD$184,'Volumes Agregados L'!AH$177:AH$184,)+(SUM('Volumes Agregados'!F$185:F$192,'Volumes Agregados'!J$185:J$192,'Volumes Agregados'!N$185:N$192,'Volumes Agregados'!R$185:R$192,'Volumes Agregados'!V$185:V$192,'Volumes Agregados'!Z$185:Z$192,'Volumes Agregados'!AD$185:AD$192,'Volumes Agregados'!AH$185:AH$192,)*(1-0.1467))+SUM('Volumes Agregados'!F$161:F$176,'Volumes Agregados'!F$193:F$224,'Volumes Agregados'!J$161:J$176,'Volumes Agregados'!J$193:J$224,'Volumes Agregados'!N$161:N$176,'Volumes Agregados'!N$193:N$224,'Volumes Agregados'!R$161:R$176,'Volumes Agregados'!R$193:R$224,'Volumes Agregados'!V$161:V$176,'Volumes Agregados'!V$193:V$224,'Volumes Agregados'!Z$161:Z$176,'Volumes Agregados'!Z$193:Z$224,'Volumes Agregados'!AD$161:AD$176,'Volumes Agregados'!AD$193:AD$224,'Volumes Agregados'!AH$161:AH$176,'Volumes Agregados'!AH$193:AH$224) -> 2807002525 | F26: 6007688505
C27: 2024 | D27: =SUM('Ligações Agregadas'!G$153:G$160,'Ligações Agregadas'!K$153:K$160,'Ligações Agregadas'!O$153:O$160,'Ligações Agregadas'!S$153:S$160,'Ligações Agregadas'!W$153:W$160,'Ligações Agregadas'!AA$153:AA$160,'Ligações Agregadas'!AE$153:AE$160,'Ligações Agregadas'!AI$153:AI$160,'Ligações Agregadas'!G$177:G$184,'Ligações Agregadas'!K$177:K$184,'Ligações Agregadas'!O$177:O$184,'Ligações Agregadas'!S$177:S$184,'Ligações Agregadas'!W$177:W$184,'Ligações Agregadas'!AA$177:AA$184,'Ligações Agregadas'!AE$177:AE$184,'Ligações Agregadas'!AI$177:AI$184,)+(SUM('Economias Agregadas'!G$185:G$192,'Economias Agregadas'!K$185:K$192,'Economias Agregadas'!O$185:O$192,'Economias Agregadas'!S$185:S$192,'Economias Agregadas'!W$185:W$192,'Economias Agregadas'!AA$185:AA$192,'Economias Agregadas'!AE$185:AE$192,'Economias Agregadas'!AI$185:AI$192,)*(1-0.1467))+SUM('Economias Agregadas'!G$161:G$176,'Economias Agregadas'!G$193:G$224,'Economias Agregadas'!K$161:K$176,'Economias Agregadas'!K$193:K$224,'Economias Agregadas'!O$161:O$176,'Economias Agregadas'!O$193:O$224,'Economias Agregadas'!S$161:S$176,'Economias Agregadas'!S$193:S$224,'Economias Agregadas'!W$161:W$176,'Economias Agregadas'!W$193:W$224,'Economias Agregadas'!AA$161:AA$176,'Economias Agregadas'!AA$193:AA$224,'Economias Agregadas'!AE$161:AE$176,'Economias Agregadas'!AE$193:AE$224,'Economias Agregadas'!AI$161:AI$176,'Economias Agregadas'!AI$193:AI$224) -> 3284802932 | E27: =SUM('Volumes Agregados L'!G$153:G$160,'Volumes Agregados L'!K$153:K$160,'Volumes Agregados L'!O$153:O$160,'Volumes Agregados L'!S$153:S$160,'Volumes Agregados L'!W$153:W$160,'Volumes Agregados L'!AA$153:AA$160,'Volumes Agregados L'!AE$153:AE$160,'Volumes Agregados L'!AI$153:AI$160,'Volumes Agregados L'!G$177:G$184,'Volumes Agregados L'!K$177:K$184,'Volumes Agregados L'!O$177:O$184,'Volumes Agregados L'!S$177:S$184,'Volumes Agregados L'!W$177:W$184,'Volumes Agregados L'!AA$177:AA$184,'Volumes Agregados L'!AE$177:AE$184,'Volumes Agregados L'!AI$177:AI$184,)+(SUM('Volumes Agregados'!G$185:G$192,'Volumes Agregados'!K$185:K$192,'Volumes Agregados'!O$185:O$192,'Volumes Agregados'!S$185:S$192,'Volumes Agregados'!W$185:W$192,'Volumes Agregados'!AA$185:AA$192,'Volumes Agregados'!AE$185:AE$192,'Volumes Agregados'!AI$185:AI$192,)*(1-0.1467))+SUM('Volumes Agregados'!G$161:G$176,'Volumes Agregados'!G$193:G$224,'Volumes Agregados'!K$161:K$176,'Volumes Agregados'!K$193:K$224,'Volumes Agregados'!O$161:O$176,'Volumes Agregados'!O$193:O$224,'Volumes Agregados'!S$161:S$176,'Volumes Agregados'!S$193:S$224,'Volumes Agregados'!W$161:W$176,'Volumes Agregados'!W$193:W$224,'Volumes Agregados'!AA$161:AA$176,'Volumes Agregados'!AA$193:AA$224,'Volumes Agregados'!AE$161:AE$176,'Volumes Agregados'!AE$193:AE$224,'Volumes Agregados'!AI$161:AI$176,'Volumes Agregados'!AI$193:AI$224) -> 2860310539 | F27: 6145113470
C28: Total | D28: =SUM(D24:D27) -> 1.257821423e+10 | E28: =SUM(E24:E27) -> 1.110121642e+10 | F28: =SUM(D28:E28) -> 2.367943064e+10
C30: TARIFA BÁSICA / RECEITA TOTAL | F30: =D28/F28 -> 0.531187359
P31: Antes
E32: 2.323410108e+10 | P32: Depois

Sheet Painel Síntese
F3: PAINEL SÍNTESE
F6: Amostra de Consumidores
C7: Categoria | D7: Descrição Consumidor | E7: Faixa | F7: Número De Economias | G7: Nível de Consumo Intermediário | H7: Valor Conta Antes | I7: Valor Conta Depois | J7: Variação
C8: COMERCIAL | D8: Categoria com o maior número de economias | E8: =VLOOKUP(MAX('Tabela Histograma'!$G$2:$G$9),CHOOSE({1,2},'Tabela Histograma'!$G$2:$G$9,'Tabela Histograma'!$C$2:$C$9),2,0) -> 1 | F8: =MAX('Tabela Histograma'!$G$2:$G$9) -> 161768.75 | G8: =ROUNDUP(IF(E8=1,VLOOKUP(C8,'Inputs - Simulador'!$C$5:$AQ$13,4,0)+VLOOKUP(C8,'Inputs - Simulador'!$C$5:$AQ$13,6,0),IF(E8=2,VLOOKUP(C8,'Inputs - Simulador'!$C$5:$AQ$13,9,0)+VLOOKUP(C8,'Inputs - Simulador'!$C$5:$AQ$13,11,0),IF(E8=3,VLOOKUP(C8,'Inputs - Simulador'!$C$5:$AQ$13,14,0)+VLOOKUP(C8,'Inputs - Simulador'!$C$5:$AQ$13,16,0),IF(E8=4,VLOOKUP(C8,'Inputs - Simulador'!$C$5:$AQ$13,19,0)+VLOOKUP(C8,'Inputs - Simulador'!$C$5:$AQ$13,21,0),IF(E8=5,VLOOKUP(C8,'Inputs - Simulador'!$C$5:$AQ$13,24,0)+VLOOKUP(C8,'Inputs - Simulador'!$C$5:$AQ$13,26,0),IF(E8=6,VLOOKUP(C8,'Inputs - Simulador'!$C$5:$AQ$13,29,0)+VLOOKUP(C8,'Inputs - Simulador'!$C$5:$AQ$13,31,0),IF(E8=7,VLOOKUP(C8,'Inputs - Simulador'!$C$5:$AQ$13,34,0)+VLOOKUP(C8,'Inputs - Simulador'!$C$5:$AQ$13,36,0),IF(E8=8,VLOOKUP(C8,'Inputs - Simulador'!$C$5:$AQ$13,39,0)+VLOOKUP(C8,'Inputs - Simulador'!$C$5:$AQ$13,41,0),0))))))))/2,0) -> 3 | H8: =IF($C8="COMERCIAL",VLOOKUP($G8,'Tabela Tarifária Antiga'!$O$4:$Q$689,2,0),IF($C8="INATIVO + SANEPAR",VLOOKUP($G8,'Tabela Tarifária Antiga'!$T$4:$V$689,2,0),IF($C8="INDUSTRIAL",VLOOKUP($G8,'Tabela Tarifária Antiga'!$Y$4:$AA$689,2,0),IF($C8="MPC",VLOOKUP($G8,'Tabela Tarifária Antiga'!$AD$4:$AF$689,2,0),IF($C8="PODER PUBLICO",VLOOKUP($E8,'Tabela Tarifária Antiga'!$AI$4:$AK$689,2,0),IF($C8="RESIDENCIAL",VLOOKUP($G8,'Tabela Tarifária Antiga'!$AN$4:$AP$689,2,0),IF($C8="TARIFA SOCIAL",VLOOKUP($G8,'Tabela Tarifária Antiga'!$AS$4:$AU$689,2,0),IF($C8="UTILIDADE PUBLICA",VLOOKUP($G8,'Tabela Tarifária Antiga'!$AX$4:$AZ$689,2,0),IF($C8="ENTIDADE FILANTROPICA",VLOOKUP($G8,'Tabela Tarifária Antiga'!$BC$4:$BE$689,2,0),0)))))))))*1.8 -> 139.68 | I8: =IF($C8="COMERCIAL",VLOOKUP($G8,'Tabela Tarifária Simulada'!$O$4:$Q$689,2,0),IF($C8="INATIVO + SANEPAR",VLOOKUP($G8,'Tabela Tarifária Simulada'!$T$4:$V$689,2,0),IF($C8="INDUSTRIAL",VLOOKUP($G8,'Tabela Tarifária Simulada'!$Y$4:$AA$689,2,0),IF($C8="MPC",VLOOKUP($G8,'Tabela Tarifária Simulada'!$AD$4:$AF$689,2,0),IF($C8="PODER PUBLICO",VLOOKUP($G8,'Tabela Tarifária Simulada'!$AI$4:$AK$689,2,0),IF($C8="RESIDENCIAL",VLOOKUP($G8,'Tabela Tarifária Simulada'!$AN$4:$AP$689,2,0),IF($C8="TARIFA SOCIAL",VLOOKUP($G8,'Tabela Tarifária Simulada'!$AS$4:$AU$689,2,0),IF($C8="UTILIDADE PUBLICA",VLOOKUP($G8,'Tabela Tarifária Simulada'!$AX$4:$AZ$689,2,0),IF($C8="ENTIDADE FILANTROPICA",VLOOKUP($G8,'Tabela Tarifária Simulada'!$BC$4:$BE$689,2,0),0)))))))))*1.8 -> 143.9624819 | J8: =(I8-H8)/ABS(H8) -> 0.03065923433
C9: INATIVO + SANEPAR | D9: Categoria com o maior número de economias | E9: =VLOOKUP(MAX('Tabela Histograma'!$G$10:$G$17),CHOOSE({1,2},'Tabela Histograma'!$G$10:$G$17,'Tabela Histograma'!$C$10:$C$17),2,0) -> 6 | F9: =MAX('Tabela Histograma'!$G$10:$G$17) -> 3450.666667 | G9: =ROUNDUP(IF(E9=1,VLOOKUP(C9,'Inputs - Simulador'!$C$5:$AQ$13,4,0)+VLOOKUP(C9,'Inputs - Simulador'!$C$5:$AQ$13,6,0),IF(E9=2,VLOOKUP(C9,'Inputs - Simulador'!$C$5:$AQ$13,9,0)+VLOOKUP(C9,'Inputs - Simulador'!$C$5:$AQ$13,11,0),IF(E9=3,VLOOKUP(C9,'Inputs - Simulador'!$C$5:$AQ$13,14,0)+VLOOKUP(C9,'Inputs - Simulador'!$C$5:$AQ$13,16,0),IF(E9=4,VLOOKUP(C9,'Inputs - Simulador'!$C$5:$AQ$13,19,0)+VLOOKUP(C9,'Inputs - Simulador'!$C$5:$AQ$13,21,0),IF(E9=5,VLOOKUP(C9,'Inputs - Simulador'!$C$5:$AQ$13,24,0)+VLOOKUP(C9,'Inputs - Simulador'!$C$5:$AQ$13,26,0),IF(E9=6,VLOOKUP(C9,'Inputs - Simulador'!$C$5:$AQ$13,29,0)+VLOOKUP(C9,'Inputs - Simulador'!$C$5:$AQ$13,31,0),IF(E9=7,VLOOKUP(C9,'Inputs - Simulador'!$C$5:$AQ$13,34,0)+VLOOKUP(C9,'Inputs - Simulador'!$C$5:$AQ$13,36,0),IF(E9=8,VLOOKUP(C9,'Inputs - Simulador'!$C$5:$AQ$13,39,0)+VLOOKUP(C9,'Inputs - Simulador'!$C$5:$AQ$13,41,0),0))))))))/2,0) -> 500015 | H9: 0 | I9: 0 | J9: 0
C10: INDUSTRIAL | D10: Categoria com o maior número de economias | E10: =VLOOKUP(MAX('Tabela Histograma'!$G$18:$G$25),CHOOSE({1,2},'Tabela Histograma'!$G$18:$G$25,'Tabela Histograma'!$C$18:$C$25),2,0) -> 1 | F10: =MAX('Tabela Histograma'!$G$18:$G$25) -> 4623.25 | G10: =ROUNDUP(IF(E10=1,VLOOKUP(C10,'Inputs - Simulador'!$C$5:$AQ$13,4,0)+VLOOKUP(C10,'Inputs - Simulador'!$C$5:$AQ$13,6,0),IF(E10=2,VLOOKUP(C10,'Inputs - Simulador'!$C$5:$AQ$13,9,0)+VLOOKUP(C10,'Inputs - Simulador'!$C$5:$AQ$13,11,0),IF(E10=3,VLOOKUP(C10,'Inputs - Simulador'!$C$5:$AQ$13,14,0)+VLOOKUP(C10,'Inputs - Simulador'!$C$5:$AQ$13,16,0),IF(E10=4,VLOOKUP(C10,'Inputs - Simulador'!$C$5:$AQ$13,19,0)+VLOOKUP(C10,'Inputs - Simulador'!$C$5:$AQ$13,21,0),IF(E10=5,VLOOKUP(C10,'Inputs - Simulador'!$C$5:$AQ$13,24,0)+VLOOKUP(C10,'Inputs - Simulador'!$C$5:$AQ$13,26,0),IF(E10=6,VLOOKUP(C10,'Inputs - Simulador'!$C$5:$AQ$13,29,0)+VLOOKUP(C10,'Inputs - Simulador'!$C$5:$AQ$13,31,0),IF(E10=7,VLOOKUP(C10,'Inputs - Simulador'!$C$5:$AQ$13,34,0)+VLOOKUP(C10,'Inputs - Simulador'!$C$5:$AQ$13,36,0),IF(E10=8,VLOOKUP(C10,'Inputs - Simulador'!$C$5:$AQ$13,39,0)+VLOOKUP(C10,'Inputs - Simulador'!$C$5:$AQ$13,41,0),0))))))))/2,0) -> 3 | H10: =IF($C10="COMERCIAL",VLOOKUP($G10,'Tabela Tarifária Antiga'!$O$4:$Q$689,2,0),IF($C10="INATIVO + SANEPAR",VLOOKUP($G10,'Tabela Tarifária Antiga'!$T$4:$V$689,2,0),IF($C10="INDUSTRIAL",VLOOKUP($G10,'Tabela Tarifária Antiga'!$Y$4:$AA$689,2,0),IF($C10="MPC",VLOOKUP($G10,'Tabela Tarifária Antiga'!$AD$4:$AF$689,2,0),IF($C10="PODER PUBLICO",VLOOKUP($E10,'Tabela Tarifária Antiga'!$AI$4:$AK$689,2,0),IF($C10="RESIDENCIAL",VLOOKUP($G10,'Tabela Tarifária Antiga'!$AN$4:$AP$689,2,0),IF($C10="TARIFA SOCIAL",VLOOKUP($G10,'Tabela Tarifária Antiga'!$AS$4:$AU$689,2,0),IF($C10="UTILIDADE PUBLICA",VLOOKUP($G10,'Tabela Tarifária Antiga'!$AX$4:$AZ$689,2,0),IF($C10="ENTIDADE FILANTROPICA",VLOOKUP($G10,'Tabela Tarifária Antiga'!$BC$4:$BE$689,2,0),0)))))))))*1.8 -> 139.68 | I10: =IF($C10="COMERCIAL",VLOOKUP($G10,'Tabela Tarifária Simulada'!$O$4:$Q$689,2,0),IF($C10="INATIVO + SANEPAR",VLOOKUP($G10,'Tabela Tarifária Simulada'!$T$4:$V$689,2,0),IF($C10="INDUSTRIAL",VLOOKUP($G10,'Tabela Tarifária Simulada'!$Y$4:$AA$689,2,0),IF($C10="MPC",VLOOKUP($G10,'Tabela Tarifária Simulada'!$AD$4:$AF$689,2,0),IF($C10="PODER PUBLICO",VLOOKUP($G10,'Tabela Tarifária Simulada'!$AI$4:$AK$689,2,0),IF($C10="RESIDENCIAL",VLOOKUP($G10,'Tabela Tarifária Simulada'!$AN$4:$AP$689,2,0),IF($C10="TARIFA SOCIAL",VLOOKUP($G10,'Tabela Tarifária Simulada'!$AS$4:$AU$689,2,0),IF($C10="UTILIDADE PUBLICA",VLOOKUP($G10,'Tabela Tarifária Simulada'!$AX$4:$AZ$689,2,0),IF($C10="ENTIDADE FILANTROPICA",VLOOKUP($G10,'Tabela Tarifária Simulada'!$BC$4:$BE$689,2,0),0)))))))))*1.8 -> 150.21 | J10: =(I10-H10)/ABS(H10) -> 0.07538659794
C11: INDUSTRIAL | D11: Grande Industrial | E11: =VLOOKUP(G11,CHOOSE({1,2},'Tabela Tarifária Simulada'!$Y$4:$Y$689,'Tabela Tarifária Simulada'!$X$4:$X$689,),2,0) -> 8 | F11: =VLOOKUP(E11,'Tabela Histograma'!$C$18:$G$25,5,0) -> 86.08333333 | G11: 5200 | H11: =IF($C11="COMERCIAL",VLOOKUP($G11,'Tabela Tarifária Antiga'!$O$4:$Q$689,2,0),IF($C11="INATIVO + SANEPAR",VLOOKUP($G11,'Tabela Tarifária Antiga'!$T$4:$V$689,2,0),IF($C11="INDUSTRIAL",VLOOKUP($G11,'Tabela Tarifária Antiga'!$Y$4:$AA$689,2,0),IF($C11="MPC",VLOOKUP($G11,'Tabela Tarifária Antiga'!$AD$4:$AF$689,2,0),IF($C11="PODER PUBLICO",VLOOKUP($E11,'Tabela Tarifária Antiga'!$AI$4:$AK$689,2,0),IF($C11="RESIDENCIAL",VLOOKUP($G11,'Tabela Tarifária Antiga'!$AN$4:$AP$689,2,0),IF($C11="TARIFA SOCIAL",VLOOKUP($G11,'Tabela Tarifária Antiga'!$AS$4:$AU$689,2,0),IF($C11="UTILIDADE PUBLICA",VLOOKUP($G11,'Tabela Tarifária Antiga'!$AX$4:$AZ$689,2,0),IF($C11="ENTIDADE FILANTROPICA",VLOOKUP($G11,'Tabela Tarifária Antiga'!$BC$4:$BE$689,2,0),0)))))))))*1.8 -> 91145.34 | I11: =IF($C11="COMERCIAL",VLOOKUP($G11,'Tabela Tarifária Simulada'!$O$4:$Q$689,2,0),IF($C11="INATIVO + SANEPAR",VLOOKUP($G11,'Tabela Tarifária Simulada'!$T$4:$V$689,2,0),IF($C11="INDUSTRIAL",VLOOKUP($G11,'Tabela Tarifária Simulada'!$Y$4:$AA$689,2,0),IF($C11="MPC",VLOOKUP($G11,'Tabela Tarifária Simulada'!$AD$4:$AF$689,2,0),IF($C11="PODER PUBLICO",VLOOKUP($G11,'Tabela Tarifária Simulada'!$AI$4:$AK$689,2,0),IF($C11="RESIDENCIAL",VLOOKUP($G11,'Tabela Tarifária Simulada'!$AN$4:$AP$689,2,0),IF($C11="TARIFA SOCIAL",VLOOKUP($G11,'Tabela Tarifária Simulada'!$AS$4:$AU$689,2,0),IF($C11="UTILIDADE PUBLICA",VLOOKUP($G11,'Tabela Tarifária Simulada'!$AX$4:$AZ$689,2,0),IF($C11="ENTIDADE FILANTROPICA",VLOOKUP($G11,'Tabela Tarifária Simulada'!$BC$4:$BE$689,2,0),0)))))))))*1.8 -> 90211.16625 | J11: -0.010249276
C12: MPC | D12: Categoria com o maior número de economias | E12: =VLOOKUP(MAX('Tabela Histograma'!$G$26:$G$33),CHOOSE({1,2},'Tabela Histograma'!$G$26:$G$33,'Tabela Histograma'!$C$26:$C$33),2,0) -> 1 | F12: =MAX('Tabela Histograma'!$G$26:$G$33) -> 5896.666667 | G12: =ROUNDUP(IF(E12=1,VLOOKUP(C12,'Inputs - Simulador'!$C$5:$AQ$13,4,0)+VLOOKUP(C12,'Inputs - Simulador'!$C$5:$AQ$13,6,0),IF(E12=2,VLOOKUP(C12,'Inputs - Simulador'!$C$5:$AQ$13,9,0)+VLOOKUP(C12,'Inputs - Simulador'!$C$5:$AQ$13,11,0),IF(E12=3,VLOOKUP(C12,'Inputs - Simulador'!$C$5:$AQ$13,14,0)+VLOOKUP(C12,'Inputs - Simulador'!$C$5:$AQ$13,16,0),IF(E12=4,VLOOKUP(C12,'Inputs - Simulador'!$C$5:$AQ$13,19,0)+VLOOKUP(C12,'Inputs - Simulador'!$C$5:$AQ$13,21,0),IF(E12=5,VLOOKUP(C12,'Inputs - Simulador'!$C$5:$AQ$13,24,0)+VLOOKUP(C12,'Inputs - Simulador'!$C$5:$AQ$13,26,0),IF(E12=6,VLOOKUP(C12,'Inputs - Simulador'!$C$5:$AQ$13,29,0)+VLOOKUP(C12,'Inputs - Simulador'!$C$5:$AQ$13,31,0),IF(E12=7,VLOOKUP(C12,'Inputs - Simulador'!$C$5:$AQ$13,34,0)+VLOOKUP(C12,'Inputs - Simulador'!$C$5:$AQ$13,36,0),IF(E12=8,VLOOKUP(C12,'Inputs - Simulador'!$C$5:$AQ$13,39,0)+VLOOKUP(C12,'Inputs - Simulador'!$C$5:$AQ$13,41,0),0))))))))/2,0) -> 3 | H12: =IF($C12="COMERCIAL",VLOOKUP($G12,'Tabela Tarifária Antiga'!$O$4:$Q$689,2,0),IF($C12="INATIVO + SANEPAR",VLOOKUP($G12,'Tabela Tarifária Antiga'!$T$4:$V$689,2,0),IF($C12="INDUSTRIAL",VLOOKUP($G12,'Tabela Tarifária Antiga'!$Y$4:$AA$689,2,0),IF($C12="MPC",VLOOKUP($G12,'Tabela Tarifária Antiga'!$AD$4:$AF$689,2,0),IF($C12="PODER PUBLICO",VLOOKUP($E12,'Tabela Tarifária Antiga'!$AI$4:$AK$689,2,0),IF($C12="RESIDENCIAL",VLOOKUP($G12,'Tabela Tarifária Antiga'!$AN$4:$AP$689,2,0),IF($C12="TARIFA SOCIAL",VLOOKUP($G12,'Tabela Tarifária Antiga'!$AS$4:$AU$689,2,0),IF($C12="UTILIDADE PUBLICA",VLOOKUP($G12,'Tabela Tarifária Antiga'!$AX$4:$AZ$689,2,0),IF($C12="ENTIDADE FILANTROPICA",VLOOKUP($G12,'Tabela Tarifária Antiga'!$BC$4:$BE$689,2,0),0)))))))))*1.8 -> 77.598 | I12: =IF($C12="COMERCIAL",VLOOKUP($G12,'Tabela Tarifária Simulada'!$O$4:$Q$689,2,0),IF($C12="INATIVO + SANEPAR",VLOOKUP($G12,'Tabela Tarifária Simulada'!$T$4:$V$689,2,0),IF($C12="INDUSTRIAL",VLOOKUP($G12,'Tabela Tarifária Simulada'!$Y$4:$AA$689,2,0),IF($C12="MPC",VLOOKUP($G12,'Tabela Tarifária Simulada'!$AD$4:$AF$689,2,0),IF($C12="PODER PUBLICO",VLOOKUP($G12,'Tabela Tarifária Simulada'!$AI$4:$AK$689,2,0),IF($C12="RESIDENCIAL",VLOOKUP($G12,'Tabela Tarifária Simulada'!$AN$4:$AP$689,2,0),IF($C12="TARIFA SOCIAL",VLOOKUP($G12,'Tabela Tarifária Simulada'!$AS$4:$AU$689,2,0),IF($C12="UTILIDADE PUBLICA",VLOOKUP($G12,'Tabela Tarifária Simulada'!$AX$4:$AZ$689,2,0),IF($C12="ENTIDADE FILANTROPICA",VLOOKUP($G12,'Tabela Tarifária Simulada'!$BC$4:$BE$689,2,0),0)))))))))*1.8 -> 73.08 | J12: -0.05822315008
C13: RESIDENCIAL | D13: Categoria de 0 a 5 m3 | E13: =VLOOKUP(G13,CHOOSE({1,2},'Tabela Tarifária Simulada'!$AN$4:$AN$689,'Tabela Tarifária Simulada'!$AM$4:$AM$689,),2,0) -> 1 | F13: =VLOOKUP(E13,'Tabela Histograma'!$C$42:$G$49,5,0) -> 764680.7506 | G13: 3 | H13: =IF($C13="COMERCIAL",VLOOKUP($G13,'Tabela Tarifária Antiga'!$O$4:$Q$689,2,0),IF($C13="INATIVO + SANEPAR",VLOOKUP($G13,'Tabela Tarifária Antiga'!$T$4:$V$689,2,0),IF($C13="INDUSTRIAL",VLOOKUP($G13,'Tabela Tarifária Antiga'!$Y$4:$AA$689,2,0),IF($C13="MPC",VLOOKUP($G13,'Tabela Tarifária Antiga'!$AD$4:$AF$689,2,0),IF($C13="PODER PUBLICO",VLOOKUP($E13,'Tabela Tarifária Antiga'!$AI$4:$AK$689,2,0),IF($C13="RESIDENCIAL",VLOOKUP($G13,'Tabela Tarifária Antiga'!$AN$4:$AP$689,2,0),IF($C13="TARIFA SOCIAL",VLOOKUP($G13,'Tabela Tarifária Antiga'!$AS$4:$AU$689,2,0),IF($C13="UTILIDADE PUBLICA",VLOOKUP($G13,'Tabela Tarifária Antiga'!$AX$4:$AZ$689,2,0),IF($C13="ENTIDADE FILANTROPICA",VLOOKUP($G13,'Tabela Tarifária Antiga'!$BC$4:$BE$689,2,0),0)))))))))*1.8 -> 77.598 | I13: =IF($C13="COMERCIAL",VLOOKUP($G13,'Tabela Tarifária Simulada'!$O$4:$Q$689,2,0),IF($C13="INATIVO + SANEPAR",VLOOKUP($G13,'Tabela Tarifária Simulada'!$T$4:$V$689,2,0),IF($C13="INDUSTRIAL",VLOOKUP($G13,'Tabela Tarifária Simulada'!$Y$4:$AA$689,2,0),IF($C13="MPC",VLOOKUP($G13,'Tabela Tarifária Simulada'!$AD$4:$AF$689,2,0),IF($C13="PODER PUBLICO",VLOOKUP($G13,'Tabela Tarifária Simulada'!$AI$4:$AK$689,2,0),IF($C13="RESIDENCIAL",VLOOKUP($G13,'Tabela Tarifária Simulada'!$AN$4:$AP$689,2,0),IF($C13="TARIFA SOCIAL",VLOOKUP($G13,'Tabela Tarifária Simulada'!$AS$4:$AU$689,2,0),IF($C13="UTILIDADE PUBLICA",VLOOKUP($G13,'Tabela Tarifária Simulada'!$AX$4:$AZ$689,2,0),IF($C13="ENTIDADE FILANTROPICA",VLOOKUP($G13,'Tabela Tarifária Simulada'!$BC$4:$BE$689,2,0),0)))))))))*1.8 -> 73.08 | J13: -0.05822315008
C14: RESIDENCIAL | D14: Categoria com o maior número de economias | E14: =VLOOKUP(MAX('Tabela Histograma'!$G$42:$G$49),CHOOSE({1,2},'Tabela Histograma'!$G$42:$G$49,'Tabela Histograma'!$C$42:$C$49),2,0) -> 2 | F14: =MAX('Tabela Histograma'!$G$42:$G$49) -> 1246042.5 | G14: =ROUNDUP(IF(E14=1,VLOOKUP(C14,'Inputs - Simulador'!$C$5:$AQ$13,4,0)+VLOOKUP(C14,'Inputs - Simulador'!$C$5:$AQ$13,6,0),IF(E14=2,VLOOKUP(C14,'Inputs - Simulador'!$C$5:$AQ$13,9,0)+VLOOKUP(C14,'Inputs - Simulador'!$C$5:$AQ$13,11,0),IF(E14=3,VLOOKUP(C14,'Inputs - Simulador'!$C$5:$AQ$13,14,0)+VLOOKUP(C14,'Inputs - Simulador'!$C$5:$AQ$13,16,0),IF(E14=4,VLOOKUP(C14,'Inputs - Simulador'!$C$5:$AQ$13,19,0)+VLOOKUP(C14,'Inputs - Simulador'!$C$5:$AQ$13,21,0),IF(E14=5,VLOOKUP(C14,'Inputs - Simulador'!$C$5:$AQ$13,24,0)+VLOOKUP(C14,'Inputs - Simulador'!$C$5:$AQ$13,26,0),IF(E14=6,VLOOKUP(C14,'Inputs - Simulador'!$C$5:$AQ$13,29,0)+VLOOKUP(C14,'Inputs - Simulador'!$C$5:$AQ$13,31,0),IF(E14=7,VLOOKUP(C14,'Inputs - Simulador'!$C$5:$AQ$13,34,0)+VLOOKUP(C14,'Inputs - Simulador'!$C$5:$AQ$13,36,0),IF(E14=8,VLOOKUP(C14,'Inputs - Simulador'!$C$5:$AQ$13,39,0)+VLOOKUP(C14,'Inputs - Simulador'!$C$5:$AQ$13,41,0),0))))))))/2,0) -> 8 | H14: =IF($C14="COMERCIAL",VLOOKUP($G14,'Tabela Tarifária Antiga'!$O$4:$Q$689,2,0),IF($C14="INATIVO + SANEPAR",VLOOKUP($G14,'Tabela Tarifária Antiga'!$T$4:$V$689,2,0),IF($C14="INDUSTRIAL",VLOOKUP($G14,'Tabela Tarifária Antiga'!$Y$4:$AA$689,2,0),IF($C14="MPC",VLOOKUP($G14,'Tabela Tarifária Antiga'!$AD$4:$AF$689,2,0),IF($C14="PODER PUBLICO",VLOOKUP($E14,'Tabela Tarifária Antiga'!$AI$4:$AK$689,2,0),IF($C14="RESIDENCIAL",VLOOKUP($G14,'Tabela Tarifária Antiga'!$AN$4:$AP$689,2,0),IF($C14="TARIFA SOCIAL",VLOOKUP($G14,'Tabela Tarifária Antiga'!$AS$4:$AU$689,2,0),IF($C14="UTILIDADE PUBLICA",VLOOKUP($G14,'Tabela Tarifária Antiga'!$AX$4:$AZ$689,2,0),IF($C14="ENTIDADE FILANTROPICA",VLOOKUP($G14,'Tabela Tarifária Antiga'!$BC$4:$BE$689,2,0),0)))))))))*1.8 -> 84.78 | I14: =IF($C14="COMERCIAL",VLOOKUP($G14,'Tabela Tarifária Simulada'!$O$4:$Q$689,2,0),IF($C14="INATIVO + SANEPAR",VLOOKUP($G14,'Tabela Tarifária Simulada'!$T$4:$V$689,2,0),IF($C14="INDUSTRIAL",VLOOKUP($G14,'Tabela Tarifária Simulada'!$Y$4:$AA$689,2,0),IF($C14="MPC",VLOOKUP($G14,'Tabela Tarifária Simulada'!$AD$4:$AF$689,2,0),IF($C14="PODER PUBLICO",VLOOKUP($G14,'Tabela Tarifária Simulada'!$AI$4:$AK$689,2,0),IF($C14="RESIDENCIAL",VLOOKUP($G14,'Tabela Tarifária Simulada'!$AN$4:$AP$689,2,0),IF($C14="TARIFA SOCIAL",VLOOKUP($G14,'Tabela Tarifária Simulada'!$AS$4:$AU$689,2,0),IF($C14="UTILIDADE PUBLICA",VLOOKUP($G14,'Tabela Tarifária Simulada'!$AX$4:$AZ$689,2,0),IF($C14="ENTIDADE FILANTROPICA",VLOOKUP($G14,'Tabela Tarifária Simulada'!$BC$4:$BE$689,2,0),0)))))))))*1.8 -> 84.942 | J14: 0.001910828025
C15: RESIDENCIAL | D15: Categoria de Consumo 0 | E15: 1 | F15: 103717.5833 | G15: 0 | H15: =IF($C15="COMERCIAL",VLOOKUP($G15,'Tabela Tarifária Antiga'!$O$4:$Q$689,2,0),IF($C15="INATIVO + SANEPAR",VLOOKUP($G15,'Tabela Tarifária Antiga'!$T$4:$V$689,2,0),IF($C15="INDUSTRIAL",VLOOKUP($G15,'Tabela Tarifária Antiga'!$Y$4:$AA$689,2,0),IF($C15="MPC",VLOOKUP($G15,'Tabela Tarifária Antiga'!$AD$4:$AF$689,2,0),IF($C15="PODER PUBLICO",VLOOKUP($E15,'Tabela Tarifária Antiga'!$AI$4:$AK$689,2,0),IF($C15="RESIDENCIAL",VLOOKUP($G15,'Tabela Tarifária Antiga'!$AN$4:$AP$689,2,0),IF($C15="TARIFA SOCIAL",VLOOKUP($G15,'Tabela Tarifária Antiga'!$AS$4:$AU$689,2,0),IF($C15="UTILIDADE PUBLICA",VLOOKUP($G15,'Tabela Tarifária Antiga'!$AX$4:$AZ$689,2,0),IF($C15="ENTIDADE FILANTROPICA",VLOOKUP($G15,'Tabela Tarifária Antiga'!$BC$4:$BE$689,2,0),0)))))))))*1.8 -> 77.598 | I15: =IF($C15="COMERCIAL",VLOOKUP($G15,'Tabela Tarifária Simulada'!$O$4:$Q$689,2,0),IF($C15="INATIVO + SANEPAR",VLOOKUP($G15,'Tabela Tarifária Simulada'!$T$4:$V$689,2,0),IF($C15="INDUSTRIAL",VLOOKUP($G15,'Tabela Tarifária Simulada'!$Y$4:$AA$689,2,0),IF($C15="MPC",VLOOKUP($G15,'Tabela Tarifária Simulada'!$AD$4:$AF$689,2,0),IF($C15="PODER PUBLICO",VLOOKUP($G15,'Tabela Tarifária Simulada'!$AI$4:$AK$689,2,0),IF($C15="RESIDENCIAL",VLOOKUP($G15,'Tabela Tarifária Simulada'!$AN$4:$AP$689,2,0),IF($C15="TARIFA SOCIAL",VLOOKUP($G15,'Tabela Tarifária Simulada'!$AS$4:$AU$689,2,0),IF($C15="UTILIDADE PUBLICA",VLOOKUP($G15,'Tabela Tarifária Simulada'!$AX$4:$AZ$689,2,0),IF($C15="ENTIDADE FILANTROPICA",VLOOKUP($G15,'Tabela Tarifária Simulada'!$BC$4:$BE$689,2,0),0)))))))))*1.8 -> 66.06 | J15: -0.1486893992
C16: TARIFA SOCIAL | D16: Categoria com o maior número de economias | E16: =VLOOKUP(MAX('Tabela Histograma'!$G$50:$G$57),CHOOSE({1,2},'Tabela Histograma'!$G$50:$G$57,'Tabela Histograma'!$C$50:$C$57),2,0) -> 2 | F16: =MAX('Tabela Histograma'!$G$50:$G$57) -> 81481.66667 | G16: =ROUNDUP(IF(E16=1,VLOOKUP(C16,'Inputs - Simulador'!$C$5:$AQ$13,4,0)+VLOOKUP(C16,'Inputs - Simulador'!$C$5:$AQ$13,6,0),IF(E16=2,VLOOKUP(C16,'Inputs - Simulador'!$C$5:$AQ$13,9,0)+VLOOKUP(C16,'Inputs - Simulador'!$C$5:$AQ$13,11,0),IF(E16=3,VLOOKUP(C16,'Inputs - Simulador'!$C$5:$AQ$13,14,0)+VLOOKUP(C16,'Inputs - Simulador'!$C$5:$AQ$13,16,0),IF(E16=4,VLOOKUP(C16,'Inputs - Simulador'!$C$5:$AQ$13,19,0)+VLOOKUP(C16,'Inputs - Simulador'!$C$5:$AQ$13,21,0),IF(E16=5,VLOOKUP(C16,'Inputs - Simulador'!$C$5:$AQ$13,24,0)+VLOOKUP(C16,'Inputs - Simulador'!$C$5:$AQ$13,26,0),IF(E16=6,VLOOKUP(C16,'Inputs - Simulador'!$C$5:$AQ$13,29,0)+VLOOKUP(C16,'Inputs - Simulador'!$C$5:$AQ$13,31,0),IF(E16=7,VLOOKUP(C16,'Inputs - Simulador'!$C$5:$AQ$13,34,0)+VLOOKUP(C16,'Inputs - Simulador'!$C$5:$AQ$13,36,0),IF(E16=8,VLOOKUP(C16,'Inputs - Simulador'!$C$5:$AQ$13,39,0)+VLOOKUP(C16,'Inputs - Simulador'!$C$5:$AQ$13,41,0),0))))))))/2,0) -> 8 | H16: =IF($C16="COMERCIAL",VLOOKUP($G16,'Tabela Tarifária Antiga'!$O$4:$Q$689,2,0),IF($C16="INATIVO + SANEPAR",VLOOKUP($G16,'Tabela Tarifária Antiga'!$T$4:$V$689,2,0),IF($C16="INDUSTRIAL",VLOOKUP($G16,'Tabela Tarifária Antiga'!$Y$4:$AA$689,2,0),IF($C16="MPC",VLOOKUP($G16,'Tabela Tarifária Antiga'!$AD$4:$AF$689,2,0),IF($C16="PODER PUBLICO",VLOOKUP($E16,'Tabela Tarifária Antiga'!$AI$4:$AK$689,2,0),IF($C16="RESIDENCIAL",VLOOKUP($G16,'Tabela Tarifária Antiga'!$AN$4:$AP$689,2,0),IF($C16="TARIFA SOCIAL",VLOOKUP($G16,'Tabela Tarifária Antiga'!$AS$4:$AU$689,2,0),IF($C16="UTILIDADE PUBLICA",VLOOKUP($G16,'Tabela Tarifária Antiga'!$AX$4:$AZ$689,2,0),IF($C16="ENTIDADE FILANTROPICA",VLOOKUP($G16,'Tabela Tarifária Antiga'!$BC$4:$BE$689,2,0),0)))))))))*1.8 -> 22.644 | I16: =IF($C16="COMERCIAL",VLOOKUP($G16,'Tabela Tarifária Simulada'!$O$4:$Q$689,2,0),IF($C16="INATIVO + SANEPAR",VLOOKUP($G16,'Tabela Tarifária Simulada'!$T$4:$V$689,2,0),IF($C16="INDUSTRIAL",VLOOKUP($G16,'Tabela Tarifária Simulada'!$Y$4:$AA$689,2,0),IF($C16="MPC",VLOOKUP($G16,'Tabela Tarifária Simulada'!$AD$4:$AF$689,2,0),IF($C16="PODER PUBLICO",VLOOKUP($G16,'Tabela Tarifária Simulada'!$AI$4:$AK$689,2,0),IF($C16="RESIDENCIAL",VLOOKUP($G16,'Tabela Tarifária Simulada'!$AN$4:$AP$689,2,0),IF($C16="TARIFA SOCIAL",VLOOKUP($G16,'Tabela Tarifária Simulada'!$AS$4:$AU$689,2,0),IF($C16="UTILIDADE PUBLICA",VLOOKUP($G16,'Tabela Tarifária Simulada'!$AX$4:$AZ$689,2,0),IF($C16="ENTIDADE FILANTROPICA",VLOOKUP($G16,'Tabela Tarifária Simulada'!$BC$4:$BE$689,2,0),0)))))))))*1.8 -> 19.35 | J16: -0.1454689984
C17: UTILIDADE PUBLICA | D17: Categoria com o maior número de economias | E17: =VLOOKUP(MAX('Tabela Histograma'!$G$58:$G$65),CHOOSE({1,2},'Tabela Histograma'!$G$58:$G$65,'Tabela Histograma'!$C$58:$C$65),2,0) -> 1 | F17: =MAX('Tabela Histograma'!$G$58:$G$65) -> 11785.58333 | G17: =ROUNDUP(IF(E17=1,VLOOKUP(C17,'Inputs - Simulador'!$C$5:$AQ$13,4,0)+VLOOKUP(C17,'Inputs - Simulador'!$C$5:$AQ$13,6,0),IF(E17=2,VLOOKUP(C17,'Inputs - Simulador'!$C$5:$AQ$13,9,0)+VLOOKUP(C17,'Inputs - Simulador'!$C$5:$AQ$13,11,0),IF(E17=3,VLOOKUP(C17,'Inputs - Simulador'!$C$5:$AQ$13,14,0)+VLOOKUP(C17,'Inputs - Simulador'!$C$5:$AQ$13,16,0),IF(E17=4,VLOOKUP(C17,'Inputs - Simulador'!$C$5:$AQ$13,19,0)+VLOOKUP(C17,'Inputs - Simulador'!$C$5:$AQ$13,21,0),IF(E17=5,VLOOKUP(C17,'Inputs - Simulador'!$C$5:$AQ$13,24,0)+VLOOKUP(C17,'Inputs - Simulador'!$C$5:$AQ$13,26,0),IF(E17=6,VLOOKUP(C17,'Inputs - Simulador'!$C$5:$AQ$13,29,0)+VLOOKUP(C17,'Inputs - Simulador'!$C$5:$AQ$13,31,0),IF(E17=7,VLOOKUP(C17,'Inputs - Simulador'!$C$5:$AQ$13,34,0)+VLOOKUP(C17,'Inputs - Simulador'!$C$5:$AQ$13,36,0),IF(E17=8,VLOOKUP(C17,'Inputs - Simulador'!$C$5:$AQ$13,39,0)+VLOOKUP(C17,'Inputs - Simulador'!$C$5:$AQ$13,41,0),0))))))))/2,0) -> 3 | H17: =IF($C17="COMERCIAL",VLOOKUP($G17,'Tabela Tarifária Antiga'!$O$4:$Q$689,2,0),IF($C17="INATIVO + SANEPAR",VLOOKUP($G17,'Tabela Tarifária Antiga'!$T$4:$V$689,2,0),IF($C17="INDUSTRIAL",VLOOKUP($G17,'Tabela Tarifária Antiga'!$Y$4:$AA$689,2,0),IF($C17="MPC",VLOOKUP($G17,'Tabela Tarifária Antiga'!$AD$4:$AF$689,2,0),IF($C17="PODER PUBLICO",VLOOKUP($E17,'Tabela Tarifária Antiga'!$AI$4:$AK$689,2,0),IF($C17="RESIDENCIAL",VLOOKUP($G17,'Tabela Tarifária Antiga'!$AN$4:$AP$689,2,0),IF($C17="TARIFA SOCIAL",VLOOKUP($G17,'Tabela Tarifária Antiga'!$AS$4:$AU$689,2,0),IF($C17="UTILIDADE PUBLICA",VLOOKUP($G17,'Tabela Tarifária Antiga'!$AX$4:$AZ$689,2,0),IF($C17="ENTIDADE FILANTROPICA",VLOOKUP($G17,'Tabela Tarifária Antiga'!$BC$4:$BE$689,2,0),0)))))))))*1.8 -> 139.68 | I17: =IF($C17="COMERCIAL",VLOOKUP($G17,'Tabela Tarifária Simulada'!$O$4:$Q$689,2,0),IF($C17="INATIVO + SANEPAR",VLOOKUP($G17,'Tabela Tarifária Simulada'!$T$4:$V$689,2,0),IF($C17="INDUSTRIAL",VLOOKUP($G17,'Tabela Tarifária Simulada'!$Y$4:$AA$689,2,0),IF($C17="MPC",VLOOKUP($G17,'Tabela Tarifária Simulada'!$AD$4:$AF$689,2,0),IF($C17="PODER PUBLICO",VLOOKUP($G17,'Tabela Tarifária Simulada'!$AI$4:$AK$689,2,0),IF($C17="RESIDENCIAL",VLOOKUP($G17,'Tabela Tarifária Simulada'!$AN$4:$AP$689,2,0),IF($C17="TARIFA SOCIAL",VLOOKUP($G17,'Tabela Tarifária Simulada'!$AS$4:$AU$689,2,0),IF($C17="UTILIDADE PUBLICA",VLOOKUP($G17,'Tabela Tarifária Simulada'!$AX$4:$AZ$689,2,0),IF($C17="ENTIDADE FILANTROPICA",VLOOKUP($G17,'Tabela Tarifária Simulada'!$BC$4:$BE$689,2,0),0)))))))))*1.8 -> 150.21 | J17: 0.07538659794
C19: Categoria: | D19: RESIDENCIAL

Sheet Dados >>>
A1: Considerações Metodológicas
A3: - | B3: Dados obtidos a partir da Base de Dados enviada pela Sanepar em 01/09/2022.
A5: - | B5: O periodo de referência selecionado para a extração dos pesos compreende os meses de maio de 2018 a abril de 2019.

Sheet Tarifa Normal - Volume
A1: Objeto | B1: Categoria | C1: Faixa | D1: Chave | E1: Categorias Propostas | F1: Volume Faturado | G1: Peso | H1: 2021 | I1: 2022 | J1: 2023 | K1: 2024 | L1: Condicional | M1: VF Original
A2: Agua | B2: COMERCIAL | C2: 0 | D2: ="Vol_Normal"&A2&B2&C2 -> Vol_NormalAguaCOMERCIAL0 | E2: =IF(OR($B2="SANEPAR", $B2="INATIVO",),"INATIVO + SANEPAR",$B2) -> COMERCIAL | F2: =IF(AND('Volume Medido 1'!$O$3,C2<=5),VLOOKUP("NORMAL"&A2&E2&C2,'Volume Medido 1'!$G$3:$I$449,3,0),M2) -> 5313 | G2: =$F2/Parâmetros!$B$5 -> 5.826330427e-06 | H2: =$G2*Parâmetros!B$15 -> 5370.738696 | I2: =$G2*Parâmetros!C$15 -> 5493.305829 | J2: =$G2*Parâmetros!D$15 -> 5622.576782 | K2: =$G2*Parâmetros!E$15 -> 5747.094451 | L2: =IF(C2<=VLOOKUP(E2,'Inputs - Simulador'!$C$5:$AQ$13,6,0),1,IF(C2<=VLOOKUP(E2,'Inputs - Simulador'!$C$5:$AQ$13,11,0),2,IF(C2<=VLOOKUP(E2,'Inputs - Simulador'!$C$5:$AQ$13,16,0),3,IF(C2<=VLOOKUP(E2,'Inputs - Simulador'!$C$5:$AQ$13,21,0),4,IF(C2<=VLOOKUP(E2,'Inputs - Simulador'!$C$5:$AQ$13,26,0),5,IF(C2<=VLOOKUP(E2,'Inputs - Simulador'!$C$5:$AQ$13,31,0),6,IF(C2<=VLOOKUP(E2,'Inputs - Simulador'!$C$5:$AQ$13,36,0),7,IF(C2<=VLOOKUP(E2,'Inputs - Simulador'!$C$5:$AQ$13,41,0),8,0)))))))) -> 1 | M2: 725841
A3: Agua | B3: COMERCIAL | C3: 1 | D3: ="Vol_Normal"&A3&B3&C3 -> Vol_NormalAguaCOMERCIAL1 | E3: =IF(OR($B3="SANEPAR", $B3="INATIVO",),"INATIVO + SANEPAR",$B3) -> COMERCIAL | F3: =IF(AND('Volume Medido 1'!$O$3,C3<=5),VLOOKUP("NORMAL"&A3&E3&C3,'Volume Medido 1'!$G$3:$I$449,3,0),M3) -> 247147 | G3: =$F3/Parâmetros!$B$5 -> 0.000271025802 | H3: =$G3*Parâmetros!B$15 -> 249832.8546 | I3: =$G3*Parâmetros!C$15 -> 255534.3602 | J3: =$G3*Parâmetros!D$15 -> 261547.7101 | K3: =$G3*Parâmetros!E$15 -> 267339.9496 | L3: =IF(C3<=VLOOKUP(E3,'Inputs - Simulador'!$C$5:$AQ$13,6,0),1,IF(C3<=VLOOKUP(E3,'Inputs - Simulador'!$C$5:$AQ$13,11,0),2,IF(C3<=VLOOKUP(E3,'Inputs - Simulador'!$C$5:$AQ$13,16,0),3,IF(C3<=VLOOKUP(E3,'Inputs - Simulador'!$C$5:$AQ$13,21,0),4,IF(C3<=VLOOKUP(E3,'Inputs - Simulador'!$C$5:$AQ$13,26,0),5,IF(C3<=VLOOKUP(E3,'Inputs - Simulador'!$C$5:$AQ$13,31,0),6,IF(C3<=VLOOKUP(E3,'Inputs - Simulador'!$C$5:$AQ$13,36,0),7,IF(C3<=VLOOKUP(E3,'Inputs - Simulador'!$C$5:$AQ$13,41,0),8,0)))))))) -> 1 | M3: 930970
A4: Agua | B4: COMERCIAL | C4: 2 | D4: Vol_NormalAguaCOMERCIAL2 | E4: COMERCIAL | F4: =IF(AND('Volume Medido 1'!$O$3,C4<=5),VLOOKUP("NORMAL"&A4&E4&C4,'Volume Medido 1'!$G$3:$I$449,3,0),M4) -> 548777 | G4: =$F4/Parâmetros!$B$5 -> 0.0006017986322 | H4: =$G4*Parâmetros!B$15 -> 554740.7998 | I4: =$G4*Parâmetros!C$15 -> 567400.6951 | J4: =$G4*Parâmetros!D$15 -> 580753.0244 | K4: =$G4*Parâmetros!E$15 -> 593614.3895 | L4: =IF(C4<=VLOOKUP(E4,'Inputs - Simulador'!$C$5:$AQ$13,6,0),1,IF(C4<=VLOOKUP(E4,'Inputs - Simulador'!$C$5:$AQ$13,11,0),2,IF(C4<=VLOOKUP(E4,'Inputs - Simulador'!$C$5:$AQ$13,16,0),3,IF(C4<=VLOOKUP(E4,'Inputs - Simulador'!$C$5:$AQ$13,21,0),4,IF(C4<=VLOOKUP(E4,'Inputs - Simulador'!$C$5:$AQ$13,26,0),5,IF(C4<=VLOOKUP(E4,'Inputs - Simulador'!$C$5:$AQ$13,31,0),6,IF(C4<=VLOOKUP(E4,'Inputs - Simulador'!$C$5:$AQ$13,36,0),7,IF(C4<=VLOOKUP(E4,'Inputs - Simulador'!$C$5:$AQ$13,41,0),8,0)))))))) -> 1 | M4: 1047246
A5: Agua | B5: COMERCIAL | C5: 3 | D5: Vol_NormalAguaCOMERCIAL3 | E5: COMERCIAL | F5: =IF(AND('Volume Medido 1'!$O$3,C5<=5),VLOOKUP("NORMAL"&A5&E5&C5,'Volume Medido 1'!$G$3:$I$449,3,0),M5) -> 727128 | G5: =$F5/Parâmetros!$B$5 -> 0.0007973815153 | H5: =$G5*Parâmetros!B$15 -> 735030.0181 | I5: =$G5*Parâmetros!C$15 -> 751804.3443 | J5: =$G5*Parâmetros!D$15 -> 769496.1435 | K5: =$G5*Parâmetros!E$15 -> 786537.4165 | L5: =IF(C5<=VLOOKUP(E5,'Inputs - Simulador'!$C$5:$AQ$13,6,0),1,IF(C5<=VLOOKUP(E5,'Inputs - Simulador'!$C$5:$AQ$13,11,0),2,IF(C5<=VLOOKUP(E5,'Inputs - Simulador'!$C$5:$AQ$13,16,0),3,IF(C5<=VLOOKUP(E5,'Inputs - Simulador'!$C$5:$AQ$13,21,0),4,IF(C5<=VLOOKUP(E5,'Inputs - Simulador'!$C$5:$AQ$13,26,0),5,IF(C5<=VLOOKUP(E5,'Inputs - Simulador'!$C$5:$AQ$13,31,0),6,IF(C5<=VLOOKUP(E5,'Inputs - Simulador'!$C$5:$AQ$13,36,0),7,IF(C5<=VLOOKUP(E5,'Inputs - Simulador'!$C$5:$AQ$13,41,0),8,0)))))))) -> 1 | M5: 1039757
A6: Agua | B6: COMERCIAL | C6: 4 | D6: Vol_NormalAguaCOMERCIAL4 | E6: COMERCIAL | F6: =IF(AND('Volume Medido 1'!$O$3,C6<=5),VLOOKUP("NORMAL"&A6&E6&C6,'Volume Medido 1'!$G$3:$I$449,3,0),M6) -> 865924 | G6: =$F6/Parâmetros!$B$5 -> 0.0009495876809 | H6: =$G6*Parâmetros!B$15 -> 875334.375 | I6: =$G6*Parâmetros!C$15 -> 895310.6262 | J6: =$G6*Parâmetros!D$15 -> 916379.48 | K6: =$G6*Parâmetros!E$15 -> 936673.6336 | L6: =IF(C6<=VLOOKUP(E6,'Inputs - Simulador'!$C$5:$AQ$13,6,0),1,IF(C6<=VLOOKUP(E6,'Inputs - Simulador'!$C$5:$AQ$13,11,0),2,IF(C6<=VLOOKUP(E6,'Inputs - Simulador'!$C$5:$AQ$13,16,0),3,IF(C6<=VLOOKUP(E6,'Inputs - Simulador'!$C$5:$AQ$13,21,0),4,IF(C6<=VLOOKUP(E6,'Inputs - Simulador'!$C$5:$AQ$13,26,0),5,IF(C6<=VLOOKUP(E6,'Inputs - Simulador'!$C$5:$AQ$13,31,0),6,IF(C6<=VLOOKUP(E6,'Inputs - Simulador'!$C$5:$AQ$13,36,0),7,IF(C6<=VLOOKUP(E6,'Inputs - Simulador'!$C$5:$AQ$13,41,0),8,0)))))))) -> 1 | M6: 1022781
A7: Agua | B7: COMERCIAL | C7: 5 | D7: Vol_NormalAguaCOMERCIAL5 | E7: COMERCIAL | F7: =IF(AND('Volume Medido 1'!$O$3,C7<=5),VLOOKUP("NORMAL"&A7&E7&C7,'Volume Medido 1'!$G$3:$I$449,3,0),M7) -> 1036368 | G7: =$F7/Parâmetros!$B$5 -> 0.001136499607 | H7: =$G7*Parâmetros!B$15 -> 1047630.665 | I7: =$G7*Parâmetros!C$15 -> 1071538.938 | J7: =$G7*Parâmetros!D$15 -> 1096754.876 | K7: =$G7*Parâmetros!E$15 -> 1121043.625 | L7: =IF(C7<=VLOOKUP(E7,'Inputs - Simulador'!$C$5:$AQ$13,6,0),1,IF(C7<=VLOOKUP(E7,'Inputs - Simulador'!$C$5:$AQ$13,11,0),2,IF(C7<=VLOOKUP(E7,'Inputs - Simulador'!$C$5:$AQ$13,16,0),3,IF(C7<=VLOOKUP(E7,'Inputs - Simulador'!$C$5:$AQ$13,21,0),4,IF(C7<=VLOOKUP(E7,'Inputs - Simulador'!$C$5:$AQ$13,26,0),5,IF(C7<=VLOOKUP(E7,'Inputs - Simulador'!$C$5:$AQ$13,31,0),6,IF(C7<=VLOOKUP(E7,'Inputs - Simulador'!$C$5:$AQ$13,36,0),7,IF(C7<=VLOOKUP(E7,'Inputs - Simulador'!$C$5:$AQ$13,41,0),8,0)))))))) -> 1 | M7: 1037513
A8: Agua | B8: COMERCIAL | C8: 6 | D8: Vol_NormalAguaCOMERCIAL6 | E8: COMERCIAL | F8: =IF(AND('Volume Medido 1'!$O$3,C8<=5),VLOOKUP("NORMAL"&A8&E8&C8,'Volume Medido 1'!$G$3:$I$449,3,0),M8) -> 1102360 | G8: =$F8/Parâmetros!$B$5 -> 0.00120886761 | H8: =$G8*Parâmetros!B$15 -> 1114339.828 | I8: =$G8*Parâmetros!C$15 -> 1139770.49 | J8: =$G8*Parâmetros!D$15 -> 1166592.084 | K8: =$G8*Parâmetros!E$15 -> 1192427.449 | L8: =IF(C8<=VLOOKUP(E8,'Inputs - Simulador'!$C$5:$AQ$13,6,0),1,IF(C8<=VLOOKUP(E8,'Inputs - Simulador'!$C$5:$AQ$13,11,0),2,IF(C8<=VLOOKUP(E8,'Inputs - Simulador'!$C$5:$AQ$13,16,0),3,IF(C8<=VLOOKUP(E8,'Inputs - Simulador'!$C$5:$AQ$13,21,0),4,IF(C8<=VLOOKUP(E8,'Inputs - Simulador'!$C$5:$AQ$13,26,0),5,IF(C8<=VLOOKUP(E8,'Inputs - Simulador'!$C$5:$AQ$13,31,0),6,IF(C8<=VLOOKUP(E8,'Inputs - Simulador'!$C$5:$AQ$13,36,0),7,IF(C8<=VLOOKUP(E8,'Inputs - Simulador'!$C$5:$AQ$13,41,0),8,0)))))))) -> 2 | M8: 1102360
A9: Agua | B9: COMERCIAL | C9: 7 | D9: Vol_NormalAguaCOMERCIAL7 | E9: COMERCIAL | F9: =IF(AND('Volume Medido 1'!$O$3,C9<=5),VLOOKUP("NORMAL"&A9&E9&C9,'Volume Medido 1'!$G$3:$I$449,3,0),M9) -> 1165277 | G9: =$F9/Parâmetros!$B$5 -> 0.001277863512 | H9: =$G9*Parâmetros!B$15 -> 1177940.575 | I9: =$G9*Parâmetros!C$15 -> 1204822.687 | J9: =$G9*Parâmetros!D$15 -> 1233175.119 | K9: =$G9*Parâmetros!E$15 -> 1260485.033 | L9: =IF(C9<=VLOOKUP(E9,'Inputs - Simulador'!$C$5:$AQ$13,6,0),1,IF(C9<=VLOOKUP(E9,'Inputs - Simulador'!$C$5:$AQ$13,11,0),2,IF(C9<=VLOOKUP(E9,'Inputs - Simulador'!$C$5:$AQ$13,16,0),3,IF(C9<=VLOOKUP(E9,'Inputs - Simulador'!$C$5:$AQ$13,21,0),4,IF(C9<=VLOOKUP(E9,'Inputs - Simulador'!$C$5:$AQ$13,26,0),5,IF(C9<=VLOOKUP(E9,'Inputs - Simulador'!$C$5:$AQ$13,31,0),6,IF(C9<=VLOOKUP(E9,'Inputs - Simulador'!$C$5:$AQ$13,36,0),7,IF(C9<=VLOOKUP(E9,'Inputs - Simulador'!$C$5:$AQ$13,41,0),8,0)))))))) -> 2 | M9: 1165277
A10: Agua | B10: COMERCIAL | C10: 8 | D10: Vol_NormalAguaCOMERCIAL8 | E10: COMERCIAL | F10: =IF(AND('Volume Medido 1'!$O$3,C10<=5),VLOOKUP("NORMAL"&A10&E10&C10,'Volume Medido 1'!$G$3:$I$449,3,0),M10) -> 1205766 | G10: =$F10/Parâmetros!$B$5 -> 0.001322264471 | H10: =$G10*Parâmetros!B$15 -> 1218869.587 | I10: =$G10*Parâmetros!C$15 -> 1246685.751 | J10: =$G10*Parâmetros!D$15 -> 1276023.323 | K10: =$G10*Parâmetros!E$15 -> 1304282.155 | L10: =IF(C10<=VLOOKUP(E10,'Inputs - Simulador'!$C$5:$AQ$13,6,0),1,IF(C10<=VLOOKUP(E10,'Inputs - Simulador'!$C$5:$AQ$13,11,0),2,IF(C10<=VLOOKUP(E10,'Inputs - Simulador'!$C$5:$AQ$13,16,0),3,IF(C10<=VLOOKUP(E10,'Inputs - Simulador'!$C$5:$AQ$13,21,0),4,IF(C10<=VLOOKUP(E10,'Inputs - Simulador'!$C$5:$AQ$13,26,0),5,IF(C10<=VLOOKUP(E10,'Inputs - Simulador'!$C$5:$AQ$13,31,0),6,IF(C10<=VLOOKUP(E10,'Inputs - Simulador'!$C$5:$AQ$13,36,0),7,IF(C10<=VLOOKUP(E10,'Inputs - Simulador'!$C$5:$AQ$13,41,0),8,0)))))))) -> 2 | M10: 1205766
A11: Agua | B11: COMERCIAL | C11: 9 | D11: Vol_NormalAguaCOMERCIAL9 | E11: COMERCIAL | F11: =IF(AND('Volume Medido 1'!$O$3,C11<=5),VLOOKUP("NORMAL"&A11&E11&C11,'Volume Medido 1'!$G$3:$I$449,3,0),M11) -> 1195670 | G11: =$F11/Parâmetros!$B$5 -> 0.001311193017 | H11: =$G11*Parâmetros!B$15 -> 1208663.869 | I11: =$G11*Parâmetros!C$15 -> 1236247.126 | J11: =$G11*Parâmetros!D$15 -> 1265339.052 | K11: =$G11*Parâmetros!E$15 -> 1293361.269 | L11: =IF(C11<=VLOOKUP(E11,'Inputs - Simulador'!$C$5:$AQ$13,6,0),1,IF(C11<=VLOOKUP(E11,'Inputs - Simulador'!$C$5:$AQ$13,11,0),2,IF(C11<=VLOOKUP(E11,'Inputs - Simulador'!$C$5:$AQ$13,16,0),3,IF(C11<=VLOOKUP(E11,'Inputs - Simulador'!$C$5:$AQ$13,21,0),4,IF(C11<=VLOOKUP(E11,'Inputs - Simulador'!$C$5:$AQ$13,26,0),5,IF(C11<=VLOOKUP(E11,'Inputs - Simulador'!$C$5:$AQ$13,31,0),6,IF(C11<=VLOOKUP(E11,'Inputs - Simulador'!$C$5:$AQ$13,36,0),7,IF(C11<=VLOOKUP(E11,'Inputs - Simulador'!$C$5:$AQ$13,41,0),8,0)))))))) -> 2 | M11: 1195670
A12: Agua | B12: COMERCIAL | C12: 10 | D12: Vol_NormalAguaCOMERCIAL10 | E12: COMERCIAL | F12: =IF(AND('Volume Medido 1'!$O$3,C12<=5),VLOOKUP("NORMAL"&A12&E12&C12,'Volume Medido 1'!$G$3:$I$449,3,0),M12) -> 1155659 | G12: =$F12/Parâmetros!$B$5 -> 0.001267316242 | H12: =$G12*Parâmetros!B$15 -> 1168218.052 | I12: =$G12*Parâmetros!C$15 -> 1194878.284 | J12: =$G12*Parâmetros!D$15 -> 1222996.699 | K12: =$G12*Parâmetros!E$15 -> 1250081.202 | L12: =IF(C12<=VLOOKUP(E12,'Inputs - Simulador'!$C$5:$AQ$13,6,0),1,IF(C12<=VLOOKUP(E12,'Inputs - Simulador'!$C$5:$AQ$13,11,0),2,IF(C12<=VLOOKUP(E12,'Inputs - Simulador'!$C$5:$AQ$13,16,0),3,IF(C12<=VLOOKUP(E12,'Inputs - Simulador'!$C$5:$AQ$13,21,0),4,IF(C12<=VLOOKUP(E12,'Inputs - Simulador'!$C$5:$AQ$13,26,0),5,IF(C12<=VLOOKUP(E12,'Inputs - Simulador'!$C$5:$AQ$13,31,0),6,IF(C12<=VLOOKUP(E12,'Inputs - Simulador'!$C$5:$AQ$13,36,0),7,IF(C12<=VLOOKUP(E12,'Inputs - Simulador'!$C$5:$AQ$13,41,0),8,0)))))))) -> 2 | M12: 1155659
A13: Agua | B13: COMERCIAL | C13: 11 | D13: Vol_NormalAguaCOMERCIAL11 | E13: COMERCIAL | F13: =IF(AND('Volume Medido 1'!$O$3,C13<=5),VLOOKUP("NORMAL"&A13&E13&C13,'Volume Medido 1'!$G$3:$I$449,3,0),M13) -> 1055577 | G13: =$F13/Parâmetros!$B$5 -> 0.001157564539 | H13: =$G13*Parâmetros!B$15 -> 1067048.417 | I13: =$G13*Parâmetros!C$15 -> 1091399.828 | J13: =$G13*Parâmetros!D$15 -> 1117083.142 | K13: =$G13*Parâmetros!E$15 -> 1141822.082 | L13: =IF(C13<=VLOOKUP(E13,'Inputs - Simulador'!$C$5:$AQ$13,6,0),1,IF(C13<=VLOOKUP(E13,'Inputs - Simulador'!$C$5:$AQ$13,11,0),2,IF(C13<=VLOOKUP(E13,'Inputs - Simulador'!$C$5:$AQ$13,16,0),3,IF(C13<=VLOOKUP(E13,'Inputs - Simulador'!$C$5:$AQ$13,21,0),4,IF(C13<=VLOOKUP(E13,'Inputs - Simulador'!$C$5:$AQ$13,26,0),5,IF(C13<=VLOOKUP(E13,'Inputs - Simulador'!$C$5:$AQ$13,31,0),6,IF(C13<=VLOOKUP(E13,'Inputs - Simulador'!$C$5:$AQ$13,36,0),7,IF(C13<=VLOOKUP(E13,'Inputs - Simulador'!$C$5:$AQ$13,41,0),8,0)))))))) -> 3 | M13: 1055577
A14: Agua | B14: COMERCIAL | C14: 12 | D14: Vol_NormalAguaCOMERCIAL12 | E14: COMERCIAL | F14: =IF(AND('Volume Medido 1'!$O$3,C14<=5),VLOOKUP("NORMAL"&A14&E14&C14,'Volume Medido 1'!$G$3:$I$449,3,0),M14) -> 968150 | G14: =$F14/Parâmetros!$B$5 -> 0.001061690533 | H14: =$G14*Parâmetros!B$15 -> 978671.3097 | I14: =$G14*Parâmetros!C$15 -> 1001005.842 | J14: =$G14*Parâmetros!D$15 -> 1024561.963 | K14: =$G14*Parâmetros!E$15 -> 1047251.928 | L14: =IF(C14<=VLOOKUP(E14,'Inputs - Simulador'!$C$5:$AQ$13,6,0),1,IF(C14<=VLOOKUP(E14,'Inputs - Simulador'!$C$5:$AQ$13,11,0),2,IF(C14<=VLOOKUP(E14,'Inputs - Simulador'!$C$5:$AQ$13,16,0),3,IF(C14<=VLOOKUP(E14,'Inputs - Simulador'!$C$5:$AQ$13,21,0),4,IF(C14<=VLOOKUP(E14,'Inputs - Simulador'!$C$5:$AQ$13,26,0),5,IF(C14<=VLOOKUP(E14,'Inputs - Simulador'!$C$5:$AQ$13,31,0),6,IF(C14<=VLOOKUP(E14,'Inputs - Simulador'!$C$5:$AQ$13,36,0),7,IF(C14<=VLOOKUP(E14,'Inputs - Simulador'!$C$5:$AQ$13,41,0),8,0)))))))) -> 3 | M14: 968150
A15: Agua | B15: COMERCIAL | C15: 13 | D15: Vol_NormalAguaCOMERCIAL13 | E15: COMERCIAL | F15: =IF(AND('Volume Medido 1'!$O$3,C15<=5),VLOOKUP("NORMAL"&A15&E15&C15,'Volume Medido 1'!$G$3:$I$449,3,0),M15) -> 869706 | G15: =$F15/Parâmetros!$B$5 -> 0.0009537350895 | H15: =$G15*Parâmetros!B$15 -> 879157.4756 | I15: =$G15*Parâmetros!C$15 -> 899220.9749 | J15: =$G15*Parâmetros!D$15 -> 920381.8488 | K15: =$G15*Parâmetros!E$15 -> 940764.6389 | L15: =IF(C15<=VLOOKUP(E15,'Inputs - Simulador'!$C$5:$AQ$13,6,0),1,IF(C15<=VLOOKUP(E15,'Inputs - Simulador'!$C$5:$AQ$13,11,0),2,IF(C15<=VLOOKUP(E15,'Inputs - Simulador'!$C$5:$AQ$13,16,0),3,IF(C15<=VLOOKUP(E15,'Inputs - Simulador'!$C$5:$AQ$13,21,0),4,IF(C15<=VLOOKUP(E15,'Inputs - Simulador'!$C$5:$AQ$13,26,0),5,IF(C15<=VLOOKUP(E15,'Inputs - Simulador'!$C$5:$AQ$13,31,0),6,IF(C15<=VLOOKUP(E15,'Inputs - Simulador'!$C$5:$AQ$13,36,0),7,IF(C15<=VLOOKUP(E15,'Inputs - Simulador'!$C$5:$AQ$13,41,0),8,0)))))))) -> 3 | M15: 869706
A16: Agua | B16: COMERCIAL | C16: 14 | D16: Vol_NormalAguaCOMERCIAL14 | E16: COMERCIAL | F16: =IF(AND('Volume Medido 1'!$O$3,C16<=5),VLOOKUP("NORMAL"&A16&E16&C16,'Volume Medido 1'!$G$3:$I$449,3,0),M16) -> 783376 | G16: =$F16/Parâmetros!$B$5 -> 0.0008590640739 | H16: =$G16*Parâmetros!B$15 -> 791889.2898 | I16: =$G16*Parâmetros!C$15 -> 809961.2173 | J16: =$G16*Parâmetros!D$15 -> 829021.5903 | K16: =$G16*Parâmetros!E$15 -> 847381.1147 | L16: =IF(C16<=VLOOKUP(E16,'Inputs - Simulador'!$C$5:$AQ$13,6,0),1,IF(C16<=VLOOKUP(E16,'Inputs - Simulador'!$C$5:$AQ$13,11,0),2,IF(C16<=VLOOKUP(E16,'Inputs - Simulador'!$C$5:$AQ$13,16,0),3,IF(C16<=VLOOKUP(E16,'Inputs - Simulador'!$C$5:$AQ$13,21,0),4,IF(C16<=VLOOKUP(E16,'Inputs - Simulador'!$C$5:$AQ$13,26,0),5,IF(C16<=VLOOKUP(E16,'Inputs - Simulador'!$C$5:$AQ$13,31,0),6,IF(C16<=VLOOKUP(E16,'Inputs - Simulador'!$C$5:$AQ$13,36,0),7,IF(C16<=VLOOKUP(E16,'Inputs - Simulador'!$C$5:$AQ$13,41,0),8,0)))))))) -> 3 | M16: 783376
A17: Agua | B17: COMERCIAL | C17: 15 | D17: Vol_NormalAguaCOMERCIAL15 | E17: COMERCIAL | F17: =IF(AND('Volume Medido 1'!$O$3,C17<=5),VLOOKUP("NORMAL"&A17&E17&C17,'Volume Medido 1'!$G$3:$I$449,3,0),M17) -> 713116 | G17: =$F17/Parâmetros!$B$5 -> 0.0007820157065 | H17: =$G17*Parâmetros!B$15 -> 720865.7436 | I17: =$G17*Parâmetros!C$15 -> 737316.8229 | J17: =$G17*Parâmetros!D$15 -> 754667.6952 | K17: =$G17*Parâmetros!E$15 -> 771380.5772 | L17: =IF(C17<=VLOOKUP(E17,'Inputs - Simulador'!$C$5:$AQ$13,6,0),1,IF(C17<=VLOOKUP(E17,'Inputs - Simulador'!$C$5:$AQ$13,11,0),2,IF(C17<=VLOOKUP(E17,'Inputs - Simulador'!$C$5:$AQ$13,16,0),3,IF(C17<=VLOOKUP(E17,'Inputs - Simulador'!$C$5:$AQ$13,21,0),4,IF(C17<=VLOOKUP(E17,'Inputs - Simulador'!$C$5:$AQ$13,26,0),5,IF(C17<=VLOOKUP(E17,'Inputs - Simulador'!$C$5:$AQ$13,31,0),6,IF(C17<=VLOOKUP(E17,'Inputs - Simulador'!$C$5:$AQ$13,36,0),7,IF(C17<=VLOOKUP(E17,'Inputs - Simulador'!$C$5:$AQ$13,41,0),8,0)))))))) -> 3 | M17: 713116
A18: Agua | B18: COMERCIAL | C18: 16 | D18: Vol_NormalAguaCOMERCIAL16 | E18: COMERCIAL | F18: =IF(AND('Volume Medido 1'!$O$3,C18<=5),VLOOKUP("NORMAL"&A18&E18&C18,'Volume Medido 1'!$G$3:$I$449,3,0),M18) -> 644331 | G18: =$F18/Parâmetros!$B$5 -> 0.0007065848504 | H18: =$G18*Parâmetros!B$15 -> 651333.2269 | I18: =$G18*Parâmetros!C$15 -> 666197.4851 | J18: =$G18*Parâmetros!D$15 -> 681874.7451 | K18: =$G18*Parâmetros!E$15 -> 696975.5533 | L18: =IF(C18<=VLOOKUP(E18,'Inputs - Simulador'!$C$5:$AQ$13,6,0),1,IF(C18<=VLOOKUP(E18,'Inputs - Simulador'!$C$5:$AQ$13,11,0),2,IF(C18<=VLOOKUP(E18,'Inputs - Simulador'!$C$5:$AQ$13,16,0),3,IF(C18<=VLOOKUP(E18,'Inputs - Simulador'!$C$5:$AQ$13,21,0),4,IF(C18<=VLOOKUP(E18,'Inputs - Simulador'!$C$5:$AQ$13,26,0),5,IF(C18<=VLOOKUP(E18,'Inputs - Simulador'!$C$5:$AQ$13,31,0),6,IF(C18<=VLOOKUP(E18,'Inputs - Simulador'!$C$5:$AQ$13,36,0),7,IF(C18<=VLOOKUP(E18,'Inputs - Simulador'!$C$5:$AQ$13,41,0),8,0)))))))) -> 3 | M18: 644331
A19: Agua | B19: COMERCIAL | C19: 17 | D19: Vol_NormalAguaCOMERCIAL17 | E19: COMERCIAL | F19: =IF(AND('Volume Medido 1'!$O$3,C19<=5),VLOOKUP("NORMAL"&A19&E19&C19,'Volume Medido 1'!$G$3:$I$449,3,0),M19) -> 579670 | G19: =$F19/Parâmetros!$B$5 -> 0.0006356764462 | H19: =$G19*Parâmetros!B$15 -> 585969.5275 | I19: =$G19*Parâmetros!C$15 -> 599342.1024 | J19: =$G19*Parâmetros!D$15 -> 613446.0913 | K19: =$G19*Parâmetros!E$15 -> 627031.4776 | L19: =IF(C19<=VLOOKUP(E19,'Inputs - Simulador'!$C$5:$AQ$13,6,0),1,IF(C19<=VLOOKUP(E19,'Inputs - Simulador'!$C$5:$AQ$13,11,0),2,IF(C19<=VLOOKUP(E19,'Inputs - Simulador'!$C$5:$AQ$13,16,0),3,IF(C19<=VLOOKUP(E19,'Inputs - Simulador'!$C$5:$AQ$13,21,0),4,IF(C19<=VLOOKUP(E19,'Inputs - Simulador'!$C$5:$AQ$13,26,0),5,IF(C19<=VLOOKUP(E19,'Inputs - Simulador'!$C$5:$AQ$13,31,0),6,IF(C19<=VLOOKUP(E19,'Inputs - Simulador'!$C$5:$AQ$13,36,0),7,IF(C19<=VLOOKUP(E19,'Inputs - Simulador'!$C$5:$AQ$13,41,0),8,0)))))))) -> 3 | M19: 579670
A20: Agua | B20: COMERCIAL | C20: 18 | D20: Vol_NormalAguaCOMERCIAL18 | E20: COMERCIAL | F20: =IF(AND('Volume Medido 1'!$O$3,C20<=5),VLOOKUP("NORMAL"&A20&E20&C20,'Volume Medido 1'!$G$3:$I$449,3,0),M20) -> 537095 | G20: =$F20/Parâmetros!$B$5 -> 0.0005889879429 | H20: =$G20*Parâmetros!B$15 -> 542931.8464 | I20: =$G20*Parâmetros!C$15 -> 555322.2463 | J20: =$G20*Parâmetros!D$15 -> 568390.3401 | K20: =$G20*Parâmetros!E$15 -> 580977.921 | L20: =IF(C20<=VLOOKUP(E20,'Inputs - Simulador'!$C$5:$AQ$13,6,0),1,IF(C20<=VLOOKUP(E20,'Inputs - Simulador'!$C$5:$AQ$13,11,0),2,IF(C20<=VLOOKUP(E20,'Inputs - Simulador'!$C$5:$AQ$13,16,0),3,IF(C20<=VLOOKUP(E20,'Inputs - Simulador'!$C$5:$AQ$13,21,0),4,IF(C20<=VLOOKUP(E20,'Inputs - Simulador'!$C$5:$AQ$13,26,0),5,IF(C20<=VLOOKUP(E20,'Inputs - Simulador'!$C$5:$AQ$13,31,0),6,IF(C20<=VLOOKUP(E20,'Inputs - Simulador'!$C$5:$AQ$13,36,0),7,IF(C20<=VLOOKUP(E20,'Inputs - Simulador'!$C$5:$AQ$13,41,0),8,0)))))))) -> 3 | M20: 537095
A21: Agua | B21: COMERCIAL | C21: 19 | D21: Vol_NormalAguaCOMERCIAL19 | E21: COMERCIAL | F21: =IF(AND('Volume Medido 1'!$O$3,C21<=5),VLOOKUP("NORMAL"&A21&E21&C21,'Volume Medido 1'!$G$3:$I$449,3,0),M21) -> 493594 | G21: =$F21/Parâmetros!$B$5 -> 0.0005412839715 | H21: =$G21*Parâmetros!B$15 -> 498958.102 | I21: =$G21*Parâmetros!C$15 -> 510344.9647 | J21: =$G21*Parâmetros!D$15 -> 522354.6328 | K21: =$G21*Parâmetros!E$15 -> 533922.7063 | L21: =IF(C21<=VLOOKUP(E21,'Inputs - Simulador'!$C$5:$AQ$13,6,0),1,IF(C21<=VLOOKUP(E21,'Inputs - Simulador'!$C$5:$AQ$13,11,0),2,IF(C21<=VLOOKUP(E21,'Inputs - Simulador'!$C$5:$AQ$13,16,0),3,IF(C21<=VLOOKUP(E21,'Inputs - Simulador'!$C$5:$AQ$13,21,0),4,IF(C21<=VLOOKUP(E21,'Inputs - Simulador'!$C$5:$AQ$13,26,0),5,IF(C21<=VLOOKUP(E21,'Inputs - Simulador'!$C$5:$AQ$13,31,0),6,IF(C21<=VLOOKUP(E21,'Inputs - Simulador'!$C$5:$AQ$13,36,0),7,IF(C21<=VLOOKUP(E21,'Inputs - Simulador'!$C$5:$AQ$13,41,0),8,0)))))))) -> 3 | M21: 493594
A22: Agua | B22: COMERCIAL | C22: 20 | D22: Vol_NormalAguaCOMERCIAL20 | E22: COMERCIAL | F22: =IF(AND('Volume Medido 1'!$O$3,C22<=5),VLOOKUP("NORMAL"&A22&E22&C22,'Volume Medido 1'!$G$3:$I$449,3,0),M22) -> 464242 | G22: =$F22/Parâmetros!$B$5 -> 0.0005090960456 | H22: =$G22*Parâmetros!B$15 -> 469287.1209 | I22: =$G22*Parâmetros!C$15 -> 479996.8539 | J22: =$G22*Parâmetros!D$15 -> 491292.3566 | K22: =$G22*Parâmetros!E$15 -> 502172.5244 | L22: =IF(C22<=VLOOKUP(E22,'Inputs - Simulador'!$C$5:$AQ$13,6,0),1,IF(C22<=VLOOKUP(E22,'Inputs - Simulador'!$C$5:$AQ$13,11,0),2,IF(C22<=VLOOKUP(E22,'Inputs - Simulador'!$C$5:$AQ$13,16,0),3,IF(C22<=VLOOKUP(E22,'Inputs - Simulador'!$C$5:$AQ$13,21,0),4,IF(C22<=VLOOKUP(E22,'Inputs - Simulador'!$C$5:$AQ$13,26,0),5,IF(C22<=VLOOKUP(E22,'Inputs - Simulador'!$C$5:$AQ$13,31,0),6,IF(C22<=VLOOKUP(E22,'Inputs - Simulador'!$C$5:$AQ$13,36,0),7,IF(C22<=VLOOKUP(E22,'Inputs - Simulador'!$C$5:$AQ$13,41,0),8,0)))))))) -> 3 | M22: 464242
A23: Agua | B23: COMERCIAL | C23: 21 | D23: Vol_NormalAguaCOMERCIAL21 | E23: COMERCIAL | F23: =IF(AND('Volume Medido 1'!$O$3,C23<=5),VLOOKUP("NORMAL"&A23&E23&C23,'Volume Medido 1'!$G$3:$I$449,3,0),M23) -> 430503 | G23: =$F23/Parâmetros!$B$5 -> 0.0004720972573 | H23: =$G23*Parâmetros!B$15 -> 435181.4645 | I23: =$G23*Parâmetros!C$15 -> 445112.8627 | J23: =$G23*Parâmetros!D$15 -> 455587.4595 | K23: =$G23*Parâmetros!E$15 -> 465676.9062 | L23: =IF(C23<=VLOOKUP(E23,'Inputs - Simulador'!$C$5:$AQ$13,6,0),1,IF(C23<=VLOOKUP(E23,'Inputs - Simulador'!$C$5:$AQ$13,11,0),2,IF(C23<=VLOOKUP(E23,'Inputs - Simulador'!$C$5:$AQ$13,16,0),3,IF(C23<=VLOOKUP(E23,'Inputs - Simulador'!$C$5:$AQ$13,21,0),4,IF(C23<=VLOOKUP(E23,'Inputs - Simulador'!$C$5:$AQ$13,26,0),5,IF(C23<=VLOOKUP(E23,'Inputs - Simulador'!$C$5:$AQ$13,31,0),6,IF(C23<=VLOOKUP(E23,'Inputs - Simulador'!$C$5:$AQ$13,36,0),7,IF(C23<=VLOOKUP(E23,'Inputs - Simulador'!$C$5:$AQ$13,41,0),8,0)))))))) -> 4 | M23: 430503
A24: Agua | B24: COMERCIAL | C24: 22 | D24: Vol_NormalAguaCOMERCIAL22 | E24: COMERCIAL | F24: =IF(AND('Volume Medido 1'!$O$3,C24<=5),VLOOKUP("NORMAL"&A24&E24&C24,'Volume Medido 1'!$G$3:$I$449,3,0),M24) -> 397696 | G24: =$F24/Parâmetros!$B$5 -> 0.0004361205168 | H24: =$G24*Parâmetros!B$15 -> 402017.9364 | I24: =$G24*Parâmetros!C$15 -> 411192.5005 | J24: =$G24*Parâmetros!D$15 -> 420868.868 | K24: =$G24*Parâmetros!E$15 -> 430189.4362 | L24: =IF(C24<=VLOOKUP(E24,'Inputs - Simulador'!$C$5:$AQ$13,6,0),1,IF(C24<=VLOOKUP(E24,'Inputs - Simulador'!$C$5:$AQ$13,11,0),2,IF(C24<=VLOOKUP(E24,'Inputs - Simulador'!$C$5:$AQ$13,16,0),3,IF(C24<=VLOOKUP(E24,'Inputs - Simulador'!$C$5:$AQ$13,21,0),4,IF(C24<=VLOOKUP(E24,'Inputs - Simulador'!$C$5:$AQ$13,26,0),5,IF(C24<=VLOOKUP(E24,'Inputs - Simulador'!$C$5:$AQ$13,31,0),6,IF(C24<=VLOOKUP(E24,'Inputs - Simulador'!$C$5:$AQ$13,36,0),7,IF(C24<=VLOOKUP(E24,'Inputs - Simulador'!$C$5:$AQ$13,41,0),8,0)))))))) -> 4 | M24: 397696
A25: Agua | B25: COMERCIAL | C25: 23 | D25: Vol_NormalAguaCOMERCIAL23 | E25: COMERCIAL | F25: =IF(AND('Volume Medido 1'!$O$3,C25<=5),VLOOKUP("NORMAL"&A25&E25&C25,'Volume Medido 1'!$G$3:$I$449,3,0),M25) -> 374052 | G25: =$F25/Parâmetros!$B$5 -> 0.0004101920852 | H25: =$G25*Parâmetros!B$15 -> 378116.9867 | I25: =$G25*Parâmetros!C$15 -> 386746.1005 | J25: =$G25*Parâmetros!D$15 -> 395847.1844 | K25: =$G25*Parâmetros!E$15 -> 404613.622 | L25: =IF(C25<=VLOOKUP(E25,'Inputs - Simulador'!$C$5:$AQ$13,6,0),1,IF(C25<=VLOOKUP(E25,'Inputs - Simulador'!$C$5:$AQ$13,11,0),2,IF(C25<=VLOOKUP(E25,'Inputs - Simulador'!$C$5:$AQ$13,16,0),3,IF(C25<=VLOOKUP(E25,'Inputs - Simulador'!$C$5:$AQ$13,21,0),4,IF(C25<=VLOOKUP(E25,'Inputs - Simulador'!$C$5:$AQ$13,26,0),5,IF(C25<=VLOOKUP(E25,'Inputs - Simulador'!$C$5:$AQ$13,31,0),6,IF(C25<=VLOOKUP(E25,'Inputs - Simulador'!$C$5:$AQ$13,36,0),7,IF(C25<=VLOOKUP(E25,'Inputs - Simulador'!$C$5:$AQ$13,41,0),8,0)))))))) -> 4 | M25: 374052
A26: Agua | B26: COMERCIAL | C26: 24 | D26: Vol_NormalAguaCOMERCIAL24 | E26: COMERCIAL | F26: =IF(AND('Volume Medido 1'!$O$3,C26<=5),VLOOKUP("NORMAL"&A26&E26&C26,'Volume Medido 1'!$G$3:$I$449,3,0),M26) -> 342889 | G26: =$F26/Parâmetros!$B$5 -> 0.0003760181844 | H26: =$G26*Parâmetros!B$15 -> 346615.3248 | I26: =$G26*Parâmetros!C$15 -> 354525.5303 | J26: =$G26*Parâmetros!D$15 -> 362868.3851 | K26: =$G26*Parâmetros!E$15 -> 370904.4738 | L26: =IF(C26<=VLOOKUP(E26,'Inputs - Simulador'!$C$5:$AQ$13,6,0),1,IF(C26<=VLOOKUP(E26,'Inputs - Simulador'!$C$5:$AQ$13,11,0),2,IF(C26<=VLOOKUP(E26,'Inputs - Simulador'!$C$5:$AQ$13,16,0),3,IF(C26<=VLOOKUP(E26,'Inputs - Simulador'!$C$5:$AQ$13,21,0),4,IF(C26<=VLOOKUP(E26,'Inputs - Simulador'!$C$5:$AQ$13,26,0),5,IF(C26<=VLOOKUP(E26,'Inputs - Simulador'!$C$5:$AQ$13,31,0),6,IF(C26<=VLOOKUP(E26,'Inputs - Simulador'!$C$5:$AQ$13,36,0),7,IF(C26<=VLOOKUP(E26,'Inputs - Simulador'!$C$5:$AQ$13,41,0),8,0)))))))) -> 4 | M26: 342889
A27: Agua | B27: COMERCIAL | C27: 25 | D27: Vol_NormalAguaCOMERCIAL25 | E27: COMERCIAL | F27: =IF(AND('Volume Medido 1'!$O$3,C27<=5),VLOOKUP("NORMAL"&A27&E27&C27,'Volume Medido 1'!$G$3:$I$449,3,0),M27) -> 323323 | G27: =$F27/Parâmetros!$B$5 -> 0.0003545617603 | H27: =$G27*Parâmetros!B$15 -> 326836.6925 | I27: =$G27*Parâmetros!C$15 -> 334295.5243 | J27: =$G27*Parâmetros!D$15 -> 342162.3175 | K27: =$G27*Parâmetros!E$15 -> 349739.8493 | L27: =IF(C27<=VLOOKUP(E27,'Inputs - Simulador'!$C$5:$AQ$13,6,0),1,IF(C27<=VLOOKUP(E27,'Inputs - Simulador'!$C$5:$AQ$13,11,0),2,IF(C27<=VLOOKUP(E27,'Inputs - Simulador'!$C$5:$AQ$13,16,0),3,IF(C27<=VLOOKUP(E27,'Inputs - Simulador'!$C$5:$AQ$13,21,0),4,IF(C27<=VLOOKUP(E27,'Inputs - Simulador'!$C$5:$AQ$13,26,0),5,IF(C27<=VLOOKUP(E27,'Inputs - Simulador'!$C$5:$AQ$13,31,0),6,IF(C27<=VLOOKUP(E27,'Inputs - Simulador'!$C$5:$AQ$13,36,0),7,IF(C27<=VLOOKUP(E27,'Inputs - Simulador'!$C$5:$AQ$13,41,0),8,0)))))))) -> 4 | M27: 323323
A28: Agua | B28: COMERCIAL | C28: 26 | D28: Vol_NormalAguaCOMERCIAL26 | E28: COMERCIAL | F28: =IF(AND('Volume Medido 1'!$O$3,C28<=5),VLOOKUP("NORMAL"&A28&E28&C28,'Volume Medido 1'!$G$3:$I$449,3,0),M28) -> 309167 | G28: =$F28/Parâmetros!$B$5 -> 0.0003390380386 | H28: =$G28*Parâmetros!B$15 -> 312526.8531 | I28: =$G28*Parâmetros!C$15 -> 319659.116 | J28: =$G28*Parâmetros!D$15 -> 327181.4786 | K28: =$G28*Parâmetros!E$15 -> 334427.2445 | L28: =IF(C28<=VLOOKUP(E28,'Inputs - Simulador'!$C$5:$AQ$13,6,0),1,IF(C28<=VLOOKUP(E28,'Inputs - Simulador'!$C$5:$AQ$13,11,0),2,IF(C28<=VLOOKUP(E28,'Inputs - Simulador'!$C$5:$AQ$13,16,0),3,IF(C28<=VLOOKUP(E28,'Inputs - Simulador'!$C$5:$AQ$13,21,0),4,IF(C28<=VLOOKUP(E28,'Inputs - Simulador'!$C$5:$AQ$13,26,0),5,IF(C28<=VLOOKUP(E28,'Inputs - Simulador'!$C$5:$AQ$13,31,0),6,IF(C28<=VLOOKUP(E28,'Inputs - Simulador'!$C$5:$AQ$13,36,0),7,IF(C28<=VLOOKUP(E28,'Inputs - Simulador'!$C$5:$AQ$13,41,0),8,0)))))))) -> 4 | M28: 309167
A29: Agua | B29: COMERCIAL | C29: 27 | D29: Vol_NormalAguaCOMERCIAL27 | E29: COMERCIAL | F29: =IF(AND('Volume Medido 1'!$O$3,C29<=5),VLOOKUP("NORMAL"&A29&E29&C29,'Volume Medido 1'!$G$3:$I$449,3,0),M29) -> 281083 | G29: =$F29/Parâmetros!$B$5 -> 0.000308240624 | H29: =$G29*Parâmetros!B$15 -> 284137.6519 | I29: =$G29*Parâmetros!C$15 -> 290622.037 | J29: =$G29*Parâmetros!D$15 -> 297461.0859 | K29: =$G29*Parâmetros!E$15 -> 304048.6636 | L29: =IF(C29<=VLOOKUP(E29,'Inputs - Simulador'!$C$5:$AQ$13,6,0),1,IF(C29<=VLOOKUP(E29,'Inputs - Simulador'!$C$5:$AQ$13,11,0),2,IF(C29<=VLOOKUP(E29,'Inputs - Simulador'!$C$5:$AQ$13,16,0),3,IF(C29<=VLOOKUP(E29,'Inputs - Simulador'!$C$5:$AQ$13,21,0),4,IF(C29<=VLOOKUP(E29,'Inputs - Simulador'!$C$5:$AQ$13,26,0),5,IF(C29<=VLOOKUP(E29,'Inputs - Simulador'!$C$5:$AQ$13,31,0),6,IF(C29<=VLOOKUP(E29,'Inputs - Simulador'!$C$5:$AQ$13,36,0),7,IF(C29<=VLOOKUP(E29,'Inputs - Simulador'!$C$5:$AQ$13,41,0),8,0)))))))) -> 4 | M29: 281083
A30: Agua | B30: COMERCIAL | C30: 28 | D30: Vol_NormalAguaCOMERCIAL28 | E30: COMERCIAL | F30: =IF(AND('Volume Medido 1'!$O$3,C30<=5),VLOOKUP("NORMAL"&A30&E30&C30,'Volume Medido 1'!$G$3:$I$449,3,0),M30) -> 278198 | G30: =$F30/Parâmetros!$B$5 -> 0.0003050768816 | H30: =$G30*Parâmetros!B$15 -> 281221.2994 | I30: =$G30*Parâmetros!C$15 -> 287639.1295 | J30: =$G30*Parâmetros!D$15 -> 294407.9834 | K30: =$G30*Parâmetros!E$15 -> 300927.9469 | L30: =IF(C30<=VLOOKUP(E30,'Inputs - Simulador'!$C$5:$AQ$13,6,0),1,IF(C30<=VLOOKUP(E30,'Inputs - Simulador'!$C$5:$AQ$13,11,0),2,IF(C30<=VLOOKUP(E30,'Inputs - Simulador'!$C$5:$AQ$13,16,0),3,IF(C30<=VLOOKUP(E30,'Inputs - Simulador'!$C$5:$AQ$13,21,0),4,IF(C30<=VLOOKUP(E30,'Inputs - Simulador'!$C$5:$AQ$13,26,0),5,IF(C30<=VLOOKUP(E30,'Inputs - Simulador'!$C$5:$AQ$13,31,0),6,IF(C30<=VLOOKUP(E30,'Inputs - Simulador'!$C$5:$AQ$13,36,0),7,IF(C30<=VLOOKUP(E30,'Inputs - Simulador'!$C$5:$AQ$13,41,0),8,0)))))))) -> 4 | M30: 278198
A31: Agua | B31: COMERCIAL | C31: 29 | D31: Vol_NormalAguaCOMERCIAL29 | E31: COMERCIAL | F31: =IF(AND('Volume Medido 1'!$O$3,C31<=5),VLOOKUP("NORMAL"&A31&E31&C31,'Volume Medido 1'!$G$3:$I$449,3,0),M31) -> 260764 | G31: =$F31/Parâmetros!$B$5 -> 0.0002859584467 | H31: =$G31*Parâmetros!B$15 -> 263597.8365 | I31: =$G31*Parâmetros!C$15 -> 269613.4766 | J31: =$G31*Parâmetros!D$15 -> 275958.1427 | K31: =$G31*Parâmetros!E$15 -> 282069.5158 | L31: =IF(C31<=VLOOKUP(E31,'Inputs - Simulador'!$C$5:$AQ$13,6,0),1,IF(C31<=VLOOKUP(E31,'Inputs - Simulador'!$C$5:$AQ$13,11,0),2,IF(C31<=VLOOKUP(E31,'Inputs - Simulador'!$C$5:$AQ$13,16,0),3,IF(C31<=VLOOKUP(E31,'Inputs - Simulador'!$C$5:$AQ$13,21,0),4,IF(C31<=VLOOKUP(E31,'Inputs - Simulador'!$C$5:$AQ$13,26,0),5,IF(C31<=VLOOKUP(E31,'Inputs - Simulador'!$C$5:$AQ$13,31,0),6,IF(C31<=VLOOKUP(E31,'Inputs - Simulador'!$C$5:$AQ$13,36,0),7,IF(C31<=VLOOKUP(E31,'Inputs - Simulador'!$C$5:$AQ$13,41,0),8,0)))))))) -> 4 | M31: 260764
A32: Agua | B32: COMERCIAL | C32: 30 | D32: Vol_NormalAguaCOMERCIAL30 | E32: COMERCIAL | F32: =IF(AND('Volume Medido 1'!$O$3,C32<=5),VLOOKUP("NORMAL"&A32&E32&C32,'Volume Medido 1'!$G$3:$I$449,3,0),M32) -> 244489 | G32: =$F32/Parâmetros!$B$5 -> 0.0002681109919 | H32: =$G32*Parâmetros!B$15 -> 247145.9689 | I32: =$G32*Parâmetros!C$15 -> 252786.1564 | J32: =$G32*Parâmetros!D$15 -> 258734.8343 | K32: =$G32*Parâmetros!E$15 -> 264464.7798 | L32: =IF(C32<=VLOOKUP(E32,'Inputs - Simulador'!$C$5:$AQ$13,6,0),1,IF(C32<=VLOOKUP(E32,'Inputs - Simulador'!$C$5:$AQ$13,11,0),2,IF(C32<=VLOOKUP(E32,'Inputs - Simulador'!$C$5:$AQ$13,16,0),3,IF(C32<=VLOOKUP(E32,'Inputs - Simulador'!$C$5:$AQ$13,21,0),4,IF(C32<=VLOOKUP(E32,'Inputs - Simulador'!$C$5:$AQ$13,26,0),5,IF(C32<=VLOOKUP(E32,'Inputs - Simulador'!$C$5:$AQ$13,31,0),6,IF(C32<=VLOOKUP(E32,'Inputs - Simulador'!$C$5:$AQ$13,36,0),7,IF(C32<=VLOOKUP(E32,'Inputs - Simulador'!$C$5:$AQ$13,41,0),8,0)))))))) -> 4 | M32: 244489
A33: Agua | B33: COMERCIAL | C33: 31 | D33: Vol_NormalAguaCOMERCIAL31 | E33: COMERCIAL | F33: =IF(AND('Volume Medido 1'!$O$3,C33<=5),VLOOKUP("NORMAL"&A33&E33&C33,'Volume Medido 1'!$G$3:$I$449,3,0),M33) -> 231638 | G33: =$F33/Parâmetros!$B$5 -> 0.0002540183564 | H33: =$G33*Parâmetros!B$15 -> 234155.3115 | I33: =$G33*Parâmetros!C$15 -> 239499.0355 | J33: =$G33*Parâmetros!D$15 -> 245135.0349 | K33: =$G33*Parâmetros!E$15 -> 250563.7991 | L33: =IF(C33<=VLOOKUP(E33,'Inputs - Simulador'!$C$5:$AQ$13,6,0),1,IF(C33<=VLOOKUP(E33,'Inputs - Simulador'!$C$5:$AQ$13,11,0),2,IF(C33<=VLOOKUP(E33,'Inputs - Simulador'!$C$5:$AQ$13,16,0),3,IF(C33<=VLOOKUP(E33,'Inputs - Simulador'!$C$5:$AQ$13,21,0),4,IF(C33<=VLOOKUP(E33,'Inputs - Simulador'!$C$5:$AQ$13,26,0),5,IF(C33<=VLOOKUP(E33,'Inputs - Simulador'!$C$5:$AQ$13,31,0),6,IF(C33<=VLOOKUP(E33,'Inputs - Simulador'!$C$5:$AQ$13,36,0),7,IF(C33<=VLOOKUP(E33,'Inputs - Simulador'!$C$5:$AQ$13,41,0),8,0)))))))) -> 5 | M33: 231638
A34: Agua | B34: COMERCIAL | C34: 32 | D34: Vol_NormalAguaCOMERCIAL32 | E34: COMERCIAL | F34: =IF(AND('Volume Medido 1'!$O$3,C34<=5),VLOOKUP("NORMAL"&A34&E34&C34,'Volume Medido 1'!$G$3:$I$449,3,0),M34) -> 215385 | G34: =$F34/Parâmetros!$B$5 -> 0.0002361950271 | H34: =$G34*Parâmetros!B$15 -> 217725.683 | I34: =$G34*Parâmetros!C$15 -> 222694.4619 | J34: =$G34*Parâmetros!D$15 -> 227935.0085 | K34: =$G34*Parâmetros!E$15 -> 232982.8606 | L34: =IF(C34<=VLOOKUP(E34,'Inputs - Simulador'!$C$5:$AQ$13,6,0),1,IF(C34<=VLOOKUP(E34,'Inputs - Simulador'!$C$5:$AQ$13,11,0),2,IF(C34<=VLOOKUP(E34,'Inputs - Simulador'!$C$5:$AQ$13,16,0),3,IF(C34<=VLOOKUP(E34,'Inputs - Simulador'!$C$5:$AQ$13,21,0),4,IF(C34<=VLOOKUP(E34,'Inputs - Simulador'!$C$5:$AQ$13,26,0),5,IF(C34<=VLOOKUP(E34,'Inputs - Simulador'!$C$5:$AQ$13,31,0),6,IF(C34<=VLOOKUP(E34,'Inputs - Simulador'!$C$5:$AQ$13,36,0),7,IF(C34<=VLOOKUP(E34,'Inputs - Simulador'!$C$5:$AQ$13,41,0),8,0)))))))) -> 5 | M34: 215385
A35: Agua | B35: COMERCIAL | C35: 33 | D35: Vol_NormalAguaCOMERCIAL33 | E35: COMERCIAL | F35: =IF(AND('Volume Medido 1'!$O$3,C35<=5),VLOOKUP("NORMAL"&A35&E35&C35,'Volume Medido 1'!$G$3:$I$449,3,0),M35) -> 207781 | G35: =$F35/Parâmetros!$B$5 -> 0.0002278563453 | H35: =$G35*Parâmetros!B$15 -> 210039.047 | I35: =$G35*Parâmetros!C$15 -> 214832.407 | J35: =$G35*Parâmetros!D$15 -> 219887.9402 | K35: =$G35*Parâmetros!E$15 -> 224757.5818 | L35: =IF(C35<=VLOOKUP(E35,'Inputs - Simulador'!$C$5:$AQ$13,6,0),1,IF(C35<=VLOOKUP(E35,'Inputs - Simulador'!$C$5:$AQ$13,11,0),2,IF(C35<=VLOOKUP(E35,'Inputs - Simulador'!$C$5:$AQ$13,16,0),3,IF(C35<=VLOOKUP(E35,'Inputs - Simulador'!$C$5:$AQ$13,21,0),4,IF(C35<=VLOOKUP(E35,'Inputs - Simulador'!$C$5:$AQ$13,26,0),5,IF(C35<=VLOOKUP(E35,'Inputs - Simulador'!$C$5:$AQ$13,31,0),6,IF(C35<=VLOOKUP(E35,'Inputs - Simulador'!$C$5:$AQ$13,36,0),7,IF(C35<=VLOOKUP(E35,'Inputs - Simulador'!$C$5:$AQ$13,41,0),8,0)))))))) -> 5 | M35: 207781
A36: Agua | B36: COMERCIAL | C36: 34 | D36: Vol_NormalAguaCOMERCIAL34 | E36: COMERCIAL | F36: =IF(AND('Volume Medido 1'!$O$3,C36<=5),VLOOKUP("NORMAL"&A36&E36&C36,'Volume Medido 1'!$G$3:$I$449,3,0),M36) -> 202957 | G36: =$F36/Parâmetros!$B$5 -> 0.000222566261 | H36: =$G36*Parâmetros!B$15 -> 205162.6225 | I36: =$G36*Parâmetros!C$15 -> 209844.6963 | J36: =$G36*Parâmetros!D$15 -> 214782.8564 | K36: =$G36*Parâmetros!E$15 -> 219539.4407 | L36: =IF(C36<=VLOOKUP(E36,'Inputs - Simulador'!$C$5:$AQ$13,6,0),1,IF(C36<=VLOOKUP(E36,'Inputs - Simulador'!$C$5:$AQ$13,11,0),2,IF(C36<=VLOOKUP(E36,'Inputs - Simulador'!$C$5:$AQ$13,16,0),3,IF(C36<=VLOOKUP(E36,'Inputs - Simulador'!$C$5:$AQ$13,21,0),4,IF(C36<=VLOOKUP(E36,'Inputs - Simulador'!$C$5:$AQ$13,26,0),5,IF(C36<=VLOOKUP(E36,'Inputs - Simulador'!$C$5:$AQ$13,31,0),6,IF(C36<=VLOOKUP(E36,'Inputs - Simulador'!$C$5:$AQ$13,36,0),7,IF(C36<=VLOOKUP(E36,'Inputs - Simulador'!$C$5:$AQ$13,41,0),8,0)))))))) -> 5 | M36: 202957
A37: Agua | B37: COMERCIAL | C37: 35 | D37: Vol_NormalAguaCOMERCIAL35 | E37: COMERCIAL | F37: =IF(AND('Volume Medido 1'!$O$3,C37<=5),VLOOKUP("NORMAL"&A37&E37&C37,'Volume Medido 1'!$G$3:$I$449,3,0),M37) -> 190064 | G37: =$F37/Parâmetros!$B$5 -> 0.0002084275675 | H37: =$G37*Parâmetros!B$15 -> 192129.5086 | I37: =$G37*Parâmetros!C$15 -> 196514.15 | J37: =$G37*Parâmetros!D$15 -> 201138.6097 | K37: =$G37*Parâmetros!E$15 -> 205593.0284 | L37: =IF(C37<=VLOOKUP(E37,'Inputs - Simulador'!$C$5:$AQ$13,6,0),1,IF(C37<=VLOOKUP(E37,'Inputs - Simulador'!$C$5:$AQ$13,11,0),2,IF(C37<=VLOOKUP(E37,'Inputs - Simulador'!$C$5:$AQ$13,16,0),3,IF(C37<=VLOOKUP(E37,'Inputs - Simulador'!$C$5:$AQ$13,21,0),4,IF(C37<=VLOOKUP(E37,'Inputs - Simulador'!$C$5:$AQ$13,26,0),5,IF(C37<=VLOOKUP(E37,'Inputs - Simulador'!$C$5:$AQ$13,31,0),6,IF(C37<=VLOOKUP(E37,'Inputs - Simulador'!$C$5:$AQ$13,36,0),7,IF(C37<=VLOOKUP(E37,'Inputs - Simulador'!$C$5:$AQ$13,41,0),8,0)))))))) -> 5 | M37: 190064
A38: Agua | B38: COMERCIAL | C38: 36 | D38: Vol_NormalAguaCOMERCIAL36 | E38: COMERCIAL | F38: =IF(AND('Volume Medido 1'!$O$3,C38<=5),VLOOKUP("NORMAL"&A38&E38&C38,'Volume Medido 1'!$G$3:$I$449,3,0),M38) -> 186075 | G38: =$F38/Parâmetros!$B$5 -> 0.0002040531591 | H38: =$G38*Parâmetros!B$15 -> 188097.1584 | I38: =$G38*Parâmetros!C$15 -> 192389.7764 | J38: =$G38*Parâmetros!D$15 -> 196917.1795 | K38: =$G38*Parâmetros!E$15 -> 201278.1103 | L38: =IF(C38<=VLOOKUP(E38,'Inputs - Simulador'!$C$5:$AQ$13,6,0),1,IF(C38<=VLOOKUP(E38,'Inputs - Simulador'!$C$5:$AQ$13,11,0),2,IF(C38<=VLOOKUP(E38,'Inputs - Simulador'!$C$5:$AQ$13,16,0),3,IF(C38<=VLOOKUP(E38,'Inputs - Simulador'!$C$5:$AQ$13,21,0),4,IF(C38<=VLOOKUP(E38,'Inputs - Simulador'!$C$5:$AQ$13,26,0),5,IF(C38<=VLOOKUP(E38,'Inputs - Simulador'!$C$5:$AQ$13,31,0),6,IF(C38<=VLOOKUP(E38,'Inputs - Simulador'!$C$5:$AQ$13,36,0),7,IF(C38<=VLOOKUP(E38,'Inputs - Simulador'!$C$5:$AQ$13,41,0),8,0)))))))) -> 5 | M38: 186075
A39: Agua | B39: COMERCIAL | C39: 37 | D39: Vol_NormalAguaCOMERCIAL37 | E39: COMERCIAL | F39: =IF(AND('Volume Medido 1'!$O$3,C39<=5),VLOOKUP("NORMAL"&A39&E39&C39,'Volume Medido 1'!$G$3:$I$449,3,0),M39) -> 180296 | G39: =$F39/Parâmetros!$B$5 -> 0.0001977158048 | H39: =$G39*Parâmetros!B$15 -> 182255.3555 | I39: =$G39*Parâmetros!C$15 -> 186414.6561 | J39: =$G39*Parâmetros!D$15 -> 190801.4499 | K39: =$G39*Parâmetros!E$15 -> 195026.9417 | L39: =IF(C39<=VLOOKUP(E39,'Inputs - Simulador'!$C$5:$AQ$13,6,0),1,IF(C39<=VLOOKUP(E39,'Inputs - Simulador'!$C$5:$AQ$13,11,0),2,IF(C39<=VLOOKUP(E39,'Inputs - Simulador'!$C$5:$AQ$13,16,0),3,IF(C39<=VLOOKUP(E39,'Inputs - Simulador'!$C$5:$AQ$13,21,0),4,IF(C39<=VLOOKUP(E39,'Inputs - Simulador'!$C$5:$AQ$13,26,0),5,IF(C39<=VLOOKUP(E39,'Inputs - Simulador'!$C$5:$AQ$13,31,0),6,IF(C39<=VLOOKUP(E39,'Inputs - Simulador'!$C$5:$AQ$13,36,0),7,IF(C39<=VLOOKUP(E39,'Inputs - Simulador'!$C$5:$AQ$13,41,0),8,0)))))))) -> 5 | M39: 180296
A40: Agua | B40: COMERCIAL | C40: 38 | D40: Vol_NormalAguaCOMERCIAL38 | E40: COMERCIAL | F40: =IF(AND('Volume Medido 1'!$O$3,C40<=5),VLOOKUP("NORMAL"&A40&E40&C40,'Volume Medido 1'!$G$3:$I$449,3,0),M40) -> 172527 | G40: =$F40/Parâmetros!$B$5 -> 0.000189196181 | H40: =$G40*Parâmetros!B$15 -> 174401.9264 | I40: =$G40*Parâmetros!C$15 -> 178382.0017 | J40: =$G40*Parâmetros!D$15 -> 182579.7675 | K40: =$G40*Parâmetros!E$15 -> 186623.1817 | L40: =IF(C40<=VLOOKUP(E40,'Inputs - Simulador'!$C$5:$AQ$13,6,0),1,IF(C40<=VLOOKUP(E40,'Inputs - Simulador'!$C$5:$AQ$13,11,0),2,IF(C40<=VLOOKUP(E40,'Inputs - Simulador'!$C$5:$AQ$13,16,0),3,IF(C40<=VLOOKUP(E40,'Inputs - Simulador'!$C$5:$AQ$13,21,0),4,IF(C40<=VLOOKUP(E40,'Inputs - Simulador'!$C$5:$AQ$13,26,0),5,IF(C40<=VLOOKUP(E40,'Inputs - Simulador'!$C$5:$AQ$13,31,0),6,IF(C40<=VLOOKUP(E40,'Inputs - Simulador'!$C$5:$AQ$13,36,0),7,IF(C40<=VLOOKUP(E40,'Inputs - Simulador'!$C$5:$AQ$13,41,0),8,0)))))))) -> 5 | M40: 172527
A41: Agua | B41: COMERCIAL | C41: 39 | D41: Vol_NormalAguaCOMERCIAL39 | E41: COMERCIAL | F41: =IF(AND('Volume Medido 1'!$O$3,C41<=5),VLOOKUP("NORMAL"&A41&E41&C41,'Volume Medido 1'!$G$3:$I$449,3,0),M41) -> 167231 | G41: =$F41/Parâmetros!$B$5 -> 0.0001833884931 | H41: =$G41*Parâmetros!B$15 -> 169048.3724 | I41: =$G41*Parâmetros!C$15 -> 172906.2728 | J41: =$G41*Parâmetros!D$15 -> 176975.1812 | K41: =$G41*Parâmetros!E$15 -> 180894.4762 | L41: =IF(C41<=VLOOKUP(E41,'Inputs - Simulador'!$C$5:$AQ$13,6,0),1,IF(C41<=VLOOKUP(E41,'Inputs - Simulador'!$C$5:$AQ$13,11,0),2,IF(C41<=VLOOKUP(E41,'Inputs - Simulador'!$C$5:$AQ$13,16,0),3,IF(C41<=VLOOKUP(E41,'Inputs - Simulador'!$C$5:$AQ$13,21,0),4,IF(C41<=VLOOKUP(E41,'Inputs - Simulador'!$C$5:$AQ$13,26,0),5,IF(C41<=VLOOKUP(E41,'Inputs - Simulador'!$C$5:$AQ$13,31,0),6,IF(C41<=VLOOKUP(E41,'Inputs - Simulador'!$C$5:$AQ$13,36,0),7,IF(C41<=VLOOKUP(E41,'Inputs - Simulador'!$C$5:$AQ$13,41,0),8,0)))))))) -> 5 | M41: 167231
A42: Agua | B42: COMERCIAL | C42: 40 | D42: Vol_NormalAguaCOMERCIAL40 | E42: COMERCIAL | F42: =IF(AND('Volume Medido 1'!$O$3,C42<=5),VLOOKUP("NORMAL"&A42&E42&C42,'Volume Medido 1'!$G$3:$I$449,3,0),M42) -> 168968 | G42: =$F42/Parâmetros!$B$5 -> 0.0001852933182 | H42: =$G42*Parâmetros!B$15 -> 170804.2492 | I42: =$G42*Parâmetros!C$15 -> 174702.2209 | J42: =$G42*Parâmetros!D$15 -> 178813.3924 | K42: =$G42*Parâmetros!E$15 -> 182773.3964 | L42: =IF(C42<=VLOOKUP(E42,'Inputs - Simulador'!$C$5:$AQ$13,6,0),1,IF(C42<=VLOOKUP(E42,'Inputs - Simulador'!$C$5:$AQ$13,11,0),2,IF(C42<=VLOOKUP(E42,'Inputs - Simulador'!$C$5:$AQ$13,16,0),3,IF(C42<=VLOOKUP(E42,'Inputs - Simulador'!$C$5:$AQ$13,21,0),4,IF(C42<=VLOOKUP(E42,'Inputs - Simulador'!$C$5:$AQ$13,26,0),5,IF(C42<=VLOOKUP(E42,'Inputs - Simulador'!$C$5:$AQ$13,31,0),6,IF(C42<=VLOOKUP(E42,'Inputs - Simulador'!$C$5:$AQ$13,36,0),7,IF(C42<=VLOOKUP(E42,'Inputs - Simulador'!$C$5:$AQ$13,41,0),8,0)))))))) -> 5 | M42: 168968
A43: Agua | B43: COMERCIAL | C43: 41 | D43: Vol_NormalAguaCOMERCIAL41 | E43: COMERCIAL | F43: =IF(AND('Volume Medido 1'!$O$3,C43<=5),VLOOKUP("NORMAL"&A43&E43&C43,'Volume Medido 1'!$G$3:$I$449,3,0),M43) -> 157120 | G43: =$F43/Parâmetros!$B$5 -> 0.0001723005904 | H43: =$G43*Parâmetros!B$15 -> 158827.4918 | I43: =$G43*Parâmetros!C$15 -> 162452.1385 | J43: =$G43*Parâmetros!D$15 -> 166275.0356 | K43: =$G43*Parâmetros!E$15 -> 169957.365 | L43: =IF(C43<=VLOOKUP(E43,'Inputs - Simulador'!$C$5:$AQ$13,6,0),1,IF(C43<=VLOOKUP(E43,'Inputs - Simulador'!$C$5:$AQ$13,11,0),2,IF(C43<=VLOOKUP(E43,'Inputs - Simulador'!$C$5:$AQ$13,16,0),3,IF(C43<=VLOOKUP(E43,'Inputs - Simulador'!$C$5:$AQ$13,21,0),4,IF(C43<=VLOOKUP(E43,'Inputs - Simulador'!$C$5:$AQ$13,26,0),5,IF(C43<=VLOOKUP(E43,'Inputs - Simulador'!$C$5:$AQ$13,31,0),6,IF(C43<=VLOOKUP(E43,'Inputs - Simulador'!$C$5:$AQ$13,36,0),7,IF(C43<=VLOOKUP(E43,'Inputs - Simulador'!$C$5:$AQ$13,41,0),8,0)))))))) -> 5 | M43: 157120
A44: Agua | B44: COMERCIAL | C44: 42 | D44: Vol_NormalAguaCOMERCIAL42 | E44: COMERCIAL | F44: =IF(AND('Volume Medido 1'!$O$3,C44<=5),VLOOKUP("NORMAL"&A44&E44&C44,'Volume Medido 1'!$G$3:$I$449,3,0),M44) -> 149876 | G44: =$F44/Parâmetros!$B$5 -> 0.000164356691 | H44: =$G44*Parâmetros!B$15 -> 151504.7681 | I44: =$G44*Parâmetros!C$15 -> 154962.3009 | J44: =$G44*Parâmetros!D$15 -> 158608.9437 | K44: =$G44*Parâmetros!E$15 -> 162121.4997 | L44: =IF(C44<=VLOOKUP(E44,'Inputs - Simulador'!$C$5:$AQ$13,6,0),1,IF(C44<=VLOOKUP(E44,'Inputs - Simulador'!$C$5:$AQ$13,11,0),2,IF(C44<=VLOOKUP(E44,'Inputs - Simulador'!$C$5:$AQ$13,16,0),3,IF(C44<=VLOOKUP(E44,'Inputs - Simulador'!$C$5:$AQ$13,21,0),4,IF(C44<=VLOOKUP(E44,'Inputs - Simulador'!$C$5:$AQ$13,26,0),5,IF(C44<=VLOOKUP(E44,'Inputs - Simulador'!$C$5:$AQ$13,31,0),6,IF(C44<=VLOOKUP(E44,'Inputs - Simulador'!$C$5:$AQ$13,36,0),7,IF(C44<=VLOOKUP(E44,'Inputs - Simulador'!$C$5:$AQ$13,41,0),8,0)))))))) -> 5 | M44: 149876
A45: Agua | B45: COMERCIAL | C45: 43 | D45: Vol_NormalAguaCOMERCIAL43 | E45: COMERCIAL | F45: =IF(AND('Volume Medido 1'!$O$3,C45<=5),VLOOKUP("NORMAL"&A45&E45&C45,'Volume Medido 1'!$G$3:$I$449,3,0),M45) -> 141710 | G45: =$F45/Parâmetros!$B$5 -> 0.0001554017099 | H45: =$G45*Parâmetros!B$15 -> 143250.0246 | I45: =$G45*Parâmetros!C$15 -> 146519.1736 | J45: =$G45*Parâmetros!D$15 -> 149967.1289 | K45: =$G45*Parâmetros!E$15 -> 153288.3032 | L45: =IF(C45<=VLOOKUP(E45,'Inputs - Simulador'!$C$5:$AQ$13,6,0),1,IF(C45<=VLOOKUP(E45,'Inputs - Simulador'!$C$5:$AQ$13,11,0),2,IF(C45<=VLOOKUP(E45,'Inputs - Simulador'!$C$5:$AQ$13,16,0),3,IF(C45<=VLOOKUP(E45,'Inputs - Simulador'!$C$5:$AQ$13,21,0),4,IF(C45<=VLOOKUP(E45,'Inputs - Simulador'!$C$5:$AQ$13,26,0),5,IF(C45<=VLOOKUP(E45,'Inputs - Simulador'!$C$5:$AQ$13,31,0),6,IF(C45<=VLOOKUP(E45,'Inputs - Simulador'!$C$5:$AQ$13,36,0),7,IF(C45<=VLOOKUP(E45,'Inputs - Simulador'!$C$5:$AQ$13,41,0),8,0)))))))) -> 5 | M45: 141710
A46: Agua | B46: COMERCIAL | C46: 44 | D46: Vol_NormalAguaCOMERCIAL44 | E46: COMERCIAL | F46: =IF(AND('Volume Medido 1'!$O$3,C46<=5),VLOOKUP("NORMAL"&A46&E46&C46,'Volume Medido 1'!$G$3:$I$449,3,0),M46) -> 144118 | G46: =$F46/Parâmetros!$B$5 -> 0.0001580423656 | H46: =$G46*Parâmetros!B$15 -> 145684.1934 | I46: =$G46*Parâmetros!C$15 -> 149008.8932 | J46: =$G46*Parâmetros!D$15 -> 152515.4377 | K46: =$G46*Parâmetros!E$15 -> 155893.0469 | L46: =IF(C46<=VLOOKUP(E46,'Inputs - Simulador'!$C$5:$AQ$13,6,0),1,IF(C46<=VLOOKUP(E46,'Inputs - Simulador'!$C$5:$AQ$13,11,0),2,IF(C46<=VLOOKUP(E46,'Inputs - Simulador'!$C$5:$AQ$13,16,0),3,IF(C46<=VLOOKUP(E46,'Inputs - Simulador'!$C$5:$AQ$13,21,0),4,IF(C46<=VLOOKUP(E46,'Inputs - Simulador'!$C$5:$AQ$13,26,0),5,IF(C46<=VLOOKUP(E46,'Inputs - Simulador'!$C$5:$AQ$13,31,0),6,IF(C46<=VLOOKUP(E46,'Inputs - Simulador'!$C$5:$AQ$13,36,0),7,IF(C46<=VLOOKUP(E46,'Inputs - Simulador'!$C$5:$AQ$13,41,0),8,0)))))))) -> 5 | M46: 144118
A47: Agua | B47: COMERCIAL | C47: 45 | D47: Vol_NormalAguaCOMERCIAL45 | E47: COMERCIAL | F47: =IF(AND('Volume Medido 1'!$O$3,C47<=5),VLOOKUP("NORMAL"&A47&E47&C47,'Volume Medido 1'!$G$3:$I$449,3,0),M47) -> 137815 | G47: =$F47/Parâmetros!$B$5 -> 0.0001511303836 | H47: =$G47*Parâmetros!B$15 -> 139312.6959 | I47: =$G47*Parâmetros!C$15 -> 142491.99 | J47: =$G47*Parâmetros!D$15 -> 145845.1758 | K47: =$G47*Parâmetros!E$15 -> 149075.0653 | L47: =IF(C47<=VLOOKUP(E47,'Inputs - Simulador'!$C$5:$AQ$13,6,0),1,IF(C47<=VLOOKUP(E47,'Inputs - Simulador'!$C$5:$AQ$13,11,0),2,IF(C47<=VLOOKUP(E47,'Inputs - Simulador'!$C$5:$AQ$13,16,0),3,IF(C47<=VLOOKUP(E47,'Inputs - Simulador'!$C$5:$AQ$13,21,0),4,IF(C47<=VLOOKUP(E47,'Inputs - Simulador'!$C$5:$AQ$13,26,0),5,IF(C47<=VLOOKUP(E47,'Inputs - Simulador'!$C$5:$AQ$13,31,0),6,IF(C47<=VLOOKUP(E47,'Inputs - Simulador'!$C$5:$AQ$13,36,0),7,IF(C47<=VLOOKUP(E47,'Inputs - Simulador'!$C$5:$AQ$13,41,0),8,0)))))))) -> 5 | M47: 137815
A48: Agua | B48: COMERCIAL | C48: 46 | D48: Vol_NormalAguaCOMERCIAL46 | E48: COMERCIAL | F48: =IF(AND('Volume Medido 1'!$O$3,C48<=5),VLOOKUP("NORMAL"&A48&E48&C48,'Volume Medido 1'!$G$3:$I$449,3,0),M48) -> 133022 | G48: =$F48/Parâmetros!$B$5 -> 0.0001458742944 | H48: =$G48*Parâmetros!B$15 -> 134467.6083 | I48: =$G48*Parâmetros!C$15 -> 137536.3313 | J48: =$G48*Parâmetros!D$15 -> 140772.8983 | K48: =$G48*Parâmetros!E$15 -> 143890.457 | L48: =IF(C48<=VLOOKUP(E48,'Inputs - Simulador'!$C$5:$AQ$13,6,0),1,IF(C48<=VLOOKUP(E48,'Inputs - Simulador'!$C$5:$AQ$13,11,0),2,IF(C48<=VLOOKUP(E48,'Inputs - Simulador'!$C$5:$AQ$13,16,0),3,IF(C48<=VLOOKUP(E48,'Inputs - Simulador'!$C$5:$AQ$13,21,0),4,IF(C48<=VLOOKUP(E48,'Inputs - Simulador'!$C$5:$AQ$13,26,0),5,IF(C48<=VLOOKUP(E48,'Inputs - Simulador'!$C$5:$AQ$13,31,0),6,IF(C48<=VLOOKUP(E48,'Inputs - Simulador'!$C$5:$AQ$13,36,0),7,IF(C48<=VLOOKUP(E48,'Inputs - Simulador'!$C$5:$AQ$13,41,0),8,0)))))))) -> 5 | M48: 133022
A49: Agua | B49: COMERCIAL | C49: 47 | D49: Vol_NormalAguaCOMERCIAL47 | E49: COMERCIAL | F49: =IF(AND('Volume Medido 1'!$O$3,C49<=5),VLOOKUP("NORMAL"&A49&E49&C49,'Volume Medido 1'!$G$3:$I$449,3,0),M49) -> 123370 | G49: =$F49/Parâmetros!$B$5 -> 0.0001352897393 | H49: =$G49*Parâmetros!B$15 -> 124710.7158 | I49: =$G49*Parâmetros!C$15 -> 127556.774 | J49: =$G49*Parâmetros!D$15 -> 130558.4976 | K49: =$G49*Parâmetros!E$15 -> 133449.848 | L49: =IF(C49<=VLOOKUP(E49,'Inputs - Simulador'!$C$5:$AQ$13,6,0),1,IF(C49<=VLOOKUP(E49,'Inputs - Simulador'!$C$5:$AQ$13,11,0),2,IF(C49<=VLOOKUP(E49,'Inputs - Simulador'!$C$5:$AQ$13,16,0),3,IF(C49<=VLOOKUP(E49,'Inputs - Simulador'!$C$5:$AQ$13,21,0),4,IF(C49<=VLOOKUP(E49,'Inputs - Simulador'!$C$5:$AQ$13,26,0),5,IF(C49<=VLOOKUP(E49,'Inputs - Simulador'!$C$5:$AQ$13,31,0),6,IF(C49<=VLOOKUP(E49,'Inputs - Simulador'!$C$5:$AQ$13,36,0),7,IF(C49<=VLOOKUP(E49,'Inputs - Simulador'!$C$5:$AQ$13,41,0),8,0)))))))) -> 5 | M49: 123370
A50: Agua | B50: COMERCIAL | C50: 48 | D50: Vol_NormalAguaCOMERCIAL48 | E50: COMERCIAL | F50: =IF(AND('Volume Medido 1'!$O$3,C50<=5),VLOOKUP("NORMAL"&A50&E50&C50,'Volume Medido 1'!$G$3:$I$449,3,0),M50) -> 127852 | G50: =$F50/Parâmetros!$B$5 -> 0.0001402047803 | H50: =$G50*Parâmetros!B$15 -> 129241.4236 | I50: =$G50*Parâmetros!C$15 -> 132190.8784 | J50: =$G50*Parâmetros!D$15 -> 135301.6538 | K50: =$G50*Parâmetros!E$15 -> 138298.0463 | L50: =IF(C50<=VLOOKUP(E50,'Inputs - Simulador'!$C$5:$AQ$13,6,0),1,IF(C50<=VLOOKUP(E50,'Inputs - Simulador'!$C$5:$AQ$13,11,0),2,IF(C50<=VLOOKUP(E50,'Inputs - Simulador'!$C$5:$AQ$13,16,0),3,IF(C50<=VLOOKUP(E50,'Inputs - Simulador'!$C$5:$AQ$13,21,0),4,IF(C50<=VLOOKUP(E50,'Inputs - Simulador'!$C$5:$AQ$13,26,0),5,IF(C50<=VLOOKUP(E50,'Inputs - Simulador'!$C$5:$AQ$13,31,0),6,IF(C50<=VLOOKUP(E50,'Inputs - Simulador'!$C$5:$AQ$13,36,0),7,IF(C50<=VLOOKUP(E50,'Inputs - Simulador'!$C$5:$AQ$13,41,0),8,0)))))))) -> 5 | M50: 127852
A51: Agua | B51: COMERCIAL | C51: 49 | D51: Vol_NormalAguaCOMERCIAL49 | E51: COMERCIAL | F51: =IF(AND('Volume Medido 1'!$O$3,C51<=5),VLOOKUP("NORMAL"&A51&E51&C51,'Volume Medido 1'!$G$3:$I$449,3,0),M51) -> 120917 | G51: =$F51/Parâmetros!$B$5 -> 0.0001325997358 | H51: =$G51*Parâmetros!B$15 -> 122231.0579 | I51: =$G51*Parâmetros!C$15 -> 125020.5272 | J51: =$G51*Parâmetros!D$15 -> 127962.5667 | K51: =$G51*Parâmetros!E$15 -> 130796.4276 | L51: =IF(C51<=VLOOKUP(E51,'Inputs - Simulador'!$C$5:$AQ$13,6,0),1,IF(C51<=VLOOKUP(E51,'Inputs - Simulador'!$C$5:$AQ$13,11,0),2,IF(C51<=VLOOKUP(E51,'Inputs - Simulador'!$C$5:$AQ$13,16,0),3,IF(C51<=VLOOKUP(E51,'Inputs - Simulador'!$C$5:$AQ$13,21,0),4,IF(C51<=VLOOKUP(E51,'Inputs - Simulador'!$C$5:$AQ$13,26,0),5,IF(C51<=VLOOKUP(E51,'Inputs - Simulador'!$C$5:$AQ$13,31,0),6,IF(C51<=VLOOKUP(E51,'Inputs - Simulador'!$C$5:$AQ$13,36,0),7,IF(C51<=VLOOKUP(E51,'Inputs - Simulador'!$C$5:$AQ$13,41,0),8,0)))))))) -> 5 | M51: 120917
A52: Agua | B52: COMERCIAL | C52: 50 | D52: Vol_NormalAguaCOMERCIAL50 | E52: COMERCIAL | F52: =IF(AND('Volume Medido 1'!$O$3,C52<=5),VLOOKUP("NORMAL"&A52&E52&C52,'Volume Medido 1'!$G$3:$I$449,3,0),M52) -> 118779 | G52: =$F52/Parâmetros!$B$5 -> 0.0001302551669 | H52: =$G52*Parâmetros!B$15 -> 120069.8234 | I52: =$G52*Parâmetros!C$15 -> 122809.9705 | J52: =$G52*Parâmetros!D$15 -> 125699.9901 | K52: =$G52*Parâmetros!E$15 -> 128483.744 | L52: =IF(C52<=VLOOKUP(E52,'Inputs - Simulador'!$C$5:$AQ$13,6,0),1,IF(C52<=VLOOKUP(E52,'Inputs - Simulador'!$C$5:$AQ$13,11,0),2,IF(C52<=VLOOKUP(E52,'Inputs - Simulador'!$C$5:$AQ$13,16,0),3,IF(C52<=VLOOKUP(E52,'Inputs - Simulador'!$C$5:$AQ$13,21,0),4,IF(C52<=VLOOKUP(E52,'Inputs - Simulador'!$C$5:$AQ$13,26,0),5,IF(C52<=VLOOKUP(E52,'Inputs - Simulador'!$C$5:$AQ$13,31,0),6,IF(C52<=VLOOKUP(E52,'Inputs - Simulador'!$C$5:$AQ$13,36,0),7,IF(C52<=VLOOKUP(E52,'Inputs - Simulador'!$C$5:$AQ$13,41,0),8,0)))))))) -> 5 | M52: 118779
A53: Agua | B53: COMERCIAL | C53: 51 | D53: Vol_NormalAguaCOMERCIAL51 | E53: COMERCIAL | F53: =IF(AND('Volume Medido 1'!$O$3,C53<=5),VLOOKUP("NORMAL"&A53&E53&C53,'Volume Medido 1'!$G$3:$I$449,3,0),M53) -> 110918 | G53: =$F53/Parâmetros!$B$5 -> 0.0001216346543 | H53: =$G53*Parâmetros!B$15 -> 112123.3944 | I53: =$G53*Parâmetros!C$15 -> 114682.1939 | J53: =$G53*Parâmetros!D$15 -> 117380.947 | K53: =$G53*Parâmetros!E$15 -> 119980.4672 | L53: =IF(C53<=VLOOKUP(E53,'Inputs - Simulador'!$C$5:$AQ$13,6,0),1,IF(C53<=VLOOKUP(E53,'Inputs - Simulador'!$C$5:$AQ$13,11,0),2,IF(C53<=VLOOKUP(E53,'Inputs - Simulador'!$C$5:$AQ$13,16,0),3,IF(C53<=VLOOKUP(E53,'Inputs - Simulador'!$C$5:$AQ$13,21,0),4,IF(C53<=VLOOKUP(E53,'Inputs - Simulador'!$C$5:$AQ$13,26,0),5,IF(C53<=VLOOKUP(E53,'Inputs - Simulador'!$C$5:$AQ$13,31,0),6,IF(C53<=VLOOKUP(E53,'Inputs - Simulador'!$C$5:$AQ$13,36,0),7,IF(C53<=VLOOKUP(E53,'Inputs - Simulador'!$C$5:$AQ$13,41,0),8,0)))))))) -> 6 | M53: 110918
A54: Agua | B54: COMERCIAL | C54: 52 | D54: Vol_NormalAguaCOMERCIAL52 | E54: COMERCIAL | F54: =IF(AND('Volume Medido 1'!$O$3,C54<=5),VLOOKUP("NORMAL"&A54&E54&C54,'Volume Medido 1'!$G$3:$I$449,3,0),M54) -> 111159 | G54: =$F54/Parâmetros!$B$5 -> 0.0001218989392 | H54: =$G54*Parâmetros!B$15 -> 112367.0135 | I54: =$G54*Parâmetros!C$15 -> 114931.3726 | J54: =$G54*Parâmetros!D$15 -> 117635.9896 | K54: =$G54*Parâmetros!E$15 -> 120241.1579 | L54: =IF(C54<=VLOOKUP(E54,'Inputs - Simulador'!$C$5:$AQ$13,6,0),1,IF(C54<=VLOOKUP(E54,'Inputs - Simulador'!$C$5:$AQ$13,11,0),2,IF(C54<=VLOOKUP(E54,'Inputs - Simulador'!$C$5:$AQ$13,16,0),3,IF(C54<=VLOOKUP(E54,'Inputs - Simulador'!$C$5:$AQ$13,21,0),4,IF(C54<=VLOOKUP(E54,'Inputs - Simulador'!$C$5:$AQ$13,26,0),5,IF(C54<=VLOOKUP(E54,'Inputs - Simulador'!$C$5:$AQ$13,31,0),6,IF(C54<=VLOOKUP(E54,'Inputs - Simulador'!$C$5:$AQ$13,36,0),7,IF(C54<=VLOOKUP(E54,'Inputs - Simulador'!$C$5:$AQ$13,41,0),8,0)))))))) -> 6 | M54: 111159
A55: Agua | B55: COMERCIAL | C55: 53 | D55: Vol_NormalAguaCOMERCIAL53 | E55: COMERCIAL | F55: =IF(AND('Volume Medido 1'!$O$3,C55<=5),VLOOKUP("NORMAL"&A55&E55&C55,'Volume Medido 1'!$G$3:$I$449,3,0),M55) -> 106886 | G55: =$F55/Parâmetros!$B$5 -> 0.0001172130913 | H55: =$G55*Parâmetros!B$15 -> 108047.5769 | I55: =$G55*Parâmetros!C$15 -> 110513.361 | J55: =$G55*Parâmetros!D$15 -> 113114.0113 | K55: =$G55*Parâmetros!E$15 -> 115619.0359 | L55: =IF(C55<=VLOOKUP(E55,'Inputs - Simulador'!$C$5:$AQ$13,6,0),1,IF(C55<=VLOOKUP(E55,'Inputs - Simulador'!$C$5:$AQ$13,11,0),2,IF(C55<=VLOOKUP(E55,'Inputs - Simulador'!$C$5:$AQ$13,16,0),3,IF(C55<=VLOOKUP(E55,'Inputs - Simulador'!$C$5:$AQ$13,21,0),4,IF(C55<=VLOOKUP(E55,'Inputs - Simulador'!$C$5:$AQ$13,26,0),5,IF(C55<=VLOOKUP(E55,'Inputs - Simulador'!$C$5:$AQ$13,31,0),6,IF(C55<=VLOOKUP(E55,'Inputs - Simulador'!$C$5:$AQ$13,36,0),7,IF(C55<=VLOOKUP(E55,'Inputs - Simulador'!$C$5:$AQ$13,41,0),8,0)))))))) -> 6 | M55: 106886
A56: Agua | B56: COMERCIAL | C56: 54 | D56: Vol_NormalAguaCOMERCIAL54 | E56: COMERCIAL | F56: =IF(AND('Volume Medido 1'!$O$3,C56<=5),VLOOKUP("NORMAL"&A56&E56&C56,'Volume Medido 1'!$G$3:$I$449,3,0),M56) -> 103775 | G56: =$F56/Parâmetros!$B$5 -> 0.0001138015133 | H56: =$G56*Parâmetros!B$15 -> 104902.7683 | I56: =$G56*Parâmetros!C$15 -> 107296.7838 | J56: =$G56*Parâmetros!D$15 -> 109821.7402 | K56: =$G56*Parâmetros!E$15 -> 112253.8541 | L56: =IF(C56<=VLOOKUP(E56,'Inputs - Simulador'!$C$5:$AQ$13,6,0),1,IF(C56<=VLOOKUP(E56,'Inputs - Simulador'!$C$5:$AQ$13,11,0),2,IF(C56<=VLOOKUP(E56,'Inputs - Simulador'!$C$5:$AQ$13,16,0),3,IF(C56<=VLOOKUP(E56,'Inputs - Simulador'!$C$5:$AQ$13,21,0),4,IF(C56<=VLOOKUP(E56,'Inputs - Simulador'!$C$5:$AQ$13,26,0),5,IF(C56<=VLOOKUP(E56,'Inputs - Simulador'!$C$5:$AQ$13,31,0),6,IF(C56<=VLOOKUP(E56,'Inputs - Simulador'!$C$5:$AQ$13,36,0),7,IF(C56<=VLOOKUP(E56,'Inputs - Simulador'!$C$5:$AQ$13,41,0),8,0)))))))) -> 6 | M56: 103775
A57: Agua | B57: COMERCIAL | C57: 55 | D57: Vol_NormalAguaCOMERCIAL55 | E57: COMERCIAL | F57: =IF(AND('Volume Medido 1'!$O$3,C57<=5),VLOOKUP("NORMAL"&A57&E57&C57,'Volume Medido 1'!$G$3:$I$449,3,0),M57) -> 100458 | G57: =$F57/Parâmetros!$B$5 -> 0.000110164032 | H57: =$G57*Parâmetros!B$15 -> 101549.721 | I57: =$G57*Parâmetros!C$15 -> 103867.2157 | J57: =$G57*Parâmetros!D$15 -> 106311.4659 | K57: =$G57*Parâmetros!E$15 -> 108665.8412 | L57: =IF(C57<=VLOOKUP(E57,'Inputs - Simulador'!$C$5:$AQ$13,6,0),1,IF(C57<=VLOOKUP(E57,'Inputs - Simulador'!$C$5:$AQ$13,11,0),2,IF(C57<=VLOOKUP(E57,'Inputs - Simulador'!$C$5:$AQ$13,16,0),3,IF(C57<=VLOOKUP(E57,'Inputs - Simulador'!$C$5:$AQ$13,21,0),4,IF(C57<=VLOOKUP(E57,'Inputs - Simulador'!$C$5:$AQ$13,26,0),5,IF(C57<=VLOOKUP(E57,'Inputs - Simulador'!$C$5:$AQ$13,31,0),6,IF(C57<=VLOOKUP(E57,'Inputs - Simulador'!$C$5:$AQ$13,36,0),7,IF(C57<=VLOOKUP(E57,'Inputs - Simulador'!$C$5:$AQ$13,41,0),8,0)))))))) -> 6 | M57: 100458
A58: Agua | B58: COMERCIAL | C58: 56 | D58: Vol_NormalAguaCOMERCIAL56 | E58: COMERCIAL | F58: =IF(AND('Volume Medido 1'!$O$3,C58<=5),VLOOKUP("NORMAL"&A58&E58&C58,'Volume Medido 1'!$G$3:$I$449,3,0),M58) -> 97883 | G58: =$F58/Parâmetros!$B$5 -> 0.0001073402411 | H58: =$G58*Parâmetros!B$15 -> 98946.73739 | I58: =$G58*Parâmetros!C$15 -> 101204.8286 | J58: =$G58*Parâmetros!D$15 -> 103586.4263 | K58: =$G58*Parâmetros!E$15 -> 105880.4529 | L58: =IF(C58<=VLOOKUP(E58,'Inputs - Simulador'!$C$5:$AQ$13,6,0),1,IF(C58<=VLOOKUP(E58,'Inputs - Simulador'!$C$5:$AQ$13,11,0),2,IF(C58<=VLOOKUP(E58,'Inputs - Simulador'!$C$5:$AQ$13,16,0),3,IF(C58<=VLOOKUP(E58,'Inputs - Simulador'!$C$5:$AQ$13,21,0),4,IF(C58<=VLOOKUP(E58,'Inputs - Simulador'!$C$5:$AQ$13,26,0),5,IF(C58<=VLOOKUP(E58,'Inputs - Simulador'!$C$5:$AQ$13,31,0),6,IF(C58<=VLOOKUP(E58,'Inputs - Simulador'!$C$5:$AQ$13,36,0),7,IF(C58<=VLOOKUP(E58,'Inputs - Simulador'!$C$5:$AQ$13,41,0),8,0)))))))) -> 6 | M58: 97883
A59: Agua | B59: COMERCIAL | C59: 57 | D59: Vol_NormalAguaCOMERCIAL57 | E59: COMERCIAL | F59: =IF(AND('Volume Medido 1'!$O$3,C59<=5),VLOOKUP("NORMAL"&A59&E59&C59,'Volume Medido 1'!$G$3:$I$449,3,0),M59) -> 94605 | G59: =$F59/Parâmetros!$B$5 -> 0.000103745528 | H59: =$G59*Parâmetros!B$15 -> 95633.11393 | I59: =$G59*Parâmetros!C$15 -> 97815.58404 | J59: =$G59*Parâmetros!D$15 -> 100117.4245 | K59: =$G59*Parâmetros!E$15 -> 102334.6265 | L59: =IF(C59<=VLOOKUP(E59,'Inputs - Simulador'!$C$5:$AQ$13,6,0),1,IF(C59<=VLOOKUP(E59,'Inputs - Simulador'!$C$5:$AQ$13,11,0),2,IF(C59<=VLOOKUP(E59,'Inputs - Simulador'!$C$5:$AQ$13,16,0),3,IF(C59<=VLOOKUP(E59,'Inputs - Simulador'!$C$5:$AQ$13,21,0),4,IF(C59<=VLOOKUP(E59,'Inputs - Simulador'!$C$5:$AQ$13,26,0),5,IF(C59<=VLOOKUP(E59,'Inputs - Simulador'!$C$5:$AQ$13,31,0),6,IF(C59<=VLOOKUP(E59,'Inputs - Simulador'!$C$5:$AQ$13,36,0),7,IF(C59<=VLOOKUP(E59,'Inputs - Simulador'!$C$5:$AQ$13,41,0),8,0)))))))) -> 6 | M59: 94605
A60: Agua | B60: COMERCIAL | C60: 58 | D60: Vol_NormalAguaCOMERCIAL58 | E60: COMERCIAL | F60: =IF(AND('Volume Medido 1'!$O$3,C60<=5),VLOOKUP("NORMAL"&A60&E60&C60,'Volume Medido 1'!$G$3:$I$449,3,0),M60) -> 92848 | G60: =$F60/Parâmetros!$B$5 -> 0.0001018187705 | H60: =$G60*Parâmetros!B$15 -> 93857.01984 | I60: =$G60*Parâmetros!C$15 -> 95998.95721 | J60: =$G60*Parâmetros!D$15 -> 98258.04801 | K60: =$G60*Parâmetros!E$15 -> 100434.0722 | L60: =IF(C60<=VLOOKUP(E60,'Inputs - Simulador'!$C$5:$AQ$13,6,0),1,IF(C60<=VLOOKUP(E60,'Inputs - Simulador'!$C$5:$AQ$13,11,0),2,IF(C60<=VLOOKUP(E60,'Inputs - Simulador'!$C$5:$AQ$13,16,0),3,IF(C60<=VLOOKUP(E60,'Inputs - Simulador'!$C$5:$AQ$13,21,0),4,IF(C60<=VLOOKUP(E60,'Inputs - Simulador'!$C$5:$AQ$13,26,0),5,IF(C60<=VLOOKUP(E60,'Inputs - Simulador'!$C$5:$AQ$13,31,0),6,IF(C60<=VLOOKUP(E60,'Inputs - Simulador'!$C$5:$AQ$13,36,0),7,IF(C60<=VLOOKUP(E60,'Inputs - Simulador'!$C$5:$AQ$13,41,0),8,0)))))))) -> 6 | M60: 92848
A61: Agua | B61: COMERCIAL | C61: 59 | D61: Vol_NormalAguaCOMERCIAL59 | E61: COMERCIAL | F61: =IF(AND('Volume Medido 1'!$O$3,C61<=5),VLOOKUP("NORMAL"&A61&E61&C61,'Volume Medido 1'!$G$3:$I$449,3,0),M61) -> 91558 | G61: =$F61/Parâmetros!$B$5 -> 0.0001004041335 | H61: =$G61*Parâmetros!B$15 -> 92553.00085 | I61: =$G61*Parâmetros!C$15 -> 94665.17883 | J61: =$G61*Parâmetros!D$15 -> 96892.88255 | K61: =$G61*Parâmetros!E$15 -> 99038.67377 | L61: =IF(C61<=VLOOKUP(E61,'Inputs - Simulador'!$C$5:$AQ$13,6,0),1,IF(C61<=VLOOKUP(E61,'Inputs - Simulador'!$C$5:$AQ$13,11,0),2,IF(C61<=VLOOKUP(E61,'Inputs - Simulador'!$C$5:$AQ$13,16,0),3,IF(C61<=VLOOKUP(E61,'Inputs - Simulador'!$C$5:$AQ$13,21,0),4,IF(C61<=VLOOKUP(E61,'Inputs - Simulador'!$C$5:$AQ$13,26,0),5,IF(C61<=VLOOKUP(E61,'Inputs - Simulador'!$C$5:$AQ$13,31,0),6,IF(C61<=VLOOKUP(E61,'Inputs - Simulador'!$C$5:$AQ$13,36,0),7,IF(C61<=VLOOKUP(E61,'Inputs - Simulador'!$C$5:$AQ$13,41,0),8,0)))))))) -> 6 | M61: 91558
A62: Agua | B62: COMERCIAL | C62: 60 | D62: Vol_NormalAguaCOMERCIAL60 | E62: COMERCIAL | F62: =IF(AND('Volume Medido 1'!$O$3,C62<=5),VLOOKUP("NORMAL"&A62&E62&C62,'Volume Medido 1'!$G$3:$I$449,3,0),M62) -> 91552 | G62: =$F62/Parâmetros!$B$5 -> 0.0001003975538 | H62: =$G62*Parâmetros!B$15 -> 92546.93564 | I62: =$G62*Parâmetros!C$15 -> 94658.97521 | J62: =$G62*Parâmetros!D$15 -> 96886.53295 | K62: =$G62*Parâmetros!E$15 -> 99032.18355 | L62: =IF(C62<=VLOOKUP(E62,'Inputs - Simulador'!$C$5:$AQ$13,6,0),1,IF(C62<=VLOOKUP(E62,'Inputs - Simulador'!$C$5:$AQ$13,11,0),2,IF(C62<=VLOOKUP(E62,'Inputs - Simulador'!$C$5:$AQ$13,16,0),3,IF(C62<=VLOOKUP(E62,'Inputs - Simulador'!$C$5:$AQ$13,21,0),4,IF(C62<=VLOOKUP(E62,'Inputs - Simulador'!$C$5:$AQ$13,26,0),5,IF(C62<=VLOOKUP(E62,'Inputs - Simulador'!$C$5:$AQ$13,31,0),6,IF(C62<=VLOOKUP(E62,'Inputs - Simulador'!$C$5:$AQ$13,36,0),7,IF(C62<=VLOOKUP(E62,'Inputs - Simulador'!$C$5:$AQ$13,41,0),8,0)))))))) -> 6 | M62: 91552
A63: Agua | B63: COMERCIAL | C63: 61 | D63: Vol_NormalAguaCOMERCIAL61 | E63: COMERCIAL | F63: =IF(AND('Volume Medido 1'!$O$3,C63<=5),VLOOKUP("NORMAL"&A63&E63&C63,'Volume Medido 1'!$G$3:$I$449,3,0),M63) -> 88133 | G63: =$F63/Parâmetros!$B$5 -> 9.664821749e-05 | H63: =$G63*Parâmetros!B$15 -> 89090.77987 | I63: =$G63*Parâmetros!C$15 -> 91123.94554 | J63: =$G63*Parâmetros!D$15 -> 93268.31536 | K63: =$G63*Parâmetros!E$15 -> 95333.83686 | L63: =IF(C63<=VLOOKUP(E63,'Inputs - Simulador'!$C$5:$AQ$13,6,0),1,IF(C63<=VLOOKUP(E63,'Inputs - Simulador'!$C$5:$AQ$13,11,0),2,IF(C63<=VLOOKUP(E63,'Inputs - Simulador'!$C$5:$AQ$13,16,0),3,IF(C63<=VLOOKUP(E63,'Inputs - Simulador'!$C$5:$AQ$13,21,0),4,IF(C63<=VLOOKUP(E63,'Inputs - Simulador'!$C$5:$AQ$13,26,0),5,IF(C63<=VLOOKUP(E63,'Inputs - Simulador'!$C$5:$AQ$13,31,0),6,IF(C63<=VLOOKUP(E63,'Inputs - Simulador'!$C$5:$AQ$13,36,0),7,IF(C63<=VLOOKUP(E63,'Inputs - Simulador'!$C$5:$AQ$13,41,0),8,0)))))))) -> 6 | M63: 88133
A64: Agua | B64: COMERCIAL | C64: 62 | D64: Vol_NormalAguaCOMERCIAL62 | E64: COMERCIAL | F64: =IF(AND('Volume Medido 1'!$O$3,C64<=5),VLOOKUP("NORMAL"&A64&E64&C64,'Volume Medido 1'!$G$3:$I$449,3,0),M64) -> 88095 | G64: =$F64/Parâmetros!$B$5 -> 9.660654601e-05 | H64: =$G64*Parâmetros!B$15 -> 89052.36691 | I64: =$G64*Parâmetros!C$15 -> 91084.65595 | J64: =$G64*Parâmetros!D$15 -> 93228.10119 | K64: =$G64*Parâmetros!E$15 -> 95292.7321 | L64: =IF(C64<=VLOOKUP(E64,'Inputs - Simulador'!$C$5:$AQ$13,6,0),1,IF(C64<=VLOOKUP(E64,'Inputs - Simulador'!$C$5:$AQ$13,11,0),2,IF(C64<=VLOOKUP(E64,'Inputs - Simulador'!$C$5:$AQ$13,16,0),3,IF(C64<=VLOOKUP(E64,'Inputs - Simulador'!$C$5:$AQ$13,21,0),4,IF(C64<=VLOOKUP(E64,'Inputs - Simulador'!$C$5:$AQ$13,26,0),5,IF(C64<=VLOOKUP(E64,'Inputs - Simulador'!$C$5:$AQ$13,31,0),6,IF(C64<=VLOOKUP(E64,'Inputs - Simulador'!$C$5:$AQ$13,36,0),7,IF(C64<=VLOOKUP(E64,'Inputs - Simulador'!$C$5:$AQ$13,41,0),8,0)))))))) -> 6 | M64: 88095
A65: Agua | B65: COMERCIAL | C65: 63 | D65: Vol_NormalAguaCOMERCIAL63 | E65: COMERCIAL | F65: =IF(AND('Volume Medido 1'!$O$3,C65<=5),VLOOKUP("NORMAL"&A65&E65&C65,'Volume Medido 1'!$G$3:$I$449,3,0),M65) -> 83531 | G65: =$F65/Parâmetros!$B$5 -> 9.160158233e-05 | H65: =$G65*Parâmetros!B$15 -> 84438.76793 | I65: =$G65*Parâmetros!C$15 -> 86365.76873 | J65: =$G65*Parâmetros!D$15 -> 88398.16698 | K65: =$G65*Parâmetros!E$15 -> 90355.8341 | L65: =IF(C65<=VLOOKUP(E65,'Inputs - Simulador'!$C$5:$AQ$13,6,0),1,IF(C65<=VLOOKUP(E65,'Inputs - Simulador'!$C$5:$AQ$13,11,0),2,IF(C65<=VLOOKUP(E65,'Inputs - Simulador'!$C$5:$AQ$13,16,0),3,IF(C65<=VLOOKUP(E65,'Inputs - Simulador'!$C$5:$AQ$13,21,0),4,IF(C65<=VLOOKUP(E65,'Inputs - Simulador'!$C$5:$AQ$13,26,0),5,IF(C65<=VLOOKUP(E65,'Inputs - Simulador'!$C$5:$AQ$13,31,0),6,IF(C65<=VLOOKUP(E65,'Inputs - Simulador'!$C$5:$AQ$13,36,0),7,IF(C65<=VLOOKUP(E65,'Inputs - Simulador'!$C$5:$AQ$13,41,0),8,0)))))))) -> 6 | M65: 83531
A66: Agua | B66: COMERCIAL | C66: 64 | D66: Vol_NormalAguaCOMERCIAL64 | E66: COMERCIAL | F66: =IF(AND('Volume Medido 1'!$O$3,C66<=5),VLOOKUP("NORMAL"&A66&E66&C66,'Volume Medido 1'!$G$3:$I$449,3,0),M66) -> 78714 | G66: =$F66/Parâmetros!$B$5 -> 8.631917433e-05 | H66: =$G66*Parâmetros!B$15 -> 79569.41948 | I66: =$G66*Parâmetros!C$15 -> 81385.29551 | J66: =$G66*Parâmetros!D$15 -> 83300.49103 | K66: =$G66*Parâmetros!E$15 -> 85145.26494 | L66: =IF(C66<=VLOOKUP(E66,'Inputs - Simulador'!$C$5:$AQ$13,6,0),1,IF(C66<=VLOOKUP(E66,'Inputs - Simulador'!$C$5:$AQ$13,11,0),2,IF(C66<=VLOOKUP(E66,'Inputs - Simulador'!$C$5:$AQ$13,16,0),3,IF(C66<=VLOOKUP(E66,'Inputs - Simulador'!$C$5:$AQ$13,21,0),4,IF(C66<=VLOOKUP(E66,'Inputs - Simulador'!$C$5:$AQ$13,26,0),5,IF(C66<=VLOOKUP(E66,'Inputs - Simulador'!$C$5:$AQ$13,31,0),6,IF(C66<=VLOOKUP(E66,'Inputs - Simulador'!$C$5:$AQ$13,36,0),7,IF(C66<=VLOOKUP(E66,'Inputs - Simulador'!$C$5:$AQ$13,41,0),8,0)))))))) -> 6 | M66: 78714
A67: Agua | B67: COMERCIAL | C67: 65 | D67: ="Vol_Normal"&A67&B67&C67 -> Vol_NormalAguaCOMERCIAL65 | E67: =IF(OR($B67="SANEPAR", $B67="INATIVO",),"INATIVO + SANEPAR",$B67) -> COMERCIAL | F67: =IF(AND('Volume Medido 1'!$O$3,C67<=5),VLOOKUP("NORMAL"&A67&E67&C67,'Volume Medido 1'!$G$3:$I$449,3,0),M67) -> 76821 | G67: =$F67/Parâmetros!$B$5 -> 8.424327682e-05 | H67: =$G67*Parâmetros!B$15 -> 77655.84742 | I67: =$G67*Parâmetros!C$15 -> 79428.05329 | J67: =$G67*Parâmetros!D$15 -> 81297.19009 | K67: =$G67*Parâmetros!E$15 -> 83097.59887 | L67: =IF(C67<=VLOOKUP(E67,'Inputs - Simulador'!$C$5:$AQ$13,6,0),1,IF(C67<=VLOOKUP(E67,'Inputs - Simulador'!$C$5:$AQ$13,11,0),2,IF(C67<=VLOOKUP(E67,'Inputs - Simulador'!$C$5:$AQ$13,16,0),3,IF(C67<=VLOOKUP(E67,'Inputs - Simulador'!$C$5:$AQ$13,21,0),4,IF(C67<=VLOOKUP(E67,'Inputs - Simulador'!$C$5:$AQ$13,26,0),5,IF(C67<=VLOOKUP(E67,'Inputs - Simulador'!$C$5:$AQ$13,31,0),6,IF(C67<=VLOOKUP(E67,'Inputs - Simulador'!$C$5:$AQ$13,36,0),7,IF(C67<=VLOOKUP(E67,'Inputs - Simulador'!$C$5:$AQ$13,41,0),8,0)))))))) -> 6 | M67: 76821
A68: Agua | B68: COMERCIAL | C68: 66 | D68: Vol_NormalAguaCOMERCIAL66 | E68: COMERCIAL | F68: =IF(AND('Volume Medido 1'!$O$3,C68<=5),VLOOKUP("NORMAL"&A68&E68&C68,'Volume Medido 1'!$G$3:$I$449,3,0),M68) -> 78206 | G68: =$F68/Parâmetros!$B$5 -> 8.576209249e-05 | H68: =$G68*Parâmetros!B$15 -> 79055.89882 | I68: =$G68*Parâmetros!C$15 -> 80860.05565 | J68: =$G68*Parâmetros!D$15 -> 82762.89099 | K68: =$G68*Parâmetros!E$15 -> 84595.7592 | L68: =IF(C68<=VLOOKUP(E68,'Inputs - Simulador'!$C$5:$AQ$13,6,0),1,IF(C68<=VLOOKUP(E68,'Inputs - Simulador'!$C$5:$AQ$13,11,0),2,IF(C68<=VLOOKUP(E68,'Inputs - Simulador'!$C$5:$AQ$13,16,0),3,IF(C68<=VLOOKUP(E68,'Inputs - Simulador'!$C$5:$AQ$13,21,0),4,IF(C68<=VLOOKUP(E68,'Inputs - Simulador'!$C$5:$AQ$13,26,0),5,IF(C68<=VLOOKUP(E68,'Inputs - Simulador'!$C$5:$AQ$13,31,0),6,IF(C68<=VLOOKUP(E68,'Inputs - Simulador'!$C$5:$AQ$13,36,0),7,IF(C68<=VLOOKUP(E68,'Inputs - Simulador'!$C$5:$AQ$13,41,0),8,0)))))))) -> 6 | M68: 78206
A69: Agua | B69: COMERCIAL | C69: 67 | D69: Vol_NormalAguaCOMERCIAL67 | E69: COMERCIAL | F69: =IF(AND('Volume Medido 1'!$O$3,C69<=5),VLOOKUP("NORMAL"&A69&E69&C69,'Volume Medido 1'!$G$3:$I$449,3,0),M69) -> 75102 | G69: =$F69/Parâmetros!$B$5 -> 8.23581908e-05 | H69: =$G69*Parâmetros!B$15 -> 75918.16629 | I69: =$G69*Parâmetros!C$15 -> 77650.71605 | J69: =$G69*Parâmetros!D$15 -> 79478.02776 | K69: =$G69*Parâmetros!E$15 -> 81238.14934 | L69: =IF(C69<=VLOOKUP(E69,'Inputs - Simulador'!$C$5:$AQ$13,6,0),1,IF(C69<=VLOOKUP(E69,'Inputs - Simulador'!$C$5:$AQ$13,11,0),2,IF(C69<=VLOOKUP(E69,'Inputs - Simulador'!$C$5:$AQ$13,16,0),3,IF(C69<=VLOOKUP(E69,'Inputs - Simulador'!$C$5:$AQ$13,21,0),4,IF(C69<=VLOOKUP(E69,'Inputs - Simulador'!$C$5:$AQ$13,26,0),5,IF(C69<=VLOOKUP(E69,'Inputs - Simulador'!$C$5:$AQ$13,31,0),6,IF(C69<=VLOOKUP(E69,'Inputs - Simulador'!$C$5:$AQ$13,36,0),7,IF(C69<=VLOOKUP(E69,'Inputs - Simulador'!$C$5:$AQ$13,41,0),8,0)))))))) -> 6 | M69: 75102
A70: Agua | B70: COMERCIAL | C70: 68 | D70: Vol_NormalAguaCOMERCIAL68 | E70: COMERCIAL | F70: =IF(AND('Volume Medido 1'!$O$3,C70<=5),VLOOKUP("NORMAL"&A70&E70&C70,'Volume Medido 1'!$G$3:$I$449,3,0),M70) -> 72142 | G70: =$F70/Parâmetros!$B$5 -> 7.911220208e-05 | H70: =$G70*Parâmetros!B$15 -> 72925.99868 | I70: =$G70*Parâmetros!C$15 -> 74590.26334 | J70: =$G70*Parâmetros!D$15 -> 76345.55509 | K70: =$G70*Parâmetros!E$15 -> 78036.30489 | L70: =IF(C70<=VLOOKUP(E70,'Inputs - Simulador'!$C$5:$AQ$13,6,0),1,IF(C70<=VLOOKUP(E70,'Inputs - Simulador'!$C$5:$AQ$13,11,0),2,IF(C70<=VLOOKUP(E70,'Inputs - Simulador'!$C$5:$AQ$13,16,0),3,IF(C70<=VLOOKUP(E70,'Inputs - Simulador'!$C$5:$AQ$13,21,0),4,IF(C70<=VLOOKUP(E70,'Inputs - Simulador'!$C$5:$AQ$13,26,0),5,IF(C70<=VLOOKUP(E70,'Inputs - Simulador'!$C$5:$AQ$13,31,0),6,IF(C70<=VLOOKUP(E70,'Inputs - Simulador'!$C$5:$AQ$13,36,0),7,IF(C70<=VLOOKUP(E70,'Inputs - Simulador'!$C$5:$AQ$13,41,0),8,0)))))))) -> 6 | M70: 72142
A71: Agua | B71: COMERCIAL | C71: 69 | D71: Vol_NormalAguaCOMERCIAL69 | E71: COMERCIAL | F71: =IF(AND('Volume Medido 1'!$O$3,C71<=5),VLOOKUP("NORMAL"&A71&E71&C71,'Volume Medido 1'!$G$3:$I$449,3,0),M71) -> 68927 | G71: =$F71/Parâmetros!$B$5 -> 7.558657582e-05 | H71: =$G71*Parâmetros!B$15 -> 69676.05987 | I71: =$G71*Parâmetros!C$15 -> 71266.15677 | J71: =$G71*Parâmetros!D$15 -> 72943.22414 | K71: =$G71*Parâmetros!E$15 -> 74558.62587 | L71: =IF(C71<=VLOOKUP(E71,'Inputs - Simulador'!$C$5:$AQ$13,6,0),1,IF(C71<=VLOOKUP(E71,'Inputs - Simulador'!$C$5:$AQ$13,11,0),2,IF(C71<=VLOOKUP(E71,'Inputs - Simulador'!$C$5:$AQ$13,16,0),3,IF(C71<=VLOOKUP(E71,'Inputs - Simulador'!$C$5:$AQ$13,21,0),4,IF(C71<=VLOOKUP(E71,'Inputs - Simulador'!$C$5:$AQ$13,26,0),5,IF(C71<=VLOOKUP(E71,'Inputs - Simulador'!$C$5:$AQ$13,31,0),6,IF(C71<=VLOOKUP(E71,'Inputs - Simulador'!$C$5:$AQ$13,36,0),7,IF(C71<=VLOOKUP(E71,'Inputs - Simulador'!$C$5:$AQ$13,41,0),8,0)))))))) -> 6 | M71: 68927
A72: Agua | B72: COMERCIAL | C72: 70 | D72: Vol_NormalAguaCOMERCIAL70 | E72: COMERCIAL | F72: =IF(AND('Volume Medido 1'!$O$3,C72<=5),VLOOKUP("NORMAL"&A72&E72&C72,'Volume Medido 1'!$G$3:$I$449,3,0),M72) -> 69086 | G72: =$F72/Parâmetros!$B$5 -> 7.576093805e-05 | H72: =$G72*Parâmetros!B$15 -> 69836.78779 | I72: =$G72*Parâmetros!C$15 -> 71430.55271 | J72: =$G72*Parâmetros!D$15 -> 73111.48872 | K72: =$G72*Parâmetros!E$15 -> 74730.61683 | L72: =IF(C72<=VLOOKUP(E72,'Inputs - Simulador'!$C$5:$AQ$13,6,0),1,IF(C72<=VLOOKUP(E72,'Inputs - Simulador'!$C$5:$AQ$13,11,0),2,IF(C72<=VLOOKUP(E72,'Inputs - Simulador'!$C$5:$AQ$13,16,0),3,IF(C72<=VLOOKUP(E72,'Inputs - Simulador'!$C$5:$AQ$13,21,0),4,IF(C72<=VLOOKUP(E72,'Inputs - Simulador'!$C$5:$AQ$13,26,0),5,IF(C72<=VLOOKUP(E72,'Inputs - Simulador'!$C$5:$AQ$13,31,0),6,IF(C72<=VLOOKUP(E72,'Inputs - Simulador'!$C$5:$AQ$13,36,0),7,IF(C72<=VLOOKUP(E72,'Inputs - Simulador'!$C$5:$AQ$13,41,0),8,0)))))))) -> 6 | M72: 69086
A73: Agua | B73: COMERCIAL | C73: 71 | D73: Vol_NormalAguaCOMERCIAL71 | E73: COMERCIAL | F73: =IF(AND('Volume Medido 1'!$O$3,C73<=5),VLOOKUP("NORMAL"&A73&E73&C73,'Volume Medido 1'!$G$3:$I$449,3,0),M73) -> 68433 | G73: =$F73/Parâmetros!$B$5 -> 7.504484662e-05 | H73: =$G73*Parâmetros!B$15 -> 69176.69135 | I73: =$G73*Parâmetros!C$15 -> 70755.39202 | J73: =$G73*Parâmetros!D$15 -> 72420.43985 | K73: =$G73*Parâmetros!E$15 -> 74024.26399 | L73: =IF(C73<=VLOOKUP(E73,'Inputs - Simulador'!$C$5:$AQ$13,6,0),1,IF(C73<=VLOOKUP(E73,'Inputs - Simulador'!$C$5:$AQ$13,11,0),2,IF(C73<=VLOOKUP(E73,'Inputs - Simulador'!$C$5:$AQ$13,16,0),3,IF(C73<=VLOOKUP(E73,'Inputs - Simulador'!$C$5:$AQ$13,21,0),4,IF(C73<=VLOOKUP(E73,'Inputs - Simulador'!$C$5:$AQ$13,26,0),5,IF(C73<=VLOOKUP(E73,'Inputs - Simulador'!$C$5:$AQ$13,31,0),6,IF(C73<=VLOOKUP(E73,'Inputs - Simulador'!$C$5:$AQ$13,36,0),7,IF(C73<=VLOOKUP(E73,'Inputs - Simulador'!$C$5:$AQ$13,41,0),8,0)))))))) -> 6 | M73: 68433
A74: Agua | B74: COMERCIAL | C74: 72 | D74: Vol_NormalAguaCOMERCIAL72 | E74: COMERCIAL | F74: =IF(AND('Volume Medido 1'!$O$3,C74<=5),VLOOKUP("NORMAL"&A74&E74&C74,'Volume Medido 1'!$G$3:$I$449,3,0),M74) -> 64581 | G74: =$F74/Parâmetros!$B$5 -> 7.082067482e-05 | H74: =$G74*Parâmetros!B$15 -> 65282.82998 | I74: =$G74*Parâmetros!C$15 -> 66772.66775 | J74: =$G74*Parâmetros!D$15 -> 68343.99231 | K74: =$G74*Parâmetros!E$15 -> 69857.53938 | L74: =IF(C74<=VLOOKUP(E74,'Inputs - Simulador'!$C$5:$AQ$13,6,0),1,IF(C74<=VLOOKUP(E74,'Inputs - Simulador'!$C$5:$AQ$13,11,0),2,IF(C74<=VLOOKUP(E74,'Inputs - Simulador'!$C$5:$AQ$13,16,0),3,IF(C74<=VLOOKUP(E74,'Inputs - Simulador'!$C$5:$AQ$13,21,0),4,IF(C74<=VLOOKUP(E74,'Inputs - Simulador'!$C$5:$AQ$13,26,0),5,IF(C74<=VLOOKUP(E74,'Inputs - Simulador'!$C$5:$AQ$13,31,0),6,IF(C74<=VLOOKUP(E74,'Inputs - Simulador'!$C$5:$AQ$13,36,0),7,IF(C74<=VLOOKUP(E74,'Inputs - Simulador'!$C$5:$AQ$13,41,0),8,0)))))))) -> 6 | M74: 64581
A75: Agua | B75: COMERCIAL | C75: 73 | D75: Vol_NormalAguaCOMERCIAL73 | E75: COMERCIAL | F75: =IF(AND('Volume Medido 1'!$O$3,C75<=5),VLOOKUP("NORMAL"&A75&E75&C75,'Volume Medido 1'!$G$3:$I$449,3,0),M75) -> 67812 | G75: =$F75/Parâmetros!$B$5 -> 7.436384696e-05 | H75: =$G75*Parâmetros!B$15 -> 68548.94267 | I75: =$G75*Parâmetros!C$15 -> 70113.31732 | J75: =$G75*Parâmetros!D$15 -> 71763.25555 | K75: =$G75*Parâmetros!E$15 -> 73352.52568 | L75: =IF(C75<=VLOOKUP(E75,'Inputs - Simulador'!$C$5:$AQ$13,6,0),1,IF(C75<=VLOOKUP(E75,'Inputs - Simulador'!$C$5:$AQ$13,11,0),2,IF(C75<=VLOOKUP(E75,'Inputs - Simulador'!$C$5:$AQ$13,16,0),3,IF(C75<=VLOOKUP(E75,'Inputs - Simulador'!$C$5:$AQ$13,21,0),4,IF(C75<=VLOOKUP(E75,'Inputs - Simulador'!$C$5:$AQ$13,26,0),5,IF(C75<=VLOOKUP(E75,'Inputs - Simulador'!$C$5:$AQ$13,31,0),6,IF(C75<=VLOOKUP(E75,'Inputs - Simulador'!$C$5:$AQ$13,36,0),7,IF(C75<=VLOOKUP(E75,'Inputs - Simulador'!$C$5:$AQ$13,41,0),8,0)))))))) -> 6 | M75: 67812
A76: Agua | B76: COMERCIAL | C76: 74 | D76: Vol_NormalAguaCOMERCIAL74 | E76: COMERCIAL | F76: =IF(AND('Volume Medido 1'!$O$3,C76<=5),VLOOKUP("NORMAL"&A76&E76&C76,'Volume Medido 1'!$G$3:$I$449,3,0),M76) -> 63934 | G76: =$F76/Parâmetros!$B$5 -> 7.011116309e-05 | H76: =$G76*Parâmetros!B$15 -> 64628.79875 | I76: =$G76*Parâmetros!C$15 -> 66103.71069 | J76: =$G76*Parâmetros!D$15 -> 67659.29305 | K76: =$G76*Parâmetros!E$15 -> 69157.67676 | L76: =IF(C76<=VLOOKUP(E76,'Inputs - Simulador'!$C$5:$AQ$13,6,0),1,IF(C76<=VLOOKUP(E76,'Inputs - Simulador'!$C$5:$AQ$13,11,0),2,IF(C76<=VLOOKUP(E76,'Inputs - Simulador'!$C$5:$AQ$13,16,0),3,IF(C76<=VLOOKUP(E76,'Inputs - Simulador'!$C$5:$AQ$13,21,0),4,IF(C76<=VLOOKUP(E76,'Inputs - Simulador'!$C$5:$AQ$13,26,0),5,IF(C76<=VLOOKUP(E76,'Inputs - Simulador'!$C$5:$AQ$13,31,0),6,IF(C76<=VLOOKUP(E76,'Inputs - Simulador'!$C$5:$AQ$13,36,0),7,IF(C76<=VLOOKUP(E76,'Inputs - Simulador'!$C$5:$AQ$13,41,0),8,0)))))))) -> 6 | M76: 63934
A77: Agua | B77: COMERCIAL | C77: 75 | D77: Vol_NormalAguaCOMERCIAL75 | E77: COMERCIAL | F77: =IF(AND('Volume Medido 1'!$O$3,C77<=5),VLOOKUP("NORMAL"&A77&E77&C77,'Volume Medido 1'!$G$3:$I$449,3,0),M77) -> 60749 | G77: =$F77/Parâmetros!$B$5 -> 6.661843537e-05 | H77: =$G77*Parâmetros!B$15 -> 61409.18596 | I77: =$G77*Parâmetros!C$15 -> 62810.62222 | J77: =$G77*Parâmetros!D$15 -> 64288.71013 | K77: =$G77*Parâmetros!E$15 -> 65712.44886 | L77: =IF(C77<=VLOOKUP(E77,'Inputs - Simulador'!$C$5:$AQ$13,6,0),1,IF(C77<=VLOOKUP(E77,'Inputs - Simulador'!$C$5:$AQ$13,11,0),2,IF(C77<=VLOOKUP(E77,'Inputs - Simulador'!$C$5:$AQ$13,16,0),3,IF(C77<=VLOOKUP(E77,'Inputs - Simulador'!$C$5:$AQ$13,21,0),4,IF(C77<=VLOOKUP(E77,'Inputs - Simulador'!$C$5:$AQ$13,26,0),5,IF(C77<=VLOOKUP(E77,'Inputs - Simulador'!$C$5:$AQ$13,31,0),6,IF(C77<=VLOOKUP(E77,'Inputs - Simulador'!$C$5:$AQ$13,36,0),7,IF(C77<=VLOOKUP(E77,'Inputs - Simulador'!$C$5:$AQ$13,41,0),8,0)))))))) -> 6 | M77: 60749
A78: Agua | B78: COMERCIAL | C78: 76 | D78: Vol_NormalAguaCOMERCIAL76 | E78: COMERCIAL | F78: =IF(AND('Volume Medido 1'!$O$3,C78<=5),VLOOKUP("NORMAL"&A78&E78&C78,'Volume Medido 1'!$G$3:$I$449,3,0),M78) -> 60189 | G78: =$F78/Parâmetros!$B$5 -> 6.600432939e-05 | H78: =$G78*Parâmetros!B$15 -> 60843.1002 | I78: =$G78*Parâmetros!C$15 -> 62231.61765 | J78: =$G78*Parâmetros!D$15 -> 63696.08017 | K78: =$G78*Parâmetros!E$15 -> 65106.69451 | L78: =IF(C78<=VLOOKUP(E78,'Inputs - Simulador'!$C$5:$AQ$13,6,0),1,IF(C78<=VLOOKUP(E78,'Inputs - Simulador'!$C$5:$AQ$13,11,0),2,IF(C78<=VLOOKUP(E78,'Inputs - Simulador'!$C$5:$AQ$13,16,0),3,IF(C78<=VLOOKUP(E78,'Inputs - Simulador'!$C$5:$AQ$13,21,0),4,IF(C78<=VLOOKUP(E78,'Inputs - Simulador'!$C$5:$AQ$13,26,0),5,IF(C78<=VLOOKUP(E78,'Inputs - Simulador'!$C$5:$AQ$13,31,0),6,IF(C78<=VLOOKUP(E78,'Inputs - Simulador'!$C$5:$AQ$13,36,0),7,IF(C78<=VLOOKUP(E78,'Inputs - Simulador'!$C$5:$AQ$13,41,0),8,0)))))))) -> 6 | M78: 60189
A79: Agua | B79: COMERCIAL | C79: 77 | D79: Vol_NormalAguaCOMERCIAL77 | E79: COMERCIAL | F79: =IF(AND('Volume Medido 1'!$O$3,C79<=5),VLOOKUP("NORMAL"&A79&E79&C79,'Volume Medido 1'!$G$3:$I$449,3,0),M79) -> 60901 | G79: =$F79/Parâmetros!$B$5 -> 6.678512128e-05 | H79: =$G79*Parâmetros!B$15 -> 61562.83781 | I79: =$G79*Parâmetros!C$15 -> 62967.7806 | J79: =$G79*Parâmetros!D$15 -> 64449.56684 | K79: =$G79*Parâmetros!E$15 -> 65876.8679 | L79: =IF(C79<=VLOOKUP(E79,'Inputs - Simulador'!$C$5:$AQ$13,6,0),1,IF(C79<=VLOOKUP(E79,'Inputs - Simulador'!$C$5:$AQ$13,11,0),2,IF(C79<=VLOOKUP(E79,'Inputs - Simulador'!$C$5:$AQ$13,16,0),3,IF(C79<=VLOOKUP(E79,'Inputs - Simulador'!$C$5:$AQ$13,21,0),4,IF(C79<=VLOOKUP(E79,'Inputs - Simulador'!$C$5:$AQ$13,26,0),5,IF(C79<=VLOOKUP(E79,'Inputs - Simulador'!$C$5:$AQ$13,31,0),6,IF(C79<=VLOOKUP(E79,'Inputs - Simulador'!$C$5:$AQ$13,36,0),7,IF(C79<=VLOOKUP(E79,'Inputs - Simulador'!$C$5:$AQ$13,41,0),8,0)))))))) -> 6 | M79: 60901
A80: Agua | B80: COMERCIAL | C80: 78 | D80: Vol_NormalAguaCOMERCIAL78 | E80: COMERCIAL | F80: =IF(AND('Volume Medido 1'!$O$3,C80<=5),VLOOKUP("NORMAL"&A80&E80&C80,'Volume Medido 1'!$G$3:$I$449,3,0),M80) -> 57718 | G80: =$F80/Parâmetros!$B$5 -> 6.329458678e-05 | H80: =$G80*Parâmetros!B$15 -> 58345.24676 | I80: =$G80*Parâmetros!C$15 -> 59676.76 | J80: =$G80*Parâmetros!D$15 -> 61081.10045 | K80: =$G80*Parâmetros!E$15 -> 62433.80341 | L80: =IF(C80<=VLOOKUP(E80,'Inputs - Simulador'!$C$5:$AQ$13,6,0),1,IF(C80<=VLOOKUP(E80,'Inputs - Simulador'!$C$5:$AQ$13,11,0),2,IF(C80<=VLOOKUP(E80,'Inputs - Simulador'!$C$5:$AQ$13,16,0),3,IF(C80<=VLOOKUP(E80,'Inputs - Simulador'!$C$5:$AQ$13,21,0),4,IF(C80<=VLOOKUP(E80,'Inputs - Simulador'!$C$5:$AQ$13,26,0),5,IF(C80<=VLOOKUP(E80,'Inputs - Simulador'!$C$5:$AQ$13,31,0),6,IF(C80<=VLOOKUP(E80,'Inputs - Simulador'!$C$5:$AQ$13,36,0),7,IF(C80<=VLOOKUP(E80,'Inputs - Simulador'!$C$5:$AQ$13,41,0),8,0)))))))) -> 6 | M80: 57718
A81: Agua | B81: COMERCIAL | C81: 79 | D81: Vol_NormalAguaCOMERCIAL79 | E81: COMERCIAL | F81: =IF(AND('Volume Medido 1'!$O$3,C81<=5),VLOOKUP("NORMAL"&A81&E81&C81,'Volume Medido 1'!$G$3:$I$449,3,0),M81) -> 55609 | G81: =$F81/Parâmetros!$B$5 -> 6.098181982e-05 | H81: =$G81*Parâmetros!B$15 -> 56213.32733 | I81: =$G81*Parâmetros!C$15 -> 57496.18744 | J81: =$G81*Parâmetros!D$15 -> 58849.21368 | K81: =$G81*Parâmetros!E$15 -> 60152.48924 | L81: =IF(C81<=VLOOKUP(E81,'Inputs - Simulador'!$C$5:$AQ$13,6,0),1,IF(C81<=VLOOKUP(E81,'Inputs - Simulador'!$C$5:$AQ$13,11,0),2,IF(C81<=VLOOKUP(E81,'Inputs - Simulador'!$C$5:$AQ$13,16,0),3,IF(C81<=VLOOKUP(E81,'Inputs - Simulador'!$C$5:$AQ$13,21,0),4,IF(C81<=VLOOKUP(E81,'Inputs - Simulador'!$C$5:$AQ$13,26,0),5,IF(C81<=VLOOKUP(E81,'Inputs - Simulador'!$C$5:$AQ$13,31,0),6,IF(C81<=VLOOKUP(E81,'Inputs - Simulador'!$C$5:$AQ$13,36,0),7,IF(C81<=VLOOKUP(E81,'Inputs - Simulador'!$C$5:$AQ$13,41,0),8,0)))))))) -> 6 | M81: 55609
A82: Agua | B82: COMERCIAL | C82: 80 | D82: Vol_NormalAguaCOMERCIAL80 | E82: COMERCIAL | F82: =IF(AND('Volume Medido 1'!$O$3,C82<=5),VLOOKUP("NORMAL"&A82&E82&C82,'Volume Medido 1'!$G$3:$I$449,3,0),M82) -> 57834 | G82: =$F82/Parâmetros!$B$5 -> 6.342179445e-05 | H82: =$G82*Parâmetros!B$15 -> 58462.50738 | I82: =$G82*Parâmetros!C$15 -> 59796.69666 | J82: =$G82*Parâmetros!D$15 -> 61203.85952 | K82: =$G82*Parâmetros!E$15 -> 62559.2811 | L82: =IF(C82<=VLOOKUP(E82,'Inputs - Simulador'!$C$5:$AQ$13,6,0),1,IF(C82<=VLOOKUP(E82,'Inputs - Simulador'!$C$5:$AQ$13,11,0),2,IF(C82<=VLOOKUP(E82,'Inputs - Simulador'!$C$5:$AQ$13,16,0),3,IF(C82<=VLOOKUP(E82,'Inputs - Simulador'!$C$5:$AQ$13,21,0),4,IF(C82<=VLOOKUP(E82,'Inputs - Simulador'!$C$5:$AQ$13,26,0),5,IF(C82<=VLOOKUP(E82,'Inputs - Simulador'!$C$5:$AQ$13,31,0),6,IF(C82<=VLOOKUP(E82,'Inputs - Simulador'!$C$5:$AQ$13,36,0),7,IF(C82<=VLOOKUP(E82,'Inputs - Simulador'!$C$5:$AQ$13,41,0),8,0)))))))) -> 6 | M82: 57834
A83: Agua | B83: COMERCIAL | C83: 81 | D83: Vol_NormalAguaCOMERCIAL81 | E83: COMERCIAL | F83: =IF(AND('Volume Medido 1'!$O$3,C83<=5),VLOOKUP("NORMAL"&A83&E83&C83,'Volume Medido 1'!$G$3:$I$449,3,0),M83) -> 54590 | G83: =$F83/Parâmetros!$B$5 -> 5.986436627e-05 | H83: =$G83*Parâmetros!B$15 -> 55183.25342 | I83: =$G83*Parâmetros!C$15 -> 56442.60592 | J83: =$G83*Parâmetros!D$15 -> 57770.8388 | K83: =$G83*Parâmetros!E$15 -> 59050.23265 | L83: =IF(C83<=VLOOKUP(E83,'Inputs - Simulador'!$C$5:$AQ$13,6,0),1,IF(C83<=VLOOKUP(E83,'Inputs - Simulador'!$C$5:$AQ$13,11,0),2,IF(C83<=VLOOKUP(E83,'Inputs - Simulador'!$C$5:$AQ$13,16,0),3,IF(C83<=VLOOKUP(E83,'Inputs - Simulador'!$C$5:$AQ$13,21,0),4,IF(C83<=VLOOKUP(E83,'Inputs - Simulador'!$C$5:$AQ$13,26,0),5,IF(C83<=VLOOKUP(E83,'Inputs - Simulador'!$C$5:$AQ$13,31,0),6,IF(C83<=VLOOKUP(E83,'Inputs - Simulador'!$C$5:$AQ$13,36,0),7,IF(C83<=VLOOKUP(E83,'Inputs - Simulador'!$C$5:$AQ$13,41,0),8,0)))))))) -> 6 | M83: 54590
A84: Agua | B84: COMERCIAL | C84: 82 | D84: Vol_NormalAguaCOMERCIAL82 | E84: COMERCIAL | F84: =IF(AND('Volume Medido 1'!$O$3,C84<=5),VLOOKUP("NORMAL"&A84&E84&C84,'Volume Medido 1'!$G$3:$I$449,3,0),M84) -> 53047 | G84: =$F84/Parâmetros!$B$5 -> 5.817228499e-05 | H84: =$G84*Parâmetros!B$15 -> 53623.48496 | I84: =$G84*Parâmetros!C$15 -> 54847.24155 | J84: =$G84*Parâmetros!D$15 -> 56137.93159 | K84: =$G84*Parâmetros!E$15 -> 57381.16306 | L84: =IF(C84<=VLOOKUP(E84,'Inputs - Simulador'!$C$5:$AQ$13,6,0),1,IF(C84<=VLOOKUP(E84,'Inputs - Simulador'!$C$5:$AQ$13,11,0),2,IF(C84<=VLOOKUP(E84,'Inputs - Simulador'!$C$5:$AQ$13,16,0),3,IF(C84<=VLOOKUP(E84,'Inputs - Simulador'!$C$5:$AQ$13,21,0),4,IF(C84<=VLOOKUP(E84,'Inputs - Simulador'!$C$5:$AQ$13,26,0),5,IF(C84<=VLOOKUP(E84,'Inputs - Simulador'!$C$5:$AQ$13,31,0),6,IF(C84<=VLOOKUP(E84,'Inputs - Simulador'!$C$5:$AQ$13,36,0),7,IF(C84<=VLOOKUP(E84,'Inputs - Simulador'!$C$5:$AQ$13,41,0),8,0)))))))) -> 6 | M84: 53047
A85: Agua | B85: COMERCIAL | C85: 83 | D85: Vol_NormalAguaCOMERCIAL83 | E85: COMERCIAL | F85: =IF(AND('Volume Medido 1'!$O$3,C85<=5),VLOOKUP("NORMAL"&A85&E85&C85,'Volume Medido 1'!$G$3:$I$449,3,0),M85) -> 50874 | G85: =$F85/Parâmetros!$B$5 -> 5.578933449e-05 | H85: =$G85*Parâmetros!B$15 -> 51426.87002 | I85: =$G85*Parâmetros!C$15 -> 52600.49704 | J85: =$G85*Parâmetros!D$15 -> 53838.31568 | K85: =$G85*Parâmetros!E$15 -> 55030.61982 | L85: =IF(C85<=VLOOKUP(E85,'Inputs - Simulador'!$C$5:$AQ$13,6,0),1,IF(C85<=VLOOKUP(E85,'Inputs - Simulador'!$C$5:$AQ$13,11,0),2,IF(C85<=VLOOKUP(E85,'Inputs - Simulador'!$C$5:$AQ$13,16,0),3,IF(C85<=VLOOKUP(E85,'Inputs - Simulador'!$C$5:$AQ$13,21,0),4,IF(C85<=VLOOKUP(E85,'Inputs - Simulador'!$C$5:$AQ$13,26,0),5,IF(C85<=VLOOKUP(E85,'Inputs - Simulador'!$C$5:$AQ$13,31,0),6,IF(C85<=VLOOKUP(E85,'Inputs - Simulador'!$C$5:$AQ$13,36,0),7,IF(C85<=VLOOKUP(E85,'Inputs - Simulador'!$C$5:$AQ$13,41,0),8,0)))))))) -> 6 | M85: 50874
A86: Agua | B86: COMERCIAL | C86: 84 | D86: Vol_NormalAguaCOMERCIAL84 | E86: COMERCIAL | F86: =IF(AND('Volume Medido 1'!$O$3,C86<=5),VLOOKUP("NORMAL"&A86&E86&C86,'Volume Medido 1'!$G$3:$I$449,3,0),M86) -> 52332 | G86: =$F86/Parâmetros!$B$5 -> 5.738820326e-05 | H86: =$G86*Parâmetros!B$15 -> 52900.71474 | I86: =$G86*Parâmetros!C$15 -> 54107.97679 | J86: =$G86*Parâmetros!D$15 -> 55381.27012 | K86: =$G86*Parâmetros!E$15 -> 56607.74455 | L86: =IF(C86<=VLOOKUP(E86,'Inputs - Simulador'!$C$5:$AQ$13,6,0),1,IF(C86<=VLOOKUP(E86,'Inputs - Simulador'!$C$5:$AQ$13,11,0),2,IF(C86<=VLOOKUP(E86,'Inputs - Simulador'!$C$5:$AQ$13,16,0),3,IF(C86<=VLOOKUP(E86,'Inputs - Simulador'!$C$5:$AQ$13,21,0),4,IF(C86<=VLOOKUP(E86,'Inputs - Simulador'!$C$5:$AQ$13,26,0),5,IF(C86<=VLOOKUP(E86,'Inputs - Simulador'!$C$5:$AQ$13,31,0),6,IF(C86<=VLOOKUP(E86,'Inputs - Simulador'!$C$5:$AQ$13,36,0),7,IF(C86<=VLOOKUP(E86,'Inputs - Simulador'!$C$5:$AQ$13,41,0),8,0)))))))) -> 6 | M86: 52332
A87: Agua | B87: COMERCIAL | C87: 85 | D87: Vol_NormalAguaCOMERCIAL85 | E87: COMERCIAL | F87: =IF(AND('Volume Medido 1'!$O$3,C87<=5),VLOOKUP("NORMAL"&A87&E87&C87,'Volume Medido 1'!$G$3:$I$449,3,0),M87) -> 51595 | G87: =$F87/Parâmetros!$B$5 -> 5.657999593e-05 | H87: =$G87*Parâmetros!B$15 -> 52155.70544 | I87: =$G87*Parâmetros!C$15 -> 53345.96542 | J87: =$G87*Parâmetros!D$15 -> 54601.32676 | K87: =$G87*Parâmetros!E$15 -> 55810.52855 | L87: =IF(C87<=VLOOKUP(E87,'Inputs - Simulador'!$C$5:$AQ$13,6,0),1,IF(C87<=VLOOKUP(E87,'Inputs - Simulador'!$C$5:$AQ$13,11,0),2,IF(C87<=VLOOKUP(E87,'Inputs - Simulador'!$C$5:$AQ$13,16,0),3,IF(C87<=VLOOKUP(E87,'Inputs - Simulador'!$C$5:$AQ$13,21,0),4,IF(C87<=VLOOKUP(E87,'Inputs - Simulador'!$C$5:$AQ$13,26,0),5,IF(C87<=VLOOKUP(E87,'Inputs - Simulador'!$C$5:$AQ$13,31,0),6,IF(C87<=VLOOKUP(E87,'Inputs - Simulador'!$C$5:$AQ$13,36,0),7,IF(C87<=VLOOKUP(E87,'Inputs - Simulador'!$C$5:$AQ$13,41,0),8,0)))))))) -> 6 | M87: 51595
A88: Agua | B88: COMERCIAL | C88: 86 | D88: Vol_NormalAguaCOMERCIAL86 | E88: COMERCIAL | F88: =IF(AND('Volume Medido 1'!$O$3,C88<=5),VLOOKUP("NORMAL"&A88&E88&C88,'Volume Medido 1'!$G$3:$I$449,3,0),M88) -> 49191 | G88: =$F88/Parâmetros!$B$5 -> 5.394372671e-05 | H88: =$G88*Parâmetros!B$15 -> 49725.58012 | I88: =$G88*Parâmetros!C$15 -> 50860.38153 | J88: =$G88*Parâmetros!D$15 -> 52057.25099 | K88: =$G88*Parâmetros!E$15 -> 53210.11164 | L88: =IF(C88<=VLOOKUP(E88,'Inputs - Simulador'!$C$5:$AQ$13,6,0),1,IF(C88<=VLOOKUP(E88,'Inputs - Simulador'!$C$5:$AQ$13,11,0),2,IF(C88<=VLOOKUP(E88,'Inputs - Simulador'!$C$5:$AQ$13,16,0),3,IF(C88<=VLOOKUP(E88,'Inputs - Simulador'!$C$5:$AQ$13,21,0),4,IF(C88<=VLOOKUP(E88,'Inputs - Simulador'!$C$5:$AQ$13,26,0),5,IF(C88<=VLOOKUP(E88,'Inputs - Simulador'!$C$5:$AQ$13,31,0),6,IF(C88<=VLOOKUP(E88,'Inputs - Simulador'!$C$5:$AQ$13,36,0),7,IF(C88<=VLOOKUP(E88,'Inputs - Simulador'!$C$5:$AQ$13,41,0),8,0)))))))) -> 6 | M88: 49191
A89: Agua | B89: COMERCIAL | C89: 87 | D89: Vol_NormalAguaCOMERCIAL87 | E89: COMERCIAL | F89: =IF(AND('Volume Medido 1'!$O$3,C89<=5),VLOOKUP("NORMAL"&A89&E89&C89,'Volume Medido 1'!$G$3:$I$449,3,0),M89) -> 47240 | G89: =$F89/Parâmetros!$B$5 -> 5.180422537e-05 | H89: =$G89*Parâmetros!B$15 -> 47753.37775 | I89: =$G89*Parâmetros!C$15 -> 48843.17097 | J89: =$G89*Parâmetros!D$15 -> 49992.57052 | K89: =$G89*Parâmetros!E$15 -> 51099.70673 | L89: =IF(C89<=VLOOKUP(E89,'Inputs - Simulador'!$C$5:$AQ$13,6,0),1,IF(C89<=VLOOKUP(E89,'Inputs - Simulador'!$C$5:$AQ$13,11,0),2,IF(C89<=VLOOKUP(E89,'Inputs - Simulador'!$C$5:$AQ$13,16,0),3,IF(C89<=VLOOKUP(E89,'Inputs - Simulador'!$C$5:$AQ$13,21,0),4,IF(C89<=VLOOKUP(E89,'Inputs - Simulador'!$C$5:$AQ$13,26,0),5,IF(C89<=VLOOKUP(E89,'Inputs - Simulador'!$C$5:$AQ$13,31,0),6,IF(C89<=VLOOKUP(E89,'Inputs - Simulador'!$C$5:$AQ$13,36,0),7,IF(C89<=VLOOKUP(E89,'Inputs - Simulador'!$C$5:$AQ$13,41,0),8,0)))))))) -> 6 | M89: 47240
A90: Agua | B90: COMERCIAL | C90: 88 | D90: Vol_NormalAguaCOMERCIAL88 | E90: COMERCIAL | F90: =IF(AND('Volume Medido 1'!$O$3,C90<=5),VLOOKUP("NORMAL"&A90&E90&C90,'Volume Medido 1'!$G$3:$I$449,3,0),M90) -> 44966 | G90: =$F90/Parâmetros!$B$5 -> 4.931051647e-05 | H90: =$G90*Parâmetros!B$15 -> 45454.6652 | I90: =$G90*Parâmetros!C$15 -> 46491.99886 | J90: =$G90*Parâmetros!D$15 -> 47586.06956 | K90: =$G90*Parâmetros!E$15 -> 48639.91137 | L90: =IF(C90<=VLOOKUP(E90,'Inputs - Simulador'!$C$5:$AQ$13,6,0),1,IF(C90<=VLOOKUP(E90,'Inputs - Simulador'!$C$5:$AQ$13,11,0),2,IF(C90<=VLOOKUP(E90,'Inputs - Simulador'!$C$5:$AQ$13,16,0),3,IF(C90<=VLOOKUP(E90,'Inputs - Simulador'!$C$5:$AQ$13,21,0),4,IF(C90<=VLOOKUP(E90,'Inputs - Simulador'!$C$5:$AQ$13,26,0),5,IF(C90<=VLOOKUP(E90,'Inputs - Simulador'!$C$5:$AQ$13,31,0),6,IF(C90<=VLOOKUP(E90,'Inputs - Simulador'!$C$5:$AQ$13,36,0),7,IF(C90<=VLOOKUP(E90,'Inputs - Simulador'!$C$5:$AQ$13,41,0),8,0)))))))) -> 6 | M90: 44966
A91: Agua | B91: COMERCIAL | C91: 89 | D91: Vol_NormalAguaCOMERCIAL89 | E91: COMERCIAL | F91: =IF(AND('Volume Medido 1'!$O$3,C91<=5),VLOOKUP("NORMAL"&A91&E91&C91,'Volume Medido 1'!$G$3:$I$449,3,0),M91) -> 41469 | G91: =$F91/Parâmetros!$B$5 -> 4.547564398e-05 | H91: =$G91*Parâmetros!B$15 -> 41919.66177 | I91: =$G91*Parâmetros!C$15 -> 42876.32212 | J91: =$G91*Parâmetros!D$15 -> 43885.30709 | K91: =$G91*Parâmetros!E$15 -> 44857.19175 | L91: =IF(C91<=VLOOKUP(E91,'Inputs - Simulador'!$C$5:$AQ$13,6,0),1,IF(C91<=VLOOKUP(E91,'Inputs - Simulador'!$C$5:$AQ$13,11,0),2,IF(C91<=VLOOKUP(E91,'Inputs - Simulador'!$C$5:$AQ$13,16,0),3,IF(C91<=VLOOKUP(E91,'Inputs - Simulador'!$C$5:$AQ$13,21,0),4,IF(C91<=VLOOKUP(E91,'Inputs - Simulador'!$C$5:$AQ$13,26,0),5,IF(C91<=VLOOKUP(E91,'Inputs - Simulador'!$C$5:$AQ$13,31,0),6,IF(C91<=VLOOKUP(E91,'Inputs - Simulador'!$C$5:$AQ$13,36,0),7,IF(C91<=VLOOKUP(E91,'Inputs - Simulador'!$C$5:$AQ$13,41,0),8,0)))))))) -> 6 | M91: 41469
A92: Agua | B92: COMERCIAL | C92: 90 | D92: Vol_NormalAguaCOMERCIAL90 | E92: COMERCIAL | F92: =IF(AND('Volume Medido 1'!$O$3,C92<=5),VLOOKUP("NORMAL"&A92&E92&C92,'Volume Medido 1'!$G$3:$I$449,3,0),M92) -> 42569 | G92: =$F92/Parâmetros!$B$5 -> 4.668192357e-05 | H92: =$G92*Parâmetros!B$15 -> 43031.61595 | I92: =$G92*Parâmetros!C$15 -> 44013.65252 | J92: =$G92*Parâmetros!D$15 -> 45049.40166 | K92: =$G92*Parâmetros!E$15 -> 46047.06638 | L92: =IF(C92<=VLOOKUP(E92,'Inputs - Simulador'!$C$5:$AQ$13,6,0),1,IF(C92<=VLOOKUP(E92,'Inputs - Simulador'!$C$5:$AQ$13,11,0),2,IF(C92<=VLOOKUP(E92,'Inputs - Simulador'!$C$5:$AQ$13,16,0),3,IF(C92<=VLOOKUP(E92,'Inputs - Simulador'!$C$5:$AQ$13,21,0),4,IF(C92<=VLOOKUP(E92,'Inputs - Simulador'!$C$5:$AQ$13,26,0),5,IF(C92<=VLOOKUP(E92,'Inputs - Simulador'!$C$5:$AQ$13,31,0),6,IF(C92<=VLOOKUP(E92,'Inputs - Simulador'!$C$5:$AQ$13,36,0),7,IF(C92<=VLOOKUP(E92,'Inputs - Simulador'!$C$5:$AQ$13,41,0),8,0)))))))) -> 6 | M92: 42569
A93: Agua | B93: COMERCIAL | C93: 91 | D93: Vol_NormalAguaCOMERCIAL91 | E93: COMERCIAL | F93: =IF(AND('Volume Medido 1'!$O$3,C93<=5),VLOOKUP("NORMAL"&A93&E93&C93,'Volume Medido 1'!$G$3:$I$449,3,0),M93) -> 44949 | G93: =$F93/Parâmetros!$B$5 -> 4.929187396e-05 | H93: =$G93*Parâmetros!B$15 -> 45437.48045 | I93: =$G93*Parâmetros!C$15 -> 46474.42193 | J93: =$G93*Parâmetros!D$15 -> 47568.07901 | K93: =$G93*Parâmetros!E$15 -> 48621.52239 | L93: =IF(C93<=VLOOKUP(E93,'Inputs - Simulador'!$C$5:$AQ$13,6,0),1,IF(C93<=VLOOKUP(E93,'Inputs - Simulador'!$C$5:$AQ$13,11,0),2,IF(C93<=VLOOKUP(E93,'Inputs - Simulador'!$C$5:$AQ$13,16,0),3,IF(C93<=VLOOKUP(E93,'Inputs - Simulador'!$C$5:$AQ$13,21,0),4,IF(C93<=VLOOKUP(E93,'Inputs - Simulador'!$C$5:$AQ$13,26,0),5,IF(C93<=VLOOKUP(E93,'Inputs - Simulador'!$C$5:$AQ$13,31,0),6,IF(C93<=VLOOKUP(E93,'Inputs - Simulador'!$C$5:$AQ$13,36,0),7,IF(C93<=VLOOKUP(E93,'Inputs - Simulador'!$C$5:$AQ$13,41,0),8,0)))))))) -> 6 | M93: 44949
A94: Agua | B94: COMERCIAL | C94: 92 | D94: Vol_NormalAguaCOMERCIAL92 | E94: COMERCIAL | F94: =IF(AND('Volume Medido 1'!$O$3,C94<=5),VLOOKUP("NORMAL"&A94&E94&C94,'Volume Medido 1'!$G$3:$I$449,3,0),M94) -> 44614 | G94: =$F94/Parâmetros!$B$5 -> 4.8924507e-05 | H94: =$G94*Parâmetros!B$15 -> 45098.83986 | I94: =$G94*Parâmetros!C$15 -> 46128.05313 | J94: =$G94*Parâmetros!D$15 -> 47213.5593 | K94: =$G94*Parâmetros!E$15 -> 48259.15148 | L94: =IF(C94<=VLOOKUP(E94,'Inputs - Simulador'!$C$5:$AQ$13,6,0),1,IF(C94<=VLOOKUP(E94,'Inputs - Simulador'!$C$5:$AQ$13,11,0),2,IF(C94<=VLOOKUP(E94,'Inputs - Simulador'!$C$5:$AQ$13,16,0),3,IF(C94<=VLOOKUP(E94,'Inputs - Simulador'!$C$5:$AQ$13,21,0),4,IF(C94<=VLOOKUP(E94,'Inputs - Simulador'!$C$5:$AQ$13,26,0),5,IF(C94<=VLOOKUP(E94,'Inputs - Simulador'!$C$5:$AQ$13,31,0),6,IF(C94<=VLOOKUP(E94,'Inputs - Simulador'!$C$5:$AQ$13,36,0),7,IF(C94<=VLOOKUP(E94,'Inputs - Simulador'!$C$5:$AQ$13,41,0),8,0)))))))) -> 6 | M94: 44614
A95: Agua | B95: COMERCIAL | C95: 93 | D95: Vol_NormalAguaCOMERCIAL93 | E95: COMERCIAL | F95: =IF(AND('Volume Medido 1'!$O$3,C95<=5),VLOOKUP("NORMAL"&A95&E95&C95,'Volume Medido 1'!$G$3:$I$449,3,0),M95) -> 44358 | G95: =$F95/Parâmetros!$B$5 -> 4.864377284e-05 | H95: =$G95*Parâmetros!B$15 -> 44840.05779 | I95: =$G95*Parâmetros!C$15 -> 45863.36533 | J95: =$G95*Parâmetros!D$15 -> 46942.64274 | K95: =$G95*Parâmetros!E$15 -> 47982.23521 | L95: =IF(C95<=VLOOKUP(E95,'Inputs - Simulador'!$C$5:$AQ$13,6,0),1,IF(C95<=VLOOKUP(E95,'Inputs - Simulador'!$C$5:$AQ$13,11,0),2,IF(C95<=VLOOKUP(E95,'Inputs - Simulador'!$C$5:$AQ$13,16,0),3,IF(C95<=VLOOKUP(E95,'Inputs - Simulador'!$C$5:$AQ$13,21,0),4,IF(C95<=VLOOKUP(E95,'Inputs - Simulador'!$C$5:$AQ$13,26,0),5,IF(C95<=VLOOKUP(E95,'Inputs - Simulador'!$C$5:$AQ$13,31,0),6,IF(C95<=VLOOKUP(E95,'Inputs - Simulador'!$C$5:$AQ$13,36,0),7,IF(C95<=VLOOKUP(E95,'Inputs - Simulador'!$C$5:$AQ$13,41,0),8,0)))))))) -> 6 | M95: 44358
A96: Agua | B96: COMERCIAL | C96: 94 | D96: Vol_NormalAguaCOMERCIAL94 | E96: COMERCIAL | F96: =IF(AND('Volume Medido 1'!$O$3,C96<=5),VLOOKUP("NORMAL"&A96&E96&C96,'Volume Medido 1'!$G$3:$I$449,3,0),M96) -> 42108 | G96: =$F96/Parâmetros!$B$5 -> 4.617638276e-05 | H96: =$G96*Parâmetros!B$15 -> 42565.60606 | I96: =$G96*Parâmetros!C$15 -> 43537.00769 | J96: =$G96*Parâmetros!D$15 -> 44561.54021 | K96: =$G96*Parâmetros!E$15 -> 45548.40074 | L96: =IF(C96<=VLOOKUP(E96,'Inputs - Simulador'!$C$5:$AQ$13,6,0),1,IF(C96<=VLOOKUP(E96,'Inputs - Simulador'!$C$5:$AQ$13,11,0),2,IF(C96<=VLOOKUP(E96,'Inputs - Simulador'!$C$5:$AQ$13,16,0),3,IF(C96<=VLOOKUP(E96,'Inputs - Simulador'!$C$5:$AQ$13,21,0),4,IF(C96<=VLOOKUP(E96,'Inputs - Simulador'!$C$5:$AQ$13,26,0),5,IF(C96<=VLOOKUP(E96,'Inputs - Simulador'!$C$5:$AQ$13,31,0),6,IF(C96<=VLOOKUP(E96,'Inputs - Simulador'!$C$5:$AQ$13,36,0),7,IF(C96<=VLOOKUP(E96,'Inputs - Simulador'!$C$5:$AQ$13,41,0),8,0)))))))) -> 6 | M96: 42108
A97: Agua | B97: COMERCIAL | C97: 95 | D97: Vol_NormalAguaCOMERCIAL95 | E97: COMERCIAL | F97: =IF(AND('Volume Medido 1'!$O$3,C97<=5),VLOOKUP("NORMAL"&A97&E97&C97,'Volume Medido 1'!$G$3:$I$449,3,0),M97) -> 39897 | G97: =$F97/Parâmetros!$B$5 -> 4.375176078e-05 | H97: =$G97*Parâmetros!B$15 -> 40330.57816 | I97: =$G97*Parâmetros!C$15 -> 41250.97359 | J97: =$G97*Parâmetros!D$15 -> 42221.71012 | K97: =$G97*Parâmetros!E$15 -> 43156.75274 | L97: =IF(C97<=VLOOKUP(E97,'Inputs - Simulador'!$C$5:$AQ$13,6,0),1,IF(C97<=VLOOKUP(E97,'Inputs - Simulador'!$C$5:$AQ$13,11,0),2,IF(C97<=VLOOKUP(E97,'Inputs - Simulador'!$C$5:$AQ$13,16,0),3,IF(C97<=VLOOKUP(E97,'Inputs - Simulador'!$C$5:$AQ$13,21,0),4,IF(C97<=VLOOKUP(E97,'Inputs - Simulador'!$C$5:$AQ$13,26,0),5,IF(C97<=VLOOKUP(E97,'Inputs - Simulador'!$C$5:$AQ$13,31,0),6,IF(C97<=VLOOKUP(E97,'Inputs - Simulador'!$C$5:$AQ$13,36,0),7,IF(C97<=VLOOKUP(E97,'Inputs - Simulador'!$C$5:$AQ$13,41,0),8,0)))))))) -> 6 | M97: 39897
A98: Agua | B98: COMERCIAL | C98: 96 | D98: Vol_NormalAguaCOMERCIAL96 | E98: COMERCIAL | F98: =IF(AND('Volume Medido 1'!$O$3,C98<=5),VLOOKUP("NORMAL"&A98&E98&C98,'Volume Medido 1'!$G$3:$I$449,3,0),M98) -> 41087 | G98: =$F98/Parâmetros!$B$5 -> 4.505673598e-05 | H98: =$G98*Parâmetros!B$15 -> 41533.51041 | I98: =$G98*Parâmetros!C$15 -> 42481.35829 | J98: =$G98*Parâmetros!D$15 -> 43481.04879 | K98: =$G98*Parâmetros!E$15 -> 44443.98075 | L98: =IF(C98<=VLOOKUP(E98,'Inputs - Simulador'!$C$5:$AQ$13,6,0),1,IF(C98<=VLOOKUP(E98,'Inputs - Simulador'!$C$5:$AQ$13,11,0),2,IF(C98<=VLOOKUP(E98,'Inputs - Simulador'!$C$5:$AQ$13,16,0),3,IF(C98<=VLOOKUP(E98,'Inputs - Simulador'!$C$5:$AQ$13,21,0),4,IF(C98<=VLOOKUP(E98,'Inputs - Simulador'!$C$5:$AQ$13,26,0),5,IF(C98<=VLOOKUP(E98,'Inputs - Simulador'!$C$5:$AQ$13,31,0),6,IF(C98<=VLOOKUP(E98,'Inputs - Simulador'!$C$5:$AQ$13,36,0),7,IF(C98<=VLOOKUP(E98,'Inputs - Simulador'!$C$5:$AQ$13,41,0),8,0)))))))) -> 6 | M98: 41087
A99: Agua | B99: COMERCIAL | C99: 97 | D99: Vol_NormalAguaCOMERCIAL97 | E99: COMERCIAL | F99: =IF(AND('Volume Medido 1'!$O$3,C99<=5),VLOOKUP("NORMAL"&A99&E99&C99,'Volume Medido 1'!$G$3:$I$449,3,0),M99) -> 36471 | G99: =$F99/Parâmetros!$B$5 -> 3.999474817e-05 | H99: =$G99*Parâmetros!B$15 -> 36867.34631 | I99: =$G99*Parâmetros!C$15 -> 37708.70636 | J99: =$G99*Parâmetros!D$15 -> 38596.08466 | K99: =$G99*Parâmetros!E$15 -> 39450.83413 | L99: =IF(C99<=VLOOKUP(E99,'Inputs - Simulador'!$C$5:$AQ$13,6,0),1,IF(C99<=VLOOKUP(E99,'Inputs - Simulador'!$C$5:$AQ$13,11,0),2,IF(C99<=VLOOKUP(E99,'Inputs - Simulador'!$C$5:$AQ$13,16,0),3,IF(C99<=VLOOKUP(E99,'Inputs - Simulador'!$C$5:$AQ$13,21,0),4,IF(C99<=VLOOKUP(E99,'Inputs - Simulador'!$C$5:$AQ$13,26,0),5,IF(C99<=VLOOKUP(E99,'Inputs - Simulador'!$C$5:$AQ$13,31,0),6,IF(C99<=VLOOKUP(E99,'Inputs - Simulador'!$C$5:$AQ$13,36,0),7,IF(C99<=VLOOKUP(E99,'Inputs - Simulador'!$C$5:$AQ$13,41,0),8,0)))))))) -> 6 | M99: 36471
A100: Agua | B100: COMERCIAL | C100: 98 | D100: Vol_NormalAguaCOMERCIAL98 | E100: COMERCIAL | F100: =IF(AND('Volume Medido 1'!$O$3,C100<=5),VLOOKUP("NORMAL"&A100&E100&C100,'Volume Medido 1'!$G$3:$I$449,3,0),M100) -> 39004 | G100: =$F100/Parâmetros!$B$5 -> 4.277248108e-05 | H100: =$G100*Parâmetros!B$15 -> 39427.87353 | I100: =$G100*Parâmetros!C$15 -> 40327.66809 | J100: =$G100*Parâmetros!D$15 -> 41276.67698 | K100: =$G100*Parâmetros!E$15 -> 42190.79088 | L100: =IF(C100<=VLOOKUP(E100,'Inputs - Simulador'!$C$5:$AQ$13,6,0),1,IF(C100<=VLOOKUP(E100,'Inputs - Simulador'!$C$5:$AQ$13,11,0),2,IF(C100<=VLOOKUP(E100,'Inputs - Simulador'!$C$5:$AQ$13,16,0),3,IF(C100<=VLOOKUP(E100,'Inputs - Simulador'!$C$5:$AQ$13,21,0),4,IF(C100<=VLOOKUP(E100,'Inputs - Simulador'!$C$5:$AQ$13,26,0),5,IF(C100<=VLOOKUP(E100,'Inputs - Simulador'!$C$5:$AQ$13,31,0),6,IF(C100<=VLOOKUP(E100,'Inputs - Simulador'!$C$5:$AQ$13,36,0),7,IF(C100<=VLOOKUP(E100,'Inputs - Simulador'!$C$5:$AQ$13,41,0),8,0)))))))) -> 6 | M100: 39004
A101: Agua | B101: COMERCIAL | C101: 99 | D101: Vol_NormalAguaCOMERCIAL99 | E101: COMERCIAL | F101: =IF(AND('Volume Medido 1'!$O$3,C101<=5),VLOOKUP("NORMAL"&A101&E101&C101,'Volume Medido 1'!$G$3:$I$449,3,0),M101) -> 40587 | G101: =$F101/Parâmetros!$B$5 -> 4.450842707e-05 | H101: =$G101*Parâmetros!B$15 -> 41028.07669 | I101: =$G101*Parâmetros!C$15 -> 41964.38993 | J101: =$G101*Parâmetros!D$15 -> 42951.9149 | K101: =$G101*Parâmetros!E$15 -> 43903.12864 | L101: =IF(C101<=VLOOKUP(E101,'Inputs - Simulador'!$C$5:$AQ$13,6,0),1,IF(C101<=VLOOKUP(E101,'Inputs - Simulador'!$C$5:$AQ$13,11,0),2,IF(C101<=VLOOKUP(E101,'Inputs - Simulador'!$C$5:$AQ$13,16,0),3,IF(C101<=VLOOKUP(E101,'Inputs - Simulador'!$C$5:$AQ$13,21,0),4,IF(C101<=VLOOKUP(E101,'Inputs - Simulador'!$C$5:$AQ$13,26,0),5,IF(C101<=VLOOKUP(E101,'Inputs - Simulador'!$C$5:$AQ$13,31,0),6,IF(C101<=VLOOKUP(E101,'Inputs - Simulador'!$C$5:$AQ$13,36,0),7,IF(C101<=VLOOKUP(E101,'Inputs - Simulador'!$C$5:$AQ$13,41,0),8,0)))))))) -> 6 | M101: 40587
A102: Agua | B102: COMERCIAL | C102: 100 | D102: Vol_NormalAguaCOMERCIAL100 | E102: COMERCIAL | F102: =IF(AND('Volume Medido 1'!$O$3,C102<=5),VLOOKUP("NORMAL"&A102&E102&C102,'Volume Medido 1'!$G$3:$I$449,3,0),M102) -> 42099 | G102: =$F102/Parâmetros!$B$5 -> 4.61665132e-05 | H102: =$G102*Parâmetros!B$15 -> 42556.50825 | I102: =$G102*Parâmetros!C$15 -> 43527.70226 | J102: =$G102*Parâmetros!D$15 -> 44552.0158 | K102: =$G102*Parâmetros!E$15 -> 45538.6654 | L102: =IF(C102<=VLOOKUP(E102,'Inputs - Simulador'!$C$5:$AQ$13,6,0),1,IF(C102<=VLOOKUP(E102,'Inputs - Simulador'!$C$5:$AQ$13,11,0),2,IF(C102<=VLOOKUP(E102,'Inputs - Simulador'!$C$5:$AQ$13,16,0),3,IF(C102<=VLOOKUP(E102,'Inputs - Simulador'!$C$5:$AQ$13,21,0),4,IF(C102<=VLOOKUP(E102,'Inputs - Simulador'!$C$5:$AQ$13,26,0),5,IF(C102<=VLOOKUP(E102,'Inputs - Simulador'!$C$5:$AQ$13,31,0),6,IF(C102<=VLOOKUP(E102,'Inputs - Simulador'!$C$5:$AQ$13,36,0),7,IF(C102<=VLOOKUP(E102,'Inputs - Simulador'!$C$5:$AQ$13,41,0),8,0)))))))) -> 6 | M102: 42099
A103: Agua | B103: COMERCIAL | C103: 101 | D103: Vol_NormalAguaCOMERCIAL101 | E103: COMERCIAL | F103: =IF(AND('Volume Medido 1'!$O$3,C103<=5),VLOOKUP("NORMAL"&A103&E103&C103,'Volume Medido 1'!$G$3:$I$449,3,0),M103) -> 38276 | G103: =$F103/Parâmetros!$B$5 -> 4.197414331e-05 | H103: =$G103*Parâmetros!B$15 -> 38691.96204 | I103: =$G103*Parâmetros!C$15 -> 39574.96215 | J103: =$G103*Parâmetros!D$15 -> 40506.25803 | K103: =$G103*Parâmetros!E$15 -> 41403.31022 | L103: =IF(C103<=VLOOKUP(E103,'Inputs - Simulador'!$C$5:$AQ$13,6,0),1,IF(C103<=VLOOKUP(E103,'Inputs - Simulador'!$C$5:$AQ$13,11,0),2,IF(C103<=VLOOKUP(E103,'Inputs - Simulador'!$C$5:$AQ$13,16,0),3,IF(C103<=VLOOKUP(E103,'Inputs - Simulador'!$C$5:$AQ$13,21,0),4,IF(C103<=VLOOKUP(E103,'Inputs - Simulador'!$C$5:$AQ$13,26,0),5,IF(C103<=VLOOKUP(E103,'Inputs - Simulador'!$C$5:$AQ$13,31,0),6,IF(C103<=VLOOKUP(E103,'Inputs - Simulador'!$C$5:$AQ$13,36,0),7,IF(C103<=VLOOKUP(E103,'Inputs - Simulador'!$C$5:$AQ$13,41,0),8,0)))))))) -> 7 | M103: 38276
A104: Agua | B104: COMERCIAL | C104: 102 | D104: Vol_NormalAguaCOMERCIAL102 | E104: COMERCIAL | F104: =IF(AND('Volume Medido 1'!$O$3,C104<=5),VLOOKUP("NORMAL"&A104&E104&C104,'Volume Medido 1'!$G$3:$I$449,3,0),M104) -> 36833 | G104: =$F104/Parâmetros!$B$5 -> 4.039172381e-05 | H104: =$G104*Parâmetros!B$15 -> 37233.28033 | I104: =$G104*Parâmetros!C$15 -> 38082.99146 | J104: =$G104*Parâmetros!D$15 -> 38979.1776 | K104: =$G104*Parâmetros!E$15 -> 39842.41105 | L104: =IF(C104<=VLOOKUP(E104,'Inputs - Simulador'!$C$5:$AQ$13,6,0),1,IF(C104<=VLOOKUP(E104,'Inputs - Simulador'!$C$5:$AQ$13,11,0),2,IF(C104<=VLOOKUP(E104,'Inputs - Simulador'!$C$5:$AQ$13,16,0),3,IF(C104<=VLOOKUP(E104,'Inputs - Simulador'!$C$5:$AQ$13,21,0),4,IF(C104<=VLOOKUP(E104,'Inputs - Simulador'!$C$5:$AQ$13,26,0),5,IF(C104<=VLOOKUP(E104,'Inputs - Simulador'!$C$5:$AQ$13,31,0),6,IF(C104<=VLOOKUP(E104,'Inputs - Simulador'!$C$5:$AQ$13,36,0),7,IF(C104<=VLOOKUP(E104,'Inputs - Simulador'!$C$5:$AQ$13,41,0),8,0)))))))) -> 7 | M104: 36833
A105: Agua | B105: COMERCIAL | C105: 103 | D105: Vol_NormalAguaCOMERCIAL103 | E105: COMERCIAL | F105: =IF(AND('Volume Medido 1'!$O$3,C105<=5),VLOOKUP("NORMAL"&A105&E105&C105,'Volume Medido 1'!$G$3:$I$449,3,0),M105) -> 43259 | G105: =$F105/Parâmetros!$B$5 -> 4.743858986e-05 | H105: =$G105*Parâmetros!B$15 -> 43729.11448 | I105: =$G105*Parâmetros!C$15 -> 44727.06886 | J105: =$G105*Parâmetros!D$15 -> 45779.60644 | K105: =$G105*Parâmetros!E$15 -> 46793.44228 | L105: =IF(C105<=VLOOKUP(E105,'Inputs - Simulador'!$C$5:$AQ$13,6,0),1,IF(C105<=VLOOKUP(E105,'Inputs - Simulador'!$C$5:$AQ$13,11,0),2,IF(C105<=VLOOKUP(E105,'Inputs - Simulador'!$C$5:$AQ$13,16,0),3,IF(C105<=VLOOKUP(E105,'Inputs - Simulador'!$C$5:$AQ$13,21,0),4,IF(C105<=VLOOKUP(E105,'Inputs - Simulador'!$C$5:$AQ$13,26,0),5,IF(C105<=VLOOKUP(E105,'Inputs - Simulador'!$C$5:$AQ$13,31,0),6,IF(C105<=VLOOKUP(E105,'Inputs - Simulador'!$C$5:$AQ$13,36,0),7,IF(C105<=VLOOKUP(E105,'Inputs - Simulador'!$C$5:$AQ$13,41,0),8,0)))))))) -> 7 | M105: 43259
A106: Agua | B106: COMERCIAL | C106: 104 | D106: Vol_NormalAguaCOMERCIAL104 | E106: COMERCIAL | F106: =IF(AND('Volume Medido 1'!$O$3,C106<=5),VLOOKUP("NORMAL"&A106&E106&C106,'Volume Medido 1'!$G$3:$I$449,3,0),M106) -> 32862 | G106: =$F106/Parâmetros!$B$5 -> 3.603705449e-05 | H106: =$G106*Parâmetros!B$15 -> 33219.12573 | I106: =$G106*Parâmetros!C$15 -> 33977.22872 | J106: =$G106*Parâmetros!D$15 -> 34776.7962 | K106: =$G106*Parâmetros!E$15 -> 35546.96365 | L106: =IF(C106<=VLOOKUP(E106,'Inputs - Simulador'!$C$5:$AQ$13,6,0),1,IF(C106<=VLOOKUP(E106,'Inputs - Simulador'!$C$5:$AQ$13,11,0),2,IF(C106<=VLOOKUP(E106,'Inputs - Simulador'!$C$5:$AQ$13,16,0),3,IF(C106<=VLOOKUP(E106,'Inputs - Simulador'!$C$5:$AQ$13,21,0),4,IF(C106<=VLOOKUP(E106,'Inputs - Simulador'!$C$5:$AQ$13,26,0),5,IF(C106<=VLOOKUP(E106,'Inputs - Simulador'!$C$5:$AQ$13,31,0),6,IF(C106<=VLOOKUP(E106,'Inputs - Simulador'!$C$5:$AQ$13,36,0),7,IF(C106<=VLOOKUP(E106,'Inputs - Simulador'!$C$5:$AQ$13,41,0),8,0)))))))) -> 7 | M106: 32862
A107: Agua | B107: COMERCIAL | C107: 105 | D107: Vol_NormalAguaCOMERCIAL105 | E107: COMERCIAL | F107: =IF(AND('Volume Medido 1'!$O$3,C107<=5),VLOOKUP("NORMAL"&A107&E107&C107,'Volume Medido 1'!$G$3:$I$449,3,0),M107) -> 35384 | G107: =$F107/Parâmetros!$B$5 -> 3.880272461e-05 | H107: =$G107*Parâmetros!B$15 -> 35768.53341 | I107: =$G107*Parâmetros!C$15 -> 36584.81714 | J107: =$G107*Parâmetros!D$15 -> 37445.74757 | K107: =$G107*Parâmetros!E$15 -> 38275.02166 | L107: =IF(C107<=VLOOKUP(E107,'Inputs - Simulador'!$C$5:$AQ$13,6,0),1,IF(C107<=VLOOKUP(E107,'Inputs - Simulador'!$C$5:$AQ$13,11,0),2,IF(C107<=VLOOKUP(E107,'Inputs - Simulador'!$C$5:$AQ$13,16,0),3,IF(C107<=VLOOKUP(E107,'Inputs - Simulador'!$C$5:$AQ$13,21,0),4,IF(C107<=VLOOKUP(E107,'Inputs - Simulador'!$C$5:$AQ$13,26,0),5,IF(C107<=VLOOKUP(E107,'Inputs - Simulador'!$C$5:$AQ$13,31,0),6,IF(C107<=VLOOKUP(E107,'Inputs - Simulador'!$C$5:$AQ$13,36,0),7,IF(C107<=VLOOKUP(E107,'Inputs - Simulador'!$C$5:$AQ$13,41,0),8,0)))))))) -> 7 | M107: 35384
A108: Agua | B108: COMERCIAL | C108: 106 | D108: Vol_NormalAguaCOMERCIAL106 | E108: COMERCIAL | F108: =IF(AND('Volume Medido 1'!$O$3,C108<=5),VLOOKUP("NORMAL"&A108&E108&C108,'Volume Medido 1'!$G$3:$I$449,3,0),M108) -> 36792 | G108: =$F108/Parâmetros!$B$5 -> 4.034676248e-05 | H108: =$G108*Parâmetros!B$15 -> 37191.83476 | I108: =$G108*Parâmetros!C$15 -> 38040.60005 | J108: =$G108*Parâmetros!D$15 -> 38935.78863 | K108: =$G108*Parâmetros!E$15 -> 39798.06118 | L108: =IF(C108<=VLOOKUP(E108,'Inputs - Simulador'!$C$5:$AQ$13,6,0),1,IF(C108<=VLOOKUP(E108,'Inputs - Simulador'!$C$5:$AQ$13,11,0),2,IF(C108<=VLOOKUP(E108,'Inputs - Simulador'!$C$5:$AQ$13,16,0),3,IF(C108<=VLOOKUP(E108,'Inputs - Simulador'!$C$5:$AQ$13,21,0),4,IF(C108<=VLOOKUP(E108,'Inputs - Simulador'!$C$5:$AQ$13,26,0),5,IF(C108<=VLOOKUP(E108,'Inputs - Simulador'!$C$5:$AQ$13,31,0),6,IF(C108<=VLOOKUP(E108,'Inputs - Simulador'!$C$5:$AQ$13,36,0),7,IF(C108<=VLOOKUP(E108,'Inputs - Simulador'!$C$5:$AQ$13,41,0),8,0)))))))) -> 7 | M108: 36792
A109: Agua | B109: COMERCIAL | C109: 107 | D109: Vol_NormalAguaCOMERCIAL107 | E109: COMERCIAL | F109: =IF(AND('Volume Medido 1'!$O$3,C109<=5),VLOOKUP("NORMAL"&A109&E109&C109,'Volume Medido 1'!$G$3:$I$449,3,0),M109) -> 33276 | G109: =$F109/Parâmetros!$B$5 -> 3.649105426e-05 | H109: =$G109*Parâmetros!B$15 -> 33637.62485 | I109: =$G109*Parâmetros!C$15 -> 34405.27852 | J109: =$G109*Parâmetros!D$15 -> 35214.91907 | K109: =$G109*Parâmetros!E$15 -> 35994.78919 | L109: =IF(C109<=VLOOKUP(E109,'Inputs - Simulador'!$C$5:$AQ$13,6,0),1,IF(C109<=VLOOKUP(E109,'Inputs - Simulador'!$C$5:$AQ$13,11,0),2,IF(C109<=VLOOKUP(E109,'Inputs - Simulador'!$C$5:$AQ$13,16,0),3,IF(C109<=VLOOKUP(E109,'Inputs - Simulador'!$C$5:$AQ$13,21,0),4,IF(C109<=VLOOKUP(E109,'Inputs - Simulador'!$C$5:$AQ$13,26,0),5,IF(C109<=VLOOKUP(E109,'Inputs - Simulador'!$C$5:$AQ$13,31,0),6,IF(C109<=VLOOKUP(E109,'Inputs - Simulador'!$C$5:$AQ$13,36,0),7,IF(C109<=VLOOKUP(E109,'Inputs - Simulador'!$C$5:$AQ$13,41,0),8,0)))))))) -> 7 | M109: 33276
A110: Agua | B110: COMERCIAL | C110: 108 | D110: Vol_NormalAguaCOMERCIAL108 | E110: COMERCIAL | F110: =IF(AND('Volume Medido 1'!$O$3,C110<=5),VLOOKUP("NORMAL"&A110&E110&C110,'Volume Medido 1'!$G$3:$I$449,3,0),M110) -> 35963 | G110: =$F110/Parâmetros!$B$5 -> 3.943766632e-05 | H110: =$G110*Parâmetros!B$15 -> 36353.82566 | I110: =$G110*Parâmetros!C$15 -> 37183.46651 | J110: =$G110*Parâmetros!D$15 -> 38058.48463 | K110: =$G110*Parâmetros!E$15 -> 38901.32839 | L110: =IF(C110<=VLOOKUP(E110,'Inputs - Simulador'!$C$5:$AQ$13,6,0),1,IF(C110<=VLOOKUP(E110,'Inputs - Simulador'!$C$5:$AQ$13,11,0),2,IF(C110<=VLOOKUP(E110,'Inputs - Simulador'!$C$5:$AQ$13,16,0),3,IF(C110<=VLOOKUP(E110,'Inputs - Simulador'!$C$5:$AQ$13,21,0),4,IF(C110<=VLOOKUP(E110,'Inputs - Simulador'!$C$5:$AQ$13,26,0),5,IF(C110<=VLOOKUP(E110,'Inputs - Simulador'!$C$5:$AQ$13,31,0),6,IF(C110<=VLOOKUP(E110,'Inputs - Simulador'!$C$5:$AQ$13,36,0),7,IF(C110<=VLOOKUP(E110,'Inputs - Simulador'!$C$5:$AQ$13,41,0),8,0)))))))) -> 7 | M110: 35963
A111: Agua | B111: COMERCIAL | C111: 109 | D111: Vol_NormalAguaCOMERCIAL109 | E111: COMERCIAL | F111: =IF(AND('Volume Medido 1'!$O$3,C111<=5),VLOOKUP("NORMAL"&A111&E111&C111,'Volume Medido 1'!$G$3:$I$449,3,0),M111) -> 35424 | G111: =$F111/Parâmetros!$B$5 -> 3.884658932e-05 | H111: =$G111*Parâmetros!B$15 -> 35808.96811 | I111: =$G111*Parâmetros!C$15 -> 36626.17461 | J111: =$G111*Parâmetros!D$15 -> 37488.07828 | K111: =$G111*Parâmetros!E$15 -> 38318.28982 | L111: =IF(C111<=VLOOKUP(E111,'Inputs - Simulador'!$C$5:$AQ$13,6,0),1,IF(C111<=VLOOKUP(E111,'Inputs - Simulador'!$C$5:$AQ$13,11,0),2,IF(C111<=VLOOKUP(E111,'Inputs - Simulador'!$C$5:$AQ$13,16,0),3,IF(C111<=VLOOKUP(E111,'Inputs - Simulador'!$C$5:$AQ$13,21,0),4,IF(C111<=VLOOKUP(E111,'Inputs - Simulador'!$C$5:$AQ$13,26,0),5,IF(C111<=VLOOKUP(E111,'Inputs - Simulador'!$C$5:$AQ$13,31,0),6,IF(C111<=VLOOKUP(E111,'Inputs - Simulador'!$C$5:$AQ$13,36,0),7,IF(C111<=VLOOKUP(E111,'Inputs - Simulador'!$C$5:$AQ$13,41,0),8,0)))))))) -> 7 | M111: 35424
A112: Agua | B112: COMERCIAL | C112: 110 | D112: Vol_NormalAguaCOMERCIAL110 | E112: COMERCIAL | F112: =IF(AND('Volume Medido 1'!$O$3,C112<=5),VLOOKUP("NORMAL"&A112&E112&C112,'Volume Medido 1'!$G$3:$I$449,3,0),M112) -> 32668 | G112: =$F112/Parâmetros!$B$5 -> 3.582431063e-05 | H112: =$G112*Parâmetros!B$15 -> 33023.01745 | I112: =$G112*Parâmetros!C$15 -> 33776.64499 | J112: =$G112*Parâmetros!D$15 -> 34571.49225 | K112: =$G112*Parâmetros!E$15 -> 35337.11303 | L112: =IF(C112<=VLOOKUP(E112,'Inputs - Simulador'!$C$5:$AQ$13,6,0),1,IF(C112<=VLOOKUP(E112,'Inputs - Simulador'!$C$5:$AQ$13,11,0),2,IF(C112<=VLOOKUP(E112,'Inputs - Simulador'!$C$5:$AQ$13,16,0),3,IF(C112<=VLOOKUP(E112,'Inputs - Simulador'!$C$5:$AQ$13,21,0),4,IF(C112<=VLOOKUP(E112,'Inputs - Simulador'!$C$5:$AQ$13,26,0),5,IF(C112<=VLOOKUP(E112,'Inputs - Simulador'!$C$5:$AQ$13,31,0),6,IF(C112<=VLOOKUP(E112,'Inputs - Simulador'!$C$5:$AQ$13,36,0),7,IF(C112<=VLOOKUP(E112,'Inputs - Simulador'!$C$5:$AQ$13,41,0),8,0)))))))) -> 7 | M112: 32668
A113: Agua | B113: COMERCIAL | C113: 111 | D113: Vol_NormalAguaCOMERCIAL111 | E113: COMERCIAL | F113: =IF(AND('Volume Medido 1'!$O$3,C113<=5),VLOOKUP("NORMAL"&A113&E113&C113,'Volume Medido 1'!$G$3:$I$449,3,0),M113) -> 31188 | G113: =$F113/Parâmetros!$B$5 -> 3.420131627e-05 | H113: =$G113*Parâmetros!B$15 -> 31526.93364 | I113: =$G113*Parâmetros!C$15 -> 32246.41863 | J113: =$G113*Parâmetros!D$15 -> 33005.25592 | K113: =$G113*Parâmetros!E$15 -> 33736.1908 | L113: =IF(C113<=VLOOKUP(E113,'Inputs - Simulador'!$C$5:$AQ$13,6,0),1,IF(C113<=VLOOKUP(E113,'Inputs - Simulador'!$C$5:$AQ$13,11,0),2,IF(C113<=VLOOKUP(E113,'Inputs - Simulador'!$C$5:$AQ$13,16,0),3,IF(C113<=VLOOKUP(E113,'Inputs - Simulador'!$C$5:$AQ$13,21,0),4,IF(C113<=VLOOKUP(E113,'Inputs - Simulador'!$C$5:$AQ$13,26,0),5,IF(C113<=VLOOKUP(E113,'Inputs - Simulador'!$C$5:$AQ$13,31,0),6,IF(C113<=VLOOKUP(E113,'Inputs - Simulador'!$C$5:$AQ$13,36,0),7,IF(C113<=VLOOKUP(E113,'Inputs - Simulador'!$C$5:$AQ$13,41,0),8,0)))))))) -> 7 | M113: 31188
A114: Agua | B114: COMERCIAL | C114: 112 | D114: Vol_NormalAguaCOMERCIAL112 | E114: COMERCIAL | F114: =IF(AND('Volume Medido 1'!$O$3,C114<=5),VLOOKUP("NORMAL"&A114&E114&C114,'Volume Medido 1'!$G$3:$I$449,3,0),M114) -> 31471 | G114: =$F114/Parâmetros!$B$5 -> 3.451165911e-05 | H114: =$G114*Parâmetros!B$15 -> 31813.00913 | I114: =$G114*Parâmetros!C$15 -> 32539.02273 | J114: =$G114*Parâmetros!D$15 -> 33304.7457 | K114: =$G114*Parâmetros!E$15 -> 34042.31309 | L114: =IF(C114<=VLOOKUP(E114,'Inputs - Simulador'!$C$5:$AQ$13,6,0),1,IF(C114<=VLOOKUP(E114,'Inputs - Simulador'!$C$5:$AQ$13,11,0),2,IF(C114<=VLOOKUP(E114,'Inputs - Simulador'!$C$5:$AQ$13,16,0),3,IF(C114<=VLOOKUP(E114,'Inputs - Simulador'!$C$5:$AQ$13,21,0),4,IF(C114<=VLOOKUP(E114,'Inputs - Simulador'!$C$5:$AQ$13,26,0),5,IF(C114<=VLOOKUP(E114,'Inputs - Simulador'!$C$5:$AQ$13,31,0),6,IF(C114<=VLOOKUP(E114,'Inputs - Simulador'!$C$5:$AQ$13,36,0),7,IF(C114<=VLOOKUP(E114,'Inputs - Simulador'!$C$5:$AQ$13,41,0),8,0)))))))) -> 7 | M114: 31471
A115: Agua | B115: COMERCIAL | C115: 113 | D115: Vol_NormalAguaCOMERCIAL113 | E115: COMERCIAL | F115: =IF(AND('Volume Medido 1'!$O$3,C115<=5),VLOOKUP("NORMAL"&A115&E115&C115,'Volume Medido 1'!$G$3:$I$449,3,0),M115) -> 25539 | G115: =$F115/Parâmetros!$B$5 -> 2.800652226e-05 | H115: =$G115*Parâmetros!B$15 -> 25816.54349 | I115: =$G115*Parâmetros!C$15 -> 26405.71007 | J115: =$G115*Parâmetros!D$15 -> 27027.10116 | K115: =$G115*Parâmetros!E$15 -> 27625.64374 | L115: =IF(C115<=VLOOKUP(E115,'Inputs - Simulador'!$C$5:$AQ$13,6,0),1,IF(C115<=VLOOKUP(E115,'Inputs - Simulador'!$C$5:$AQ$13,11,0),2,IF(C115<=VLOOKUP(E115,'Inputs - Simulador'!$C$5:$AQ$13,16,0),3,IF(C115<=VLOOKUP(E115,'Inputs - Simulador'!$C$5:$AQ$13,21,0),4,IF(C115<=VLOOKUP(E115,'Inputs - Simulador'!$C$5:$AQ$13,26,0),5,IF(C115<=VLOOKUP(E115,'Inputs - Simulador'!$C$5:$AQ$13,31,0),6,IF(C115<=VLOOKUP(E115,'Inputs - Simulador'!$C$5:$AQ$13,36,0),7,IF(C115<=VLOOKUP(E115,'Inputs - Simulador'!$C$5:$AQ$13,41,0),8,0)))))))) -> 7 | M115: 25539
A116: Agua | B116: COMERCIAL | C116: 114 | D116: Vol_NormalAguaCOMERCIAL114 | E116: COMERCIAL | F116: =IF(AND('Volume Medido 1'!$O$3,C116<=5),VLOOKUP("NORMAL"&A116&E116&C116,'Volume Medido 1'!$G$3:$I$449,3,0),M116) -> 31123 | G116: =$F116/Parâmetros!$B$5 -> 3.413003612e-05 | H116: =$G116*Parâmetros!B$15 -> 31461.22726 | I116: =$G116*Parâmetros!C$15 -> 32179.21275 | J116: =$G116*Parâmetros!D$15 -> 32936.46851 | K116: =$G116*Parâmetros!E$15 -> 33665.88003 | L116: =IF(C116<=VLOOKUP(E116,'Inputs - Simulador'!$C$5:$AQ$13,6,0),1,IF(C116<=VLOOKUP(E116,'Inputs - Simulador'!$C$5:$AQ$13,11,0),2,IF(C116<=VLOOKUP(E116,'Inputs - Simulador'!$C$5:$AQ$13,16,0),3,IF(C116<=VLOOKUP(E116,'Inputs - Simulador'!$C$5:$AQ$13,21,0),4,IF(C116<=VLOOKUP(E116,'Inputs - Simulador'!$C$5:$AQ$13,26,0),5,IF(C116<=VLOOKUP(E116,'Inputs - Simulador'!$C$5:$AQ$13,31,0),6,IF(C116<=VLOOKUP(E116,'Inputs - Simulador'!$C$5:$AQ$13,36,0),7,IF(C116<=VLOOKUP(E116,'Inputs - Simulador'!$C$5:$AQ$13,41,0),8,0)))))))) -> 7 | M116: 31123
A117: Agua | B117: COMERCIAL | C117: 115 | D117: Vol_NormalAguaCOMERCIAL115 | E117: COMERCIAL | F117: =IF(AND('Volume Medido 1'!$O$3,C117<=5),VLOOKUP("NORMAL"&A117&E117&C117,'Volume Medido 1'!$G$3:$I$449,3,0),M117) -> 32660 | G117: =$F117/Parâmetros!$B$5 -> 3.581553769e-05 | H117: =$G117*Parâmetros!B$15 -> 33014.93051 | I117: =$G117*Parâmetros!C$15 -> 33768.3735 | J117: =$G117*Parâmetros!D$15 -> 34563.02611 | K117: =$G117*Parâmetros!E$15 -> 35328.4594 | L117: =IF(C117<=VLOOKUP(E117,'Inputs - Simulador'!$C$5:$AQ$13,6,0),1,IF(C117<=VLOOKUP(E117,'Inputs - Simulador'!$C$5:$AQ$13,11,0),2,IF(C117<=VLOOKUP(E117,'Inputs - Simulador'!$C$5:$AQ$13,16,0),3,IF(C117<=VLOOKUP(E117,'Inputs - Simulador'!$C$5:$AQ$13,21,0),4,IF(C117<=VLOOKUP(E117,'Inputs - Simulador'!$C$5:$AQ$13,26,0),5,IF(C117<=VLOOKUP(E117,'Inputs - Simulador'!$C$5:$AQ$13,31,0),6,IF(C117<=VLOOKUP(E117,'Inputs - Simulador'!$C$5:$AQ$13,36,0),7,IF(C117<=VLOOKUP(E117,'Inputs - Simulador'!$C$5:$AQ$13,41,0),8,0)))))))) -> 7 | M117: 32660
A118: Agua | B118: COMERCIAL | C118: 116 | D118: Vol_NormalAguaCOMERCIAL116 | E118: COMERCIAL | F118: =IF(AND('Volume Medido 1'!$O$3,C118<=5),VLOOKUP("NORMAL"&A118&E118&C118,'Volume Medido 1'!$G$3:$I$449,3,0),M118) -> 28536 | G118: =$F118/Parâmetros!$B$5 -> 3.129308584e-05 | H118: =$G118*Parâmetros!B$15 -> 28846.1132 | I118: =$G118*Parâmetros!C$15 -> 29504.41844 | J118: =$G118*Parâmetros!D$15 -> 30198.72973 | K118: =$G118*Parâmetros!E$15 -> 30867.51125 | L118: =IF(C118<=VLOOKUP(E118,'Inputs - Simulador'!$C$5:$AQ$13,6,0),1,IF(C118<=VLOOKUP(E118,'Inputs - Simulador'!$C$5:$AQ$13,11,0),2,IF(C118<=VLOOKUP(E118,'Inputs - Simulador'!$C$5:$AQ$13,16,0),3,IF(C118<=VLOOKUP(E118,'Inputs - Simulador'!$C$5:$AQ$13,21,0),4,IF(C118<=VLOOKUP(E118,'Inputs - Simulador'!$C$5:$AQ$13,26,0),5,IF(C118<=VLOOKUP(E118,'Inputs - Simulador'!$C$5:$AQ$13,31,0),6,IF(C118<=VLOOKUP(E118,'Inputs - Simulador'!$C$5:$AQ$13,36,0),7,IF(C118<=VLOOKUP(E118,'Inputs - Simulador'!$C$5:$AQ$13,41,0),8,0)))))))) -> 7 | M118: 28536
A119: Agua | B119: COMERCIAL | C119: 117 | D119: Vol_NormalAguaCOMERCIAL117 | E119: COMERCIAL | F119: =IF(AND('Volume Medido 1'!$O$3,C119<=5),VLOOKUP("NORMAL"&A119&E119&C119,'Volume Medido 1'!$G$3:$I$449,3,0),M119) -> 28898 | G119: =$F119/Parâmetros!$B$5 -> 3.169006149e-05 | H119: =$G119*Parâmetros!B$15 -> 29212.04721 | I119: =$G119*Parâmetros!C$15 -> 29878.70353 | J119: =$G119*Parâmetros!D$15 -> 30581.82267 | K119: =$G119*Parâmetros!E$15 -> 31259.08817 | L119: =IF(C119<=VLOOKUP(E119,'Inputs - Simulador'!$C$5:$AQ$13,6,0),1,IF(C119<=VLOOKUP(E119,'Inputs - Simulador'!$C$5:$AQ$13,11,0),2,IF(C119<=VLOOKUP(E119,'Inputs - Simulador'!$C$5:$AQ$13,16,0),3,IF(C119<=VLOOKUP(E119,'Inputs - Simulador'!$C$5:$AQ$13,21,0),4,IF(C119<=VLOOKUP(E119,'Inputs - Simulador'!$C$5:$AQ$13,26,0),5,IF(C119<=VLOOKUP(E119,'Inputs - Simulador'!$C$5:$AQ$13,31,0),6,IF(C119<=VLOOKUP(E119,'Inputs - Simulador'!$C$5:$AQ$13,36,0),7,IF(C119<=VLOOKUP(E119,'Inputs - Simulador'!$C$5:$AQ$13,41,0),8,0)))))))) -> 7 | M119: 28898
A120: Agua | B120: COMERCIAL | C120: 118 | D120: Vol_NormalAguaCOMERCIAL118 | E120: COMERCIAL | F120: =IF(AND('Volume Medido 1'!$O$3,C120<=5),VLOOKUP("NORMAL"&A120&E120&C120,'Volume Medido 1'!$G$3:$I$449,3,0),M120) -> 29499 | G120: =$F120/Parâmetros!$B$5 -> 3.234912879e-05 | H120: =$G120*Parâmetros!B$15 -> 29819.57854 | I120: =$G120*Parâmetros!C$15 -> 30500.0995 | J120: =$G120*Parâmetros!D$15 -> 31217.84161 | K120: =$G120*Parâmetros!E$15 -> 31909.1924 | L120: =IF(C120<=VLOOKUP(E120,'Inputs - Simulador'!$C$5:$AQ$13,6,0),1,IF(C120<=VLOOKUP(E120,'Inputs - Simulador'!$C$5:$AQ$13,11,0),2,IF(C120<=VLOOKUP(E120,'Inputs - Simulador'!$C$5:$AQ$13,16,0),3,IF(C120<=VLOOKUP(E120,'Inputs - Simulador'!$C$5:$AQ$13,21,0),4,IF(C120<=VLOOKUP(E120,'Inputs - Simulador'!$C$5:$AQ$13,26,0),5,IF(C120<=VLOOKUP(E120,'Inputs - Simulador'!$C$5:$AQ$13,31,0),6,IF(C120<=VLOOKUP(E120,'Inputs - Simulador'!$C$5:$AQ$13,36,0),7,IF(C120<=VLOOKUP(E120,'Inputs - Simulador'!$C$5:$AQ$13,41,0),8,0)))))))) -> 7 | M120: 29499
A121: Agua | B121: COMERCIAL | C121: 119 | D121: Vol_NormalAguaCOMERCIAL119 | E121: COMERCIAL | F121: =IF(AND('Volume Medido 1'!$O$3,C121<=5),VLOOKUP("NORMAL"&A121&E121&C121,'Volume Medido 1'!$G$3:$I$449,3,0),M121) -> 28083 | G121: =$F121/Parâmetros!$B$5 -> 3.079631797e-05 | H121: =$G121*Parâmetros!B$15 -> 28388.19025 | I121: =$G121*Parâmetros!C$15 -> 29036.0451 | J121: =$G121*Parâmetros!D$15 -> 29719.33442 | K121: =$G121*Parâmetros!E$15 -> 30377.49924 | L121: =IF(C121<=VLOOKUP(E121,'Inputs - Simulador'!$C$5:$AQ$13,6,0),1,IF(C121<=VLOOKUP(E121,'Inputs - Simulador'!$C$5:$AQ$13,11,0),2,IF(C121<=VLOOKUP(E121,'Inputs - Simulador'!$C$5:$AQ$13,16,0),3,IF(C121<=VLOOKUP(E121,'Inputs - Simulador'!$C$5:$AQ$13,21,0),4,IF(C121<=VLOOKUP(E121,'Inputs - Simulador'!$C$5:$AQ$13,26,0),5,IF(C121<=VLOOKUP(E121,'Inputs - Simulador'!$C$5:$AQ$13,31,0),6,IF(C121<=VLOOKUP(E121,'Inputs - Simulador'!$C$5:$AQ$13,36,0),7,IF(C121<=VLOOKUP(E121,'Inputs - Simulador'!$C$5:$AQ$13,41,0),8,0)))))))) -> 7 | M121: 28083
A122: Agua | B122: COMERCIAL | C122: 120 | D122: Vol_NormalAguaCOMERCIAL120 | E122: COMERCIAL | F122: =IF(AND('Volume Medido 1'!$O$3,C122<=5),VLOOKUP("NORMAL"&A122&E122&C122,'Volume Medido 1'!$G$3:$I$449,3,0),M122) -> 29453 | G122: =$F122/Parâmetros!$B$5 -> 3.229868437e-05 | H122: =$G122*Parâmetros!B$15 -> 29773.07864 | I122: =$G122*Parâmetros!C$15 -> 30452.53841 | J122: =$G122*Parâmetros!D$15 -> 31169.1613 | K122: =$G122*Parâmetros!E$15 -> 31859.434 | L122: =IF(C122<=VLOOKUP(E122,'Inputs - Simulador'!$C$5:$AQ$13,6,0),1,IF(C122<=VLOOKUP(E122,'Inputs - Simulador'!$C$5:$AQ$13,11,0),2,IF(C122<=VLOOKUP(E122,'Inputs - Simulador'!$C$5:$AQ$13,16,0),3,IF(C122<=VLOOKUP(E122,'Inputs - Simulador'!$C$5:$AQ$13,21,0),4,IF(C122<=VLOOKUP(E122,'Inputs - Simulador'!$C$5:$AQ$13,26,0),5,IF(C122<=VLOOKUP(E122,'Inputs - Simulador'!$C$5:$AQ$13,31,0),6,IF(C122<=VLOOKUP(E122,'Inputs - Simulador'!$C$5:$AQ$13,36,0),7,IF(C122<=VLOOKUP(E122,'Inputs - Simulador'!$C$5:$AQ$13,41,0),8,0)))))))) -> 7 | M122: 29453
A123: Agua | B123: COMERCIAL | C123: 121 | D123: Vol_NormalAguaCOMERCIAL121 | E123: COMERCIAL | F123: =IF(AND('Volume Medido 1'!$O$3,C123<=5),VLOOKUP("NORMAL"&A123&E123&C123,'Volume Medido 1'!$G$3:$I$449,3,0),M123) -> 26861 | G123: =$F123/Parâmetros!$B$5 -> 2.945625101e-05 | H123: =$G123*Parâmetros!B$15 -> 27152.91024 | I123: =$G123*Parâmetros!C$15 -> 27772.57442 | J123: =$G123*Parâmetros!D$15 -> 28426.13118 | K123: =$G123*Parâmetros!E$15 -> 29055.6567 | L123: =IF(C123<=VLOOKUP(E123,'Inputs - Simulador'!$C$5:$AQ$13,6,0),1,IF(C123<=VLOOKUP(E123,'Inputs - Simulador'!$C$5:$AQ$13,11,0),2,IF(C123<=VLOOKUP(E123,'Inputs - Simulador'!$C$5:$AQ$13,16,0),3,IF(C123<=VLOOKUP(E123,'Inputs - Simulador'!$C$5:$AQ$13,21,0),4,IF(C123<=VLOOKUP(E123,'Inputs - Simulador'!$C$5:$AQ$13,26,0),5,IF(C123<=VLOOKUP(E123,'Inputs - Simulador'!$C$5:$AQ$13,31,0),6,IF(C123<=VLOOKUP(E123,'Inputs - Simulador'!$C$5:$AQ$13,36,0),7,IF(C123<=VLOOKUP(E123,'Inputs - Simulador'!$C$5:$AQ$13,41,0),8,0)))))))) -> 7 | M123: 26861
A124: Agua | B124: COMERCIAL | C124: 122 | D124: Vol_NormalAguaCOMERCIAL122 | E124: COMERCIAL | F124: =IF(AND('Volume Medido 1'!$O$3,C124<=5),VLOOKUP("NORMAL"&A124&E124&C124,'Volume Medido 1'!$G$3:$I$449,3,0),M124) -> 25498 | G124: =$F124/Parâmetros!$B$5 -> 2.796156093e-05 | H124: =$G124*Parâmetros!B$15 -> 25775.09792 | I124: =$G124*Parâmetros!C$15 -> 26363.31866 | J124: =$G124*Parâmetros!D$15 -> 26983.71218 | K124: =$G124*Parâmetros!E$15 -> 27581.29387 | L124: =IF(C124<=VLOOKUP(E124,'Inputs - Simulador'!$C$5:$AQ$13,6,0),1,IF(C124<=VLOOKUP(E124,'Inputs - Simulador'!$C$5:$AQ$13,11,0),2,IF(C124<=VLOOKUP(E124,'Inputs - Simulador'!$C$5:$AQ$13,16,0),3,IF(C124<=VLOOKUP(E124,'Inputs - Simulador'!$C$5:$AQ$13,21,0),4,IF(C124<=VLOOKUP(E124,'Inputs - Simulador'!$C$5:$AQ$13,26,0),5,IF(C124<=VLOOKUP(E124,'Inputs - Simulador'!$C$5:$AQ$13,31,0),6,IF(C124<=VLOOKUP(E124,'Inputs - Simulador'!$C$5:$AQ$13,36,0),7,IF(C124<=VLOOKUP(E124,'Inputs - Simulador'!$C$5:$AQ$13,41,0),8,0)))))))) -> 7 | M124: 25498
A125: Agua | B125: COMERCIAL | C125: 123 | D125: Vol_NormalAguaCOMERCIAL123 | E125: COMERCIAL | F125: =IF(AND('Volume Medido 1'!$O$3,C125<=5),VLOOKUP("NORMAL"&A125&E125&C125,'Volume Medido 1'!$G$3:$I$449,3,0),M125) -> 21524 | G125: =$F125/Parâmetros!$B$5 -> 2.360360175e-05 | H125: =$G125*Parâmetros!B$15 -> 21757.91073 | I125: =$G125*Parâmetros!C$15 -> 22254.45411 | J125: =$G125*Parâmetros!D$15 -> 22778.15597 | K125: =$G125*Parâmetros!E$15 -> 23282.60135 | L125: =IF(C125<=VLOOKUP(E125,'Inputs - Simulador'!$C$5:$AQ$13,6,0),1,IF(C125<=VLOOKUP(E125,'Inputs - Simulador'!$C$5:$AQ$13,11,0),2,IF(C125<=VLOOKUP(E125,'Inputs - Simulador'!$C$5:$AQ$13,16,0),3,IF(C125<=VLOOKUP(E125,'Inputs - Simulador'!$C$5:$AQ$13,21,0),4,IF(C125<=VLOOKUP(E125,'Inputs - Simulador'!$C$5:$AQ$13,26,0),5,IF(C125<=VLOOKUP(E125,'Inputs - Simulador'!$C$5:$AQ$13,31,0),6,IF(C125<=VLOOKUP(E125,'Inputs - Simulador'!$C$5:$AQ$13,36,0),7,IF(C125<=VLOOKUP(E125,'Inputs - Simulador'!$C$5:$AQ$13,41,0),8,0)))))))) -> 7 | M125: 21524
... 156 more rows

Sheet Tarifa Normal - Economias
A1: Objeto | B1: Categoria | C1: Faixa | D1: Chave | E1: Categorias Propostas | F1: Economias | G1: Peso | H1: 2021 | I1: 2022 | J1: 2023 | K1: 2024 | L1: Condicional
A2: Agua | B2: COMERCIAL | C2: 0 | D2: ="Econ_Normal"&A2&B2&C2 -> Econ_NormalAguaCOMERCIAL0 | E2: =IF(OR($B2="SANEPAR", $B2="INATIVO",),"INATIVO + SANEPAR",$B2) -> COMERCIAL | F2: 15624.58333 | G2: =$F2/Parâmetros!$C$5 -> 0.002302817187 | H2: =$G2*Parâmetros!B$16 -> 16813.22695 | I2: =$G2*Parâmetros!C$16 -> 17250.13753 | J2: =$G2*Parâmetros!D$16 -> 17719.34036 | K2: =$G2*Parâmetros!E$16 -> 18188.54319 | L2: =IF(C2<=VLOOKUP(E2,'Inputs - Simulador'!$C$5:$AQ$13,6,0),1,IF(C2<=VLOOKUP(E2,'Inputs - Simulador'!$C$5:$AQ$13,11,0),2,IF(C2<=VLOOKUP(E2,'Inputs - Simulador'!$C$5:$AQ$13,16,0),3,IF(C2<=VLOOKUP(E2,'Inputs - Simulador'!$C$5:$AQ$13,21,0),4,IF(C2<=VLOOKUP(E2,'Inputs - Simulador'!$C$5:$AQ$13,26,0),5,IF(C2<=VLOOKUP(E2,'Inputs - Simulador'!$C$5:$AQ$13,31,0),6,IF(C2<=VLOOKUP(E2,'Inputs - Simulador'!$C$5:$AQ$13,36,0),7,IF(C2<=VLOOKUP(E2,'Inputs - Simulador'!$C$5:$AQ$13,41,0),8,0)))))))) -> 1
A3: Agua | B3: COMERCIAL | C3: 1 | D3: ="Econ_Normal"&A3&B3&C3 -> Econ_NormalAguaCOMERCIAL1 | E3: =IF(OR($B3="SANEPAR", $B3="INATIVO",),"INATIVO + SANEPAR",$B3) -> COMERCIAL | F3: 20770.08333 | G3: =$F3/Parâmetros!$C$5 -> 0.003061182743 | H3: =$G3*Parâmetros!B$16 -> 22350.17199 | I3: =$G3*Parâmetros!C$16 -> 22930.96631 | J3: =$G3*Parâmetros!D$16 -> 23554.68738 | K3: =$G3*Parâmetros!E$16 -> 24178.40845 | L3: =IF(C3<=VLOOKUP(E3,'Inputs - Simulador'!$C$5:$AQ$13,6,0),1,IF(C3<=VLOOKUP(E3,'Inputs - Simulador'!$C$5:$AQ$13,11,0),2,IF(C3<=VLOOKUP(E3,'Inputs - Simulador'!$C$5:$AQ$13,16,0),3,IF(C3<=VLOOKUP(E3,'Inputs - Simulador'!$C$5:$AQ$13,21,0),4,IF(C3<=VLOOKUP(E3,'Inputs - Simulador'!$C$5:$AQ$13,26,0),5,IF(C3<=VLOOKUP(E3,'Inputs - Simulador'!$C$5:$AQ$13,31,0),6,IF(C3<=VLOOKUP(E3,'Inputs - Simulador'!$C$5:$AQ$13,36,0),7,IF(C3<=VLOOKUP(E3,'Inputs - Simulador'!$C$5:$AQ$13,41,0),8,0)))))))) -> 1
A4: Agua | B4: COMERCIAL | C4: 2 | D4: Econ_NormalAguaCOMERCIAL2 | E4: COMERCIAL | F4: 23243.33333 | G4: =$F4/Parâmetros!$C$5 -> 0.003425700791 | H4: =$G4*Parâmetros!B$16 -> 25011.57503 | I4: =$G4*Parâmetros!C$16 -> 25661.5289 | J4: =$G4*Parâmetros!D$16 -> 26359.52112 | K4: =$G4*Parâmetros!E$16 -> 27057.51335 | L4: =IF(C4<=VLOOKUP(E4,'Inputs - Simulador'!$C$5:$AQ$13,6,0),1,IF(C4<=VLOOKUP(E4,'Inputs - Simulador'!$C$5:$AQ$13,11,0),2,IF(C4<=VLOOKUP(E4,'Inputs - Simulador'!$C$5:$AQ$13,16,0),3,IF(C4<=VLOOKUP(E4,'Inputs - Simulador'!$C$5:$AQ$13,21,0),4,IF(C4<=VLOOKUP(E4,'Inputs - Simulador'!$C$5:$AQ$13,26,0),5,IF(C4<=VLOOKUP(E4,'Inputs - Simulador'!$C$5:$AQ$13,31,0),6,IF(C4<=VLOOKUP(E4,'Inputs - Simulador'!$C$5:$AQ$13,36,0),7,IF(C4<=VLOOKUP(E4,'Inputs - Simulador'!$C$5:$AQ$13,41,0),8,0)))))))) -> 1
A5: Agua | B5: COMERCIAL | C5: 3 | D5: Econ_NormalAguaCOMERCIAL3 | E5: COMERCIAL | F5: 20522.25 | G5: =$F5/Parâmetros!$C$5 -> 0.003024656018 | H5: =$G5*Parâmetros!B$16 -> 22083.48468 | I5: =$G5*Parâmetros!C$16 -> 22657.34883 | J5: =$G5*Parâmetros!D$16 -> 23273.62752 | K5: =$G5*Parâmetros!E$16 -> 23889.90621 | L5: =IF(C5<=VLOOKUP(E5,'Inputs - Simulador'!$C$5:$AQ$13,6,0),1,IF(C5<=VLOOKUP(E5,'Inputs - Simulador'!$C$5:$AQ$13,11,0),2,IF(C5<=VLOOKUP(E5,'Inputs - Simulador'!$C$5:$AQ$13,16,0),3,IF(C5<=VLOOKUP(E5,'Inputs - Simulador'!$C$5:$AQ$13,21,0),4,IF(C5<=VLOOKUP(E5,'Inputs - Simulador'!$C$5:$AQ$13,26,0),5,IF(C5<=VLOOKUP(E5,'Inputs - Simulador'!$C$5:$AQ$13,31,0),6,IF(C5<=VLOOKUP(E5,'Inputs - Simulador'!$C$5:$AQ$13,36,0),7,IF(C5<=VLOOKUP(E5,'Inputs - Simulador'!$C$5:$AQ$13,41,0),8,0)))))))) -> 1
A6: Agua | B6: COMERCIAL | C6: 4 | D6: Econ_NormalAguaCOMERCIAL4 | E6: COMERCIAL | F6: 18214 | G6: =$F6/Parâmetros!$C$5 -> 0.002684456369 | H6: =$G6*Parâmetros!B$16 -> 19599.63405 | I6: =$G6*Parâmetros!C$16 -> 20108.95256 | J6: =$G6*Parâmetros!D$16 -> 20655.915 | K6: =$G6*Parâmetros!E$16 -> 21202.87745 | L6: =IF(C6<=VLOOKUP(E6,'Inputs - Simulador'!$C$5:$AQ$13,6,0),1,IF(C6<=VLOOKUP(E6,'Inputs - Simulador'!$C$5:$AQ$13,11,0),2,IF(C6<=VLOOKUP(E6,'Inputs - Simulador'!$C$5:$AQ$13,16,0),3,IF(C6<=VLOOKUP(E6,'Inputs - Simulador'!$C$5:$AQ$13,21,0),4,IF(C6<=VLOOKUP(E6,'Inputs - Simulador'!$C$5:$AQ$13,26,0),5,IF(C6<=VLOOKUP(E6,'Inputs - Simulador'!$C$5:$AQ$13,31,0),6,IF(C6<=VLOOKUP(E6,'Inputs - Simulador'!$C$5:$AQ$13,36,0),7,IF(C6<=VLOOKUP(E6,'Inputs - Simulador'!$C$5:$AQ$13,41,0),8,0)))))))) -> 1
A7: Agua | B7: COMERCIAL | C7: 5 | D7: Econ_NormalAguaCOMERCIAL5 | E7: COMERCIAL | F7: 17387.33333 | G7: =$F7/Parâmetros!$C$5 -> 0.002562618739 | H7: =$G7*Parâmetros!B$16 -> 18710.07854 | I7: =$G7*Parâmetros!C$16 -> 19196.28095 | J7: =$G7*Parâmetros!D$16 -> 19718.41877 | K7: =$G7*Parâmetros!E$16 -> 20240.5566 | L7: =IF(C7<=VLOOKUP(E7,'Inputs - Simulador'!$C$5:$AQ$13,6,0),1,IF(C7<=VLOOKUP(E7,'Inputs - Simulador'!$C$5:$AQ$13,11,0),2,IF(C7<=VLOOKUP(E7,'Inputs - Simulador'!$C$5:$AQ$13,16,0),3,IF(C7<=VLOOKUP(E7,'Inputs - Simulador'!$C$5:$AQ$13,21,0),4,IF(C7<=VLOOKUP(E7,'Inputs - Simulador'!$C$5:$AQ$13,26,0),5,IF(C7<=VLOOKUP(E7,'Inputs - Simulador'!$C$5:$AQ$13,31,0),6,IF(C7<=VLOOKUP(E7,'Inputs - Simulador'!$C$5:$AQ$13,36,0),7,IF(C7<=VLOOKUP(E7,'Inputs - Simulador'!$C$5:$AQ$13,41,0),8,0)))))))) -> 1
A8: Agua | B8: COMERCIAL | C8: 6 | D8: Econ_NormalAguaCOMERCIAL6 | E8: COMERCIAL | F8: 15392.58333 | G8: =$F8/Parâmetros!$C$5 -> 0.002268624046 | H8: =$G8*Parâmetros!B$16 -> 16563.57749 | I8: =$G8*Parâmetros!C$16 -> 16994.00066 | J8: =$G8*Parâmetros!D$16 -> 17456.23658 | K8: =$G8*Parâmetros!E$16 -> 17918.4725 | L8: =IF(C8<=VLOOKUP(E8,'Inputs - Simulador'!$C$5:$AQ$13,6,0),1,IF(C8<=VLOOKUP(E8,'Inputs - Simulador'!$C$5:$AQ$13,11,0),2,IF(C8<=VLOOKUP(E8,'Inputs - Simulador'!$C$5:$AQ$13,16,0),3,IF(C8<=VLOOKUP(E8,'Inputs - Simulador'!$C$5:$AQ$13,21,0),4,IF(C8<=VLOOKUP(E8,'Inputs - Simulador'!$C$5:$AQ$13,26,0),5,IF(C8<=VLOOKUP(E8,'Inputs - Simulador'!$C$5:$AQ$13,31,0),6,IF(C8<=VLOOKUP(E8,'Inputs - Simulador'!$C$5:$AQ$13,36,0),7,IF(C8<=VLOOKUP(E8,'Inputs - Simulador'!$C$5:$AQ$13,41,0),8,0)))))))) -> 2
A9: Agua | B9: COMERCIAL | C9: 7 | D9: Econ_NormalAguaCOMERCIAL7 | E9: COMERCIAL | F9: 13930.25 | G9: =$F9/Parâmetros!$C$5 -> 0.002053099173 | H9: =$G9*Parâmetros!B$16 -> 14989.99683 | I9: =$G9*Parâmetros!C$16 -> 15379.52874 | J9: =$G9*Parâmetros!D$16 -> 15797.8511 | K9: =$G9*Parâmetros!E$16 -> 16216.17347 | L9: =IF(C9<=VLOOKUP(E9,'Inputs - Simulador'!$C$5:$AQ$13,6,0),1,IF(C9<=VLOOKUP(E9,'Inputs - Simulador'!$C$5:$AQ$13,11,0),2,IF(C9<=VLOOKUP(E9,'Inputs - Simulador'!$C$5:$AQ$13,16,0),3,IF(C9<=VLOOKUP(E9,'Inputs - Simulador'!$C$5:$AQ$13,21,0),4,IF(C9<=VLOOKUP(E9,'Inputs - Simulador'!$C$5:$AQ$13,26,0),5,IF(C9<=VLOOKUP(E9,'Inputs - Simulador'!$C$5:$AQ$13,31,0),6,IF(C9<=VLOOKUP(E9,'Inputs - Simulador'!$C$5:$AQ$13,36,0),7,IF(C9<=VLOOKUP(E9,'Inputs - Simulador'!$C$5:$AQ$13,41,0),8,0)))))))) -> 2
A10: Agua | B10: COMERCIAL | C10: 8 | D10: Econ_NormalAguaCOMERCIAL8 | E10: COMERCIAL | F10: 12599.58333 | G10: =$F10/Parâmetros!$C$5 -> 0.001856979891 | H10: =$G10*Parâmetros!B$16 -> 13558.09941 | I10: =$G10*Parâmetros!C$16 -> 13910.42185 | J10: =$G10*Parâmetros!D$16 -> 14288.78458 | K10: =$G10*Parâmetros!E$16 -> 14667.14732 | L10: =IF(C10<=VLOOKUP(E10,'Inputs - Simulador'!$C$5:$AQ$13,6,0),1,IF(C10<=VLOOKUP(E10,'Inputs - Simulador'!$C$5:$AQ$13,11,0),2,IF(C10<=VLOOKUP(E10,'Inputs - Simulador'!$C$5:$AQ$13,16,0),3,IF(C10<=VLOOKUP(E10,'Inputs - Simulador'!$C$5:$AQ$13,21,0),4,IF(C10<=VLOOKUP(E10,'Inputs - Simulador'!$C$5:$AQ$13,26,0),5,IF(C10<=VLOOKUP(E10,'Inputs - Simulador'!$C$5:$AQ$13,31,0),6,IF(C10<=VLOOKUP(E10,'Inputs - Simulador'!$C$5:$AQ$13,36,0),7,IF(C10<=VLOOKUP(E10,'Inputs - Simulador'!$C$5:$AQ$13,41,0),8,0)))))))) -> 2
A11: Agua | B11: COMERCIAL | C11: 9 | D11: Econ_NormalAguaCOMERCIAL9 | E11: COMERCIAL | F11: 11100.33333 | G11: =$F11/Parâmetros!$C$5 -> 0.001636014083 | H11: =$G11*Parâmetros!B$16 -> 11944.79363 | I11: =$G11*Parâmetros!C$16 -> 12255.19251 | J11: =$G11*Parâmetros!D$16 -> 12588.5331 | K11: =$G11*Parâmetros!E$16 -> 12921.87369 | L11: =IF(C11<=VLOOKUP(E11,'Inputs - Simulador'!$C$5:$AQ$13,6,0),1,IF(C11<=VLOOKUP(E11,'Inputs - Simulador'!$C$5:$AQ$13,11,0),2,IF(C11<=VLOOKUP(E11,'Inputs - Simulador'!$C$5:$AQ$13,16,0),3,IF(C11<=VLOOKUP(E11,'Inputs - Simulador'!$C$5:$AQ$13,21,0),4,IF(C11<=VLOOKUP(E11,'Inputs - Simulador'!$C$5:$AQ$13,26,0),5,IF(C11<=VLOOKUP(E11,'Inputs - Simulador'!$C$5:$AQ$13,31,0),6,IF(C11<=VLOOKUP(E11,'Inputs - Simulador'!$C$5:$AQ$13,36,0),7,IF(C11<=VLOOKUP(E11,'Inputs - Simulador'!$C$5:$AQ$13,41,0),8,0)))))))) -> 2
A12: Agua | B12: COMERCIAL | C12: 10 | D12: Econ_NormalAguaCOMERCIAL10 | E12: COMERCIAL | F12: 9651.75 | G12: =$F12/Parâmetros!$C$5 -> 0.001422515744 | H12: =$G12*Parâmetros!B$16 -> 10386.009 | I12: =$G12*Parâmetros!C$16 -> 10655.90111 | J12: =$G12*Parâmetros!D$16 -> 10945.74106 | K12: =$G12*Parâmetros!E$16 -> 11235.581 | L12: =IF(C12<=VLOOKUP(E12,'Inputs - Simulador'!$C$5:$AQ$13,6,0),1,IF(C12<=VLOOKUP(E12,'Inputs - Simulador'!$C$5:$AQ$13,11,0),2,IF(C12<=VLOOKUP(E12,'Inputs - Simulador'!$C$5:$AQ$13,16,0),3,IF(C12<=VLOOKUP(E12,'Inputs - Simulador'!$C$5:$AQ$13,21,0),4,IF(C12<=VLOOKUP(E12,'Inputs - Simulador'!$C$5:$AQ$13,26,0),5,IF(C12<=VLOOKUP(E12,'Inputs - Simulador'!$C$5:$AQ$13,31,0),6,IF(C12<=VLOOKUP(E12,'Inputs - Simulador'!$C$5:$AQ$13,36,0),7,IF(C12<=VLOOKUP(E12,'Inputs - Simulador'!$C$5:$AQ$13,41,0),8,0)))))))) -> 2
A13: Agua | B13: COMERCIAL | C13: 11 | D13: Econ_NormalAguaCOMERCIAL11 | E13: COMERCIAL | F13: 8010.916667 | G13: =$F13/Parâmetros!$C$5 -> 0.001180682786 | H13: =$G13*Parâmetros!B$16 -> 8620.348913 | I13: =$G13*Parâmetros!C$16 -> 8844.358362 | J13: =$G13*Parâmetros!D$16 -> 9084.924441 | K13: =$G13*Parâmetros!E$16 -> 9325.49052 | L13: =IF(C13<=VLOOKUP(E13,'Inputs - Simulador'!$C$5:$AQ$13,6,0),1,IF(C13<=VLOOKUP(E13,'Inputs - Simulador'!$C$5:$AQ$13,11,0),2,IF(C13<=VLOOKUP(E13,'Inputs - Simulador'!$C$5:$AQ$13,16,0),3,IF(C13<=VLOOKUP(E13,'Inputs - Simulador'!$C$5:$AQ$13,21,0),4,IF(C13<=VLOOKUP(E13,'Inputs - Simulador'!$C$5:$AQ$13,26,0),5,IF(C13<=VLOOKUP(E13,'Inputs - Simulador'!$C$5:$AQ$13,31,0),6,IF(C13<=VLOOKUP(E13,'Inputs - Simulador'!$C$5:$AQ$13,36,0),7,IF(C13<=VLOOKUP(E13,'Inputs - Simulador'!$C$5:$AQ$13,41,0),8,0)))))))) -> 3
A14: Agua | B14: COMERCIAL | C14: 12 | D14: Econ_NormalAguaCOMERCIAL12 | E14: COMERCIAL | F14: 6735.5 | G14: =$F14/Parâmetros!$C$5 -> 0.0009927064826 | H14: =$G14*Parâmetros!B$16 -> 7247.904643 | I14: =$G14*Parâmetros!C$16 -> 7436.249587 | J14: =$G14*Parâmetros!D$16 -> 7638.515181 | K14: =$G14*Parâmetros!E$16 -> 7840.780776 | L14: =IF(C14<=VLOOKUP(E14,'Inputs - Simulador'!$C$5:$AQ$13,6,0),1,IF(C14<=VLOOKUP(E14,'Inputs - Simulador'!$C$5:$AQ$13,11,0),2,IF(C14<=VLOOKUP(E14,'Inputs - Simulador'!$C$5:$AQ$13,16,0),3,IF(C14<=VLOOKUP(E14,'Inputs - Simulador'!$C$5:$AQ$13,21,0),4,IF(C14<=VLOOKUP(E14,'Inputs - Simulador'!$C$5:$AQ$13,26,0),5,IF(C14<=VLOOKUP(E14,'Inputs - Simulador'!$C$5:$AQ$13,31,0),6,IF(C14<=VLOOKUP(E14,'Inputs - Simulador'!$C$5:$AQ$13,36,0),7,IF(C14<=VLOOKUP(E14,'Inputs - Simulador'!$C$5:$AQ$13,41,0),8,0)))))))) -> 3
A15: Agua | B15: COMERCIAL | C15: 13 | D15: Econ_NormalAguaCOMERCIAL13 | E15: COMERCIAL | F15: 5581.25 | G15: =$F15/Parâmetros!$C$5 -> 0.0008225882349 | H15: =$G15*Parâmetros!B$16 -> 6005.844821 | I15: =$G15*Parâmetros!C$16 -> 6161.913444 | J15: =$G15*Parâmetros!D$16 -> 6329.517164 | K15: =$G15*Parâmetros!E$16 -> 6497.120883 | L15: =IF(C15<=VLOOKUP(E15,'Inputs - Simulador'!$C$5:$AQ$13,6,0),1,IF(C15<=VLOOKUP(E15,'Inputs - Simulador'!$C$5:$AQ$13,11,0),2,IF(C15<=VLOOKUP(E15,'Inputs - Simulador'!$C$5:$AQ$13,16,0),3,IF(C15<=VLOOKUP(E15,'Inputs - Simulador'!$C$5:$AQ$13,21,0),4,IF(C15<=VLOOKUP(E15,'Inputs - Simulador'!$C$5:$AQ$13,26,0),5,IF(C15<=VLOOKUP(E15,'Inputs - Simulador'!$C$5:$AQ$13,31,0),6,IF(C15<=VLOOKUP(E15,'Inputs - Simulador'!$C$5:$AQ$13,36,0),7,IF(C15<=VLOOKUP(E15,'Inputs - Simulador'!$C$5:$AQ$13,41,0),8,0)))))))) -> 3
A16: Agua | B16: COMERCIAL | C16: 14 | D16: Econ_NormalAguaCOMERCIAL14 | E16: COMERCIAL | F16: 4668.083333 | G16: =$F16/Parâmetros!$C$5 -> 0.0006880018686 | H16: =$G16*Parâmetros!B$16 -> 5023.208799 | I16: =$G16*Parâmetros!C$16 -> 5153.742522 | J16: =$G16*Parâmetros!D$16 -> 5293.924046 | K16: =$G16*Parâmetros!E$16 -> 5434.105569 | L16: =IF(C16<=VLOOKUP(E16,'Inputs - Simulador'!$C$5:$AQ$13,6,0),1,IF(C16<=VLOOKUP(E16,'Inputs - Simulador'!$C$5:$AQ$13,11,0),2,IF(C16<=VLOOKUP(E16,'Inputs - Simulador'!$C$5:$AQ$13,16,0),3,IF(C16<=VLOOKUP(E16,'Inputs - Simulador'!$C$5:$AQ$13,21,0),4,IF(C16<=VLOOKUP(E16,'Inputs - Simulador'!$C$5:$AQ$13,26,0),5,IF(C16<=VLOOKUP(E16,'Inputs - Simulador'!$C$5:$AQ$13,31,0),6,IF(C16<=VLOOKUP(E16,'Inputs - Simulador'!$C$5:$AQ$13,36,0),7,IF(C16<=VLOOKUP(E16,'Inputs - Simulador'!$C$5:$AQ$13,41,0),8,0)))))))) -> 3
A17: Agua | B17: COMERCIAL | C17: 15 | D17: Econ_NormalAguaCOMERCIAL15 | E17: COMERCIAL | F17: 3959.916667 | G17: =$F17/Parâmetros!$C$5 -> 0.0005836292696 | H17: =$G17*Parâmetros!B$16 -> 4261.168198 | I17: =$G17*Parâmetros!C$16 -> 4371.89944 | J17: =$G17*Parâmetros!D$16 -> 4490.814873 | K17: =$G17*Parâmetros!E$16 -> 4609.730306 | L17: =IF(C17<=VLOOKUP(E17,'Inputs - Simulador'!$C$5:$AQ$13,6,0),1,IF(C17<=VLOOKUP(E17,'Inputs - Simulador'!$C$5:$AQ$13,11,0),2,IF(C17<=VLOOKUP(E17,'Inputs - Simulador'!$C$5:$AQ$13,16,0),3,IF(C17<=VLOOKUP(E17,'Inputs - Simulador'!$C$5:$AQ$13,21,0),4,IF(C17<=VLOOKUP(E17,'Inputs - Simulador'!$C$5:$AQ$13,26,0),5,IF(C17<=VLOOKUP(E17,'Inputs - Simulador'!$C$5:$AQ$13,31,0),6,IF(C17<=VLOOKUP(E17,'Inputs - Simulador'!$C$5:$AQ$13,36,0),7,IF(C17<=VLOOKUP(E17,'Inputs - Simulador'!$C$5:$AQ$13,41,0),8,0)))))))) -> 3
A18: Agua | B18: COMERCIAL | C18: 16 | D18: Econ_NormalAguaCOMERCIAL16 | E18: COMERCIAL | F18: 3359.083333 | G18: =$F18/Parâmetros!$C$5 -> 0.0004950759113 | H18: =$G18*Parâmetros!B$16 -> 3614.626336 | I18: =$G18*Parâmetros!C$16 -> 3708.556462 | J18: =$G18*Parâmetros!D$16 -> 3809.429001 | K18: =$G18*Parâmetros!E$16 -> 3910.30154 | L18: =IF(C18<=VLOOKUP(E18,'Inputs - Simulador'!$C$5:$AQ$13,6,0),1,IF(C18<=VLOOKUP(E18,'Inputs - Simulador'!$C$5:$AQ$13,11,0),2,IF(C18<=VLOOKUP(E18,'Inputs - Simulador'!$C$5:$AQ$13,16,0),3,IF(C18<=VLOOKUP(E18,'Inputs - Simulador'!$C$5:$AQ$13,21,0),4,IF(C18<=VLOOKUP(E18,'Inputs - Simulador'!$C$5:$AQ$13,26,0),5,IF(C18<=VLOOKUP(E18,'Inputs - Simulador'!$C$5:$AQ$13,31,0),6,IF(C18<=VLOOKUP(E18,'Inputs - Simulador'!$C$5:$AQ$13,36,0),7,IF(C18<=VLOOKUP(E18,'Inputs - Simulador'!$C$5:$AQ$13,41,0),8,0)))))))) -> 3
A19: Agua | B19: COMERCIAL | C19: 17 | D19: Econ_NormalAguaCOMERCIAL17 | E19: COMERCIAL | F19: 2843.916667 | G19: =$F19/Parâmetros!$C$5 -> 0.0004191484687 | H19: =$G19*Parâmetros!B$16 -> 3060.268252 | I19: =$G19*Parâmetros!C$16 -> 3139.79276 | J19: =$G19*Parâmetros!D$16 -> 3225.194957 | K19: =$G19*Parâmetros!E$16 -> 3310.597154 | L19: =IF(C19<=VLOOKUP(E19,'Inputs - Simulador'!$C$5:$AQ$13,6,0),1,IF(C19<=VLOOKUP(E19,'Inputs - Simulador'!$C$5:$AQ$13,11,0),2,IF(C19<=VLOOKUP(E19,'Inputs - Simulador'!$C$5:$AQ$13,16,0),3,IF(C19<=VLOOKUP(E19,'Inputs - Simulador'!$C$5:$AQ$13,21,0),4,IF(C19<=VLOOKUP(E19,'Inputs - Simulador'!$C$5:$AQ$13,26,0),5,IF(C19<=VLOOKUP(E19,'Inputs - Simulador'!$C$5:$AQ$13,31,0),6,IF(C19<=VLOOKUP(E19,'Inputs - Simulador'!$C$5:$AQ$13,36,0),7,IF(C19<=VLOOKUP(E19,'Inputs - Simulador'!$C$5:$AQ$13,41,0),8,0)))))))) -> 3
A20: Agua | B20: COMERCIAL | C20: 18 | D20: Econ_NormalAguaCOMERCIAL18 | E20: COMERCIAL | F20: 2485.666667 | G20: =$F20/Parâmetros!$C$5 -> 0.0003663480682 | H20: =$G20*Parâmetros!B$16 -> 2674.764305 | I20: =$G20*Parâmetros!C$16 -> 2744.27106 | J20: =$G20*Parâmetros!D$16 -> 2818.915087 | K20: =$G20*Parâmetros!E$16 -> 2893.559114 | L20: =IF(C20<=VLOOKUP(E20,'Inputs - Simulador'!$C$5:$AQ$13,6,0),1,IF(C20<=VLOOKUP(E20,'Inputs - Simulador'!$C$5:$AQ$13,11,0),2,IF(C20<=VLOOKUP(E20,'Inputs - Simulador'!$C$5:$AQ$13,16,0),3,IF(C20<=VLOOKUP(E20,'Inputs - Simulador'!$C$5:$AQ$13,21,0),4,IF(C20<=VLOOKUP(E20,'Inputs - Simulador'!$C$5:$AQ$13,26,0),5,IF(C20<=VLOOKUP(E20,'Inputs - Simulador'!$C$5:$AQ$13,31,0),6,IF(C20<=VLOOKUP(E20,'Inputs - Simulador'!$C$5:$AQ$13,36,0),7,IF(C20<=VLOOKUP(E20,'Inputs - Simulador'!$C$5:$AQ$13,41,0),8,0)))))))) -> 3
A21: Agua | B21: COMERCIAL | C21: 19 | D21: Econ_NormalAguaCOMERCIAL19 | E21: COMERCIAL | F21: 2166.25 | G21: =$F21/Parâmetros!$C$5 -> 0.0003192710887 | H21: =$G21*Parâmetros!B$16 -> 2331.047945 | I21: =$G21*Parâmetros!C$16 -> 2391.622844 | J21: =$G21*Parâmetros!D$16 -> 2456.674859 | K21: =$G21*Parâmetros!E$16 -> 2521.726873 | L21: =IF(C21<=VLOOKUP(E21,'Inputs - Simulador'!$C$5:$AQ$13,6,0),1,IF(C21<=VLOOKUP(E21,'Inputs - Simulador'!$C$5:$AQ$13,11,0),2,IF(C21<=VLOOKUP(E21,'Inputs - Simulador'!$C$5:$AQ$13,16,0),3,IF(C21<=VLOOKUP(E21,'Inputs - Simulador'!$C$5:$AQ$13,21,0),4,IF(C21<=VLOOKUP(E21,'Inputs - Simulador'!$C$5:$AQ$13,26,0),5,IF(C21<=VLOOKUP(E21,'Inputs - Simulador'!$C$5:$AQ$13,31,0),6,IF(C21<=VLOOKUP(E21,'Inputs - Simulador'!$C$5:$AQ$13,36,0),7,IF(C21<=VLOOKUP(E21,'Inputs - Simulador'!$C$5:$AQ$13,41,0),8,0)))))))) -> 3
A22: Agua | B22: COMERCIAL | C22: 20 | D22: Econ_NormalAguaCOMERCIAL20 | E22: COMERCIAL | F22: 1935.166667 | G22: =$F22/Parâmetros!$C$5 -> 0.0002852130495 | H22: =$G22*Parâmetros!B$16 -> 2082.384896 | I22: =$G22*Parâmetros!C$16 -> 2136.498007 | J22: =$G22*Parâmetros!D$16 -> 2194.610639 | K22: =$G22*Parâmetros!E$16 -> 2252.723272 | L22: =IF(C22<=VLOOKUP(E22,'Inputs - Simulador'!$C$5:$AQ$13,6,0),1,IF(C22<=VLOOKUP(E22,'Inputs - Simulador'!$C$5:$AQ$13,11,0),2,IF(C22<=VLOOKUP(E22,'Inputs - Simulador'!$C$5:$AQ$13,16,0),3,IF(C22<=VLOOKUP(E22,'Inputs - Simulador'!$C$5:$AQ$13,21,0),4,IF(C22<=VLOOKUP(E22,'Inputs - Simulador'!$C$5:$AQ$13,26,0),5,IF(C22<=VLOOKUP(E22,'Inputs - Simulador'!$C$5:$AQ$13,31,0),6,IF(C22<=VLOOKUP(E22,'Inputs - Simulador'!$C$5:$AQ$13,36,0),7,IF(C22<=VLOOKUP(E22,'Inputs - Simulador'!$C$5:$AQ$13,41,0),8,0)))))))) -> 3
A23: Agua | B23: COMERCIAL | C23: 21 | D23: Econ_NormalAguaCOMERCIAL21 | E23: COMERCIAL | F23: 1709.333333 | G23: =$F23/Parâmetros!$C$5 -> 0.0002519287775 | H23: =$G23*Parâmetros!B$16 -> 1839.371242 | I23: =$G23*Parâmetros!C$16 -> 1887.16937 | J23: =$G23*Parâmetros!D$16 -> 1938.500277 | K23: =$G23*Parâmetros!E$16 -> 1989.831184 | L23: =IF(C23<=VLOOKUP(E23,'Inputs - Simulador'!$C$5:$AQ$13,6,0),1,IF(C23<=VLOOKUP(E23,'Inputs - Simulador'!$C$5:$AQ$13,11,0),2,IF(C23<=VLOOKUP(E23,'Inputs - Simulador'!$C$5:$AQ$13,16,0),3,IF(C23<=VLOOKUP(E23,'Inputs - Simulador'!$C$5:$AQ$13,21,0),4,IF(C23<=VLOOKUP(E23,'Inputs - Simulador'!$C$5:$AQ$13,26,0),5,IF(C23<=VLOOKUP(E23,'Inputs - Simulador'!$C$5:$AQ$13,31,0),6,IF(C23<=VLOOKUP(E23,'Inputs - Simulador'!$C$5:$AQ$13,36,0),7,IF(C23<=VLOOKUP(E23,'Inputs - Simulador'!$C$5:$AQ$13,41,0),8,0)))))))) -> 4
A24: Agua | B24: COMERCIAL | C24: 22 | D24: Econ_NormalAguaCOMERCIAL22 | E24: COMERCIAL | F24: 1507.25 | G24: =$F24/Parâmetros!$C$5 -> 0.000222144881 | H24: =$G24*Parâmetros!B$16 -> 1621.914375 | I24: =$G24*Parâmetros!C$16 -> 1664.061642 | J24: =$G24*Parâmetros!D$16 -> 1709.32403 | K24: =$G24*Parâmetros!E$16 -> 1754.586419 | L24: =IF(C24<=VLOOKUP(E24,'Inputs - Simulador'!$C$5:$AQ$13,6,0),1,IF(C24<=VLOOKUP(E24,'Inputs - Simulador'!$C$5:$AQ$13,11,0),2,IF(C24<=VLOOKUP(E24,'Inputs - Simulador'!$C$5:$AQ$13,16,0),3,IF(C24<=VLOOKUP(E24,'Inputs - Simulador'!$C$5:$AQ$13,21,0),4,IF(C24<=VLOOKUP(E24,'Inputs - Simulador'!$C$5:$AQ$13,26,0),5,IF(C24<=VLOOKUP(E24,'Inputs - Simulador'!$C$5:$AQ$13,31,0),6,IF(C24<=VLOOKUP(E24,'Inputs - Simulador'!$C$5:$AQ$13,36,0),7,IF(C24<=VLOOKUP(E24,'Inputs - Simulador'!$C$5:$AQ$13,41,0),8,0)))))))) -> 4
A25: Agua | B25: COMERCIAL | C25: 23 | D25: Econ_NormalAguaCOMERCIAL23 | E25: COMERCIAL | F25: 1356 | G25: =$F25/Parâmetros!$C$5 -> 0.0001998530162 | H25: =$G25*Parâmetros!B$16 -> 1459.157998 | I25: =$G25*Parâmetros!C$16 -> 1497.075858 | J25: =$G25*Parâmetros!D$16 -> 1537.796242 | K25: =$G25*Parâmetros!E$16 -> 1578.516626 | L25: =IF(C25<=VLOOKUP(E25,'Inputs - Simulador'!$C$5:$AQ$13,6,0),1,IF(C25<=VLOOKUP(E25,'Inputs - Simulador'!$C$5:$AQ$13,11,0),2,IF(C25<=VLOOKUP(E25,'Inputs - Simulador'!$C$5:$AQ$13,16,0),3,IF(C25<=VLOOKUP(E25,'Inputs - Simulador'!$C$5:$AQ$13,21,0),4,IF(C25<=VLOOKUP(E25,'Inputs - Simulador'!$C$5:$AQ$13,26,0),5,IF(C25<=VLOOKUP(E25,'Inputs - Simulador'!$C$5:$AQ$13,31,0),6,IF(C25<=VLOOKUP(E25,'Inputs - Simulador'!$C$5:$AQ$13,36,0),7,IF(C25<=VLOOKUP(E25,'Inputs - Simulador'!$C$5:$AQ$13,41,0),8,0)))))))) -> 4
A26: Agua | B26: COMERCIAL | C26: 24 | D26: Econ_NormalAguaCOMERCIAL24 | E26: COMERCIAL | F26: 1191.166667 | G26: =$F26/Parâmetros!$C$5 -> 0.0001755591822 | H26: =$G26*Parâmetros!B$16 -> 1281.784933 | I26: =$G26*Parâmetros!C$16 -> 1315.093554 | J26: =$G26*Parâmetros!D$16 -> 1350.864029 | K26: =$G26*Parâmetros!E$16 -> 1386.634504 | L26: =IF(C26<=VLOOKUP(E26,'Inputs - Simulador'!$C$5:$AQ$13,6,0),1,IF(C26<=VLOOKUP(E26,'Inputs - Simulador'!$C$5:$AQ$13,11,0),2,IF(C26<=VLOOKUP(E26,'Inputs - Simulador'!$C$5:$AQ$13,16,0),3,IF(C26<=VLOOKUP(E26,'Inputs - Simulador'!$C$5:$AQ$13,21,0),4,IF(C26<=VLOOKUP(E26,'Inputs - Simulador'!$C$5:$AQ$13,26,0),5,IF(C26<=VLOOKUP(E26,'Inputs - Simulador'!$C$5:$AQ$13,31,0),6,IF(C26<=VLOOKUP(E26,'Inputs - Simulador'!$C$5:$AQ$13,36,0),7,IF(C26<=VLOOKUP(E26,'Inputs - Simulador'!$C$5:$AQ$13,41,0),8,0)))))))) -> 4
A27: Agua | B27: COMERCIAL | C27: 25 | D27: Econ_NormalAguaCOMERCIAL25 | E27: COMERCIAL | F27: 1078.25 | G27: =$F27/Parâmetros!$C$5 -> 0.0001589170462 | H27: =$G27*Parâmetros!B$16 -> 1160.278106 | I27: =$G27*Parâmetros!C$16 -> 1190.429236 | J27: =$G27*Parâmetros!D$16 -> 1222.808848 | K27: =$G27*Parâmetros!E$16 -> 1255.18846 | L27: =IF(C27<=VLOOKUP(E27,'Inputs - Simulador'!$C$5:$AQ$13,6,0),1,IF(C27<=VLOOKUP(E27,'Inputs - Simulador'!$C$5:$AQ$13,11,0),2,IF(C27<=VLOOKUP(E27,'Inputs - Simulador'!$C$5:$AQ$13,16,0),3,IF(C27<=VLOOKUP(E27,'Inputs - Simulador'!$C$5:$AQ$13,21,0),4,IF(C27<=VLOOKUP(E27,'Inputs - Simulador'!$C$5:$AQ$13,26,0),5,IF(C27<=VLOOKUP(E27,'Inputs - Simulador'!$C$5:$AQ$13,31,0),6,IF(C27<=VLOOKUP(E27,'Inputs - Simulador'!$C$5:$AQ$13,36,0),7,IF(C27<=VLOOKUP(E27,'Inputs - Simulador'!$C$5:$AQ$13,41,0),8,0)))))))) -> 4
A28: Agua | B28: COMERCIAL | C28: 26 | D28: Econ_NormalAguaCOMERCIAL26 | E28: COMERCIAL | F28: 991.25 | G28: =$F28/Parâmetros!$C$5 -> 0.0001460946182 | H28: =$G28*Parâmetros!B$16 -> 1066.659562 | I28: =$G28*Parâmetros!C$16 -> 1094.377908 | J28: =$G28*Parâmetros!D$16 -> 1124.14493 | K28: =$G28*Parâmetros!E$16 -> 1153.911951 | L28: =IF(C28<=VLOOKUP(E28,'Inputs - Simulador'!$C$5:$AQ$13,6,0),1,IF(C28<=VLOOKUP(E28,'Inputs - Simulador'!$C$5:$AQ$13,11,0),2,IF(C28<=VLOOKUP(E28,'Inputs - Simulador'!$C$5:$AQ$13,16,0),3,IF(C28<=VLOOKUP(E28,'Inputs - Simulador'!$C$5:$AQ$13,21,0),4,IF(C28<=VLOOKUP(E28,'Inputs - Simulador'!$C$5:$AQ$13,26,0),5,IF(C28<=VLOOKUP(E28,'Inputs - Simulador'!$C$5:$AQ$13,31,0),6,IF(C28<=VLOOKUP(E28,'Inputs - Simulador'!$C$5:$AQ$13,36,0),7,IF(C28<=VLOOKUP(E28,'Inputs - Simulador'!$C$5:$AQ$13,41,0),8,0)))))))) -> 4
A29: Agua | B29: COMERCIAL | C29: 27 | D29: Econ_NormalAguaCOMERCIAL27 | E29: COMERCIAL | F29: 867.8333333 | G29: =$F29/Parâmetros!$C$5 -> 0.0001279049478 | H29: =$G29*Parâmetros!B$16 -> 933.853945 | I29: =$G29*Parâmetros!C$16 -> 958.1211887 | J29: =$G29*Parâmetros!D$16 -> 984.1820342 | K29: =$G29*Parâmetros!E$16 -> 1010.24288 | L29: =IF(C29<=VLOOKUP(E29,'Inputs - Simulador'!$C$5:$AQ$13,6,0),1,IF(C29<=VLOOKUP(E29,'Inputs - Simulador'!$C$5:$AQ$13,11,0),2,IF(C29<=VLOOKUP(E29,'Inputs - Simulador'!$C$5:$AQ$13,16,0),3,IF(C29<=VLOOKUP(E29,'Inputs - Simulador'!$C$5:$AQ$13,21,0),4,IF(C29<=VLOOKUP(E29,'Inputs - Simulador'!$C$5:$AQ$13,26,0),5,IF(C29<=VLOOKUP(E29,'Inputs - Simulador'!$C$5:$AQ$13,31,0),6,IF(C29<=VLOOKUP(E29,'Inputs - Simulador'!$C$5:$AQ$13,36,0),7,IF(C29<=VLOOKUP(E29,'Inputs - Simulador'!$C$5:$AQ$13,41,0),8,0)))))))) -> 4
A30: Agua | B30: COMERCIAL | C30: 28 | D30: Econ_NormalAguaCOMERCIAL28 | E30: COMERCIAL | F30: 828.25 | G30: =$F30/Parâmetros!$C$5 -> 0.0001220709887 | H30: =$G30*Parâmetros!B$16 -> 891.2593008 | I30: =$G30*Parâmetros!C$16 -> 914.4196749 | J30: =$G30*Parâmetros!D$16 -> 939.2918416 | K30: =$G30*Parâmetros!E$16 -> 964.1640083 | L30: =IF(C30<=VLOOKUP(E30,'Inputs - Simulador'!$C$5:$AQ$13,6,0),1,IF(C30<=VLOOKUP(E30,'Inputs - Simulador'!$C$5:$AQ$13,11,0),2,IF(C30<=VLOOKUP(E30,'Inputs - Simulador'!$C$5:$AQ$13,16,0),3,IF(C30<=VLOOKUP(E30,'Inputs - Simulador'!$C$5:$AQ$13,21,0),4,IF(C30<=VLOOKUP(E30,'Inputs - Simulador'!$C$5:$AQ$13,26,0),5,IF(C30<=VLOOKUP(E30,'Inputs - Simulador'!$C$5:$AQ$13,31,0),6,IF(C30<=VLOOKUP(E30,'Inputs - Simulador'!$C$5:$AQ$13,36,0),7,IF(C30<=VLOOKUP(E30,'Inputs - Simulador'!$C$5:$AQ$13,41,0),8,0)))))))) -> 4
A31: Agua | B31: COMERCIAL | C31: 29 | D31: Econ_NormalAguaCOMERCIAL29 | E31: COMERCIAL | F31: 749.5833333 | G31: =$F31/Parâmetros!$C$5 -> 0.0001104767626 | H31: =$G31*Parâmetros!B$16 -> 806.6080502 | I31: =$G31*Parâmetros!C$16 -> 827.5686664 | J31: =$G31*Parâmetros!D$16 -> 850.0784903 | K31: =$G31*Parâmetros!E$16 -> 872.5883142 | L31: =IF(C31<=VLOOKUP(E31,'Inputs - Simulador'!$C$5:$AQ$13,6,0),1,IF(C31<=VLOOKUP(E31,'Inputs - Simulador'!$C$5:$AQ$13,11,0),2,IF(C31<=VLOOKUP(E31,'Inputs - Simulador'!$C$5:$AQ$13,16,0),3,IF(C31<=VLOOKUP(E31,'Inputs - Simulador'!$C$5:$AQ$13,21,0),4,IF(C31<=VLOOKUP(E31,'Inputs - Simulador'!$C$5:$AQ$13,26,0),5,IF(C31<=VLOOKUP(E31,'Inputs - Simulador'!$C$5:$AQ$13,31,0),6,IF(C31<=VLOOKUP(E31,'Inputs - Simulador'!$C$5:$AQ$13,36,0),7,IF(C31<=VLOOKUP(E31,'Inputs - Simulador'!$C$5:$AQ$13,41,0),8,0)))))))) -> 4
A32: Agua | B32: COMERCIAL | C32: 30 | D32: Econ_NormalAguaCOMERCIAL30 | E32: COMERCIAL | F32: 679.4166667 | G32: =$F32/Parâmetros!$C$5 -> 0.0001001353024 | H32: =$G32*Parâmetros!B$16 -> 731.103439 | I32: =$G32*Parâmetros!C$16 -> 750.101983 | J32: =$G32*Parâmetros!D$16 -> 770.5047172 | K32: =$G32*Parâmetros!E$16 -> 790.9074514 | L32: =IF(C32<=VLOOKUP(E32,'Inputs - Simulador'!$C$5:$AQ$13,6,0),1,IF(C32<=VLOOKUP(E32,'Inputs - Simulador'!$C$5:$AQ$13,11,0),2,IF(C32<=VLOOKUP(E32,'Inputs - Simulador'!$C$5:$AQ$13,16,0),3,IF(C32<=VLOOKUP(E32,'Inputs - Simulador'!$C$5:$AQ$13,21,0),4,IF(C32<=VLOOKUP(E32,'Inputs - Simulador'!$C$5:$AQ$13,26,0),5,IF(C32<=VLOOKUP(E32,'Inputs - Simulador'!$C$5:$AQ$13,31,0),6,IF(C32<=VLOOKUP(E32,'Inputs - Simulador'!$C$5:$AQ$13,36,0),7,IF(C32<=VLOOKUP(E32,'Inputs - Simulador'!$C$5:$AQ$13,41,0),8,0)))))))) -> 4
A33: Agua | B33: COMERCIAL | C33: 31 | D33: Econ_NormalAguaCOMERCIAL31 | E33: COMERCIAL | F33: 622.9166667 | G33: =$F33/Parâmetros!$C$5 -> 9.18080934e-05 | H33: =$G33*Parâmetros!B$16 -> 670.305189 | I33: =$G33*Parâmetros!C$16 -> 687.7238223 | J33: =$G33*Parâmetros!D$16 -> 706.4298738 | K33: =$G33*Parâmetros!E$16 -> 725.1359253 | L33: =IF(C33<=VLOOKUP(E33,'Inputs - Simulador'!$C$5:$AQ$13,6,0),1,IF(C33<=VLOOKUP(E33,'Inputs - Simulador'!$C$5:$AQ$13,11,0),2,IF(C33<=VLOOKUP(E33,'Inputs - Simulador'!$C$5:$AQ$13,16,0),3,IF(C33<=VLOOKUP(E33,'Inputs - Simulador'!$C$5:$AQ$13,21,0),4,IF(C33<=VLOOKUP(E33,'Inputs - Simulador'!$C$5:$AQ$13,26,0),5,IF(C33<=VLOOKUP(E33,'Inputs - Simulador'!$C$5:$AQ$13,31,0),6,IF(C33<=VLOOKUP(E33,'Inputs - Simulador'!$C$5:$AQ$13,36,0),7,IF(C33<=VLOOKUP(E33,'Inputs - Simulador'!$C$5:$AQ$13,41,0),8,0)))))))) -> 5
A34: Agua | B34: COMERCIAL | C34: 32 | D34: Econ_NormalAguaCOMERCIAL32 | E34: COMERCIAL | F34: 561.0833333 | G34: =$F34/Parâmetros!$C$5 -> 8.269483517e-05 | H34: =$G34*Parâmetros!B$16 -> 603.7678713 | I34: =$G34*Parâmetros!C$16 -> 619.4574576 | J34: =$G34*Parâmetros!D$16 -> 636.3066676 | K34: =$G34*Parâmetros!E$16 -> 653.1558776 | L34: =IF(C34<=VLOOKUP(E34,'Inputs - Simulador'!$C$5:$AQ$13,6,0),1,IF(C34<=VLOOKUP(E34,'Inputs - Simulador'!$C$5:$AQ$13,11,0),2,IF(C34<=VLOOKUP(E34,'Inputs - Simulador'!$C$5:$AQ$13,16,0),3,IF(C34<=VLOOKUP(E34,'Inputs - Simulador'!$C$5:$AQ$13,21,0),4,IF(C34<=VLOOKUP(E34,'Inputs - Simulador'!$C$5:$AQ$13,26,0),5,IF(C34<=VLOOKUP(E34,'Inputs - Simulador'!$C$5:$AQ$13,31,0),6,IF(C34<=VLOOKUP(E34,'Inputs - Simulador'!$C$5:$AQ$13,36,0),7,IF(C34<=VLOOKUP(E34,'Inputs - Simulador'!$C$5:$AQ$13,41,0),8,0)))))))) -> 5
A35: Agua | B35: COMERCIAL | C35: 33 | D35: Econ_NormalAguaCOMERCIAL33 | E35: COMERCIAL | F35: 524.8333333 | G35: =$F35/Parâmetros!$C$5 -> 7.735215682e-05 | H35: =$G35*Parâmetros!B$16 -> 564.7601446 | I35: =$G35*Parâmetros!C$16 -> 579.4360713 | J35: =$G35*Parâmetros!D$16 -> 595.1967017 | K35: =$G35*Parâmetros!E$16 -> 610.9573321 | L35: =IF(C35<=VLOOKUP(E35,'Inputs - Simulador'!$C$5:$AQ$13,6,0),1,IF(C35<=VLOOKUP(E35,'Inputs - Simulador'!$C$5:$AQ$13,11,0),2,IF(C35<=VLOOKUP(E35,'Inputs - Simulador'!$C$5:$AQ$13,16,0),3,IF(C35<=VLOOKUP(E35,'Inputs - Simulador'!$C$5:$AQ$13,21,0),4,IF(C35<=VLOOKUP(E35,'Inputs - Simulador'!$C$5:$AQ$13,26,0),5,IF(C35<=VLOOKUP(E35,'Inputs - Simulador'!$C$5:$AQ$13,31,0),6,IF(C35<=VLOOKUP(E35,'Inputs - Simulador'!$C$5:$AQ$13,36,0),7,IF(C35<=VLOOKUP(E35,'Inputs - Simulador'!$C$5:$AQ$13,41,0),8,0)))))))) -> 5
A36: Agua | B36: COMERCIAL | C36: 34 | D36: Econ_NormalAguaCOMERCIAL34 | E36: COMERCIAL | F36: 497.5833333 | G36: =$F36/Parâmetros!$C$5 -> 7.333593655e-05 | H36: =$G36*Parâmetros!B$16 -> 535.4370948 | I36: =$G36*Parâmetros!C$16 -> 549.3510291 | J36: =$G36*Parâmetros!D$16 -> 564.293348 | K36: =$G36*Parâmetros!E$16 -> 579.2356669 | L36: =IF(C36<=VLOOKUP(E36,'Inputs - Simulador'!$C$5:$AQ$13,6,0),1,IF(C36<=VLOOKUP(E36,'Inputs - Simulador'!$C$5:$AQ$13,11,0),2,IF(C36<=VLOOKUP(E36,'Inputs - Simulador'!$C$5:$AQ$13,16,0),3,IF(C36<=VLOOKUP(E36,'Inputs - Simulador'!$C$5:$AQ$13,21,0),4,IF(C36<=VLOOKUP(E36,'Inputs - Simulador'!$C$5:$AQ$13,26,0),5,IF(C36<=VLOOKUP(E36,'Inputs - Simulador'!$C$5:$AQ$13,31,0),6,IF(C36<=VLOOKUP(E36,'Inputs - Simulador'!$C$5:$AQ$13,36,0),7,IF(C36<=VLOOKUP(E36,'Inputs - Simulador'!$C$5:$AQ$13,41,0),8,0)))))))) -> 5
A37: Agua | B37: COMERCIAL | C37: 35 | D37: Econ_NormalAguaCOMERCIAL35 | E37: COMERCIAL | F37: 452.6666667 | G37: =$F37/Parâmetros!$C$5 -> 6.671592821e-05 | H37: =$G37*Parâmetros!B$16 -> 487.1033829 | I37: =$G37*Parâmetros!C$16 -> 499.7613114 | J37: =$G37*Parâmetros!D$16 -> 513.3547926 | K37: =$G37*Parâmetros!E$16 -> 526.9482738 | L37: =IF(C37<=VLOOKUP(E37,'Inputs - Simulador'!$C$5:$AQ$13,6,0),1,IF(C37<=VLOOKUP(E37,'Inputs - Simulador'!$C$5:$AQ$13,11,0),2,IF(C37<=VLOOKUP(E37,'Inputs - Simulador'!$C$5:$AQ$13,16,0),3,IF(C37<=VLOOKUP(E37,'Inputs - Simulador'!$C$5:$AQ$13,21,0),4,IF(C37<=VLOOKUP(E37,'Inputs - Simulador'!$C$5:$AQ$13,26,0),5,IF(C37<=VLOOKUP(E37,'Inputs - Simulador'!$C$5:$AQ$13,31,0),6,IF(C37<=VLOOKUP(E37,'Inputs - Simulador'!$C$5:$AQ$13,36,0),7,IF(C37<=VLOOKUP(E37,'Inputs - Simulador'!$C$5:$AQ$13,41,0),8,0)))))))) -> 5
A38: Agua | B38: COMERCIAL | C38: 36 | D38: Econ_NormalAguaCOMERCIAL36 | E38: COMERCIAL | F38: 430.8333333 | G38: =$F38/Parâmetros!$C$5 -> 6.349803918e-05 | H38: =$G38*Parâmetros!B$16 -> 463.6090739 | I38: =$G38*Parâmetros!C$16 -> 475.6564764 | J38: =$G38*Parâmetros!D$16 -> 488.5943074 | K38: =$G38*Parâmetros!E$16 -> 501.5321383 | L38: =IF(C38<=VLOOKUP(E38,'Inputs - Simulador'!$C$5:$AQ$13,6,0),1,IF(C38<=VLOOKUP(E38,'Inputs - Simulador'!$C$5:$AQ$13,11,0),2,IF(C38<=VLOOKUP(E38,'Inputs - Simulador'!$C$5:$AQ$13,16,0),3,IF(C38<=VLOOKUP(E38,'Inputs - Simulador'!$C$5:$AQ$13,21,0),4,IF(C38<=VLOOKUP(E38,'Inputs - Simulador'!$C$5:$AQ$13,26,0),5,IF(C38<=VLOOKUP(E38,'Inputs - Simulador'!$C$5:$AQ$13,31,0),6,IF(C38<=VLOOKUP(E38,'Inputs - Simulador'!$C$5:$AQ$13,36,0),7,IF(C38<=VLOOKUP(E38,'Inputs - Simulador'!$C$5:$AQ$13,41,0),8,0)))))))) -> 5
A39: Agua | B39: COMERCIAL | C39: 37 | D39: Econ_NormalAguaCOMERCIAL37 | E39: COMERCIAL | F39: 406.1666667 | G39: =$F39/Parâmetros!$C$5 -> 5.98625615e-05 | H39: =$G39*Parâmetros!B$16 -> 437.0658851 | I39: =$G39*Parâmetros!C$16 -> 448.4235331 | J39: =$G39*Parâmetros!D$16 -> 460.6206294 | K39: =$G39*Parâmetros!E$16 -> 472.8177258 | L39: =IF(C39<=VLOOKUP(E39,'Inputs - Simulador'!$C$5:$AQ$13,6,0),1,IF(C39<=VLOOKUP(E39,'Inputs - Simulador'!$C$5:$AQ$13,11,0),2,IF(C39<=VLOOKUP(E39,'Inputs - Simulador'!$C$5:$AQ$13,16,0),3,IF(C39<=VLOOKUP(E39,'Inputs - Simulador'!$C$5:$AQ$13,21,0),4,IF(C39<=VLOOKUP(E39,'Inputs - Simulador'!$C$5:$AQ$13,26,0),5,IF(C39<=VLOOKUP(E39,'Inputs - Simulador'!$C$5:$AQ$13,31,0),6,IF(C39<=VLOOKUP(E39,'Inputs - Simulador'!$C$5:$AQ$13,36,0),7,IF(C39<=VLOOKUP(E39,'Inputs - Simulador'!$C$5:$AQ$13,41,0),8,0)))))))) -> 5
A40: Agua | B40: COMERCIAL | C40: 38 | D40: Econ_NormalAguaCOMERCIAL38 | E40: COMERCIAL | F40: 378.4166667 | G40: =$F40/Parâmetros!$C$5 -> 5.577264911e-05 | H40: =$G40*Parâmetros!B$16 -> 407.2047978 | I40: =$G40*Parâmetros!C$16 -> 417.7864718 | J40: =$G40*Parâmetros!D$16 -> 429.1502417 | K40: =$G40*Parâmetros!E$16 -> 440.5140116 | L40: =IF(C40<=VLOOKUP(E40,'Inputs - Simulador'!$C$5:$AQ$13,6,0),1,IF(C40<=VLOOKUP(E40,'Inputs - Simulador'!$C$5:$AQ$13,11,0),2,IF(C40<=VLOOKUP(E40,'Inputs - Simulador'!$C$5:$AQ$13,16,0),3,IF(C40<=VLOOKUP(E40,'Inputs - Simulador'!$C$5:$AQ$13,21,0),4,IF(C40<=VLOOKUP(E40,'Inputs - Simulador'!$C$5:$AQ$13,26,0),5,IF(C40<=VLOOKUP(E40,'Inputs - Simulador'!$C$5:$AQ$13,31,0),6,IF(C40<=VLOOKUP(E40,'Inputs - Simulador'!$C$5:$AQ$13,36,0),7,IF(C40<=VLOOKUP(E40,'Inputs - Simulador'!$C$5:$AQ$13,41,0),8,0)))))))) -> 5
A41: Agua | B41: COMERCIAL | C41: 39 | D41: Econ_NormalAguaCOMERCIAL39 | E41: COMERCIAL | F41: 357.4166667 | G41: =$F41/Parâmetros!$C$5 -> 5.267758028e-05 | H41: =$G41*Parâmetros!B$16 -> 384.6072182 | I41: =$G41*Parâmetros!C$16 -> 394.6016687 | J41: =$G41*Parâmetros!D$16 -> 405.3348132 | K41: =$G41*Parâmetros!E$16 -> 416.0679577 | L41: =IF(C41<=VLOOKUP(E41,'Inputs - Simulador'!$C$5:$AQ$13,6,0),1,IF(C41<=VLOOKUP(E41,'Inputs - Simulador'!$C$5:$AQ$13,11,0),2,IF(C41<=VLOOKUP(E41,'Inputs - Simulador'!$C$5:$AQ$13,16,0),3,IF(C41<=VLOOKUP(E41,'Inputs - Simulador'!$C$5:$AQ$13,21,0),4,IF(C41<=VLOOKUP(E41,'Inputs - Simulador'!$C$5:$AQ$13,26,0),5,IF(C41<=VLOOKUP(E41,'Inputs - Simulador'!$C$5:$AQ$13,31,0),6,IF(C41<=VLOOKUP(E41,'Inputs - Simulador'!$C$5:$AQ$13,36,0),7,IF(C41<=VLOOKUP(E41,'Inputs - Simulador'!$C$5:$AQ$13,41,0),8,0)))))))) -> 5
A42: Agua | B42: COMERCIAL | C42: 40 | D42: Econ_NormalAguaCOMERCIAL40 | E42: COMERCIAL | F42: 352.0833333 | G42: =$F42/Parâmetros!$C$5 -> 5.189153105e-05 | H42: =$G42*Parâmetros!B$16 -> 378.8681503 | I42: =$G42*Parâmetros!C$16 -> 388.7134648 | J42: =$G42*Parâmetros!D$16 -> 399.2864504 | K42: =$G42*Parâmetros!E$16 -> 409.8594361 | L42: =IF(C42<=VLOOKUP(E42,'Inputs - Simulador'!$C$5:$AQ$13,6,0),1,IF(C42<=VLOOKUP(E42,'Inputs - Simulador'!$C$5:$AQ$13,11,0),2,IF(C42<=VLOOKUP(E42,'Inputs - Simulador'!$C$5:$AQ$13,16,0),3,IF(C42<=VLOOKUP(E42,'Inputs - Simulador'!$C$5:$AQ$13,21,0),4,IF(C42<=VLOOKUP(E42,'Inputs - Simulador'!$C$5:$AQ$13,26,0),5,IF(C42<=VLOOKUP(E42,'Inputs - Simulador'!$C$5:$AQ$13,31,0),6,IF(C42<=VLOOKUP(E42,'Inputs - Simulador'!$C$5:$AQ$13,36,0),7,IF(C42<=VLOOKUP(E42,'Inputs - Simulador'!$C$5:$AQ$13,41,0),8,0)))))))) -> 5
A43: Agua | B43: COMERCIAL | C43: 41 | D43: Econ_NormalAguaCOMERCIAL41 | E43: COMERCIAL | F43: 319.4166667 | G43: =$F43/Parâmetros!$C$5 -> 4.707697953e-05 | H43: =$G43*Parâmetros!B$16 -> 343.7163598 | I43: =$G43*Parâmetros!C$16 -> 352.6482155 | J43: =$G43*Parâmetros!D$16 -> 362.2402283 | K43: =$G43*Parâmetros!E$16 -> 371.832241 | L43: =IF(C43<=VLOOKUP(E43,'Inputs - Simulador'!$C$5:$AQ$13,6,0),1,IF(C43<=VLOOKUP(E43,'Inputs - Simulador'!$C$5:$AQ$13,11,0),2,IF(C43<=VLOOKUP(E43,'Inputs - Simulador'!$C$5:$AQ$13,16,0),3,IF(C43<=VLOOKUP(E43,'Inputs - Simulador'!$C$5:$AQ$13,21,0),4,IF(C43<=VLOOKUP(E43,'Inputs - Simulador'!$C$5:$AQ$13,26,0),5,IF(C43<=VLOOKUP(E43,'Inputs - Simulador'!$C$5:$AQ$13,31,0),6,IF(C43<=VLOOKUP(E43,'Inputs - Simulador'!$C$5:$AQ$13,36,0),7,IF(C43<=VLOOKUP(E43,'Inputs - Simulador'!$C$5:$AQ$13,41,0),8,0)))))))) -> 5
A44: Agua | B44: COMERCIAL | C44: 42 | D44: Econ_NormalAguaCOMERCIAL42 | E44: COMERCIAL | F44: 297.4166667 | G44: =$F44/Parâmetros!$C$5 -> 4.383452647e-05 | H44: =$G44*Parâmetros!B$16 -> 320.042705 | I44: =$G44*Parâmetros!C$16 -> 328.3593741 | J44: =$G44*Parâmetros!D$16 -> 337.2907317 | K44: =$G44*Parâmetros!E$16 -> 346.2220893 | L44: =IF(C44<=VLOOKUP(E44,'Inputs - Simulador'!$C$5:$AQ$13,6,0),1,IF(C44<=VLOOKUP(E44,'Inputs - Simulador'!$C$5:$AQ$13,11,0),2,IF(C44<=VLOOKUP(E44,'Inputs - Simulador'!$C$5:$AQ$13,16,0),3,IF(C44<=VLOOKUP(E44,'Inputs - Simulador'!$C$5:$AQ$13,21,0),4,IF(C44<=VLOOKUP(E44,'Inputs - Simulador'!$C$5:$AQ$13,26,0),5,IF(C44<=VLOOKUP(E44,'Inputs - Simulador'!$C$5:$AQ$13,31,0),6,IF(C44<=VLOOKUP(E44,'Inputs - Simulador'!$C$5:$AQ$13,36,0),7,IF(C44<=VLOOKUP(E44,'Inputs - Simulador'!$C$5:$AQ$13,41,0),8,0)))))))) -> 5
A45: Agua | B45: COMERCIAL | C45: 43 | D45: Econ_NormalAguaCOMERCIAL43 | E45: COMERCIAL | F45: 274.6666667 | G45: =$F45/Parâmetros!$C$5 -> 4.048153523e-05 | H45: =$G45*Parâmetros!B$16 -> 295.5619937 | I45: =$G45*Parâmetros!C$16 -> 303.2425041 | J45: =$G45*Parâmetros!D$16 -> 311.4906842 | K45: =$G45*Parâmetros!E$16 -> 319.7388642 | L45: =IF(C45<=VLOOKUP(E45,'Inputs - Simulador'!$C$5:$AQ$13,6,0),1,IF(C45<=VLOOKUP(E45,'Inputs - Simulador'!$C$5:$AQ$13,11,0),2,IF(C45<=VLOOKUP(E45,'Inputs - Simulador'!$C$5:$AQ$13,16,0),3,IF(C45<=VLOOKUP(E45,'Inputs - Simulador'!$C$5:$AQ$13,21,0),4,IF(C45<=VLOOKUP(E45,'Inputs - Simulador'!$C$5:$AQ$13,26,0),5,IF(C45<=VLOOKUP(E45,'Inputs - Simulador'!$C$5:$AQ$13,31,0),6,IF(C45<=VLOOKUP(E45,'Inputs - Simulador'!$C$5:$AQ$13,36,0),7,IF(C45<=VLOOKUP(E45,'Inputs - Simulador'!$C$5:$AQ$13,41,0),8,0)))))))) -> 5
A46: Agua | B46: COMERCIAL | C46: 44 | D46: Econ_NormalAguaCOMERCIAL44 | E46: COMERCIAL | F46: 273 | G46: =$F46/Parâmetros!$C$5 -> 4.023589485e-05 | H46: =$G46*Parâmetros!B$16 -> 293.768535 | I46: =$G46*Parâmetros!C$16 -> 301.4024404 | J46: =$G46*Parâmetros!D$16 -> 309.6005708 | K46: =$G46*Parâmetros!E$16 -> 317.7987012 | L46: =IF(C46<=VLOOKUP(E46,'Inputs - Simulador'!$C$5:$AQ$13,6,0),1,IF(C46<=VLOOKUP(E46,'Inputs - Simulador'!$C$5:$AQ$13,11,0),2,IF(C46<=VLOOKUP(E46,'Inputs - Simulador'!$C$5:$AQ$13,16,0),3,IF(C46<=VLOOKUP(E46,'Inputs - Simulador'!$C$5:$AQ$13,21,0),4,IF(C46<=VLOOKUP(E46,'Inputs - Simulador'!$C$5:$AQ$13,26,0),5,IF(C46<=VLOOKUP(E46,'Inputs - Simulador'!$C$5:$AQ$13,31,0),6,IF(C46<=VLOOKUP(E46,'Inputs - Simulador'!$C$5:$AQ$13,36,0),7,IF(C46<=VLOOKUP(E46,'Inputs - Simulador'!$C$5:$AQ$13,41,0),8,0)))))))) -> 5
A47: Agua | B47: COMERCIAL | C47: 45 | D47: Econ_NormalAguaCOMERCIAL45 | E47: COMERCIAL | F47: 255.25 | G47: =$F47/Parâmetros!$C$5 -> 3.761982476e-05 | H47: =$G47*Parâmetros!B$16 -> 274.6681999 | I47: =$G47*Parâmetros!C$16 -> 281.8057616 | J47: =$G47*Parâmetros!D$16 -> 289.4708633 | K47: =$G47*Parâmetros!E$16 -> 297.1359651 | L47: =IF(C47<=VLOOKUP(E47,'Inputs - Simulador'!$C$5:$AQ$13,6,0),1,IF(C47<=VLOOKUP(E47,'Inputs - Simulador'!$C$5:$AQ$13,11,0),2,IF(C47<=VLOOKUP(E47,'Inputs - Simulador'!$C$5:$AQ$13,16,0),3,IF(C47<=VLOOKUP(E47,'Inputs - Simulador'!$C$5:$AQ$13,21,0),4,IF(C47<=VLOOKUP(E47,'Inputs - Simulador'!$C$5:$AQ$13,26,0),5,IF(C47<=VLOOKUP(E47,'Inputs - Simulador'!$C$5:$AQ$13,31,0),6,IF(C47<=VLOOKUP(E47,'Inputs - Simulador'!$C$5:$AQ$13,36,0),7,IF(C47<=VLOOKUP(E47,'Inputs - Simulador'!$C$5:$AQ$13,41,0),8,0)))))))) -> 5
A48: Agua | B48: COMERCIAL | C48: 46 | D48: Econ_NormalAguaCOMERCIAL46 | E48: COMERCIAL | F48: 241 | G48: =$F48/Parâmetros!$C$5 -> 3.551959948e-05 | H48: =$G48*Parâmetros!B$16 -> 259.334128 | I48: =$G48*Parâmetros!C$16 -> 266.0732166 | J48: =$G48*Parâmetros!D$16 -> 273.310394 | K48: =$G48*Parâmetros!E$16 -> 280.5475714 | L48: =IF(C48<=VLOOKUP(E48,'Inputs - Simulador'!$C$5:$AQ$13,6,0),1,IF(C48<=VLOOKUP(E48,'Inputs - Simulador'!$C$5:$AQ$13,11,0),2,IF(C48<=VLOOKUP(E48,'Inputs - Simulador'!$C$5:$AQ$13,16,0),3,IF(C48<=VLOOKUP(E48,'Inputs - Simulador'!$C$5:$AQ$13,21,0),4,IF(C48<=VLOOKUP(E48,'Inputs - Simulador'!$C$5:$AQ$13,26,0),5,IF(C48<=VLOOKUP(E48,'Inputs - Simulador'!$C$5:$AQ$13,31,0),6,IF(C48<=VLOOKUP(E48,'Inputs - Simulador'!$C$5:$AQ$13,36,0),7,IF(C48<=VLOOKUP(E48,'Inputs - Simulador'!$C$5:$AQ$13,41,0),8,0)))))))) -> 5
A49: Agua | B49: COMERCIAL | C49: 47 | D49: Econ_NormalAguaCOMERCIAL47 | E49: COMERCIAL | F49: 218.75 | G49: =$F49/Parâmetros!$C$5 -> 3.224030036e-05 | H49: =$G49*Parâmetros!B$16 -> 235.3914543 | I49: =$G49*Parâmetros!C$16 -> 241.5083657 | J49: =$G49*Parâmetros!D$16 -> 248.0773804 | K49: =$G49*Parâmetros!E$16 -> 254.6463952 | L49: =IF(C49<=VLOOKUP(E49,'Inputs - Simulador'!$C$5:$AQ$13,6,0),1,IF(C49<=VLOOKUP(E49,'Inputs - Simulador'!$C$5:$AQ$13,11,0),2,IF(C49<=VLOOKUP(E49,'Inputs - Simulador'!$C$5:$AQ$13,16,0),3,IF(C49<=VLOOKUP(E49,'Inputs - Simulador'!$C$5:$AQ$13,21,0),4,IF(C49<=VLOOKUP(E49,'Inputs - Simulador'!$C$5:$AQ$13,26,0),5,IF(C49<=VLOOKUP(E49,'Inputs - Simulador'!$C$5:$AQ$13,31,0),6,IF(C49<=VLOOKUP(E49,'Inputs - Simulador'!$C$5:$AQ$13,36,0),7,IF(C49<=VLOOKUP(E49,'Inputs - Simulador'!$C$5:$AQ$13,41,0),8,0)))))))) -> 5
A50: Agua | B50: COMERCIAL | C50: 48 | D50: Econ_NormalAguaCOMERCIAL48 | E50: COMERCIAL | F50: 222 | G50: =$F50/Parâmetros!$C$5 -> 3.271929911e-05 | H50: =$G50*Parâmetros!B$16 -> 238.8886988 | I50: =$G50*Parâmetros!C$16 -> 245.09649 | J50: =$G50*Parâmetros!D$16 -> 251.7631015 | K50: =$G50*Parâmetros!E$16 -> 258.4297131 | L50: =IF(C50<=VLOOKUP(E50,'Inputs - Simulador'!$C$5:$AQ$13,6,0),1,IF(C50<=VLOOKUP(E50,'Inputs - Simulador'!$C$5:$AQ$13,11,0),2,IF(C50<=VLOOKUP(E50,'Inputs - Simulador'!$C$5:$AQ$13,16,0),3,IF(C50<=VLOOKUP(E50,'Inputs - Simulador'!$C$5:$AQ$13,21,0),4,IF(C50<=VLOOKUP(E50,'Inputs - Simulador'!$C$5:$AQ$13,26,0),5,IF(C50<=VLOOKUP(E50,'Inputs - Simulador'!$C$5:$AQ$13,31,0),6,IF(C50<=VLOOKUP(E50,'Inputs - Simulador'!$C$5:$AQ$13,36,0),7,IF(C50<=VLOOKUP(E50,'Inputs - Simulador'!$C$5:$AQ$13,41,0),8,0)))))))) -> 5
A51: Agua | B51: COMERCIAL | C51: 49 | D51: Econ_NormalAguaCOMERCIAL49 | E51: COMERCIAL | F51: 205.6666667 | G51: =$F51/Parâmetros!$C$5 -> 3.031202335e-05 | H51: =$G51*Parâmetros!B$16 -> 221.3128035 | I51: =$G51*Parâmetros!C$16 -> 227.0638653 | J51: =$G51*Parâmetros!D$16 -> 233.2399904 | K51: =$G51*Parâmetros!E$16 -> 239.4161155 | L51: =IF(C51<=VLOOKUP(E51,'Inputs - Simulador'!$C$5:$AQ$13,6,0),1,IF(C51<=VLOOKUP(E51,'Inputs - Simulador'!$C$5:$AQ$13,11,0),2,IF(C51<=VLOOKUP(E51,'Inputs - Simulador'!$C$5:$AQ$13,16,0),3,IF(C51<=VLOOKUP(E51,'Inputs - Simulador'!$C$5:$AQ$13,21,0),4,IF(C51<=VLOOKUP(E51,'Inputs - Simulador'!$C$5:$AQ$13,26,0),5,IF(C51<=VLOOKUP(E51,'Inputs - Simulador'!$C$5:$AQ$13,31,0),6,IF(C51<=VLOOKUP(E51,'Inputs - Simulador'!$C$5:$AQ$13,36,0),7,IF(C51<=VLOOKUP(E51,'Inputs - Simulador'!$C$5:$AQ$13,41,0),8,0)))))))) -> 5
A52: Agua | B52: COMERCIAL | C52: 50 | D52: Econ_NormalAguaCOMERCIAL50 | E52: COMERCIAL | F52: 198 | G52: =$F52/Parâmetros!$C$5 -> 2.918207758e-05 | H52: =$G52*Parâmetros!B$16 -> 213.0628935 | I52: =$G52*Parâmetros!C$16 -> 218.5995721 | J52: =$G52*Parâmetros!D$16 -> 224.5454689 | K52: =$G52*Parâmetros!E$16 -> 230.4913657 | L52: =IF(C52<=VLOOKUP(E52,'Inputs - Simulador'!$C$5:$AQ$13,6,0),1,IF(C52<=VLOOKUP(E52,'Inputs - Simulador'!$C$5:$AQ$13,11,0),2,IF(C52<=VLOOKUP(E52,'Inputs - Simulador'!$C$5:$AQ$13,16,0),3,IF(C52<=VLOOKUP(E52,'Inputs - Simulador'!$C$5:$AQ$13,21,0),4,IF(C52<=VLOOKUP(E52,'Inputs - Simulador'!$C$5:$AQ$13,26,0),5,IF(C52<=VLOOKUP(E52,'Inputs - Simulador'!$C$5:$AQ$13,31,0),6,IF(C52<=VLOOKUP(E52,'Inputs - Simulador'!$C$5:$AQ$13,36,0),7,IF(C52<=VLOOKUP(E52,'Inputs - Simulador'!$C$5:$AQ$13,41,0),8,0)))))))) -> 5
A53: Agua | B53: COMERCIAL | C53: 51 | D53: Econ_NormalAguaCOMERCIAL51 | E53: COMERCIAL | F53: 181.25 | G53: =$F53/Parâmetros!$C$5 -> 2.671339173e-05 | H53: =$G53*Parâmetros!B$16 -> 195.0386336 | I53: =$G53*Parâmetros!C$16 -> 200.1069316 | J53: =$G53*Parâmetros!D$16 -> 205.5498295 | K53: =$G53*Parâmetros!E$16 -> 210.9927274 | L53: =IF(C53<=VLOOKUP(E53,'Inputs - Simulador'!$C$5:$AQ$13,6,0),1,IF(C53<=VLOOKUP(E53,'Inputs - Simulador'!$C$5:$AQ$13,11,0),2,IF(C53<=VLOOKUP(E53,'Inputs - Simulador'!$C$5:$AQ$13,16,0),3,IF(C53<=VLOOKUP(E53,'Inputs - Simulador'!$C$5:$AQ$13,21,0),4,IF(C53<=VLOOKUP(E53,'Inputs - Simulador'!$C$5:$AQ$13,26,0),5,IF(C53<=VLOOKUP(E53,'Inputs - Simulador'!$C$5:$AQ$13,31,0),6,IF(C53<=VLOOKUP(E53,'Inputs - Simulador'!$C$5:$AQ$13,36,0),7,IF(C53<=VLOOKUP(E53,'Inputs - Simulador'!$C$5:$AQ$13,41,0),8,0)))))))) -> 6
A54: Agua | B54: COMERCIAL | C54: 52 | D54: Econ_NormalAguaCOMERCIAL52 | E54: COMERCIAL | F54: 178.1666667 | G54: =$F54/Parâmetros!$C$5 -> 2.625895702e-05 | H54: =$G54*Parâmetros!B$16 -> 191.720735 | I54: =$G54*Parâmetros!C$16 -> 196.7028136 | J54: =$G54*Parâmetros!D$16 -> 202.0531198 | K54: =$G54*Parâmetros!E$16 -> 207.4034259 | L54: =IF(C54<=VLOOKUP(E54,'Inputs - Simulador'!$C$5:$AQ$13,6,0),1,IF(C54<=VLOOKUP(E54,'Inputs - Simulador'!$C$5:$AQ$13,11,0),2,IF(C54<=VLOOKUP(E54,'Inputs - Simulador'!$C$5:$AQ$13,16,0),3,IF(C54<=VLOOKUP(E54,'Inputs - Simulador'!$C$5:$AQ$13,21,0),4,IF(C54<=VLOOKUP(E54,'Inputs - Simulador'!$C$5:$AQ$13,26,0),5,IF(C54<=VLOOKUP(E54,'Inputs - Simulador'!$C$5:$AQ$13,31,0),6,IF(C54<=VLOOKUP(E54,'Inputs - Simulador'!$C$5:$AQ$13,36,0),7,IF(C54<=VLOOKUP(E54,'Inputs - Simulador'!$C$5:$AQ$13,41,0),8,0)))))))) -> 6
A55: Agua | B55: COMERCIAL | C55: 53 | D55: Econ_NormalAguaCOMERCIAL53 | E55: COMERCIAL | F55: 168.0833333 | G55: =$F55/Parâmetros!$C$5 -> 2.477283269e-05 | H55: =$G55*Parâmetros!B$16 -> 180.8703099 | I55: =$G55*Parâmetros!C$16 -> 185.570428 | J55: =$G55*Parâmetros!D$16 -> 190.6179338 | K55: =$G55*Parâmetros!E$16 -> 195.6654397 | L55: =IF(C55<=VLOOKUP(E55,'Inputs - Simulador'!$C$5:$AQ$13,6,0),1,IF(C55<=VLOOKUP(E55,'Inputs - Simulador'!$C$5:$AQ$13,11,0),2,IF(C55<=VLOOKUP(E55,'Inputs - Simulador'!$C$5:$AQ$13,16,0),3,IF(C55<=VLOOKUP(E55,'Inputs - Simulador'!$C$5:$AQ$13,21,0),4,IF(C55<=VLOOKUP(E55,'Inputs - Simulador'!$C$5:$AQ$13,26,0),5,IF(C55<=VLOOKUP(E55,'Inputs - Simulador'!$C$5:$AQ$13,31,0),6,IF(C55<=VLOOKUP(E55,'Inputs - Simulador'!$C$5:$AQ$13,36,0),7,IF(C55<=VLOOKUP(E55,'Inputs - Simulador'!$C$5:$AQ$13,41,0),8,0)))))))) -> 6
A56: Agua | B56: COMERCIAL | C56: 54 | D56: Econ_NormalAguaCOMERCIAL54 | E56: COMERCIAL | F56: 160.1666667 | G56: =$F56/Parâmetros!$C$5 -> 2.360604087e-05 | H56: =$G56*Parâmetros!B$16 -> 172.351381 | I56: =$G56*Parâmetros!C$16 -> 176.8301253 | J56: =$G56*Parâmetros!D$16 -> 181.6398953 | K56: =$G56*Parâmetros!E$16 -> 186.4496653 | L56: =IF(C56<=VLOOKUP(E56,'Inputs - Simulador'!$C$5:$AQ$13,6,0),1,IF(C56<=VLOOKUP(E56,'Inputs - Simulador'!$C$5:$AQ$13,11,0),2,IF(C56<=VLOOKUP(E56,'Inputs - Simulador'!$C$5:$AQ$13,16,0),3,IF(C56<=VLOOKUP(E56,'Inputs - Simulador'!$C$5:$AQ$13,21,0),4,IF(C56<=VLOOKUP(E56,'Inputs - Simulador'!$C$5:$AQ$13,26,0),5,IF(C56<=VLOOKUP(E56,'Inputs - Simulador'!$C$5:$AQ$13,31,0),6,IF(C56<=VLOOKUP(E56,'Inputs - Simulador'!$C$5:$AQ$13,36,0),7,IF(C56<=VLOOKUP(E56,'Inputs - Simulador'!$C$5:$AQ$13,41,0),8,0)))))))) -> 6
A57: Agua | B57: COMERCIAL | C57: 55 | D57: Econ_NormalAguaCOMERCIAL55 | E57: COMERCIAL | F57: 152.25 | G57: =$F57/Parâmetros!$C$5 -> 2.243924905e-05 | H57: =$G57*Parâmetros!B$16 -> 163.8324522 | I57: =$G57*Parâmetros!C$16 -> 168.0898225 | J57: =$G57*Parâmetros!D$16 -> 172.6618568 | K57: =$G57*Parâmetros!E$16 -> 177.233891 | L57: =IF(C57<=VLOOKUP(E57,'Inputs - Simulador'!$C$5:$AQ$13,6,0),1,IF(C57<=VLOOKUP(E57,'Inputs - Simulador'!$C$5:$AQ$13,11,0),2,IF(C57<=VLOOKUP(E57,'Inputs - Simulador'!$C$5:$AQ$13,16,0),3,IF(C57<=VLOOKUP(E57,'Inputs - Simulador'!$C$5:$AQ$13,21,0),4,IF(C57<=VLOOKUP(E57,'Inputs - Simulador'!$C$5:$AQ$13,26,0),5,IF(C57<=VLOOKUP(E57,'Inputs - Simulador'!$C$5:$AQ$13,31,0),6,IF(C57<=VLOOKUP(E57,'Inputs - Simulador'!$C$5:$AQ$13,36,0),7,IF(C57<=VLOOKUP(E57,'Inputs - Simulador'!$C$5:$AQ$13,41,0),8,0)))))))) -> 6
A58: Agua | B58: COMERCIAL | C58: 56 | D58: Econ_NormalAguaCOMERCIAL56 | E58: COMERCIAL | F58: 145.6666667 | G58: =$F58/Parâmetros!$C$5 -> 2.146896953e-05 | H58: =$G58*Parâmetros!B$16 -> 156.7482904 | I58: =$G58*Parâmetros!C$16 -> 160.8215707 | J58: =$G58*Parâmetros!D$16 -> 165.195909 | K58: =$G58*Parâmetros!E$16 -> 169.5702472 | L58: =IF(C58<=VLOOKUP(E58,'Inputs - Simulador'!$C$5:$AQ$13,6,0),1,IF(C58<=VLOOKUP(E58,'Inputs - Simulador'!$C$5:$AQ$13,11,0),2,IF(C58<=VLOOKUP(E58,'Inputs - Simulador'!$C$5:$AQ$13,16,0),3,IF(C58<=VLOOKUP(E58,'Inputs - Simulador'!$C$5:$AQ$13,21,0),4,IF(C58<=VLOOKUP(E58,'Inputs - Simulador'!$C$5:$AQ$13,26,0),5,IF(C58<=VLOOKUP(E58,'Inputs - Simulador'!$C$5:$AQ$13,31,0),6,IF(C58<=VLOOKUP(E58,'Inputs - Simulador'!$C$5:$AQ$13,36,0),7,IF(C58<=VLOOKUP(E58,'Inputs - Simulador'!$C$5:$AQ$13,41,0),8,0)))))))) -> 6
A59: Agua | B59: COMERCIAL | C59: 57 | D59: Econ_NormalAguaCOMERCIAL57 | E59: COMERCIAL | F59: 138.3333333 | G59: =$F59/Parâmetros!$C$5 -> 2.038815185e-05 | H59: =$G59*Parâmetros!B$16 -> 148.8570721 | I59: =$G59*Parâmetros!C$16 -> 152.7252903 | J59: =$G59*Parâmetros!D$16 -> 156.8794101 | K59: =$G59*Parâmetros!E$16 -> 161.0335299 | L59: =IF(C59<=VLOOKUP(E59,'Inputs - Simulador'!$C$5:$AQ$13,6,0),1,IF(C59<=VLOOKUP(E59,'Inputs - Simulador'!$C$5:$AQ$13,11,0),2,IF(C59<=VLOOKUP(E59,'Inputs - Simulador'!$C$5:$AQ$13,16,0),3,IF(C59<=VLOOKUP(E59,'Inputs - Simulador'!$C$5:$AQ$13,21,0),4,IF(C59<=VLOOKUP(E59,'Inputs - Simulador'!$C$5:$AQ$13,26,0),5,IF(C59<=VLOOKUP(E59,'Inputs - Simulador'!$C$5:$AQ$13,31,0),6,IF(C59<=VLOOKUP(E59,'Inputs - Simulador'!$C$5:$AQ$13,36,0),7,IF(C59<=VLOOKUP(E59,'Inputs - Simulador'!$C$5:$AQ$13,41,0),8,0)))))))) -> 6
A60: Agua | B60: COMERCIAL | C60: 58 | D60: Econ_NormalAguaCOMERCIAL58 | E60: COMERCIAL | F60: 133.4166667 | G60: =$F60/Parâmetros!$C$5 -> 1.966351271e-05 | H60: =$G60*Parâmetros!B$16 -> 143.5663689 | I60: =$G60*Parâmetros!C$16 -> 147.2971023 | J60: =$G60*Parâmetros!D$16 -> 151.3035756 | K60: =$G60*Parâmetros!E$16 -> 155.310049 | L60: =IF(C60<=VLOOKUP(E60,'Inputs - Simulador'!$C$5:$AQ$13,6,0),1,IF(C60<=VLOOKUP(E60,'Inputs - Simulador'!$C$5:$AQ$13,11,0),2,IF(C60<=VLOOKUP(E60,'Inputs - Simulador'!$C$5:$AQ$13,16,0),3,IF(C60<=VLOOKUP(E60,'Inputs - Simulador'!$C$5:$AQ$13,21,0),4,IF(C60<=VLOOKUP(E60,'Inputs - Simulador'!$C$5:$AQ$13,26,0),5,IF(C60<=VLOOKUP(E60,'Inputs - Simulador'!$C$5:$AQ$13,31,0),6,IF(C60<=VLOOKUP(E60,'Inputs - Simulador'!$C$5:$AQ$13,36,0),7,IF(C60<=VLOOKUP(E60,'Inputs - Simulador'!$C$5:$AQ$13,41,0),8,0)))))))) -> 6
A61: Agua | B61: COMERCIAL | C61: 59 | D61: Econ_NormalAguaCOMERCIAL59 | E61: COMERCIAL | F61: 129.3333333 | G61: =$F61/Parâmetros!$C$5 -> 1.906169377e-05 | H61: =$G61*Parâmetros!B$16 -> 139.1723951 | I61: =$G61*Parâmetros!C$16 -> 142.7889461 | J61: =$G61*Parâmetros!D$16 -> 146.6727979 | K61: =$G61*Parâmetros!E$16 -> 150.5566496 | L61: =IF(C61<=VLOOKUP(E61,'Inputs - Simulador'!$C$5:$AQ$13,6,0),1,IF(C61<=VLOOKUP(E61,'Inputs - Simulador'!$C$5:$AQ$13,11,0),2,IF(C61<=VLOOKUP(E61,'Inputs - Simulador'!$C$5:$AQ$13,16,0),3,IF(C61<=VLOOKUP(E61,'Inputs - Simulador'!$C$5:$AQ$13,21,0),4,IF(C61<=VLOOKUP(E61,'Inputs - Simulador'!$C$5:$AQ$13,26,0),5,IF(C61<=VLOOKUP(E61,'Inputs - Simulador'!$C$5:$AQ$13,31,0),6,IF(C61<=VLOOKUP(E61,'Inputs - Simulador'!$C$5:$AQ$13,36,0),7,IF(C61<=VLOOKUP(E61,'Inputs - Simulador'!$C$5:$AQ$13,41,0),8,0)))))))) -> 6
A62: Agua | B62: COMERCIAL | C62: 60 | D62: Econ_NormalAguaCOMERCIAL60 | E62: COMERCIAL | F62: 127.1666667 | G62: =$F62/Parâmetros!$C$5 -> 1.874236127e-05 | H62: =$G62*Parâmetros!B$16 -> 136.8408988 | I62: =$G62*Parâmetros!C$16 -> 140.3968633 | J62: =$G62*Parâmetros!D$16 -> 144.2156505 | K62: =$G62*Parâmetros!E$16 -> 148.0344377 | L62: =IF(C62<=VLOOKUP(E62,'Inputs - Simulador'!$C$5:$AQ$13,6,0),1,IF(C62<=VLOOKUP(E62,'Inputs - Simulador'!$C$5:$AQ$13,11,0),2,IF(C62<=VLOOKUP(E62,'Inputs - Simulador'!$C$5:$AQ$13,16,0),3,IF(C62<=VLOOKUP(E62,'Inputs - Simulador'!$C$5:$AQ$13,21,0),4,IF(C62<=VLOOKUP(E62,'Inputs - Simulador'!$C$5:$AQ$13,26,0),5,IF(C62<=VLOOKUP(E62,'Inputs - Simulador'!$C$5:$AQ$13,31,0),6,IF(C62<=VLOOKUP(E62,'Inputs - Simulador'!$C$5:$AQ$13,36,0),7,IF(C62<=VLOOKUP(E62,'Inputs - Simulador'!$C$5:$AQ$13,41,0),8,0)))))))) -> 6
A63: Agua | B63: COMERCIAL | C63: 61 | D63: Econ_NormalAguaCOMERCIAL61 | E63: COMERCIAL | F63: 120.4166667 | G63: =$F63/Parâmetros!$C$5 -> 1.774751772e-05 | H63: =$G63*Parâmetros!B$16 -> 129.5773911 | I63: =$G63*Parâmetros!C$16 -> 132.9446051 | J63: =$G63*Parâmetros!D$16 -> 136.5606913 | K63: =$G63*Parâmetros!E$16 -> 140.1767775 | L63: =IF(C63<=VLOOKUP(E63,'Inputs - Simulador'!$C$5:$AQ$13,6,0),1,IF(C63<=VLOOKUP(E63,'Inputs - Simulador'!$C$5:$AQ$13,11,0),2,IF(C63<=VLOOKUP(E63,'Inputs - Simulador'!$C$5:$AQ$13,16,0),3,IF(C63<=VLOOKUP(E63,'Inputs - Simulador'!$C$5:$AQ$13,21,0),4,IF(C63<=VLOOKUP(E63,'Inputs - Simulador'!$C$5:$AQ$13,26,0),5,IF(C63<=VLOOKUP(E63,'Inputs - Simulador'!$C$5:$AQ$13,31,0),6,IF(C63<=VLOOKUP(E63,'Inputs - Simulador'!$C$5:$AQ$13,36,0),7,IF(C63<=VLOOKUP(E63,'Inputs - Simulador'!$C$5:$AQ$13,41,0),8,0)))))))) -> 6
A64: Agua | B64: COMERCIAL | C64: 62 | D64: Econ_NormalAguaCOMERCIAL62 | E64: COMERCIAL | F64: 118.4166667 | G64: =$F64/Parâmetros!$C$5 -> 1.745274926e-05 | H64: =$G64*Parâmetros!B$16 -> 127.4252406 | I64: =$G64*Parâmetros!C$16 -> 130.7365286 | J64: =$G64*Parâmetros!D$16 -> 134.2925553 | K64: =$G64*Parâmetros!E$16 -> 137.8485819 | L64: =IF(C64<=VLOOKUP(E64,'Inputs - Simulador'!$C$5:$AQ$13,6,0),1,IF(C64<=VLOOKUP(E64,'Inputs - Simulador'!$C$5:$AQ$13,11,0),2,IF(C64<=VLOOKUP(E64,'Inputs - Simulador'!$C$5:$AQ$13,16,0),3,IF(C64<=VLOOKUP(E64,'Inputs - Simulador'!$C$5:$AQ$13,21,0),4,IF(C64<=VLOOKUP(E64,'Inputs - Simulador'!$C$5:$AQ$13,26,0),5,IF(C64<=VLOOKUP(E64,'Inputs - Simulador'!$C$5:$AQ$13,31,0),6,IF(C64<=VLOOKUP(E64,'Inputs - Simulador'!$C$5:$AQ$13,36,0),7,IF(C64<=VLOOKUP(E64,'Inputs - Simulador'!$C$5:$AQ$13,41,0),8,0)))))))) -> 6
A65: Agua | B65: COMERCIAL | C65: 63 | D65: Econ_NormalAguaCOMERCIAL63 | E65: COMERCIAL | F65: 110.5 | G65: =$F65/Parâmetros!$C$5 -> 1.628595744e-05 | H65: =$G65*Parâmetros!B$16 -> 118.9063118 | I65: =$G65*Parâmetros!C$16 -> 121.9962259 | J65: =$G65*Parâmetros!D$16 -> 125.3145167 | K65: =$G65*Parâmetros!E$16 -> 128.6328076 | L65: =IF(C65<=VLOOKUP(E65,'Inputs - Simulador'!$C$5:$AQ$13,6,0),1,IF(C65<=VLOOKUP(E65,'Inputs - Simulador'!$C$5:$AQ$13,11,0),2,IF(C65<=VLOOKUP(E65,'Inputs - Simulador'!$C$5:$AQ$13,16,0),3,IF(C65<=VLOOKUP(E65,'Inputs - Simulador'!$C$5:$AQ$13,21,0),4,IF(C65<=VLOOKUP(E65,'Inputs - Simulador'!$C$5:$AQ$13,26,0),5,IF(C65<=VLOOKUP(E65,'Inputs - Simulador'!$C$5:$AQ$13,31,0),6,IF(C65<=VLOOKUP(E65,'Inputs - Simulador'!$C$5:$AQ$13,36,0),7,IF(C65<=VLOOKUP(E65,'Inputs - Simulador'!$C$5:$AQ$13,41,0),8,0)))))))) -> 6
A66: Agua | B66: COMERCIAL | C66: 64 | D66: Econ_NormalAguaCOMERCIAL64 | E66: COMERCIAL | F66: 102.5 | G66: =$F66/Parâmetros!$C$5 -> 1.51068836e-05 | H66: =$G66*Parâmetros!B$16 -> 110.29771 | I66: =$G66*Parâmetros!C$16 -> 113.1639199 | J66: =$G66*Parâmetros!D$16 -> 116.2419725 | K66: =$G66*Parâmetros!E$16 -> 119.3200252 | L66: =IF(C66<=VLOOKUP(E66,'Inputs - Simulador'!$C$5:$AQ$13,6,0),1,IF(C66<=VLOOKUP(E66,'Inputs - Simulador'!$C$5:$AQ$13,11,0),2,IF(C66<=VLOOKUP(E66,'Inputs - Simulador'!$C$5:$AQ$13,16,0),3,IF(C66<=VLOOKUP(E66,'Inputs - Simulador'!$C$5:$AQ$13,21,0),4,IF(C66<=VLOOKUP(E66,'Inputs - Simulador'!$C$5:$AQ$13,26,0),5,IF(C66<=VLOOKUP(E66,'Inputs - Simulador'!$C$5:$AQ$13,31,0),6,IF(C66<=VLOOKUP(E66,'Inputs - Simulador'!$C$5:$AQ$13,36,0),7,IF(C66<=VLOOKUP(E66,'Inputs - Simulador'!$C$5:$AQ$13,41,0),8,0)))))))) -> 6
A67: Agua | B67: COMERCIAL | C67: 65 | D67: ="Econ_Normal"&A67&B67&C67 -> Econ_NormalAguaCOMERCIAL65 | E67: =IF(OR($B67="SANEPAR", $B67="INATIVO",),"INATIVO + SANEPAR",$B67) -> COMERCIAL | F67: 98.5 | G67: =$F67/Parâmetros!$C$5 -> 1.451734668e-05 | H67: =$G67*Parâmetros!B$16 -> 105.9934092 | I67: =$G67*Parâmetros!C$16 -> 108.7477669 | J67: =$G67*Parâmetros!D$16 -> 111.7057004 | K67: =$G67*Parâmetros!E$16 -> 114.6636339 | L67: =IF(C67<=VLOOKUP(E67,'Inputs - Simulador'!$C$5:$AQ$13,6,0),1,IF(C67<=VLOOKUP(E67,'Inputs - Simulador'!$C$5:$AQ$13,11,0),2,IF(C67<=VLOOKUP(E67,'Inputs - Simulador'!$C$5:$AQ$13,16,0),3,IF(C67<=VLOOKUP(E67,'Inputs - Simulador'!$C$5:$AQ$13,21,0),4,IF(C67<=VLOOKUP(E67,'Inputs - Simulador'!$C$5:$AQ$13,26,0),5,IF(C67<=VLOOKUP(E67,'Inputs - Simulador'!$C$5:$AQ$13,31,0),6,IF(C67<=VLOOKUP(E67,'Inputs - Simulador'!$C$5:$AQ$13,36,0),7,IF(C67<=VLOOKUP(E67,'Inputs - Simulador'!$C$5:$AQ$13,41,0),8,0)))))))) -> 6
A68: Agua | B68: COMERCIAL | C68: 66 | D68: Econ_NormalAguaCOMERCIAL66 | E68: COMERCIAL | F68: 98.75 | G68: =$F68/Parâmetros!$C$5 -> 1.455419273e-05 | H68: =$G68*Parâmetros!B$16 -> 106.262428 | I68: =$G68*Parâmetros!C$16 -> 109.0237765 | J68: =$G68*Parâmetros!D$16 -> 111.9892175 | K68: =$G68*Parâmetros!E$16 -> 114.9546584 | L68: =IF(C68<=VLOOKUP(E68,'Inputs - Simulador'!$C$5:$AQ$13,6,0),1,IF(C68<=VLOOKUP(E68,'Inputs - Simulador'!$C$5:$AQ$13,11,0),2,IF(C68<=VLOOKUP(E68,'Inputs - Simulador'!$C$5:$AQ$13,16,0),3,IF(C68<=VLOOKUP(E68,'Inputs - Simulador'!$C$5:$AQ$13,21,0),4,IF(C68<=VLOOKUP(E68,'Inputs - Simulador'!$C$5:$AQ$13,26,0),5,IF(C68<=VLOOKUP(E68,'Inputs - Simulador'!$C$5:$AQ$13,31,0),6,IF(C68<=VLOOKUP(E68,'Inputs - Simulador'!$C$5:$AQ$13,36,0),7,IF(C68<=VLOOKUP(E68,'Inputs - Simulador'!$C$5:$AQ$13,41,0),8,0)))))))) -> 6
A69: Agua | B69: COMERCIAL | C69: 67 | D69: Econ_NormalAguaCOMERCIAL67 | E69: COMERCIAL | F69: 93.41666667 | G69: =$F69/Parâmetros!$C$5 -> 1.376814351e-05 | H69: =$G69*Parâmetros!B$16 -> 100.5233601 | I69: =$G69*Parâmetros!C$16 -> 103.1355725 | J69: =$G69*Parâmetros!D$16 -> 105.9408547 | K69: =$G69*Parâmetros!E$16 -> 108.7461368 | L69: =IF(C69<=VLOOKUP(E69,'Inputs - Simulador'!$C$5:$AQ$13,6,0),1,IF(C69<=VLOOKUP(E69,'Inputs - Simulador'!$C$5:$AQ$13,11,0),2,IF(C69<=VLOOKUP(E69,'Inputs - Simulador'!$C$5:$AQ$13,16,0),3,IF(C69<=VLOOKUP(E69,'Inputs - Simulador'!$C$5:$AQ$13,21,0),4,IF(C69<=VLOOKUP(E69,'Inputs - Simulador'!$C$5:$AQ$13,26,0),5,IF(C69<=VLOOKUP(E69,'Inputs - Simulador'!$C$5:$AQ$13,31,0),6,IF(C69<=VLOOKUP(E69,'Inputs - Simulador'!$C$5:$AQ$13,36,0),7,IF(C69<=VLOOKUP(E69,'Inputs - Simulador'!$C$5:$AQ$13,41,0),8,0)))))))) -> 6
A70: Agua | B70: COMERCIAL | C70: 68 | D70: Econ_NormalAguaCOMERCIAL68 | E70: COMERCIAL | F70: 88.41666667 | G70: =$F70/Parâmetros!$C$5 -> 1.303122235e-05 | H70: =$G70*Parâmetros!B$16 -> 95.14298402 | I70: =$G70*Parâmetros!C$16 -> 97.61538133 | J70: =$G70*Parâmetros!D$16 -> 100.2705145 | K70: =$G70*Parâmetros!E$16 -> 102.9256477 | L70: =IF(C70<=VLOOKUP(E70,'Inputs - Simulador'!$C$5:$AQ$13,6,0),1,IF(C70<=VLOOKUP(E70,'Inputs - Simulador'!$C$5:$AQ$13,11,0),2,IF(C70<=VLOOKUP(E70,'Inputs - Simulador'!$C$5:$AQ$13,16,0),3,IF(C70<=VLOOKUP(E70,'Inputs - Simulador'!$C$5:$AQ$13,21,0),4,IF(C70<=VLOOKUP(E70,'Inputs - Simulador'!$C$5:$AQ$13,26,0),5,IF(C70<=VLOOKUP(E70,'Inputs - Simulador'!$C$5:$AQ$13,31,0),6,IF(C70<=VLOOKUP(E70,'Inputs - Simulador'!$C$5:$AQ$13,36,0),7,IF(C70<=VLOOKUP(E70,'Inputs - Simulador'!$C$5:$AQ$13,41,0),8,0)))))))) -> 6
A71: Agua | B71: COMERCIAL | C71: 69 | D71: Econ_NormalAguaCOMERCIAL69 | E71: COMERCIAL | F71: 83.25 | G71: =$F71/Parâmetros!$C$5 -> 1.226973716e-05 | H71: =$G71*Parâmetros!B$16 -> 89.58326205 | I71: =$G71*Parâmetros!C$16 -> 91.91118374 | J71: =$G71*Parâmetros!D$16 -> 94.41116307 | K71: =$G71*Parâmetros!E$16 -> 96.91114239 | L71: =IF(C71<=VLOOKUP(E71,'Inputs - Simulador'!$C$5:$AQ$13,6,0),1,IF(C71<=VLOOKUP(E71,'Inputs - Simulador'!$C$5:$AQ$13,11,0),2,IF(C71<=VLOOKUP(E71,'Inputs - Simulador'!$C$5:$AQ$13,16,0),3,IF(C71<=VLOOKUP(E71,'Inputs - Simulador'!$C$5:$AQ$13,21,0),4,IF(C71<=VLOOKUP(E71,'Inputs - Simulador'!$C$5:$AQ$13,26,0),5,IF(C71<=VLOOKUP(E71,'Inputs - Simulador'!$C$5:$AQ$13,31,0),6,IF(C71<=VLOOKUP(E71,'Inputs - Simulador'!$C$5:$AQ$13,36,0),7,IF(C71<=VLOOKUP(E71,'Inputs - Simulador'!$C$5:$AQ$13,41,0),8,0)))))))) -> 6
A72: Agua | B72: COMERCIAL | C72: 70 | D72: Econ_NormalAguaCOMERCIAL70 | E72: COMERCIAL | F72: 82.25 | G72: =$F72/Parâmetros!$C$5 -> 1.212235293e-05 | H72: =$G72*Parâmetros!B$16 -> 88.50718683 | I72: =$G72*Parâmetros!C$16 -> 90.8071455 | J72: =$G72*Parâmetros!D$16 -> 93.27709504 | K72: =$G72*Parâmetros!E$16 -> 95.74704459 | L72: =IF(C72<=VLOOKUP(E72,'Inputs - Simulador'!$C$5:$AQ$13,6,0),1,IF(C72<=VLOOKUP(E72,'Inputs - Simulador'!$C$5:$AQ$13,11,0),2,IF(C72<=VLOOKUP(E72,'Inputs - Simulador'!$C$5:$AQ$13,16,0),3,IF(C72<=VLOOKUP(E72,'Inputs - Simulador'!$C$5:$AQ$13,21,0),4,IF(C72<=VLOOKUP(E72,'Inputs - Simulador'!$C$5:$AQ$13,26,0),5,IF(C72<=VLOOKUP(E72,'Inputs - Simulador'!$C$5:$AQ$13,31,0),6,IF(C72<=VLOOKUP(E72,'Inputs - Simulador'!$C$5:$AQ$13,36,0),7,IF(C72<=VLOOKUP(E72,'Inputs - Simulador'!$C$5:$AQ$13,41,0),8,0)))))))) -> 6
A73: Agua | B73: COMERCIAL | C73: 71 | D73: Econ_NormalAguaCOMERCIAL71 | E73: COMERCIAL | F73: 80.33333333 | G73: =$F73/Parâmetros!$C$5 -> 1.183986649e-05 | H73: =$G73*Parâmetros!B$16 -> 86.44470933 | I73: =$G73*Parâmetros!C$16 -> 88.6910722 | J73: =$G73*Parâmetros!D$16 -> 91.10346466 | K73: =$G73*Parâmetros!E$16 -> 93.51585713 | L73: =IF(C73<=VLOOKUP(E73,'Inputs - Simulador'!$C$5:$AQ$13,6,0),1,IF(C73<=VLOOKUP(E73,'Inputs - Simulador'!$C$5:$AQ$13,11,0),2,IF(C73<=VLOOKUP(E73,'Inputs - Simulador'!$C$5:$AQ$13,16,0),3,IF(C73<=VLOOKUP(E73,'Inputs - Simulador'!$C$5:$AQ$13,21,0),4,IF(C73<=VLOOKUP(E73,'Inputs - Simulador'!$C$5:$AQ$13,26,0),5,IF(C73<=VLOOKUP(E73,'Inputs - Simulador'!$C$5:$AQ$13,31,0),6,IF(C73<=VLOOKUP(E73,'Inputs - Simulador'!$C$5:$AQ$13,36,0),7,IF(C73<=VLOOKUP(E73,'Inputs - Simulador'!$C$5:$AQ$13,41,0),8,0)))))))) -> 6
A74: Agua | B74: COMERCIAL | C74: 72 | D74: Econ_NormalAguaCOMERCIAL72 | E74: COMERCIAL | F74: 74.75 | G74: =$F74/Parâmetros!$C$5 -> 1.101697121e-05 | H74: =$G74*Parâmetros!B$16 -> 80.43662268 | I74: =$G74*Parâmetros!C$16 -> 82.52685867 | J74: =$G74*Parâmetros!D$16 -> 84.77158486 | K74: =$G74*Parâmetros!E$16 -> 87.01631104 | L74: =IF(C74<=VLOOKUP(E74,'Inputs - Simulador'!$C$5:$AQ$13,6,0),1,IF(C74<=VLOOKUP(E74,'Inputs - Simulador'!$C$5:$AQ$13,11,0),2,IF(C74<=VLOOKUP(E74,'Inputs - Simulador'!$C$5:$AQ$13,16,0),3,IF(C74<=VLOOKUP(E74,'Inputs - Simulador'!$C$5:$AQ$13,21,0),4,IF(C74<=VLOOKUP(E74,'Inputs - Simulador'!$C$5:$AQ$13,26,0),5,IF(C74<=VLOOKUP(E74,'Inputs - Simulador'!$C$5:$AQ$13,31,0),6,IF(C74<=VLOOKUP(E74,'Inputs - Simulador'!$C$5:$AQ$13,36,0),7,IF(C74<=VLOOKUP(E74,'Inputs - Simulador'!$C$5:$AQ$13,41,0),8,0)))))))) -> 6
A75: Agua | B75: COMERCIAL | C75: 73 | D75: Econ_NormalAguaCOMERCIAL73 | E75: COMERCIAL | F75: 77.41666667 | G75: =$F75/Parâmetros!$C$5 -> 1.140999582e-05 | H75: =$G75*Parâmetros!B$16 -> 83.3061566 | I75: =$G75*Parâmetros!C$16 -> 85.47096065 | J75: =$G75*Parâmetros!D$16 -> 87.79576626 | K75: =$G75*Parâmetros!E$16 -> 90.12057186 | L75: =IF(C75<=VLOOKUP(E75,'Inputs - Simulador'!$C$5:$AQ$13,6,0),1,IF(C75<=VLOOKUP(E75,'Inputs - Simulador'!$C$5:$AQ$13,11,0),2,IF(C75<=VLOOKUP(E75,'Inputs - Simulador'!$C$5:$AQ$13,16,0),3,IF(C75<=VLOOKUP(E75,'Inputs - Simulador'!$C$5:$AQ$13,21,0),4,IF(C75<=VLOOKUP(E75,'Inputs - Simulador'!$C$5:$AQ$13,26,0),5,IF(C75<=VLOOKUP(E75,'Inputs - Simulador'!$C$5:$AQ$13,31,0),6,IF(C75<=VLOOKUP(E75,'Inputs - Simulador'!$C$5:$AQ$13,36,0),7,IF(C75<=VLOOKUP(E75,'Inputs - Simulador'!$C$5:$AQ$13,41,0),8,0)))))))) -> 6
A76: Agua | B76: COMERCIAL | C76: 74 | D76: Econ_NormalAguaCOMERCIAL74 | E76: COMERCIAL | F76: 72 | G76: =$F76/Parâmetros!$C$5 -> 1.061166458e-05 | H76: =$G76*Parâmetros!B$16 -> 77.47741583 | I76: =$G76*Parâmetros!C$16 -> 79.4907535 | J76: =$G76*Parâmetros!D$16 -> 81.65289779 | K76: =$G76*Parâmetros!E$16 -> 83.81504207 | L76: =IF(C76<=VLOOKUP(E76,'Inputs - Simulador'!$C$5:$AQ$13,6,0),1,IF(C76<=VLOOKUP(E76,'Inputs - Simulador'!$C$5:$AQ$13,11,0),2,IF(C76<=VLOOKUP(E76,'Inputs - Simulador'!$C$5:$AQ$13,16,0),3,IF(C76<=VLOOKUP(E76,'Inputs - Simulador'!$C$5:$AQ$13,21,0),4,IF(C76<=VLOOKUP(E76,'Inputs - Simulador'!$C$5:$AQ$13,26,0),5,IF(C76<=VLOOKUP(E76,'Inputs - Simulador'!$C$5:$AQ$13,31,0),6,IF(C76<=VLOOKUP(E76,'Inputs - Simulador'!$C$5:$AQ$13,36,0),7,IF(C76<=VLOOKUP(E76,'Inputs - Simulador'!$C$5:$AQ$13,41,0),8,0)))))))) -> 6
A77: Agua | B77: COMERCIAL | C77: 75 | D77: Econ_NormalAguaCOMERCIAL75 | E77: COMERCIAL | F77: 67.5 | G77: =$F77/Parâmetros!$C$5 -> 9.948435539e-06 | H77: =$G77*Parâmetros!B$16 -> 72.63507734 | I77: =$G77*Parâmetros!C$16 -> 74.52258141 | J77: =$G77*Parâmetros!D$16 -> 76.54959168 | K77: =$G77*Parâmetros!E$16 -> 78.57660194 | L77: =IF(C77<=VLOOKUP(E77,'Inputs - Simulador'!$C$5:$AQ$13,6,0),1,IF(C77<=VLOOKUP(E77,'Inputs - Simulador'!$C$5:$AQ$13,11,0),2,IF(C77<=VLOOKUP(E77,'Inputs - Simulador'!$C$5:$AQ$13,16,0),3,IF(C77<=VLOOKUP(E77,'Inputs - Simulador'!$C$5:$AQ$13,21,0),4,IF(C77<=VLOOKUP(E77,'Inputs - Simulador'!$C$5:$AQ$13,26,0),5,IF(C77<=VLOOKUP(E77,'Inputs - Simulador'!$C$5:$AQ$13,31,0),6,IF(C77<=VLOOKUP(E77,'Inputs - Simulador'!$C$5:$AQ$13,36,0),7,IF(C77<=VLOOKUP(E77,'Inputs - Simulador'!$C$5:$AQ$13,41,0),8,0)))))))) -> 6
A78: Agua | B78: COMERCIAL | C78: 76 | D78: Econ_NormalAguaCOMERCIAL76 | E78: COMERCIAL | F78: 66 | G78: =$F78/Parâmetros!$C$5 -> 9.727359194e-06 | H78: =$G78*Parâmetros!B$16 -> 71.02096451 | I78: =$G78*Parâmetros!C$16 -> 72.86652405 | J78: =$G78*Parâmetros!D$16 -> 74.84848964 | K78: =$G78*Parâmetros!E$16 -> 76.83045523 | L78: =IF(C78<=VLOOKUP(E78,'Inputs - Simulador'!$C$5:$AQ$13,6,0),1,IF(C78<=VLOOKUP(E78,'Inputs - Simulador'!$C$5:$AQ$13,11,0),2,IF(C78<=VLOOKUP(E78,'Inputs - Simulador'!$C$5:$AQ$13,16,0),3,IF(C78<=VLOOKUP(E78,'Inputs - Simulador'!$C$5:$AQ$13,21,0),4,IF(C78<=VLOOKUP(E78,'Inputs - Simulador'!$C$5:$AQ$13,26,0),5,IF(C78<=VLOOKUP(E78,'Inputs - Simulador'!$C$5:$AQ$13,31,0),6,IF(C78<=VLOOKUP(E78,'Inputs - Simulador'!$C$5:$AQ$13,36,0),7,IF(C78<=VLOOKUP(E78,'Inputs - Simulador'!$C$5:$AQ$13,41,0),8,0)))))))) -> 6
A79: Agua | B79: COMERCIAL | C79: 77 | D79: Econ_NormalAguaCOMERCIAL77 | E79: COMERCIAL | F79: 65.91666667 | G79: =$F79/Parâmetros!$C$5 -> 9.715077175e-06 | H79: =$G79*Parâmetros!B$16 -> 70.93129158 | I79: =$G79*Parâmetros!C$16 -> 72.77452086 | J79: =$G79*Parâmetros!D$16 -> 74.75398397 | K79: =$G79*Parâmetros!E$16 -> 76.73344708 | L79: =IF(C79<=VLOOKUP(E79,'Inputs - Simulador'!$C$5:$AQ$13,6,0),1,IF(C79<=VLOOKUP(E79,'Inputs - Simulador'!$C$5:$AQ$13,11,0),2,IF(C79<=VLOOKUP(E79,'Inputs - Simulador'!$C$5:$AQ$13,16,0),3,IF(C79<=VLOOKUP(E79,'Inputs - Simulador'!$C$5:$AQ$13,21,0),4,IF(C79<=VLOOKUP(E79,'Inputs - Simulador'!$C$5:$AQ$13,26,0),5,IF(C79<=VLOOKUP(E79,'Inputs - Simulador'!$C$5:$AQ$13,31,0),6,IF(C79<=VLOOKUP(E79,'Inputs - Simulador'!$C$5:$AQ$13,36,0),7,IF(C79<=VLOOKUP(E79,'Inputs - Simulador'!$C$5:$AQ$13,41,0),8,0)))))))) -> 6
A80: Agua | B80: COMERCIAL | C80: 78 | D80: Econ_NormalAguaCOMERCIAL78 | E80: COMERCIAL | F80: 61.66666667 | G80: =$F80/Parâmetros!$C$5 -> 9.088694196e-06 | H80: =$G80*Parâmetros!B$16 -> 66.35797189 | I80: =$G80*Parâmetros!C$16 -> 68.08235833 | J80: =$G80*Parâmetros!D$16 -> 69.93419486 | K80: =$G80*Parâmetros!E$16 -> 71.7860314 | L80: =IF(C80<=VLOOKUP(E80,'Inputs - Simulador'!$C$5:$AQ$13,6,0),1,IF(C80<=VLOOKUP(E80,'Inputs - Simulador'!$C$5:$AQ$13,11,0),2,IF(C80<=VLOOKUP(E80,'Inputs - Simulador'!$C$5:$AQ$13,16,0),3,IF(C80<=VLOOKUP(E80,'Inputs - Simulador'!$C$5:$AQ$13,21,0),4,IF(C80<=VLOOKUP(E80,'Inputs - Simulador'!$C$5:$AQ$13,26,0),5,IF(C80<=VLOOKUP(E80,'Inputs - Simulador'!$C$5:$AQ$13,31,0),6,IF(C80<=VLOOKUP(E80,'Inputs - Simulador'!$C$5:$AQ$13,36,0),7,IF(C80<=VLOOKUP(E80,'Inputs - Simulador'!$C$5:$AQ$13,41,0),8,0)))))))) -> 6
A81: Agua | B81: COMERCIAL | C81: 79 | D81: Econ_NormalAguaCOMERCIAL79 | E81: COMERCIAL | F81: 58.66666667 | G81: =$F81/Parâmetros!$C$5 -> 8.646541506e-06 | H81: =$G81*Parâmetros!B$16 -> 63.12974623 | I81: =$G81*Parâmetros!C$16 -> 64.7702436 | J81: =$G81*Parâmetros!D$16 -> 66.53199079 | K81: =$G81*Parâmetros!E$16 -> 68.29373798 | L81: =IF(C81<=VLOOKUP(E81,'Inputs - Simulador'!$C$5:$AQ$13,6,0),1,IF(C81<=VLOOKUP(E81,'Inputs - Simulador'!$C$5:$AQ$13,11,0),2,IF(C81<=VLOOKUP(E81,'Inputs - Simulador'!$C$5:$AQ$13,16,0),3,IF(C81<=VLOOKUP(E81,'Inputs - Simulador'!$C$5:$AQ$13,21,0),4,IF(C81<=VLOOKUP(E81,'Inputs - Simulador'!$C$5:$AQ$13,26,0),5,IF(C81<=VLOOKUP(E81,'Inputs - Simulador'!$C$5:$AQ$13,31,0),6,IF(C81<=VLOOKUP(E81,'Inputs - Simulador'!$C$5:$AQ$13,36,0),7,IF(C81<=VLOOKUP(E81,'Inputs - Simulador'!$C$5:$AQ$13,41,0),8,0)))))))) -> 6
A82: Agua | B82: COMERCIAL | C82: 80 | D82: Econ_NormalAguaCOMERCIAL80 | E82: COMERCIAL | F82: 60.25 | G82: =$F82/Parâmetros!$C$5 -> 8.87989987e-06 | H82: =$G82*Parâmetros!B$16 -> 64.833532 | I82: =$G82*Parâmetros!C$16 -> 66.51830415 | J82: =$G82*Parâmetros!D$16 -> 68.3275985 | K82: =$G82*Parâmetros!E$16 -> 70.13689284 | L82: =IF(C82<=VLOOKUP(E82,'Inputs - Simulador'!$C$5:$AQ$13,6,0),1,IF(C82<=VLOOKUP(E82,'Inputs - Simulador'!$C$5:$AQ$13,11,0),2,IF(C82<=VLOOKUP(E82,'Inputs - Simulador'!$C$5:$AQ$13,16,0),3,IF(C82<=VLOOKUP(E82,'Inputs - Simulador'!$C$5:$AQ$13,21,0),4,IF(C82<=VLOOKUP(E82,'Inputs - Simulador'!$C$5:$AQ$13,26,0),5,IF(C82<=VLOOKUP(E82,'Inputs - Simulador'!$C$5:$AQ$13,31,0),6,IF(C82<=VLOOKUP(E82,'Inputs - Simulador'!$C$5:$AQ$13,36,0),7,IF(C82<=VLOOKUP(E82,'Inputs - Simulador'!$C$5:$AQ$13,41,0),8,0)))))))) -> 6
A83: Agua | B83: COMERCIAL | C83: 81 | D83: Econ_NormalAguaCOMERCIAL81 | E83: COMERCIAL | F83: 56.16666667 | G83: =$F83/Parâmetros!$C$5 -> 8.27808093e-06 | H83: =$G83*Parâmetros!B$16 -> 60.43955818 | I83: =$G83*Parâmetros!C$16 -> 62.01014799 | J83: =$G83*Parâmetros!D$16 -> 63.69682073 | K83: =$G83*Parâmetros!E$16 -> 65.38349347 | L83: =IF(C83<=VLOOKUP(E83,'Inputs - Simulador'!$C$5:$AQ$13,6,0),1,IF(C83<=VLOOKUP(E83,'Inputs - Simulador'!$C$5:$AQ$13,11,0),2,IF(C83<=VLOOKUP(E83,'Inputs - Simulador'!$C$5:$AQ$13,16,0),3,IF(C83<=VLOOKUP(E83,'Inputs - Simulador'!$C$5:$AQ$13,21,0),4,IF(C83<=VLOOKUP(E83,'Inputs - Simulador'!$C$5:$AQ$13,26,0),5,IF(C83<=VLOOKUP(E83,'Inputs - Simulador'!$C$5:$AQ$13,31,0),6,IF(C83<=VLOOKUP(E83,'Inputs - Simulador'!$C$5:$AQ$13,36,0),7,IF(C83<=VLOOKUP(E83,'Inputs - Simulador'!$C$5:$AQ$13,41,0),8,0)))))))) -> 6
A84: Agua | B84: COMERCIAL | C84: 82 | D84: Econ_NormalAguaCOMERCIAL82 | E84: COMERCIAL | F84: 53.91666667 | G84: =$F84/Parâmetros!$C$5 -> 7.946466412e-06 | H84: =$G84*Parâmetros!B$16 -> 58.01838894 | I84: =$G84*Parâmetros!C$16 -> 59.52606194 | J84: =$G84*Parâmetros!D$16 -> 61.14516767 | K84: =$G84*Parâmetros!E$16 -> 62.7642734 | L84: =IF(C84<=VLOOKUP(E84,'Inputs - Simulador'!$C$5:$AQ$13,6,0),1,IF(C84<=VLOOKUP(E84,'Inputs - Simulador'!$C$5:$AQ$13,11,0),2,IF(C84<=VLOOKUP(E84,'Inputs - Simulador'!$C$5:$AQ$13,16,0),3,IF(C84<=VLOOKUP(E84,'Inputs - Simulador'!$C$5:$AQ$13,21,0),4,IF(C84<=VLOOKUP(E84,'Inputs - Simulador'!$C$5:$AQ$13,26,0),5,IF(C84<=VLOOKUP(E84,'Inputs - Simulador'!$C$5:$AQ$13,31,0),6,IF(C84<=VLOOKUP(E84,'Inputs - Simulador'!$C$5:$AQ$13,36,0),7,IF(C84<=VLOOKUP(E84,'Inputs - Simulador'!$C$5:$AQ$13,41,0),8,0)))))))) -> 6
A85: Agua | B85: COMERCIAL | C85: 83 | D85: Econ_NormalAguaCOMERCIAL83 | E85: COMERCIAL | F85: 51.08333333 | G85: =$F85/Parâmetros!$C$5 -> 7.52887776e-06 | H85: =$G85*Parâmetros!B$16 -> 54.96950915 | I85: =$G85*Parâmetros!C$16 -> 56.39795359 | J85: =$G85*Parâmetros!D$16 -> 57.93197494 | K85: =$G85*Parâmetros!E$16 -> 59.46599628 | L85: =IF(C85<=VLOOKUP(E85,'Inputs - Simulador'!$C$5:$AQ$13,6,0),1,IF(C85<=VLOOKUP(E85,'Inputs - Simulador'!$C$5:$AQ$13,11,0),2,IF(C85<=VLOOKUP(E85,'Inputs - Simulador'!$C$5:$AQ$13,16,0),3,IF(C85<=VLOOKUP(E85,'Inputs - Simulador'!$C$5:$AQ$13,21,0),4,IF(C85<=VLOOKUP(E85,'Inputs - Simulador'!$C$5:$AQ$13,26,0),5,IF(C85<=VLOOKUP(E85,'Inputs - Simulador'!$C$5:$AQ$13,31,0),6,IF(C85<=VLOOKUP(E85,'Inputs - Simulador'!$C$5:$AQ$13,36,0),7,IF(C85<=VLOOKUP(E85,'Inputs - Simulador'!$C$5:$AQ$13,41,0),8,0)))))))) -> 6
A86: Agua | B86: COMERCIAL | C86: 84 | D86: Econ_NormalAguaCOMERCIAL84 | E86: COMERCIAL | F86: 51.91666667 | G86: =$F86/Parâmetros!$C$5 -> 7.651697952e-06 | H86: =$G86*Parâmetros!B$16 -> 55.8662385 | I86: =$G86*Parâmetros!C$16 -> 57.31798546 | J86: =$G86*Parâmetros!D$16 -> 58.87703162 | K86: =$G86*Parâmetros!E$16 -> 60.43607779 | L86: =IF(C86<=VLOOKUP(E86,'Inputs - Simulador'!$C$5:$AQ$13,6,0),1,IF(C86<=VLOOKUP(E86,'Inputs - Simulador'!$C$5:$AQ$13,11,0),2,IF(C86<=VLOOKUP(E86,'Inputs - Simulador'!$C$5:$AQ$13,16,0),3,IF(C86<=VLOOKUP(E86,'Inputs - Simulador'!$C$5:$AQ$13,21,0),4,IF(C86<=VLOOKUP(E86,'Inputs - Simulador'!$C$5:$AQ$13,26,0),5,IF(C86<=VLOOKUP(E86,'Inputs - Simulador'!$C$5:$AQ$13,31,0),6,IF(C86<=VLOOKUP(E86,'Inputs - Simulador'!$C$5:$AQ$13,36,0),7,IF(C86<=VLOOKUP(E86,'Inputs - Simulador'!$C$5:$AQ$13,41,0),8,0)))))))) -> 6
A87: Agua | B87: COMERCIAL | C87: 85 | D87: Econ_NormalAguaCOMERCIAL85 | E87: COMERCIAL | F87: 50.58333333 | G87: =$F87/Parâmetros!$C$5 -> 7.455185645e-06 | H87: =$G87*Parâmetros!B$16 -> 54.43147154 | I87: =$G87*Parâmetros!C$16 -> 55.84593446 | J87: =$G87*Parâmetros!D$16 -> 57.36494092 | K87: =$G87*Parâmetros!E$16 -> 58.88394738 | L87: =IF(C87<=VLOOKUP(E87,'Inputs - Simulador'!$C$5:$AQ$13,6,0),1,IF(C87<=VLOOKUP(E87,'Inputs - Simulador'!$C$5:$AQ$13,11,0),2,IF(C87<=VLOOKUP(E87,'Inputs - Simulador'!$C$5:$AQ$13,16,0),3,IF(C87<=VLOOKUP(E87,'Inputs - Simulador'!$C$5:$AQ$13,21,0),4,IF(C87<=VLOOKUP(E87,'Inputs - Simulador'!$C$5:$AQ$13,26,0),5,IF(C87<=VLOOKUP(E87,'Inputs - Simulador'!$C$5:$AQ$13,31,0),6,IF(C87<=VLOOKUP(E87,'Inputs - Simulador'!$C$5:$AQ$13,36,0),7,IF(C87<=VLOOKUP(E87,'Inputs - Simulador'!$C$5:$AQ$13,41,0),8,0)))))))) -> 6
A88: Agua | B88: COMERCIAL | C88: 86 | D88: Econ_NormalAguaCOMERCIAL86 | E88: COMERCIAL | F88: 47.66666667 | G88: =$F88/Parâmetros!$C$5 -> 7.025314973e-06 | H88: =$G88*Parâmetros!B$16 -> 51.29291881 | I88: =$G88*Parâmetros!C$16 -> 52.62582292 | J88: =$G88*Parâmetros!D$16 -> 54.05724252 | K88: =$G88*Parâmetros!E$16 -> 55.48866211 | L88: =IF(C88<=VLOOKUP(E88,'Inputs - Simulador'!$C$5:$AQ$13,6,0),1,IF(C88<=VLOOKUP(E88,'Inputs - Simulador'!$C$5:$AQ$13,11,0),2,IF(C88<=VLOOKUP(E88,'Inputs - Simulador'!$C$5:$AQ$13,16,0),3,IF(C88<=VLOOKUP(E88,'Inputs - Simulador'!$C$5:$AQ$13,21,0),4,IF(C88<=VLOOKUP(E88,'Inputs - Simulador'!$C$5:$AQ$13,26,0),5,IF(C88<=VLOOKUP(E88,'Inputs - Simulador'!$C$5:$AQ$13,31,0),6,IF(C88<=VLOOKUP(E88,'Inputs - Simulador'!$C$5:$AQ$13,36,0),7,IF(C88<=VLOOKUP(E88,'Inputs - Simulador'!$C$5:$AQ$13,41,0),8,0)))))))) -> 6
A89: Agua | B89: COMERCIAL | C89: 87 | D89: Econ_NormalAguaCOMERCIAL87 | E89: COMERCIAL | F89: 45.25 | G89: =$F89/Parâmetros!$C$5 -> 6.669136417e-06 | H89: =$G89*Parâmetros!B$16 -> 48.6924037 | I89: =$G89*Parâmetros!C$16 -> 49.9577305 | J89: =$G89*Parâmetros!D$16 -> 51.31657812 | K89: =$G89*Parâmetros!E$16 -> 52.67542575 | L89: =IF(C89<=VLOOKUP(E89,'Inputs - Simulador'!$C$5:$AQ$13,6,0),1,IF(C89<=VLOOKUP(E89,'Inputs - Simulador'!$C$5:$AQ$13,11,0),2,IF(C89<=VLOOKUP(E89,'Inputs - Simulador'!$C$5:$AQ$13,16,0),3,IF(C89<=VLOOKUP(E89,'Inputs - Simulador'!$C$5:$AQ$13,21,0),4,IF(C89<=VLOOKUP(E89,'Inputs - Simulador'!$C$5:$AQ$13,26,0),5,IF(C89<=VLOOKUP(E89,'Inputs - Simulador'!$C$5:$AQ$13,31,0),6,IF(C89<=VLOOKUP(E89,'Inputs - Simulador'!$C$5:$AQ$13,36,0),7,IF(C89<=VLOOKUP(E89,'Inputs - Simulador'!$C$5:$AQ$13,41,0),8,0)))))))) -> 6
A90: Agua | B90: COMERCIAL | C90: 88 | D90: Econ_NormalAguaCOMERCIAL88 | E90: COMERCIAL | F90: 42.58333333 | G90: =$F90/Parâmetros!$C$5 -> 6.276111803e-06 | H90: =$G90*Parâmetros!B$16 -> 45.82286978 | I90: =$G90*Parâmetros!C$16 -> 47.01362852 | J90: =$G90*Parâmetros!D$16 -> 48.29239672 | K90: =$G90*Parâmetros!E$16 -> 49.57116493 | L90: =IF(C90<=VLOOKUP(E90,'Inputs - Simulador'!$C$5:$AQ$13,6,0),1,IF(C90<=VLOOKUP(E90,'Inputs - Simulador'!$C$5:$AQ$13,11,0),2,IF(C90<=VLOOKUP(E90,'Inputs - Simulador'!$C$5:$AQ$13,16,0),3,IF(C90<=VLOOKUP(E90,'Inputs - Simulador'!$C$5:$AQ$13,21,0),4,IF(C90<=VLOOKUP(E90,'Inputs - Simulador'!$C$5:$AQ$13,26,0),5,IF(C90<=VLOOKUP(E90,'Inputs - Simulador'!$C$5:$AQ$13,31,0),6,IF(C90<=VLOOKUP(E90,'Inputs - Simulador'!$C$5:$AQ$13,36,0),7,IF(C90<=VLOOKUP(E90,'Inputs - Simulador'!$C$5:$AQ$13,41,0),8,0)))))))) -> 6
A91: Agua | B91: COMERCIAL | C91: 89 | D91: Econ_NormalAguaCOMERCIAL89 | E91: COMERCIAL | F91: 38.83333333 | G91: =$F91/Parâmetros!$C$5 -> 5.72342094e-06 | H91: =$G91*Parâmetros!B$16 -> 41.7875877 | I91: =$G91*Parâmetros!C$16 -> 42.87348511 | J91: =$G91*Parâmetros!D$16 -> 44.03964163 | K91: =$G91*Parâmetros!E$16 -> 45.20579815 | L91: =IF(C91<=VLOOKUP(E91,'Inputs - Simulador'!$C$5:$AQ$13,6,0),1,IF(C91<=VLOOKUP(E91,'Inputs - Simulador'!$C$5:$AQ$13,11,0),2,IF(C91<=VLOOKUP(E91,'Inputs - Simulador'!$C$5:$AQ$13,16,0),3,IF(C91<=VLOOKUP(E91,'Inputs - Simulador'!$C$5:$AQ$13,21,0),4,IF(C91<=VLOOKUP(E91,'Inputs - Simulador'!$C$5:$AQ$13,26,0),5,IF(C91<=VLOOKUP(E91,'Inputs - Simulador'!$C$5:$AQ$13,31,0),6,IF(C91<=VLOOKUP(E91,'Inputs - Simulador'!$C$5:$AQ$13,36,0),7,IF(C91<=VLOOKUP(E91,'Inputs - Simulador'!$C$5:$AQ$13,41,0),8,0)))))))) -> 6
A92: Agua | B92: COMERCIAL | C92: 90 | D92: Econ_NormalAguaCOMERCIAL90 | E92: COMERCIAL | F92: 39.41666667 | G92: =$F92/Parâmetros!$C$5 -> 5.809395074e-06 | H92: =$G92*Parâmetros!B$16 -> 42.41529825 | I92: =$G92*Parâmetros!C$16 -> 43.51750742 | J92: =$G92*Parâmetros!D$16 -> 44.70118131 | K92: =$G92*Parâmetros!E$16 -> 45.88485521 | L92: =IF(C92<=VLOOKUP(E92,'Inputs - Simulador'!$C$5:$AQ$13,6,0),1,IF(C92<=VLOOKUP(E92,'Inputs - Simulador'!$C$5:$AQ$13,11,0),2,IF(C92<=VLOOKUP(E92,'Inputs - Simulador'!$C$5:$AQ$13,16,0),3,IF(C92<=VLOOKUP(E92,'Inputs - Simulador'!$C$5:$AQ$13,21,0),4,IF(C92<=VLOOKUP(E92,'Inputs - Simulador'!$C$5:$AQ$13,26,0),5,IF(C92<=VLOOKUP(E92,'Inputs - Simulador'!$C$5:$AQ$13,31,0),6,IF(C92<=VLOOKUP(E92,'Inputs - Simulador'!$C$5:$AQ$13,36,0),7,IF(C92<=VLOOKUP(E92,'Inputs - Simulador'!$C$5:$AQ$13,41,0),8,0)))))))) -> 6
A93: Agua | B93: COMERCIAL | C93: 91 | D93: Econ_NormalAguaCOMERCIAL91 | E93: COMERCIAL | F93: 41.16666667 | G93: =$F93/Parâmetros!$C$5 -> 6.067317477e-06 | H93: =$G93*Parâmetros!B$16 -> 44.29842988 | I93: =$G93*Parâmetros!C$16 -> 45.44957434 | J93: =$G93*Parâmetros!D$16 -> 46.68580036 | K93: =$G93*Parâmetros!E$16 -> 47.92202637 | L93: =IF(C93<=VLOOKUP(E93,'Inputs - Simulador'!$C$5:$AQ$13,6,0),1,IF(C93<=VLOOKUP(E93,'Inputs - Simulador'!$C$5:$AQ$13,11,0),2,IF(C93<=VLOOKUP(E93,'Inputs - Simulador'!$C$5:$AQ$13,16,0),3,IF(C93<=VLOOKUP(E93,'Inputs - Simulador'!$C$5:$AQ$13,21,0),4,IF(C93<=VLOOKUP(E93,'Inputs - Simulador'!$C$5:$AQ$13,26,0),5,IF(C93<=VLOOKUP(E93,'Inputs - Simulador'!$C$5:$AQ$13,31,0),6,IF(C93<=VLOOKUP(E93,'Inputs - Simulador'!$C$5:$AQ$13,36,0),7,IF(C93<=VLOOKUP(E93,'Inputs - Simulador'!$C$5:$AQ$13,41,0),8,0)))))))) -> 6
A94: Agua | B94: COMERCIAL | C94: 92 | D94: Econ_NormalAguaCOMERCIAL92 | E94: COMERCIAL | F94: 40.41666667 | G94: =$F94/Parâmetros!$C$5 -> 5.956779304e-06 | H94: =$G94*Parâmetros!B$16 -> 43.49137347 | I94: =$G94*Parâmetros!C$16 -> 44.62154566 | J94: =$G94*Parâmetros!D$16 -> 45.83524934 | K94: =$G94*Parâmetros!E$16 -> 47.04895301 | L94: =IF(C94<=VLOOKUP(E94,'Inputs - Simulador'!$C$5:$AQ$13,6,0),1,IF(C94<=VLOOKUP(E94,'Inputs - Simulador'!$C$5:$AQ$13,11,0),2,IF(C94<=VLOOKUP(E94,'Inputs - Simulador'!$C$5:$AQ$13,16,0),3,IF(C94<=VLOOKUP(E94,'Inputs - Simulador'!$C$5:$AQ$13,21,0),4,IF(C94<=VLOOKUP(E94,'Inputs - Simulador'!$C$5:$AQ$13,26,0),5,IF(C94<=VLOOKUP(E94,'Inputs - Simulador'!$C$5:$AQ$13,31,0),6,IF(C94<=VLOOKUP(E94,'Inputs - Simulador'!$C$5:$AQ$13,36,0),7,IF(C94<=VLOOKUP(E94,'Inputs - Simulador'!$C$5:$AQ$13,41,0),8,0)))))))) -> 6
A95: Agua | B95: COMERCIAL | C95: 93 | D95: Econ_NormalAguaCOMERCIAL93 | E95: COMERCIAL | F95: 39.75 | G95: =$F95/Parâmetros!$C$5 -> 5.858523151e-06 | H95: =$G95*Parâmetros!B$16 -> 42.77398999 | I95: =$G95*Parâmetros!C$16 -> 43.88552016 | J95: =$G95*Parâmetros!D$16 -> 45.07920399 | K95: =$G95*Parâmetros!E$16 -> 46.27288781 | L95: =IF(C95<=VLOOKUP(E95,'Inputs - Simulador'!$C$5:$AQ$13,6,0),1,IF(C95<=VLOOKUP(E95,'Inputs - Simulador'!$C$5:$AQ$13,11,0),2,IF(C95<=VLOOKUP(E95,'Inputs - Simulador'!$C$5:$AQ$13,16,0),3,IF(C95<=VLOOKUP(E95,'Inputs - Simulador'!$C$5:$AQ$13,21,0),4,IF(C95<=VLOOKUP(E95,'Inputs - Simulador'!$C$5:$AQ$13,26,0),5,IF(C95<=VLOOKUP(E95,'Inputs - Simulador'!$C$5:$AQ$13,31,0),6,IF(C95<=VLOOKUP(E95,'Inputs - Simulador'!$C$5:$AQ$13,36,0),7,IF(C95<=VLOOKUP(E95,'Inputs - Simulador'!$C$5:$AQ$13,41,0),8,0)))))))) -> 6
A96: Agua | B96: COMERCIAL | C96: 94 | D96: Econ_NormalAguaCOMERCIAL94 | E96: COMERCIAL | F96: 37.33333333 | G96: =$F96/Parâmetros!$C$5 -> 5.502344594e-06 | H96: =$G96*Parâmetros!B$16 -> 40.17347487 | I96: =$G96*Parâmetros!C$16 -> 41.21742774 | J96: =$G96*Parâmetros!D$16 -> 42.33853959 | K96: =$G96*Parâmetros!E$16 -> 43.45965144 | L96: =IF(C96<=VLOOKUP(E96,'Inputs - Simulador'!$C$5:$AQ$13,6,0),1,IF(C96<=VLOOKUP(E96,'Inputs - Simulador'!$C$5:$AQ$13,11,0),2,IF(C96<=VLOOKUP(E96,'Inputs - Simulador'!$C$5:$AQ$13,16,0),3,IF(C96<=VLOOKUP(E96,'Inputs - Simulador'!$C$5:$AQ$13,21,0),4,IF(C96<=VLOOKUP(E96,'Inputs - Simulador'!$C$5:$AQ$13,26,0),5,IF(C96<=VLOOKUP(E96,'Inputs - Simulador'!$C$5:$AQ$13,31,0),6,IF(C96<=VLOOKUP(E96,'Inputs - Simulador'!$C$5:$AQ$13,36,0),7,IF(C96<=VLOOKUP(E96,'Inputs - Simulador'!$C$5:$AQ$13,41,0),8,0)))))))) -> 6
A97: Agua | B97: COMERCIAL | C97: 95 | D97: Econ_NormalAguaCOMERCIAL95 | E97: COMERCIAL | F97: 35 | G97: =$F97/Parâmetros!$C$5 -> 5.158448057e-06 | H97: =$G97*Parâmetros!B$16 -> 37.66263269 | I97: =$G97*Parâmetros!C$16 -> 38.64133851 | J97: =$G97*Parâmetros!D$16 -> 39.69238087 | K97: =$G97*Parâmetros!E$16 -> 40.74342323 | L97: =IF(C97<=VLOOKUP(E97,'Inputs - Simulador'!$C$5:$AQ$13,6,0),1,IF(C97<=VLOOKUP(E97,'Inputs - Simulador'!$C$5:$AQ$13,11,0),2,IF(C97<=VLOOKUP(E97,'Inputs - Simulador'!$C$5:$AQ$13,16,0),3,IF(C97<=VLOOKUP(E97,'Inputs - Simulador'!$C$5:$AQ$13,21,0),4,IF(C97<=VLOOKUP(E97,'Inputs - Simulador'!$C$5:$AQ$13,26,0),5,IF(C97<=VLOOKUP(E97,'Inputs - Simulador'!$C$5:$AQ$13,31,0),6,IF(C97<=VLOOKUP(E97,'Inputs - Simulador'!$C$5:$AQ$13,36,0),7,IF(C97<=VLOOKUP(E97,'Inputs - Simulador'!$C$5:$AQ$13,41,0),8,0)))))))) -> 6
A98: Agua | B98: COMERCIAL | C98: 96 | D98: Econ_NormalAguaCOMERCIAL96 | E98: COMERCIAL | F98: 35.66666667 | G98: =$F98/Parâmetros!$C$5 -> 5.256704211e-06 | H98: =$G98*Parâmetros!B$16 -> 38.38001617 | I98: =$G98*Parâmetros!C$16 -> 39.377364 | J98: =$G98*Parâmetros!D$16 -> 40.44842622 | K98: =$G98*Parâmetros!E$16 -> 41.51948843 | L98: =IF(C98<=VLOOKUP(E98,'Inputs - Simulador'!$C$5:$AQ$13,6,0),1,IF(C98<=VLOOKUP(E98,'Inputs - Simulador'!$C$5:$AQ$13,11,0),2,IF(C98<=VLOOKUP(E98,'Inputs - Simulador'!$C$5:$AQ$13,16,0),3,IF(C98<=VLOOKUP(E98,'Inputs - Simulador'!$C$5:$AQ$13,21,0),4,IF(C98<=VLOOKUP(E98,'Inputs - Simulador'!$C$5:$AQ$13,26,0),5,IF(C98<=VLOOKUP(E98,'Inputs - Simulador'!$C$5:$AQ$13,31,0),6,IF(C98<=VLOOKUP(E98,'Inputs - Simulador'!$C$5:$AQ$13,36,0),7,IF(C98<=VLOOKUP(E98,'Inputs - Simulador'!$C$5:$AQ$13,41,0),8,0)))))))) -> 6
A99: Agua | B99: COMERCIAL | C99: 97 | D99: Econ_NormalAguaCOMERCIAL97 | E99: COMERCIAL | F99: 31.33333333 | G99: =$F99/Parâmetros!$C$5 -> 4.618039213e-06 | H99: =$G99*Parâmetros!B$16 -> 33.71702356 | I99: =$G99*Parâmetros!C$16 -> 34.59319828 | J99: =$G99*Parâmetros!D$16 -> 35.53413144 | K99: =$G99*Parâmetros!E$16 -> 36.47506461 | L99: =IF(C99<=VLOOKUP(E99,'Inputs - Simulador'!$C$5:$AQ$13,6,0),1,IF(C99<=VLOOKUP(E99,'Inputs - Simulador'!$C$5:$AQ$13,11,0),2,IF(C99<=VLOOKUP(E99,'Inputs - Simulador'!$C$5:$AQ$13,16,0),3,IF(C99<=VLOOKUP(E99,'Inputs - Simulador'!$C$5:$AQ$13,21,0),4,IF(C99<=VLOOKUP(E99,'Inputs - Simulador'!$C$5:$AQ$13,26,0),5,IF(C99<=VLOOKUP(E99,'Inputs - Simulador'!$C$5:$AQ$13,31,0),6,IF(C99<=VLOOKUP(E99,'Inputs - Simulador'!$C$5:$AQ$13,36,0),7,IF(C99<=VLOOKUP(E99,'Inputs - Simulador'!$C$5:$AQ$13,41,0),8,0)))))))) -> 6
A100: Agua | B100: COMERCIAL | C100: 98 | D100: Econ_NormalAguaCOMERCIAL98 | E100: COMERCIAL | F100: 33.16666667 | G100: =$F100/Parâmetros!$C$5 -> 4.888243635e-06 | H100: =$G100*Parâmetros!B$16 -> 35.68982813 | I100: =$G100*Parâmetros!C$16 -> 36.6172684 | J100: =$G100*Parâmetros!D$16 -> 37.61325616 | K100: =$G100*Parâmetros!E$16 -> 38.60924392 | L100: =IF(C100<=VLOOKUP(E100,'Inputs - Simulador'!$C$5:$AQ$13,6,0),1,IF(C100<=VLOOKUP(E100,'Inputs - Simulador'!$C$5:$AQ$13,11,0),2,IF(C100<=VLOOKUP(E100,'Inputs - Simulador'!$C$5:$AQ$13,16,0),3,IF(C100<=VLOOKUP(E100,'Inputs - Simulador'!$C$5:$AQ$13,21,0),4,IF(C100<=VLOOKUP(E100,'Inputs - Simulador'!$C$5:$AQ$13,26,0),5,IF(C100<=VLOOKUP(E100,'Inputs - Simulador'!$C$5:$AQ$13,31,0),6,IF(C100<=VLOOKUP(E100,'Inputs - Simulador'!$C$5:$AQ$13,36,0),7,IF(C100<=VLOOKUP(E100,'Inputs - Simulador'!$C$5:$AQ$13,41,0),8,0)))))))) -> 6
A101: Agua | B101: COMERCIAL | C101: 99 | D101: Econ_NormalAguaCOMERCIAL99 | E101: COMERCIAL | F101: 34.16666667 | G101: =$F101/Parâmetros!$C$5 -> 5.035627865e-06 | H101: =$G101*Parâmetros!B$16 -> 36.76590334 | I101: =$G101*Parâmetros!C$16 -> 37.72130664 | J101: =$G101*Parâmetros!D$16 -> 38.74732418 | K101: =$G101*Parâmetros!E$16 -> 39.77334172 | L101: =IF(C101<=VLOOKUP(E101,'Inputs - Simulador'!$C$5:$AQ$13,6,0),1,IF(C101<=VLOOKUP(E101,'Inputs - Simulador'!$C$5:$AQ$13,11,0),2,IF(C101<=VLOOKUP(E101,'Inputs - Simulador'!$C$5:$AQ$13,16,0),3,IF(C101<=VLOOKUP(E101,'Inputs - Simulador'!$C$5:$AQ$13,21,0),4,IF(C101<=VLOOKUP(E101,'Inputs - Simulador'!$C$5:$AQ$13,26,0),5,IF(C101<=VLOOKUP(E101,'Inputs - Simulador'!$C$5:$AQ$13,31,0),6,IF(C101<=VLOOKUP(E101,'Inputs - Simulador'!$C$5:$AQ$13,36,0),7,IF(C101<=VLOOKUP(E101,'Inputs - Simulador'!$C$5:$AQ$13,41,0),8,0)))))))) -> 6
A102: Agua | B102: COMERCIAL | C102: 100 | D102: Econ_NormalAguaCOMERCIAL100 | E102: COMERCIAL | F102: 35.08333333 | G102: =$F102/Parâmetros!$C$5 -> 5.170730077e-06 | H102: =$G102*Parâmetros!B$16 -> 37.75230563 | I102: =$G102*Parâmetros!C$16 -> 38.7333417 | J102: =$G102*Parâmetros!D$16 -> 39.78688654 | K102: =$G102*Parâmetros!E$16 -> 40.84043138 | L102: =IF(C102<=VLOOKUP(E102,'Inputs - Simulador'!$C$5:$AQ$13,6,0),1,IF(C102<=VLOOKUP(E102,'Inputs - Simulador'!$C$5:$AQ$13,11,0),2,IF(C102<=VLOOKUP(E102,'Inputs - Simulador'!$C$5:$AQ$13,16,0),3,IF(C102<=VLOOKUP(E102,'Inputs - Simulador'!$C$5:$AQ$13,21,0),4,IF(C102<=VLOOKUP(E102,'Inputs - Simulador'!$C$5:$AQ$13,26,0),5,IF(C102<=VLOOKUP(E102,'Inputs - Simulador'!$C$5:$AQ$13,31,0),6,IF(C102<=VLOOKUP(E102,'Inputs - Simulador'!$C$5:$AQ$13,36,0),7,IF(C102<=VLOOKUP(E102,'Inputs - Simulador'!$C$5:$AQ$13,41,0),8,0)))))))) -> 6
A103: Agua | B103: COMERCIAL | C103: 101 | D103: Econ_NormalAguaCOMERCIAL101 | E103: COMERCIAL | F103: 31.58333333 | G103: =$F103/Parâmetros!$C$5 -> 4.654885271e-06 | H103: =$G103*Parâmetros!B$16 -> 33.98604236 | I103: =$G103*Parâmetros!C$16 -> 34.86920785 | J103: =$G103*Parâmetros!D$16 -> 35.81764845 | K103: =$G103*Parâmetros!E$16 -> 36.76608906 | L103: =IF(C103<=VLOOKUP(E103,'Inputs - Simulador'!$C$5:$AQ$13,6,0),1,IF(C103<=VLOOKUP(E103,'Inputs - Simulador'!$C$5:$AQ$13,11,0),2,IF(C103<=VLOOKUP(E103,'Inputs - Simulador'!$C$5:$AQ$13,16,0),3,IF(C103<=VLOOKUP(E103,'Inputs - Simulador'!$C$5:$AQ$13,21,0),4,IF(C103<=VLOOKUP(E103,'Inputs - Simulador'!$C$5:$AQ$13,26,0),5,IF(C103<=VLOOKUP(E103,'Inputs - Simulador'!$C$5:$AQ$13,31,0),6,IF(C103<=VLOOKUP(E103,'Inputs - Simulador'!$C$5:$AQ$13,36,0),7,IF(C103<=VLOOKUP(E103,'Inputs - Simulador'!$C$5:$AQ$13,41,0),8,0)))))))) -> 7
A104: Agua | B104: COMERCIAL | C104: 102 | D104: Econ_NormalAguaCOMERCIAL102 | E104: COMERCIAL | F104: 29.91666667 | G104: =$F104/Parâmetros!$C$5 -> 4.409244887e-06 | H104: =$G104*Parâmetros!B$16 -> 32.19258366 | I104: =$G104*Parâmetros!C$16 -> 33.02914411 | J104: =$G104*Parâmetros!D$16 -> 33.92753508 | K104: =$G104*Parâmetros!E$16 -> 34.82592605 | L104: =IF(C104<=VLOOKUP(E104,'Inputs - Simulador'!$C$5:$AQ$13,6,0),1,IF(C104<=VLOOKUP(E104,'Inputs - Simulador'!$C$5:$AQ$13,11,0),2,IF(C104<=VLOOKUP(E104,'Inputs - Simulador'!$C$5:$AQ$13,16,0),3,IF(C104<=VLOOKUP(E104,'Inputs - Simulador'!$C$5:$AQ$13,21,0),4,IF(C104<=VLOOKUP(E104,'Inputs - Simulador'!$C$5:$AQ$13,26,0),5,IF(C104<=VLOOKUP(E104,'Inputs - Simulador'!$C$5:$AQ$13,31,0),6,IF(C104<=VLOOKUP(E104,'Inputs - Simulador'!$C$5:$AQ$13,36,0),7,IF(C104<=VLOOKUP(E104,'Inputs - Simulador'!$C$5:$AQ$13,41,0),8,0)))))))) -> 7
A105: Agua | B105: COMERCIAL | C105: 103 | D105: Econ_NormalAguaCOMERCIAL103 | E105: COMERCIAL | F105: 35 | G105: =$F105/Parâmetros!$C$5 -> 5.158448057e-06 | H105: =$G105*Parâmetros!B$16 -> 37.66263269 | I105: =$G105*Parâmetros!C$16 -> 38.64133851 | J105: =$G105*Parâmetros!D$16 -> 39.69238087 | K105: =$G105*Parâmetros!E$16 -> 40.74342323 | L105: =IF(C105<=VLOOKUP(E105,'Inputs - Simulador'!$C$5:$AQ$13,6,0),1,IF(C105<=VLOOKUP(E105,'Inputs - Simulador'!$C$5:$AQ$13,11,0),2,IF(C105<=VLOOKUP(E105,'Inputs - Simulador'!$C$5:$AQ$13,16,0),3,IF(C105<=VLOOKUP(E105,'Inputs - Simulador'!$C$5:$AQ$13,21,0),4,IF(C105<=VLOOKUP(E105,'Inputs - Simulador'!$C$5:$AQ$13,26,0),5,IF(C105<=VLOOKUP(E105,'Inputs - Simulador'!$C$5:$AQ$13,31,0),6,IF(C105<=VLOOKUP(E105,'Inputs - Simulador'!$C$5:$AQ$13,36,0),7,IF(C105<=VLOOKUP(E105,'Inputs - Simulador'!$C$5:$AQ$13,41,0),8,0)))))))) -> 7
A106: Agua | B106: COMERCIAL | C106: 104 | D106: Econ_NormalAguaCOMERCIAL104 | E106: COMERCIAL | F106: 26.33333333 | G106: =$F106/Parâmetros!$C$5 -> 3.881118062e-06 | H106: =$G106*Parâmetros!B$16 -> 28.33664746 | I106: =$G106*Parâmetros!C$16 -> 29.07300707 | J106: =$G106*Parâmetros!D$16 -> 29.86379132 | K106: =$G106*Parâmetros!E$16 -> 30.65457557 | L106: =IF(C106<=VLOOKUP(E106,'Inputs - Simulador'!$C$5:$AQ$13,6,0),1,IF(C106<=VLOOKUP(E106,'Inputs - Simulador'!$C$5:$AQ$13,11,0),2,IF(C106<=VLOOKUP(E106,'Inputs - Simulador'!$C$5:$AQ$13,16,0),3,IF(C106<=VLOOKUP(E106,'Inputs - Simulador'!$C$5:$AQ$13,21,0),4,IF(C106<=VLOOKUP(E106,'Inputs - Simulador'!$C$5:$AQ$13,26,0),5,IF(C106<=VLOOKUP(E106,'Inputs - Simulador'!$C$5:$AQ$13,31,0),6,IF(C106<=VLOOKUP(E106,'Inputs - Simulador'!$C$5:$AQ$13,36,0),7,IF(C106<=VLOOKUP(E106,'Inputs - Simulador'!$C$5:$AQ$13,41,0),8,0)))))))) -> 7
A107: Agua | B107: COMERCIAL | C107: 105 | D107: Econ_NormalAguaCOMERCIAL105 | E107: COMERCIAL | F107: 28.08333333 | G107: =$F107/Parâmetros!$C$5 -> 4.139040465e-06 | H107: =$G107*Parâmetros!B$16 -> 30.21977909 | I107: =$G107*Parâmetros!C$16 -> 31.00507399 | J107: =$G107*Parâmetros!D$16 -> 31.84841036 | K107: =$G107*Parâmetros!E$16 -> 32.69174673 | L107: =IF(C107<=VLOOKUP(E107,'Inputs - Simulador'!$C$5:$AQ$13,6,0),1,IF(C107<=VLOOKUP(E107,'Inputs - Simulador'!$C$5:$AQ$13,11,0),2,IF(C107<=VLOOKUP(E107,'Inputs - Simulador'!$C$5:$AQ$13,16,0),3,IF(C107<=VLOOKUP(E107,'Inputs - Simulador'!$C$5:$AQ$13,21,0),4,IF(C107<=VLOOKUP(E107,'Inputs - Simulador'!$C$5:$AQ$13,26,0),5,IF(C107<=VLOOKUP(E107,'Inputs - Simulador'!$C$5:$AQ$13,31,0),6,IF(C107<=VLOOKUP(E107,'Inputs - Simulador'!$C$5:$AQ$13,36,0),7,IF(C107<=VLOOKUP(E107,'Inputs - Simulador'!$C$5:$AQ$13,41,0),8,0)))))))) -> 7
A108: Agua | B108: COMERCIAL | C108: 106 | D108: Econ_NormalAguaCOMERCIAL106 | E108: COMERCIAL | F108: 28.91666667 | G108: =$F108/Parâmetros!$C$5 -> 4.261860657e-06 | H108: =$G108*Parâmetros!B$16 -> 31.11650844 | I108: =$G108*Parâmetros!C$16 -> 31.92510586 | J108: =$G108*Parâmetros!D$16 -> 32.79346705 | K108: =$G108*Parâmetros!E$16 -> 33.66182824 | L108: =IF(C108<=VLOOKUP(E108,'Inputs - Simulador'!$C$5:$AQ$13,6,0),1,IF(C108<=VLOOKUP(E108,'Inputs - Simulador'!$C$5:$AQ$13,11,0),2,IF(C108<=VLOOKUP(E108,'Inputs - Simulador'!$C$5:$AQ$13,16,0),3,IF(C108<=VLOOKUP(E108,'Inputs - Simulador'!$C$5:$AQ$13,21,0),4,IF(C108<=VLOOKUP(E108,'Inputs - Simulador'!$C$5:$AQ$13,26,0),5,IF(C108<=VLOOKUP(E108,'Inputs - Simulador'!$C$5:$AQ$13,31,0),6,IF(C108<=VLOOKUP(E108,'Inputs - Simulador'!$C$5:$AQ$13,36,0),7,IF(C108<=VLOOKUP(E108,'Inputs - Simulador'!$C$5:$AQ$13,41,0),8,0)))))))) -> 7
A109: Agua | B109: COMERCIAL | C109: 107 | D109: Econ_NormalAguaCOMERCIAL107 | E109: COMERCIAL | F109: 25.91666667 | G109: =$F109/Parâmetros!$C$5 -> 3.819707966e-06 | H109: =$G109*Parâmetros!B$16 -> 27.88828278 | I109: =$G109*Parâmetros!C$16 -> 28.61299113 | J109: =$G109*Parâmetros!D$16 -> 29.39126298 | K109: =$G109*Parâmetros!E$16 -> 30.16953482 | L109: =IF(C109<=VLOOKUP(E109,'Inputs - Simulador'!$C$5:$AQ$13,6,0),1,IF(C109<=VLOOKUP(E109,'Inputs - Simulador'!$C$5:$AQ$13,11,0),2,IF(C109<=VLOOKUP(E109,'Inputs - Simulador'!$C$5:$AQ$13,16,0),3,IF(C109<=VLOOKUP(E109,'Inputs - Simulador'!$C$5:$AQ$13,21,0),4,IF(C109<=VLOOKUP(E109,'Inputs - Simulador'!$C$5:$AQ$13,26,0),5,IF(C109<=VLOOKUP(E109,'Inputs - Simulador'!$C$5:$AQ$13,31,0),6,IF(C109<=VLOOKUP(E109,'Inputs - Simulador'!$C$5:$AQ$13,36,0),7,IF(C109<=VLOOKUP(E109,'Inputs - Simulador'!$C$5:$AQ$13,41,0),8,0)))))))) -> 7
A110: Agua | B110: COMERCIAL | C110: 108 | D110: Econ_NormalAguaCOMERCIAL108 | E110: COMERCIAL | F110: 27.75 | G110: =$F110/Parâmetros!$C$5 -> 4.089912388e-06 | H110: =$G110*Parâmetros!B$16 -> 29.86108735 | I110: =$G110*Parâmetros!C$16 -> 30.63706125 | J110: =$G110*Parâmetros!D$16 -> 31.47038769 | K110: =$G110*Parâmetros!E$16 -> 32.30371413 | L110: =IF(C110<=VLOOKUP(E110,'Inputs - Simulador'!$C$5:$AQ$13,6,0),1,IF(C110<=VLOOKUP(E110,'Inputs - Simulador'!$C$5:$AQ$13,11,0),2,IF(C110<=VLOOKUP(E110,'Inputs - Simulador'!$C$5:$AQ$13,16,0),3,IF(C110<=VLOOKUP(E110,'Inputs - Simulador'!$C$5:$AQ$13,21,0),4,IF(C110<=VLOOKUP(E110,'Inputs - Simulador'!$C$5:$AQ$13,26,0),5,IF(C110<=VLOOKUP(E110,'Inputs - Simulador'!$C$5:$AQ$13,31,0),6,IF(C110<=VLOOKUP(E110,'Inputs - Simulador'!$C$5:$AQ$13,36,0),7,IF(C110<=VLOOKUP(E110,'Inputs - Simulador'!$C$5:$AQ$13,41,0),8,0)))))))) -> 7
A111: Agua | B111: COMERCIAL | C111: 109 | D111: Econ_NormalAguaCOMERCIAL109 | E111: COMERCIAL | F111: 27.08333333 | G111: =$F111/Parâmetros!$C$5 -> 3.991656235e-06 | H111: =$G111*Parâmetros!B$16 -> 29.14370387 | I111: =$G111*Parâmetros!C$16 -> 29.90103575 | J111: =$G111*Parâmetros!D$16 -> 30.71434234 | K111: =$G111*Parâmetros!E$16 -> 31.52764893 | L111: =IF(C111<=VLOOKUP(E111,'Inputs - Simulador'!$C$5:$AQ$13,6,0),1,IF(C111<=VLOOKUP(E111,'Inputs - Simulador'!$C$5:$AQ$13,11,0),2,IF(C111<=VLOOKUP(E111,'Inputs - Simulador'!$C$5:$AQ$13,16,0),3,IF(C111<=VLOOKUP(E111,'Inputs - Simulador'!$C$5:$AQ$13,21,0),4,IF(C111<=VLOOKUP(E111,'Inputs - Simulador'!$C$5:$AQ$13,26,0),5,IF(C111<=VLOOKUP(E111,'Inputs - Simulador'!$C$5:$AQ$13,31,0),6,IF(C111<=VLOOKUP(E111,'Inputs - Simulador'!$C$5:$AQ$13,36,0),7,IF(C111<=VLOOKUP(E111,'Inputs - Simulador'!$C$5:$AQ$13,41,0),8,0)))))))) -> 7
A112: Agua | B112: COMERCIAL | C112: 110 | D112: Econ_NormalAguaCOMERCIAL110 | E112: COMERCIAL | F112: 24.75 | G112: =$F112/Parâmetros!$C$5 -> 3.647759698e-06 | H112: =$G112*Parâmetros!B$16 -> 26.63286169 | I112: =$G112*Parâmetros!C$16 -> 27.32494652 | J112: =$G112*Parâmetros!D$16 -> 28.06818361 | K112: =$G112*Parâmetros!E$16 -> 28.81142071 | L112: =IF(C112<=VLOOKUP(E112,'Inputs - Simulador'!$C$5:$AQ$13,6,0),1,IF(C112<=VLOOKUP(E112,'Inputs - Simulador'!$C$5:$AQ$13,11,0),2,IF(C112<=VLOOKUP(E112,'Inputs - Simulador'!$C$5:$AQ$13,16,0),3,IF(C112<=VLOOKUP(E112,'Inputs - Simulador'!$C$5:$AQ$13,21,0),4,IF(C112<=VLOOKUP(E112,'Inputs - Simulador'!$C$5:$AQ$13,26,0),5,IF(C112<=VLOOKUP(E112,'Inputs - Simulador'!$C$5:$AQ$13,31,0),6,IF(C112<=VLOOKUP(E112,'Inputs - Simulador'!$C$5:$AQ$13,36,0),7,IF(C112<=VLOOKUP(E112,'Inputs - Simulador'!$C$5:$AQ$13,41,0),8,0)))))))) -> 7
A113: Agua | B113: COMERCIAL | C113: 111 | D113: Econ_NormalAguaCOMERCIAL111 | E113: COMERCIAL | F113: 23.41666667 | G113: =$F113/Parâmetros!$C$5 -> 3.451247391e-06 | H113: =$G113*Parâmetros!B$16 -> 25.19809473 | I113: =$G113*Parâmetros!C$16 -> 25.85289553 | J113: =$G113*Parâmetros!D$16 -> 26.55609291 | K113: =$G113*Parâmetros!E$16 -> 27.2592903 | L113: =IF(C113<=VLOOKUP(E113,'Inputs - Simulador'!$C$5:$AQ$13,6,0),1,IF(C113<=VLOOKUP(E113,'Inputs - Simulador'!$C$5:$AQ$13,11,0),2,IF(C113<=VLOOKUP(E113,'Inputs - Simulador'!$C$5:$AQ$13,16,0),3,IF(C113<=VLOOKUP(E113,'Inputs - Simulador'!$C$5:$AQ$13,21,0),4,IF(C113<=VLOOKUP(E113,'Inputs - Simulador'!$C$5:$AQ$13,26,0),5,IF(C113<=VLOOKUP(E113,'Inputs - Simulador'!$C$5:$AQ$13,31,0),6,IF(C113<=VLOOKUP(E113,'Inputs - Simulador'!$C$5:$AQ$13,36,0),7,IF(C113<=VLOOKUP(E113,'Inputs - Simulador'!$C$5:$AQ$13,41,0),8,0)))))))) -> 7
A114: Agua | B114: COMERCIAL | C114: 112 | D114: Econ_NormalAguaCOMERCIAL112 | E114: COMERCIAL | F114: 23.41666667 | G114: =$F114/Parâmetros!$C$5 -> 3.451247391e-06 | H114: =$G114*Parâmetros!B$16 -> 25.19809473 | I114: =$G114*Parâmetros!C$16 -> 25.85289553 | J114: =$G114*Parâmetros!D$16 -> 26.55609291 | K114: =$G114*Parâmetros!E$16 -> 27.2592903 | L114: =IF(C114<=VLOOKUP(E114,'Inputs - Simulador'!$C$5:$AQ$13,6,0),1,IF(C114<=VLOOKUP(E114,'Inputs - Simulador'!$C$5:$AQ$13,11,0),2,IF(C114<=VLOOKUP(E114,'Inputs - Simulador'!$C$5:$AQ$13,16,0),3,IF(C114<=VLOOKUP(E114,'Inputs - Simulador'!$C$5:$AQ$13,21,0),4,IF(C114<=VLOOKUP(E114,'Inputs - Simulador'!$C$5:$AQ$13,26,0),5,IF(C114<=VLOOKUP(E114,'Inputs - Simulador'!$C$5:$AQ$13,31,0),6,IF(C114<=VLOOKUP(E114,'Inputs - Simulador'!$C$5:$AQ$13,36,0),7,IF(C114<=VLOOKUP(E114,'Inputs - Simulador'!$C$5:$AQ$13,41,0),8,0)))))))) -> 7
A115: Agua | B115: COMERCIAL | C115: 113 | D115: Econ_NormalAguaCOMERCIAL113 | E115: COMERCIAL | F115: 18.83333333 | G115: =$F115/Parâmetros!$C$5 -> 2.775736336e-06 | H115: =$G115*Parâmetros!B$16 -> 20.26608331 | I115: =$G115*Parâmetros!C$16 -> 20.79272025 | J115: =$G115*Parâmetros!D$16 -> 21.35828113 | K115: =$G115*Parâmetros!E$16 -> 21.92384202 | L115: =IF(C115<=VLOOKUP(E115,'Inputs - Simulador'!$C$5:$AQ$13,6,0),1,IF(C115<=VLOOKUP(E115,'Inputs - Simulador'!$C$5:$AQ$13,11,0),2,IF(C115<=VLOOKUP(E115,'Inputs - Simulador'!$C$5:$AQ$13,16,0),3,IF(C115<=VLOOKUP(E115,'Inputs - Simulador'!$C$5:$AQ$13,21,0),4,IF(C115<=VLOOKUP(E115,'Inputs - Simulador'!$C$5:$AQ$13,26,0),5,IF(C115<=VLOOKUP(E115,'Inputs - Simulador'!$C$5:$AQ$13,31,0),6,IF(C115<=VLOOKUP(E115,'Inputs - Simulador'!$C$5:$AQ$13,36,0),7,IF(C115<=VLOOKUP(E115,'Inputs - Simulador'!$C$5:$AQ$13,41,0),8,0)))))))) -> 7
A116: Agua | B116: COMERCIAL | C116: 114 | D116: Econ_NormalAguaCOMERCIAL114 | E116: COMERCIAL | F116: 22.75 | G116: =$F116/Parâmetros!$C$5 -> 3.352991237e-06 | H116: =$G116*Parâmetros!B$16 -> 24.48071125 | I116: =$G116*Parâmetros!C$16 -> 25.11687003 | J116: =$G116*Parâmetros!D$16 -> 25.80004756 | K116: =$G116*Parâmetros!E$16 -> 26.4832251 | L116: =IF(C116<=VLOOKUP(E116,'Inputs - Simulador'!$C$5:$AQ$13,6,0),1,IF(C116<=VLOOKUP(E116,'Inputs - Simulador'!$C$5:$AQ$13,11,0),2,IF(C116<=VLOOKUP(E116,'Inputs - Simulador'!$C$5:$AQ$13,16,0),3,IF(C116<=VLOOKUP(E116,'Inputs - Simulador'!$C$5:$AQ$13,21,0),4,IF(C116<=VLOOKUP(E116,'Inputs - Simulador'!$C$5:$AQ$13,26,0),5,IF(C116<=VLOOKUP(E116,'Inputs - Simulador'!$C$5:$AQ$13,31,0),6,IF(C116<=VLOOKUP(E116,'Inputs - Simulador'!$C$5:$AQ$13,36,0),7,IF(C116<=VLOOKUP(E116,'Inputs - Simulador'!$C$5:$AQ$13,41,0),8,0)))))))) -> 7
A117: Agua | B117: COMERCIAL | C117: 115 | D117: Econ_NormalAguaCOMERCIAL115 | E117: COMERCIAL | F117: 23.66666667 | G117: =$F117/Parâmetros!$C$5 -> 3.488093448e-06 | H117: =$G117*Parâmetros!B$16 -> 25.46711354 | I117: =$G117*Parâmetros!C$16 -> 26.12890509 | J117: =$G117*Parâmetros!D$16 -> 26.83960992 | K117: =$G117*Parâmetros!E$16 -> 27.55031475 | L117: =IF(C117<=VLOOKUP(E117,'Inputs - Simulador'!$C$5:$AQ$13,6,0),1,IF(C117<=VLOOKUP(E117,'Inputs - Simulador'!$C$5:$AQ$13,11,0),2,IF(C117<=VLOOKUP(E117,'Inputs - Simulador'!$C$5:$AQ$13,16,0),3,IF(C117<=VLOOKUP(E117,'Inputs - Simulador'!$C$5:$AQ$13,21,0),4,IF(C117<=VLOOKUP(E117,'Inputs - Simulador'!$C$5:$AQ$13,26,0),5,IF(C117<=VLOOKUP(E117,'Inputs - Simulador'!$C$5:$AQ$13,31,0),6,IF(C117<=VLOOKUP(E117,'Inputs - Simulador'!$C$5:$AQ$13,36,0),7,IF(C117<=VLOOKUP(E117,'Inputs - Simulador'!$C$5:$AQ$13,41,0),8,0)))))))) -> 7
A118: Agua | B118: COMERCIAL | C118: 116 | D118: Econ_NormalAguaCOMERCIAL116 | E118: COMERCIAL | F118: 20.5 | G118: =$F118/Parâmetros!$C$5 -> 3.021376719e-06 | H118: =$G118*Parâmetros!B$16 -> 22.05954201 | I118: =$G118*Parâmetros!C$16 -> 22.63278398 | J118: =$G118*Parâmetros!D$16 -> 23.24839451 | K118: =$G118*Parâmetros!E$16 -> 23.86400503 | L118: =IF(C118<=VLOOKUP(E118,'Inputs - Simulador'!$C$5:$AQ$13,6,0),1,IF(C118<=VLOOKUP(E118,'Inputs - Simulador'!$C$5:$AQ$13,11,0),2,IF(C118<=VLOOKUP(E118,'Inputs - Simulador'!$C$5:$AQ$13,16,0),3,IF(C118<=VLOOKUP(E118,'Inputs - Simulador'!$C$5:$AQ$13,21,0),4,IF(C118<=VLOOKUP(E118,'Inputs - Simulador'!$C$5:$AQ$13,26,0),5,IF(C118<=VLOOKUP(E118,'Inputs - Simulador'!$C$5:$AQ$13,31,0),6,IF(C118<=VLOOKUP(E118,'Inputs - Simulador'!$C$5:$AQ$13,36,0),7,IF(C118<=VLOOKUP(E118,'Inputs - Simulador'!$C$5:$AQ$13,41,0),8,0)))))))) -> 7
A119: Agua | B119: COMERCIAL | C119: 117 | D119: Econ_NormalAguaCOMERCIAL117 | E119: COMERCIAL | F119: 20.58333333 | G119: =$F119/Parâmetros!$C$5 -> 3.033658738e-06 | H119: =$G119*Parâmetros!B$16 -> 22.14921494 | I119: =$G119*Parâmetros!C$16 -> 22.72478717 | J119: =$G119*Parâmetros!D$16 -> 23.34290018 | K119: =$G119*Parâmetros!E$16 -> 23.96101318 | L119: =IF(C119<=VLOOKUP(E119,'Inputs - Simulador'!$C$5:$AQ$13,6,0),1,IF(C119<=VLOOKUP(E119,'Inputs - Simulador'!$C$5:$AQ$13,11,0),2,IF(C119<=VLOOKUP(E119,'Inputs - Simulador'!$C$5:$AQ$13,16,0),3,IF(C119<=VLOOKUP(E119,'Inputs - Simulador'!$C$5:$AQ$13,21,0),4,IF(C119<=VLOOKUP(E119,'Inputs - Simulador'!$C$5:$AQ$13,26,0),5,IF(C119<=VLOOKUP(E119,'Inputs - Simulador'!$C$5:$AQ$13,31,0),6,IF(C119<=VLOOKUP(E119,'Inputs - Simulador'!$C$5:$AQ$13,36,0),7,IF(C119<=VLOOKUP(E119,'Inputs - Simulador'!$C$5:$AQ$13,41,0),8,0)))))))) -> 7
A120: Agua | B120: COMERCIAL | C120: 118 | D120: Econ_NormalAguaCOMERCIAL118 | E120: COMERCIAL | F120: 20.83333333 | G120: =$F120/Parâmetros!$C$5 -> 3.070504796e-06 | H120: =$G120*Parâmetros!B$16 -> 22.41823375 | I120: =$G120*Parâmetros!C$16 -> 23.00079673 | J120: =$G120*Parâmetros!D$16 -> 23.62641718 | K120: =$G120*Parâmetros!E$16 -> 24.25203764 | L120: =IF(C120<=VLOOKUP(E120,'Inputs - Simulador'!$C$5:$AQ$13,6,0),1,IF(C120<=VLOOKUP(E120,'Inputs - Simulador'!$C$5:$AQ$13,11,0),2,IF(C120<=VLOOKUP(E120,'Inputs - Simulador'!$C$5:$AQ$13,16,0),3,IF(C120<=VLOOKUP(E120,'Inputs - Simulador'!$C$5:$AQ$13,21,0),4,IF(C120<=VLOOKUP(E120,'Inputs - Simulador'!$C$5:$AQ$13,26,0),5,IF(C120<=VLOOKUP(E120,'Inputs - Simulador'!$C$5:$AQ$13,31,0),6,IF(C120<=VLOOKUP(E120,'Inputs - Simulador'!$C$5:$AQ$13,36,0),7,IF(C120<=VLOOKUP(E120,'Inputs - Simulador'!$C$5:$AQ$13,41,0),8,0)))))))) -> 7
A121: Agua | B121: COMERCIAL | C121: 119 | D121: Econ_NormalAguaCOMERCIAL119 | E121: COMERCIAL | F121: 19.66666667 | G121: =$F121/Parâmetros!$C$5 -> 2.898556527e-06 | H121: =$G121*Parâmetros!B$16 -> 21.16281266 | I121: =$G121*Parâmetros!C$16 -> 21.71275211 | J121: =$G121*Parâmetros!D$16 -> 22.30333782 | K121: =$G121*Parâmetros!E$16 -> 22.89392353 | L121: =IF(C121<=VLOOKUP(E121,'Inputs - Simulador'!$C$5:$AQ$13,6,0),1,IF(C121<=VLOOKUP(E121,'Inputs - Simulador'!$C$5:$AQ$13,11,0),2,IF(C121<=VLOOKUP(E121,'Inputs - Simulador'!$C$5:$AQ$13,16,0),3,IF(C121<=VLOOKUP(E121,'Inputs - Simulador'!$C$5:$AQ$13,21,0),4,IF(C121<=VLOOKUP(E121,'Inputs - Simulador'!$C$5:$AQ$13,26,0),5,IF(C121<=VLOOKUP(E121,'Inputs - Simulador'!$C$5:$AQ$13,31,0),6,IF(C121<=VLOOKUP(E121,'Inputs - Simulador'!$C$5:$AQ$13,36,0),7,IF(C121<=VLOOKUP(E121,'Inputs - Simulador'!$C$5:$AQ$13,41,0),8,0)))))))) -> 7
A122: Agua | B122: COMERCIAL | C122: 120 | D122: Econ_NormalAguaCOMERCIAL120 | E122: COMERCIAL | F122: 20.33333333 | G122: =$F122/Parâmetros!$C$5 -> 2.996812681e-06 | H122: =$G122*Parâmetros!B$16 -> 21.88019614 | I122: =$G122*Parâmetros!C$16 -> 22.44877761 | J122: =$G122*Parâmetros!D$16 -> 23.05938317 | K122: =$G122*Parâmetros!E$16 -> 23.66998873 | L122: =IF(C122<=VLOOKUP(E122,'Inputs - Simulador'!$C$5:$AQ$13,6,0),1,IF(C122<=VLOOKUP(E122,'Inputs - Simulador'!$C$5:$AQ$13,11,0),2,IF(C122<=VLOOKUP(E122,'Inputs - Simulador'!$C$5:$AQ$13,16,0),3,IF(C122<=VLOOKUP(E122,'Inputs - Simulador'!$C$5:$AQ$13,21,0),4,IF(C122<=VLOOKUP(E122,'Inputs - Simulador'!$C$5:$AQ$13,26,0),5,IF(C122<=VLOOKUP(E122,'Inputs - Simulador'!$C$5:$AQ$13,31,0),6,IF(C122<=VLOOKUP(E122,'Inputs - Simulador'!$C$5:$AQ$13,36,0),7,IF(C122<=VLOOKUP(E122,'Inputs - Simulador'!$C$5:$AQ$13,41,0),8,0)))))))) -> 7
A123: Agua | B123: COMERCIAL | C123: 121 | D123: Econ_NormalAguaCOMERCIAL121 | E123: COMERCIAL | F123: 18.5 | G123: =$F123/Parâmetros!$C$5 -> 2.726608259e-06 | H123: =$G123*Parâmetros!B$16 -> 19.90739157 | I123: =$G123*Parâmetros!C$16 -> 20.4247075 | J123: =$G123*Parâmetros!D$16 -> 20.98025846 | K123: =$G123*Parâmetros!E$16 -> 21.53580942 | L123: =IF(C123<=VLOOKUP(E123,'Inputs - Simulador'!$C$5:$AQ$13,6,0),1,IF(C123<=VLOOKUP(E123,'Inputs - Simulador'!$C$5:$AQ$13,11,0),2,IF(C123<=VLOOKUP(E123,'Inputs - Simulador'!$C$5:$AQ$13,16,0),3,IF(C123<=VLOOKUP(E123,'Inputs - Simulador'!$C$5:$AQ$13,21,0),4,IF(C123<=VLOOKUP(E123,'Inputs - Simulador'!$C$5:$AQ$13,26,0),5,IF(C123<=VLOOKUP(E123,'Inputs - Simulador'!$C$5:$AQ$13,31,0),6,IF(C123<=VLOOKUP(E123,'Inputs - Simulador'!$C$5:$AQ$13,36,0),7,IF(C123<=VLOOKUP(E123,'Inputs - Simulador'!$C$5:$AQ$13,41,0),8,0)))))))) -> 7
A124: Agua | B124: COMERCIAL | C124: 122 | D124: Econ_NormalAguaCOMERCIAL122 | E124: COMERCIAL | F124: 17.41666667 | G124: =$F124/Parâmetros!$C$5 -> 2.566942009e-06 | H124: =$G124*Parâmetros!B$16 -> 18.74164341 | I124: =$G124*Parâmetros!C$16 -> 19.22866607 | J124: =$G124*Parâmetros!D$16 -> 19.75168477 | K124: =$G124*Parâmetros!E$16 -> 20.27470346 | L124: =IF(C124<=VLOOKUP(E124,'Inputs - Simulador'!$C$5:$AQ$13,6,0),1,IF(C124<=VLOOKUP(E124,'Inputs - Simulador'!$C$5:$AQ$13,11,0),2,IF(C124<=VLOOKUP(E124,'Inputs - Simulador'!$C$5:$AQ$13,16,0),3,IF(C124<=VLOOKUP(E124,'Inputs - Simulador'!$C$5:$AQ$13,21,0),4,IF(C124<=VLOOKUP(E124,'Inputs - Simulador'!$C$5:$AQ$13,26,0),5,IF(C124<=VLOOKUP(E124,'Inputs - Simulador'!$C$5:$AQ$13,31,0),6,IF(C124<=VLOOKUP(E124,'Inputs - Simulador'!$C$5:$AQ$13,36,0),7,IF(C124<=VLOOKUP(E124,'Inputs - Simulador'!$C$5:$AQ$13,41,0),8,0)))))))) -> 7
A125: Agua | B125: COMERCIAL | C125: 123 | D125: Econ_NormalAguaCOMERCIAL123 | E125: COMERCIAL | F125: 14.58333333 | G125: =$F125/Parâmetros!$C$5 -> 2.149353357e-06 | H125: =$G125*Parâmetros!B$16 -> 15.69276362 | I125: =$G125*Parâmetros!C$16 -> 16.10055771 | J125: =$G125*Parâmetros!D$16 -> 16.53849203 | K125: =$G125*Parâmetros!E$16 -> 16.97642635 | L125: =IF(C125<=VLOOKUP(E125,'Inputs - Simulador'!$C$5:$AQ$13,6,0),1,IF(C125<=VLOOKUP(E125,'Inputs - Simulador'!$C$5:$AQ$13,11,0),2,IF(C125<=VLOOKUP(E125,'Inputs - Simulador'!$C$5:$AQ$13,16,0),3,IF(C125<=VLOOKUP(E125,'Inputs - Simulador'!$C$5:$AQ$13,21,0),4,IF(C125<=VLOOKUP(E125,'Inputs - Simulador'!$C$5:$AQ$13,26,0),5,IF(C125<=VLOOKUP(E125,'Inputs - Simulador'!$C$5:$AQ$13,31,0),6,IF(C125<=VLOOKUP(E125,'Inputs - Simulador'!$C$5:$AQ$13,36,0),7,IF(C125<=VLOOKUP(E125,'Inputs - Simulador'!$C$5:$AQ$13,41,0),8,0)))))))) -> 7
... 156 more rows

Sheet Tarifa Normal - Ligações
A1: Objeto | B1: Categoria | C1: Faixa | D1: Chave | E1: Categorias Propostas | F1: Ligações | G1: Peso | H1: 2021 | I1: 2022 | J1: 2023 | K1: 2024 | L1: Condicional
A2: Agua | B2: COMERCIAL | C2: 0 | D2: ="Lig_Normal"&A2&B2&C2 -> Lig_NormalAguaCOMERCIAL0 | E2: =IF(OR($B2="SANEPAR", $B2="INATIVO",),"INATIVO + SANEPAR",$B2) -> COMERCIAL | F2: 12030.58333 | G2: =$F2/Parâmetros!$D$5 -> 0.00224808677 | H2: =$G2*Parâmetros!B$17 -> 12944.04525 | I2: =$G2*Parâmetros!C$17 -> 13277.70535 | J2: =$G2*Parâmetros!D$17 -> 13618.41121 | K2: =$G2*Parâmetros!E$17 -> 13959.11706 | L2: =IF(C2<=VLOOKUP(E2,'Inputs - Simulador'!$C$5:$AQ$13,6,0),1,IF(C2<=VLOOKUP(E2,'Inputs - Simulador'!$C$5:$AQ$13,11,0),2,IF(C2<=VLOOKUP(E2,'Inputs - Simulador'!$C$5:$AQ$13,16,0),3,IF(C2<=VLOOKUP(E2,'Inputs - Simulador'!$C$5:$AQ$13,21,0),4,IF(C2<=VLOOKUP(E2,'Inputs - Simulador'!$C$5:$AQ$13,26,0),5,IF(C2<=VLOOKUP(E2,'Inputs - Simulador'!$C$5:$AQ$13,31,0),6,IF(C2<=VLOOKUP(E2,'Inputs - Simulador'!$C$5:$AQ$13,36,0),7,IF(C2<=VLOOKUP(E2,'Inputs - Simulador'!$C$5:$AQ$13,41,0),8,0)))))))) -> 1
A3: Agua | B3: COMERCIAL | C3: 1 | D3: ="Lig_Normal"&A3&B3&C3 -> Lig_NormalAguaCOMERCIAL1 | E3: =IF(OR($B3="SANEPAR", $B3="INATIVO",),"INATIVO + SANEPAR",$B3) -> COMERCIAL | F3: 14869.5 | G3: =$F3/Parâmetros!$D$5 -> 0.002778579002 | H3: =$G3*Parâmetros!B$17 -> 15998.51607 | I3: =$G3*Parâmetros!C$17 -> 16410.91161 | J3: =$G3*Parâmetros!D$17 -> 16832.01553 | K3: =$G3*Parâmetros!E$17 -> 17253.11944 | L3: =IF(C3<=VLOOKUP(E3,'Inputs - Simulador'!$C$5:$AQ$13,6,0),1,IF(C3<=VLOOKUP(E3,'Inputs - Simulador'!$C$5:$AQ$13,11,0),2,IF(C3<=VLOOKUP(E3,'Inputs - Simulador'!$C$5:$AQ$13,16,0),3,IF(C3<=VLOOKUP(E3,'Inputs - Simulador'!$C$5:$AQ$13,21,0),4,IF(C3<=VLOOKUP(E3,'Inputs - Simulador'!$C$5:$AQ$13,26,0),5,IF(C3<=VLOOKUP(E3,'Inputs - Simulador'!$C$5:$AQ$13,31,0),6,IF(C3<=VLOOKUP(E3,'Inputs - Simulador'!$C$5:$AQ$13,36,0),7,IF(C3<=VLOOKUP(E3,'Inputs - Simulador'!$C$5:$AQ$13,41,0),8,0)))))))) -> 1
A4: Agua | B4: COMERCIAL | C4: 2 | D4: Lig_NormalAguaCOMERCIAL2 | E4: COMERCIAL | F4: 15101.75 | G4: =$F4/Parâmetros!$D$5 -> 0.00282197824 | H4: =$G4*Parâmetros!B$17 -> 16248.40042 | I4: =$G4*Parâmetros!C$17 -> 16667.23726 | J4: =$G4*Parâmetros!D$17 -> 17094.91849 | K4: =$G4*Parâmetros!E$17 -> 17522.59972 | L4: =IF(C4<=VLOOKUP(E4,'Inputs - Simulador'!$C$5:$AQ$13,6,0),1,IF(C4<=VLOOKUP(E4,'Inputs - Simulador'!$C$5:$AQ$13,11,0),2,IF(C4<=VLOOKUP(E4,'Inputs - Simulador'!$C$5:$AQ$13,16,0),3,IF(C4<=VLOOKUP(E4,'Inputs - Simulador'!$C$5:$AQ$13,21,0),4,IF(C4<=VLOOKUP(E4,'Inputs - Simulador'!$C$5:$AQ$13,26,0),5,IF(C4<=VLOOKUP(E4,'Inputs - Simulador'!$C$5:$AQ$13,31,0),6,IF(C4<=VLOOKUP(E4,'Inputs - Simulador'!$C$5:$AQ$13,36,0),7,IF(C4<=VLOOKUP(E4,'Inputs - Simulador'!$C$5:$AQ$13,41,0),8,0)))))))) -> 1
A5: Agua | B5: COMERCIAL | C5: 3 | D5: Lig_NormalAguaCOMERCIAL3 | E5: COMERCIAL | F5: 14535.91667 | G5: =$F5/Parâmetros!$D$5 -> 0.002716244179 | H5: =$G5*Parâmetros!B$17 -> 15639.60432 | I5: =$G5*Parâmetros!C$17 -> 16042.74815 | J5: =$G5*Parâmetros!D$17 -> 16454.40499 | K5: =$G5*Parâmetros!E$17 -> 16866.06183 | L5: =IF(C5<=VLOOKUP(E5,'Inputs - Simulador'!$C$5:$AQ$13,6,0),1,IF(C5<=VLOOKUP(E5,'Inputs - Simulador'!$C$5:$AQ$13,11,0),2,IF(C5<=VLOOKUP(E5,'Inputs - Simulador'!$C$5:$AQ$13,16,0),3,IF(C5<=VLOOKUP(E5,'Inputs - Simulador'!$C$5:$AQ$13,21,0),4,IF(C5<=VLOOKUP(E5,'Inputs - Simulador'!$C$5:$AQ$13,26,0),5,IF(C5<=VLOOKUP(E5,'Inputs - Simulador'!$C$5:$AQ$13,31,0),6,IF(C5<=VLOOKUP(E5,'Inputs - Simulador'!$C$5:$AQ$13,36,0),7,IF(C5<=VLOOKUP(E5,'Inputs - Simulador'!$C$5:$AQ$13,41,0),8,0)))))))) -> 1
A6: Agua | B6: COMERCIAL | C6: 4 | D6: Lig_NormalAguaCOMERCIAL4 | E6: COMERCIAL | F6: 14169.33333 | G6: =$F6/Parâmetros!$D$5 -> 0.002647742834 | H6: =$G6*Parâmetros!B$17 -> 15245.18693 | I6: =$G6*Parâmetros!C$17 -> 15638.16382 | J6: =$G6*Parâmetros!D$17 -> 16039.43903 | K6: =$G6*Parâmetros!E$17 -> 16440.71424 | L6: =IF(C6<=VLOOKUP(E6,'Inputs - Simulador'!$C$5:$AQ$13,6,0),1,IF(C6<=VLOOKUP(E6,'Inputs - Simulador'!$C$5:$AQ$13,11,0),2,IF(C6<=VLOOKUP(E6,'Inputs - Simulador'!$C$5:$AQ$13,16,0),3,IF(C6<=VLOOKUP(E6,'Inputs - Simulador'!$C$5:$AQ$13,21,0),4,IF(C6<=VLOOKUP(E6,'Inputs - Simulador'!$C$5:$AQ$13,26,0),5,IF(C6<=VLOOKUP(E6,'Inputs - Simulador'!$C$5:$AQ$13,31,0),6,IF(C6<=VLOOKUP(E6,'Inputs - Simulador'!$C$5:$AQ$13,36,0),7,IF(C6<=VLOOKUP(E6,'Inputs - Simulador'!$C$5:$AQ$13,41,0),8,0)))))))) -> 1
A7: Agua | B7: COMERCIAL | C7: 5 | D7: Lig_NormalAguaCOMERCIAL5 | E7: COMERCIAL | F7: 14608.66667 | G7: =$F7/Parâmetros!$D$5 -> 0.002729838558 | H7: =$G7*Parâmetros!B$17 -> 15717.8781 | I7: =$G7*Parâmetros!C$17 -> 16123.03961 | J7: =$G7*Parâmetros!D$17 -> 16536.75673 | K7: =$G7*Parâmetros!E$17 -> 16950.47385 | L7: =IF(C7<=VLOOKUP(E7,'Inputs - Simulador'!$C$5:$AQ$13,6,0),1,IF(C7<=VLOOKUP(E7,'Inputs - Simulador'!$C$5:$AQ$13,11,0),2,IF(C7<=VLOOKUP(E7,'Inputs - Simulador'!$C$5:$AQ$13,16,0),3,IF(C7<=VLOOKUP(E7,'Inputs - Simulador'!$C$5:$AQ$13,21,0),4,IF(C7<=VLOOKUP(E7,'Inputs - Simulador'!$C$5:$AQ$13,26,0),5,IF(C7<=VLOOKUP(E7,'Inputs - Simulador'!$C$5:$AQ$13,31,0),6,IF(C7<=VLOOKUP(E7,'Inputs - Simulador'!$C$5:$AQ$13,36,0),7,IF(C7<=VLOOKUP(E7,'Inputs - Simulador'!$C$5:$AQ$13,41,0),8,0)))))))) -> 1
A8: Agua | B8: COMERCIAL | C8: 6 | D8: Lig_NormalAguaCOMERCIAL6 | E8: COMERCIAL | F8: 13165 | G8: =$F8/Parâmetros!$D$5 -> 0.002460068769 | H8: =$G8*Parâmetros!B$17 -> 14164.59626 | I8: =$G8*Parâmetros!C$17 -> 14529.71864 | J8: =$G8*Parâmetros!D$17 -> 14902.55115 | K8: =$G8*Parâmetros!E$17 -> 15275.38367 | L8: =IF(C8<=VLOOKUP(E8,'Inputs - Simulador'!$C$5:$AQ$13,6,0),1,IF(C8<=VLOOKUP(E8,'Inputs - Simulador'!$C$5:$AQ$13,11,0),2,IF(C8<=VLOOKUP(E8,'Inputs - Simulador'!$C$5:$AQ$13,16,0),3,IF(C8<=VLOOKUP(E8,'Inputs - Simulador'!$C$5:$AQ$13,21,0),4,IF(C8<=VLOOKUP(E8,'Inputs - Simulador'!$C$5:$AQ$13,26,0),5,IF(C8<=VLOOKUP(E8,'Inputs - Simulador'!$C$5:$AQ$13,31,0),6,IF(C8<=VLOOKUP(E8,'Inputs - Simulador'!$C$5:$AQ$13,36,0),7,IF(C8<=VLOOKUP(E8,'Inputs - Simulador'!$C$5:$AQ$13,41,0),8,0)))))))) -> 2
A9: Agua | B9: COMERCIAL | C9: 7 | D9: Lig_NormalAguaCOMERCIAL7 | E9: COMERCIAL | F9: 12180.66667 | G9: =$F9/Parâmetros!$D$5 -> 0.00227613199 | H9: =$G9*Parâmetros!B$17 -> 13105.52415 | I9: =$G9*Parâmetros!C$17 -> 13443.34672 | J9: =$G9*Parâmetros!D$17 -> 13788.30293 | K9: =$G9*Parâmetros!E$17 -> 14133.25914 | L9: =IF(C9<=VLOOKUP(E9,'Inputs - Simulador'!$C$5:$AQ$13,6,0),1,IF(C9<=VLOOKUP(E9,'Inputs - Simulador'!$C$5:$AQ$13,11,0),2,IF(C9<=VLOOKUP(E9,'Inputs - Simulador'!$C$5:$AQ$13,16,0),3,IF(C9<=VLOOKUP(E9,'Inputs - Simulador'!$C$5:$AQ$13,21,0),4,IF(C9<=VLOOKUP(E9,'Inputs - Simulador'!$C$5:$AQ$13,26,0),5,IF(C9<=VLOOKUP(E9,'Inputs - Simulador'!$C$5:$AQ$13,31,0),6,IF(C9<=VLOOKUP(E9,'Inputs - Simulador'!$C$5:$AQ$13,36,0),7,IF(C9<=VLOOKUP(E9,'Inputs - Simulador'!$C$5:$AQ$13,41,0),8,0)))))))) -> 2
A10: Agua | B10: COMERCIAL | C10: 8 | D10: Lig_NormalAguaCOMERCIAL8 | E10: COMERCIAL | F10: 11219.66667 | G10: =$F10/Parâmetros!$D$5 -> 0.002096555379 | H10: =$G10*Parâmetros!B$17 -> 12071.55704 | I10: =$G10*Parâmetros!C$17 -> 12382.72692 | J10: =$G10*Parâmetros!D$17 -> 12700.46764 | K10: =$G10*Parâmetros!E$17 -> 13018.20835 | L10: =IF(C10<=VLOOKUP(E10,'Inputs - Simulador'!$C$5:$AQ$13,6,0),1,IF(C10<=VLOOKUP(E10,'Inputs - Simulador'!$C$5:$AQ$13,11,0),2,IF(C10<=VLOOKUP(E10,'Inputs - Simulador'!$C$5:$AQ$13,16,0),3,IF(C10<=VLOOKUP(E10,'Inputs - Simulador'!$C$5:$AQ$13,21,0),4,IF(C10<=VLOOKUP(E10,'Inputs - Simulador'!$C$5:$AQ$13,26,0),5,IF(C10<=VLOOKUP(E10,'Inputs - Simulador'!$C$5:$AQ$13,31,0),6,IF(C10<=VLOOKUP(E10,'Inputs - Simulador'!$C$5:$AQ$13,36,0),7,IF(C10<=VLOOKUP(E10,'Inputs - Simulador'!$C$5:$AQ$13,41,0),8,0)))))))) -> 2
A11: Agua | B11: COMERCIAL | C11: 9 | D11: Lig_NormalAguaCOMERCIAL9 | E11: COMERCIAL | F11: 10034.08333 | G11: =$F11/Parâmetros!$D$5 -> 0.001875012156 | H11: =$G11*Parâmetros!B$17 -> 10795.95437 | I11: =$G11*Parâmetros!C$17 -> 11074.24289 | J11: =$G11*Parâmetros!D$17 -> 11358.40791 | K11: =$G11*Parâmetros!E$17 -> 11642.57293 | L11: =IF(C11<=VLOOKUP(E11,'Inputs - Simulador'!$C$5:$AQ$13,6,0),1,IF(C11<=VLOOKUP(E11,'Inputs - Simulador'!$C$5:$AQ$13,11,0),2,IF(C11<=VLOOKUP(E11,'Inputs - Simulador'!$C$5:$AQ$13,16,0),3,IF(C11<=VLOOKUP(E11,'Inputs - Simulador'!$C$5:$AQ$13,21,0),4,IF(C11<=VLOOKUP(E11,'Inputs - Simulador'!$C$5:$AQ$13,26,0),5,IF(C11<=VLOOKUP(E11,'Inputs - Simulador'!$C$5:$AQ$13,31,0),6,IF(C11<=VLOOKUP(E11,'Inputs - Simulador'!$C$5:$AQ$13,36,0),7,IF(C11<=VLOOKUP(E11,'Inputs - Simulador'!$C$5:$AQ$13,41,0),8,0)))))))) -> 2
A12: Agua | B12: COMERCIAL | C12: 10 | D12: Lig_NormalAguaCOMERCIAL10 | E12: COMERCIAL | F12: 8826.833333 | G12: =$F12/Parâmetros!$D$5 -> 0.001649420206 | H12: =$G12*Parâmetros!B$17 -> 9497.039909 | I12: =$G12*Parâmetros!C$17 -> 9741.846171 | J12: =$G12*Parâmetros!D$17 -> 9991.821898 | K12: =$G12*Parâmetros!E$17 -> 10241.79762 | L12: =IF(C12<=VLOOKUP(E12,'Inputs - Simulador'!$C$5:$AQ$13,6,0),1,IF(C12<=VLOOKUP(E12,'Inputs - Simulador'!$C$5:$AQ$13,11,0),2,IF(C12<=VLOOKUP(E12,'Inputs - Simulador'!$C$5:$AQ$13,16,0),3,IF(C12<=VLOOKUP(E12,'Inputs - Simulador'!$C$5:$AQ$13,21,0),4,IF(C12<=VLOOKUP(E12,'Inputs - Simulador'!$C$5:$AQ$13,26,0),5,IF(C12<=VLOOKUP(E12,'Inputs - Simulador'!$C$5:$AQ$13,31,0),6,IF(C12<=VLOOKUP(E12,'Inputs - Simulador'!$C$5:$AQ$13,36,0),7,IF(C12<=VLOOKUP(E12,'Inputs - Simulador'!$C$5:$AQ$13,41,0),8,0)))))))) -> 2
A13: Agua | B13: COMERCIAL | C13: 11 | D13: Lig_NormalAguaCOMERCIAL11 | E13: COMERCIAL | F13: 7381.166667 | G13: =$F13/Parâmetros!$D$5 -> 0.001379276688 | H13: =$G13*Parâmetros!B$17 -> 7941.606209 | I13: =$G13*Parâmetros!C$17 -> 8146.317882 | J13: =$G13*Parâmetros!D$17 -> 8355.352361 | K13: =$G13*Parâmetros!E$17 -> 8564.386839 | L13: =IF(C13<=VLOOKUP(E13,'Inputs - Simulador'!$C$5:$AQ$13,6,0),1,IF(C13<=VLOOKUP(E13,'Inputs - Simulador'!$C$5:$AQ$13,11,0),2,IF(C13<=VLOOKUP(E13,'Inputs - Simulador'!$C$5:$AQ$13,16,0),3,IF(C13<=VLOOKUP(E13,'Inputs - Simulador'!$C$5:$AQ$13,21,0),4,IF(C13<=VLOOKUP(E13,'Inputs - Simulador'!$C$5:$AQ$13,26,0),5,IF(C13<=VLOOKUP(E13,'Inputs - Simulador'!$C$5:$AQ$13,31,0),6,IF(C13<=VLOOKUP(E13,'Inputs - Simulador'!$C$5:$AQ$13,36,0),7,IF(C13<=VLOOKUP(E13,'Inputs - Simulador'!$C$5:$AQ$13,41,0),8,0)))))))) -> 3
A14: Agua | B14: COMERCIAL | C14: 12 | D14: Lig_NormalAguaCOMERCIAL12 | E14: COMERCIAL | F14: 6216.083333 | G14: =$F14/Parâmetros!$D$5 -> 0.001161564183 | H14: =$G14*Parâmetros!B$17 -> 6688.060062 | I14: =$G14*Parâmetros!C$17 -> 6860.458936 | J14: =$G14*Parâmetros!D$17 -> 7036.49828 | K14: =$G14*Parâmetros!E$17 -> 7212.537624 | L14: =IF(C14<=VLOOKUP(E14,'Inputs - Simulador'!$C$5:$AQ$13,6,0),1,IF(C14<=VLOOKUP(E14,'Inputs - Simulador'!$C$5:$AQ$13,11,0),2,IF(C14<=VLOOKUP(E14,'Inputs - Simulador'!$C$5:$AQ$13,16,0),3,IF(C14<=VLOOKUP(E14,'Inputs - Simulador'!$C$5:$AQ$13,21,0),4,IF(C14<=VLOOKUP(E14,'Inputs - Simulador'!$C$5:$AQ$13,26,0),5,IF(C14<=VLOOKUP(E14,'Inputs - Simulador'!$C$5:$AQ$13,31,0),6,IF(C14<=VLOOKUP(E14,'Inputs - Simulador'!$C$5:$AQ$13,36,0),7,IF(C14<=VLOOKUP(E14,'Inputs - Simulador'!$C$5:$AQ$13,41,0),8,0)))))))) -> 3
A15: Agua | B15: COMERCIAL | C15: 13 | D15: Lig_NormalAguaCOMERCIAL13 | E15: COMERCIAL | F15: 5207.333333 | G15: =$F15/Parâmetros!$D$5 -> 0.0009730648008 | H15: =$G15*Parâmetros!B$17 -> 5602.717375 | I15: =$G15*Parâmetros!C$17 -> 5747.139249 | J15: =$G15*Parâmetros!D$17 -> 5894.610815 | K15: =$G15*Parâmetros!E$17 -> 6042.082381 | L15: =IF(C15<=VLOOKUP(E15,'Inputs - Simulador'!$C$5:$AQ$13,6,0),1,IF(C15<=VLOOKUP(E15,'Inputs - Simulador'!$C$5:$AQ$13,11,0),2,IF(C15<=VLOOKUP(E15,'Inputs - Simulador'!$C$5:$AQ$13,16,0),3,IF(C15<=VLOOKUP(E15,'Inputs - Simulador'!$C$5:$AQ$13,21,0),4,IF(C15<=VLOOKUP(E15,'Inputs - Simulador'!$C$5:$AQ$13,26,0),5,IF(C15<=VLOOKUP(E15,'Inputs - Simulador'!$C$5:$AQ$13,31,0),6,IF(C15<=VLOOKUP(E15,'Inputs - Simulador'!$C$5:$AQ$13,36,0),7,IF(C15<=VLOOKUP(E15,'Inputs - Simulador'!$C$5:$AQ$13,41,0),8,0)))))))) -> 3
A16: Agua | B16: COMERCIAL | C16: 14 | D16: Lig_NormalAguaCOMERCIAL14 | E16: COMERCIAL | F16: 4399.416667 | G16: =$F16/Parâmetros!$D$5 -> 0.0008220940025 | H16: =$G16*Parâmetros!B$17 -> 4733.456958 | I16: =$G16*Parâmetros!C$17 -> 4855.471809 | J16: =$G16*Parâmetros!D$17 -> 4980.063192 | K16: =$G16*Parâmetros!E$17 -> 5104.654576 | L16: =IF(C16<=VLOOKUP(E16,'Inputs - Simulador'!$C$5:$AQ$13,6,0),1,IF(C16<=VLOOKUP(E16,'Inputs - Simulador'!$C$5:$AQ$13,11,0),2,IF(C16<=VLOOKUP(E16,'Inputs - Simulador'!$C$5:$AQ$13,16,0),3,IF(C16<=VLOOKUP(E16,'Inputs - Simulador'!$C$5:$AQ$13,21,0),4,IF(C16<=VLOOKUP(E16,'Inputs - Simulador'!$C$5:$AQ$13,26,0),5,IF(C16<=VLOOKUP(E16,'Inputs - Simulador'!$C$5:$AQ$13,31,0),6,IF(C16<=VLOOKUP(E16,'Inputs - Simulador'!$C$5:$AQ$13,36,0),7,IF(C16<=VLOOKUP(E16,'Inputs - Simulador'!$C$5:$AQ$13,41,0),8,0)))))))) -> 3
A17: Agua | B17: COMERCIAL | C17: 15 | D17: Lig_NormalAguaCOMERCIAL15 | E17: COMERCIAL | F17: 3744.166667 | G17: =$F17/Parâmetros!$D$5 -> 0.000699651157 | H17: =$G17*Parâmetros!B$17 -> 4028.45493 | I17: =$G17*Parâmetros!C$17 -> 4132.296864 | J17: =$G17*Parâmetros!D$17 -> 4238.331582 | K17: =$G17*Parâmetros!E$17 -> 4344.3663 | L17: =IF(C17<=VLOOKUP(E17,'Inputs - Simulador'!$C$5:$AQ$13,6,0),1,IF(C17<=VLOOKUP(E17,'Inputs - Simulador'!$C$5:$AQ$13,11,0),2,IF(C17<=VLOOKUP(E17,'Inputs - Simulador'!$C$5:$AQ$13,16,0),3,IF(C17<=VLOOKUP(E17,'Inputs - Simulador'!$C$5:$AQ$13,21,0),4,IF(C17<=VLOOKUP(E17,'Inputs - Simulador'!$C$5:$AQ$13,26,0),5,IF(C17<=VLOOKUP(E17,'Inputs - Simulador'!$C$5:$AQ$13,31,0),6,IF(C17<=VLOOKUP(E17,'Inputs - Simulador'!$C$5:$AQ$13,36,0),7,IF(C17<=VLOOKUP(E17,'Inputs - Simulador'!$C$5:$AQ$13,41,0),8,0)))))))) -> 3
A18: Agua | B18: COMERCIAL | C18: 16 | D18: Lig_NormalAguaCOMERCIAL16 | E18: COMERCIAL | F18: 3182.25 | G18: =$F18/Parâmetros!$D$5 -> 0.0005946489814 | H18: =$G18*Parâmetros!B$17 -> 3423.872878 | I18: =$G18*Parâmetros!C$17 -> 3512.130433 | J18: =$G18*Parâmetros!D$17 -> 3602.251683 | K18: =$G18*Parâmetros!E$17 -> 3692.372934 | L18: =IF(C18<=VLOOKUP(E18,'Inputs - Simulador'!$C$5:$AQ$13,6,0),1,IF(C18<=VLOOKUP(E18,'Inputs - Simulador'!$C$5:$AQ$13,11,0),2,IF(C18<=VLOOKUP(E18,'Inputs - Simulador'!$C$5:$AQ$13,16,0),3,IF(C18<=VLOOKUP(E18,'Inputs - Simulador'!$C$5:$AQ$13,21,0),4,IF(C18<=VLOOKUP(E18,'Inputs - Simulador'!$C$5:$AQ$13,26,0),5,IF(C18<=VLOOKUP(E18,'Inputs - Simulador'!$C$5:$AQ$13,31,0),6,IF(C18<=VLOOKUP(E18,'Inputs - Simulador'!$C$5:$AQ$13,36,0),7,IF(C18<=VLOOKUP(E18,'Inputs - Simulador'!$C$5:$AQ$13,41,0),8,0)))))))) -> 3
A19: Agua | B19: COMERCIAL | C19: 17 | D19: Lig_NormalAguaCOMERCIAL17 | E19: COMERCIAL | F19: 2698.166667 | G19: =$F19/Parâmetros!$D$5 -> 0.0005041910786 | H19: =$G19*Parâmetros!B$17 -> 2903.033913 | I19: =$G19*Parâmetros!C$17 -> 2977.865744 | J19: =$G19*Parâmetros!D$17 -> 3054.277765 | K19: =$G19*Parâmetros!E$17 -> 3130.689786 | L19: =IF(C19<=VLOOKUP(E19,'Inputs - Simulador'!$C$5:$AQ$13,6,0),1,IF(C19<=VLOOKUP(E19,'Inputs - Simulador'!$C$5:$AQ$13,11,0),2,IF(C19<=VLOOKUP(E19,'Inputs - Simulador'!$C$5:$AQ$13,16,0),3,IF(C19<=VLOOKUP(E19,'Inputs - Simulador'!$C$5:$AQ$13,21,0),4,IF(C19<=VLOOKUP(E19,'Inputs - Simulador'!$C$5:$AQ$13,26,0),5,IF(C19<=VLOOKUP(E19,'Inputs - Simulador'!$C$5:$AQ$13,31,0),6,IF(C19<=VLOOKUP(E19,'Inputs - Simulador'!$C$5:$AQ$13,36,0),7,IF(C19<=VLOOKUP(E19,'Inputs - Simulador'!$C$5:$AQ$13,41,0),8,0)))))))) -> 3
A20: Agua | B20: COMERCIAL | C20: 18 | D20: Lig_NormalAguaCOMERCIAL18 | E20: COMERCIAL | F20: 2372.083333 | G20: =$F20/Parâmetros!$D$5 -> 0.0004432577384 | H20: =$G20*Parâmetros!B$17 -> 2552.191622 | I20: =$G20*Parâmetros!C$17 -> 2617.979752 | J20: =$G20*Parâmetros!D$17 -> 2685.1571 | K20: =$G20*Parâmetros!E$17 -> 2752.334448 | L20: =IF(C20<=VLOOKUP(E20,'Inputs - Simulador'!$C$5:$AQ$13,6,0),1,IF(C20<=VLOOKUP(E20,'Inputs - Simulador'!$C$5:$AQ$13,11,0),2,IF(C20<=VLOOKUP(E20,'Inputs - Simulador'!$C$5:$AQ$13,16,0),3,IF(C20<=VLOOKUP(E20,'Inputs - Simulador'!$C$5:$AQ$13,21,0),4,IF(C20<=VLOOKUP(E20,'Inputs - Simulador'!$C$5:$AQ$13,26,0),5,IF(C20<=VLOOKUP(E20,'Inputs - Simulador'!$C$5:$AQ$13,31,0),6,IF(C20<=VLOOKUP(E20,'Inputs - Simulador'!$C$5:$AQ$13,36,0),7,IF(C20<=VLOOKUP(E20,'Inputs - Simulador'!$C$5:$AQ$13,41,0),8,0)))))))) -> 3
A21: Agua | B21: COMERCIAL | C21: 19 | D21: Lig_NormalAguaCOMERCIAL19 | E21: COMERCIAL | F21: 2074.75 | G21: =$F21/Parâmetros!$D$5 -> 0.0003876967473 | H21: =$G21*Parâmetros!B$17 -> 2232.28227 | I21: =$G21*Parâmetros!C$17 -> 2289.82406 | J21: =$G21*Parâmetros!D$17 -> 2348.580935 | K21: =$G21*Parâmetros!E$17 -> 2407.337809 | L21: =IF(C21<=VLOOKUP(E21,'Inputs - Simulador'!$C$5:$AQ$13,6,0),1,IF(C21<=VLOOKUP(E21,'Inputs - Simulador'!$C$5:$AQ$13,11,0),2,IF(C21<=VLOOKUP(E21,'Inputs - Simulador'!$C$5:$AQ$13,16,0),3,IF(C21<=VLOOKUP(E21,'Inputs - Simulador'!$C$5:$AQ$13,21,0),4,IF(C21<=VLOOKUP(E21,'Inputs - Simulador'!$C$5:$AQ$13,26,0),5,IF(C21<=VLOOKUP(E21,'Inputs - Simulador'!$C$5:$AQ$13,31,0),6,IF(C21<=VLOOKUP(E21,'Inputs - Simulador'!$C$5:$AQ$13,36,0),7,IF(C21<=VLOOKUP(E21,'Inputs - Simulador'!$C$5:$AQ$13,41,0),8,0)))))))) -> 3
